Workbook

Sheet Cover - Guidelines
B2: Version 1.5
B3: Revised 12/18/2019
A6: IW-6300 and ESW-6300 RF Range Estimation Utility
A9: Models Supported: | B9: Cisco IW-6300 Heavy Duty and ESW-6300 Embedded Access Points
A11: Directions for use.
B12: 1. Select a sheet (see bottom tabs) for 2.4 GHz client access, 2.4 GHz backhaul, 5 GHz client access, or 5 GHz backhaul radio.
B13: 2. Select the regulatory domain in which the devices will be used.
B14: 3. Select data rate being used. If using 5 GHz, select the bandwidth as well.
B15: 4. Select antenna used on each side. If using something other than Cisco/Aironet antennas, enter the gain in dBi.
B16: 5. Select the channel.
B17: 6. Select transmit power levels for both sides of the link.
B18: 7. Select cables being used on each side. If using something other than Cisco cables, select other, then enter the cable loss.
B19: 8. Enter the fade margin in dB.
B20: 9. Use the results for a model that is best suited for your environmental conditions.
B21: 10. Remember these are THEORETICAL calculations. This tool is for estimation purposes only and is not a substitute for a site survey!
A24: Notes: | B24: This calculation utility has been edited to stay within limitations for Tx power and EIRP under the listed regulatory domains. There may be cases where it exceeds the limitations, hence it is the responsibility of the installing parties to verify the installation is within the laws of the location in which it is being installed.
B25: When using this utility, available power levels will change based upon the regulatory domain, the antenna (or antenna gain) selected, and the data rate selected. Verify all parameters after making any parameter changes.
B26: The IW/ESW-6300 radios have 2 Tx paths and 2 Rx paths. In this utility, Tx power is the total composite power of both Tx paths. Rx sensitivity is the composite sensitivity of both Rx paths. BOTH ANTENNAS MUST BE USED for proper operation, otherwise range is seriously compromised.
B27: This utility assumes that beamforming and ClientLink are enabled. In some cases beamforming will add an extra 3 dB to the transmit EIRP. If you intend to disable beamforming in one of these cases, reduce the transmit power level by one setting (3 dB) to compensate.

Sheet 2.4GHz Client Access
G1: Cisco 6300 Series 2.4 GHz Client Access Outdoor Link
G2: Only edit orange input cells and select from dropdown menus
A4: Regulatory Domain ―――――――――――――→
C6: Site 1 | I6: Site 2
A7: Select Device ―――――――――――――→ | H7: Select Device ――――――――――→
A8: Note: When choosing antennas and power levels, EIRP cannot exceed the regulatory power limit
A9: Select Data Rate ―――――――――――――→ | H9: Client sensitivity known? ―→ | N9: dBm
A10: IW-6300 typical sensitivity for 10% PER ―――→ | C10: =$T$82 -> -89 | D10: dBm | H10: Client receiver sensitivity ――――――――――――――→ | M10: =$Q$87 -> -82 | N10: dBm
A12: Select Antenna 1 Here ―――――――――→ | H12: Select Antenna 2 Here ―――――→
A13: For other Antenna - Enter Gain Here ―――→ | D13: dBi | H13: For other Antenna - Enter Gain Here ――――→ | M13: dBi
C14: =IF(AND(G59=6,H59>13),B121,"") -> 
A16: Enter Antenna Height Here--------------------> | C16: 10 | D16: (meters) | H16: Enter Antenna Height Here------------------> | L16: 2 | M16: (meters)
A17: Note: When the minimum of the two antenna heights exceeds 10 m or when the maximum exceeds 200 m, the LOS model is recommended
A20: Select Channel ―――――――――――――――→
B21: =IF(Q67=0,B118," " ) -> 
A23: Select Conducted Power Level in dBm ―――→ | E23: dBm | H23: Select Conducted Power level ――→ | M23: dBm
A25: Select Cable Type 1 ――――――――――――→ | H25: Select Cable Type 2 ―――――――→
A26: Enter Length of Cable 1 ―――――――――――――――――→ | D26: 20 | E26: feet | H26: Enter Length of Cable 2 ―――――――――――→ | L26: 20 | M26: feet
A27: Or Enter Loss in dB Here for "Other Cable" ――――→ | D27: 0 | E27: dB | H27: Or Enter Loss in dB Here for "Other Cable" ―→ | L27: 0 | M27: dB
A31: Beamforming active gives greater EIRP? ――――――――→ | D31: =IF('6300_2G_PwrTable'!K7=1,"Yes (+3 dB)","No") -> No | H31: Client transmit beamforming? ――→
A32: Effective Isotropic Radiated Power (EIRP) ――――――――→ | D32: =C86 -> 28 | E32: dBm | H32: Effective Isotropic Radiated Power (EIRP) ―――→ | L32: =D86 -> 20 | M32: dBm
C33: =IF(C87=1,B119,"") ->  | D33: =IF(C87=1,E$73,"") ->  | E33: =IF(C87=1,"dBm","") ->  | K33: =IF(D87=1,B119," ") ->  | L33: =IF(D87=1,E73," ") ->  | M33: =IF(D87=1,"dBm","") -> 
C34: =IF(C87=1,B120,"") ->  | K34: =IF(D87=1,B120," ") -> 
A35: Enter Fade Margin ―――――――――――――→ | C35: 10 | D35: dB
A37: Overall Link Budget | D37: Downlink | E37: =H86-C35 -> 100 | F37: dB | G37: Uplink | H37: =I86-C35 -> 103 | I37: dB
A39: ="Theoretical Max Range at "&INDEX($S$52:$S$79,$S$82)&" with "&$C$35&" dB fade margin" -> Theoretical Max Range at HT20 MCS0 with 10 dB fade margin
E40: Downlink (Site 1 → Site 2) | H40: Uplink (Site 2 → Site 1) | K40: ="Limiting range for bidirectional communication at "&INDEX($S$52:$S$79,$S$82) -> Limiting range for bidirectional communication at HT20 MCS0
E41: ft | F41: m | H41: ft | I41: m | K41: ft | L41: m
A42: LoS w/o Fresnel Zone clearance (PLE = 2.3) | E42: =3.2808*F42 -> 709.5965996 | F42: =IF(($C$87+$D$87)>0,0,$C96) -> 216.2876736 | H42: =3.2808*I42 -> 958.1782496 | I42: =IF(($C$87+$D$87)>0,0,$D96) -> 292.0562819 | K42: =3.2808*L42 -> 709.5965996 | L42: =MIN(F42,I42) -> 216.2876736
A43: LoS with entire path through dense foliage | E43: =3.2808*F43 -> 251.8656687 | F43: =IF(($C$87+$D$87)>0,0,$C113) -> 76.76958935 | H43: =3.2808*I43 -> 288.3523905 | I43: =IF(($C$87+$D$87)>0,0,$D113) -> 87.89087737 | K43: =3.2808*L43 -> 251.8656687 | L43: =MIN(F43,I43) -> 76.76958935
A44: NLoS urban, estimate to reach 90% of clients | E44: =3.2808*F44 -> 192.1501439 | F44: =IF(($C$87+$D$87)>0,0,$C106) -> 58.56807604 | H44: =3.2808*I44 -> 228.370874 | I44: =IF(($C$87+$D$87)>0,0,$D106) -> 69.60828883 | K44: =3.2808*L44 -> 192.1501439 | L44: =MIN(F44,I44) -> 58.56807604 | M44: =IF(L44<30,B122,IF(L44>715,B123,"")) -> 
A45: NLoS with client antenna height ≤ 3 m amid taller obstructions | E45: =3.2808*F45 -> 187.7436277 | F45: =IF(($C$87+$D$87)>0,0,$C109) -> 57.22495359 | H45: =3.2808*I45 -> 192.5211468 | I45: =IF(($C$87+$D$87)>0,0,$D109) -> 58.68115911 | K45: =3.2808*L45 -> 187.7436277 | L45: =MIN(F45,I45) -> 57.22495359
A46: Note: The radio range varies by neighborhood, depending upon the local terrain, foliage, building construction, etc.
A49: Country and Regulatory Domain Selection | C49: AEFKLQR | G49: Antenna Selection | J49: Conducted Power Selection | M49: Cable Selection | P49: Channel Selection | S49: Data Rate Selection
B50: Site 1 | G50: Site 1 | J50: Site 1 | M50: Site 1 | T50: Rx Sensitivity Threshold (dBm)
A51: Country List | B51: Model Numbers | C51: Domain Index for Pwr Table | D51: Antenna Set | E51: Max EIRP (dBm) | G51: Antenna | H51: Gain (dBi) | I51: Gain list order reversed for match function | J51: Level | K51: Power (dBm) | M51: Cable | N51: Loss (dB) | P51: Channel | S51: Data Rate | T51: IW-6300 Typical | U51: IW-6300 Worst Case Over Temp | V51: IEEE Spec - 6dB | W51: IEEE Spec
A52: -A (Americas) | B52: IW-6300H-xxx-A-K9 | C52: 1 | D52: 11 | E52: 36 | G52: AIR-ANT2547V-N, VG-N, or V-N-HZ (4 dBi) | H52: 4 | I52: 13 | J52: PL1 | K52: ='6300_2G_PwrTable'!Q4 -> 24 | M52: No Cable | N52: 0 | P52: Channel 1: 2412 MHz | Q52: 1 | S52: DSSS 1 Mbps | T52: -97 | U52: -92 | V52: =W52-6 -> -88 | W52: -82
A53: -B (United States) | B53: IW-6300H-xxx-B-K9 | C53: 1 | D53: 11 | E53: 36 | G53: AIR-ANT2450VG-N or HG-N (5 dBi) | H53: 5 | I53: 8 | J53: PL2 | K53: ='6300_2G_PwrTable'!Q5 -> 21 | M53: LMR-240 | N53: =-RF_coax_cable_loss(1000*Q$75,D$26,"LMR-240",-0.1,-0.1) -> 2.761755334 | P53: Channel 2: 2417 MHz | Q53: 2 | S53: DSSS 2 Mbps | T53: -94 | U53: -89 | V53: =W53-6 -> -86 | W53: -80
A54: -C (Egypt, Bahrain, Pakistan) | B54: IW-6300H-xxx-C-K9 | C54: 2 | D54: 11 | E54: 20 | G54: AIR-ANT2568VG-N (6 dBi) | H54: 6 | I54: 6 | J54: PL3 | K54: ='6300_2G_PwrTable'!Q6 -> 18 | M54: LMR-400 | N54: =-RF_coax_cable_loss(1000*Q$75,D$26,"LMR-400",-0.1,-0.1) -> 1.53969793 | P54: Channel 3: 2422 MHz | Q54: 3 | S54: CCK 5.5 Mbps | T54: -90 | U54: -85 | V54: -84 | W54: -78
A55: -D (India) | B55: IW-6300H-xxx-D-K9 | C55: 1 | D55: 11 | E55: 36 | G55: AIR-ANT2480V-N or AIR-ANT2588P3M-N (8 dBi) | H55: 8 | I55: 5 | J55: PL4 | K55: ='6300_2G_PwrTable'!Q7 -> 15 | M55: LMR-600 | N55: =-RF_coax_cable_loss(1000*Q$75,D$26,"LMR-600",-0.1,-0.1) -> 1.076324312 | P55: Channel 4: 2427 MHz | Q55: 3 | S55: CCK 11 Mbps | T55: -87 | U55: -82 | V55: -82 | W55: -76
A56: -E (ETSI) | B56: IW-6300H-xxx-E-K9 | C56: 2 | D56: 11 | E56: 20 | G56: AIR-ANT2413P2M-N or AIR-ANT2513P4M-N (13 dBi) | H56: 13 | I56: 4 | J56: PL5 | K56: ='6300_2G_PwrTable'!Q8 -> 12 | M56: Other cable: enter loss below | N56: =D$27 -> 0 | P56: Channel 5: 2432 MHz | Q56: 3 | S56: OFDM 6 Mbps | T56: -89 | U56: -85 | V56: -88 | W56: -82
A57: -F (Indonesia) | B57: IW-6300H-xxx-F-K9 | C57: 3 | D57: 11 | E57: 33 | G57: Other Antenna: Enter Gain Below | H57: =C13 -> 0 | P57: Channel 6: 2437 MHz | Q57: 3 | S57: OFDM 9 Mbps | T57: -89 | U57: -84 | V57: -87 | W57: -81
A58: -G (Pakistan) | B58: IW-6300H-xxx-G-K9 | C58: 2 | D58: 11 | E58: 20 | G58: Antenna Choice: | J58: PL Choice: | P58: Channel 7: 2442 MHz | Q58: 3 | S58: OFDM 12 Mbps | T58: -87 | U58: -83 | V58: -85 | W58: -79
A59: -H (China) | B59: IW-6300H-xxx-H-K9 | C59: 2 | D59: 11 | E59: 20 | G59: 1 | H59: =INDEX(H52:H57,G59) -> 4 | J59: 1 | K59: =INDEX(K52:K56,J59) -> 24 | P59: Channel 8: 2447 MHz | Q59: 3 | S59: OFDM 18 Mbps | T59: -85 | U59: -80 | V59: -83 | W59: -77
A60: -K (Korea) | B60: IW-6300H-xxx-K-K9 | C60: 4 | D60: 11 | E60: 29 | P60: Channel 9: 2452 MHz | Q60: 3 | S60: OFDM 24 Mbps | T60: -83 | U60: -78 | V60: -80 | W60: -74
A61: -L (Malaysia) | B61: IW-6300H-xxx-L-K9 | C61: 5 | D61: 11 | E61: 27 | G61: Ant Index for Pwr Table: | H61: =IF(G59=6,6-MATCH(H59,I52:I56,-1),G59) -> 1 | M61: Cable Choice: | P61: Channel 10: 2457 MHz | Q61: 4 | S61: OFDM 36 Mbps | T61: -80 | U61: -75 | V61: -76 | W61: -70
A62: -M (Saudi Arabia, UAE, Qatar, Iraq, Kuwait) | B62: IW-6300H-xxx-M-K9 | C62: 2 | D62: 11 | E62: 20 | M62: 1 | N62: =INDEX(N52:N56,M62) -> 0 | P62: Channel 11: 2462 MHz | Q62: 5 | S62: OFDM 48 Mbps | T62: -75 | U62: -70 | V62: -72 | W62: -66
A63: -N (Panama) | B63: IW-6300H-xxx-N-K9 | C63: 1 | D63: 11 | E63: 36 | P63: =IF(OR(C69=1,C69=4),"Invalid choice","Channel 12: 2467 MHz") -> Invalid choice | Q63: 6 | S63: OFDM 54 Mbps | T63: -74 | U63: -69 | V63: -71 | W63: -65
A64: -Q (Japan) | B64: IW-6300H-xxx-Q-K9 | C64: 6 | D64: 11 | E64: 25 | G64: Site 2 | J64: Site 2 | M64: Site 2 | P64: =IF(OR(C69=1,C69=4),"Invalid choice","Channel 13: 2472 MHz") -> Invalid choice | Q64: 6 | S64: HT20 MCS0 | T64: -89 | U64: -85 | V64: -88 | W64: -82
A65: -R (Russia) | B65: IW-6300H-xxx-R-K9 | C65: 7 | D65: 11 | E65: 33 | G65: Antenna | H65: Gain (dBi) | J65: Level | K65: Power (dBm) | M65: Cable | N65: Loss (dB) | S65: HT20 MCS1 | T65: -89 | U65: -84 | V65: -85 | W65: -79
A66: -S (Singapore, Thailand, Vietnam, Brunei) | B66: IW-6300H-xxx-S-K9 | C66: 2 | D66: 11 | E66: 20 | G66: 0 dBi | H66: 0 | J66: PL1 | K66: 23 | M66: No Cable | N66: 0 | P66: Channel Choice: | Q66: Channel Index: | S66: HT20 MCS2 | T66: -87 | U66: -83 | V66: -83 | W66: -77
A67: -T (Taiwan) | B67: IW-6300H-xxx-T-K9 | C67: 1 | D67: 11 | E67: 36 | G67: 2 dBi | H67: 2 | J67: PL2 | K67: 20 | M67: LMR-240 | N67: =-RF_coax_cable_loss(1000*Q$75,D$26,"LMR-240",-0.1,-0.1) -> 2.761755334 | P67: 10 | Q67: =INDEX(Q52:Q64,P67) -> 4 | S67: HT20 MCS3 | T67: -85 | U67: -80 | V67: -80 | W67: -74
A68: -Z (Australia, New Zealand, Brazil) | B68: IW-6300H-xxx-Z-K9 | C68: 1 | D68: 11 | E68: 36 | G68: Other Antenna: Enter Gain Below | H68: =L13 -> 0 | J68: PL3 | K68: 17 | M68: LMR-400 | N68: =-RF_coax_cable_loss(1000*Q$75,D$26,"LMR-400",-0.1,-0.1) -> 1.53969793 | S68: HT20 MCS4 | T68: -83 | U68: -78 | V68: -76 | W68: -70
A69: Country Choice: | B69: =A70 -> 2 | C69: =INDEX(C52:C68,A70) -> 1 | D69: =INDEX(D52:D68,A70) -> 11 | E69: =INDEX(E52:E68,A70) -> 36 | J69: PL4 | K69: 16 | M69: LMR-600 | N69: =-RF_coax_cable_loss(1000*Q$75,D$26,"LMR-600",-0.1,-0.1) -> 1.076324312 | S69: HT20 MCS5 | T69: -80 | U69: -75 | V69: -72 | W69: -66
A70: 2 | J70: PL5 | K70: 15 | M70: Other cable: enter loss below | N70: =D$27 -> 0 | S70: HT20 MCS6 | T70: -75 | U70: -70 | V70: -71 | W70: -65
B71: Site 2 | J71: PL6 | K71: 14 | S71: HT20 MCS7 | T71: -74 | U71: -69 | V71: -70 | W71: -64
B72: Model Numbers | C72: Channel Set | D72: Antenna Set | E72: Max EIRP | G72: Antenna Choice: | J72: PL7 | K72: 13 | S72: HT20 MCS8 2SS | T72: -88 | U72: -83 | V72: -88 | W72: -82
B73: CPE or Client Device | E73: =E69 -> 36 | G73: 1 | H73: =INDEX(H66:H69,G73) -> 0 | J73: PL8 | K73: 12 | S73: HT20 MCS9 2SS | T73: -85 | U73: -80 | V73: -85 | W73: -79
A74: 1 | J74: PL9 | K74: 10 | S74: HT20 MCS10 2SS | T74: -83 | U74: -78 | V74: -83 | W74: -77
J75: PL Choice: | M75: Cable Choice: | P75: Freq (GHz) | Q75: =2.407+(P67*0.005) -> 2.457 | S75: HT20 MCS11 2SS | T75: -80 | U75: -74 | V75: -80 | W75: -74
J76: 2 | K76: =INDEX(K66:K74,J76) -> 20 | M76: 1 | N76: =INDEX(N66:N70,M76) -> 0 | S76: HT20 MCS12 2SS | T76: -76 | U76: -70 | V76: -76 | W76: -70
S77: HT20 MCS13 2SS | T77: -72 | U77: -66 | V77: -72 | W77: -66
S78: HT20 MCS14 2SS | T78: -71 | U78: -65 | V78: -71 | W78: -65
P79: Client transmit beamforming? | S79: HT20 MCS15 2SS | T79: -69 | U79: -64 | V79: -70 | W79: -64
B80: EIRP Calculation | G80: Path loss Calculation | P80: No (0 dB) | Q80: 0
C81: Site 1 | D81: Site 2 | H81: Site 1 > 2 | I81: Site 2 > 1 | P81: Yes (+3 dB) | Q81: 3 | S81: Rate Choice:
B82: Tx Conducted Power (dBm) | C82: =K59 -> 24 | D82: =K76 -> 20 | G82: Tx EIRP (dBm) | H82: =C86 -> 28 | I82: =D86 -> 20 | P82: 1 | Q82: =INDEX(Q80:Q81,P82) -> 0 | S82: 13 | T82: =INDEX(T52:T79,$S82) -> -89 | U82: =INDEX(U52:U79,$S82) -> -85 | V82: =INDEX(V52:V79,$S82) -> -88 | W82: =INDEX(W52:W79,$S82) -> -82
B83: Tx Cable Loss (dB) | C83: =-1*N62 -> 0 | D83: =-1*N76 -> 0 | G83: Rx Antenna Gain (dBi) | H83: =H73 -> 0 | I83: =H59 -> 4
B84: Tx Antenna Gain (dBi) | C84: =H59 -> 4 | D84: =H73 -> 0 | G84: Rx Cable Loss (dB) | H84: =-N76 -> 0 | I84: =-N62 -> 0 | P84: Client sensitivity known?
B85: Beamforming Gain (dB) | C85: =3*'6300_2G_PwrTable'!K7 -> 0 | D85: =Q82 -> 0 | G85: Rx Sensitivity (-dBm) | H85: =-Q87 -> 82 | I85: =-T82 -> 89 | P85: No, assume IEEE spec | Q85: =W82 -> -82
B86: Tx EIRP | C86: =SUM(C82:C85) -> 28 | D86: =SUM(D82:D85) -> 20 | G86: Pathloss | H86: =SUM(H82:H85) -> 110 | I86: =SUM(I82:I85) -> 113 | P86: Yes, input sensitivity here → | Q86: =M9 -> 0
B87: EIRP Limit Flag | C87: =IF(C86>E69,1,0) -> 0 | D87: =IF(D86>E73,1,0) -> 0 | G87: Min Pathloss | H87: =MIN(H86:I86) -> 110 | P87: 1 | Q87: =INDEX(Q85:Q86,P87) -> -82
B91: f = | C91: =Q75*1000 -> 2457 | D91: MHz
A93: LOS Distance Calculation | C93: Downlink | D93: Uplink
A94: minimum link margin | C94: =C35 -> 10
A95: Distance LOS (2.0) | C95: =FreeSpaceRange($C$91,$H$86-C$100) -> 970.9697109 | D95: =FreeSpaceRange($C$91,$I$86-D$100) -> 1371.531171 | E95: (m)
A96: Distance LOS w/o (2.3) | C96: =ExponentialModelRange($C$91,$H$86-C$100,2.3) -> 216.2876736 | D96: =ExponentialModelRange($C$91,$I$86-D$100,2.3) -> 292.0562819 | E96: (m)
A97: Distance LOS w/o (2.5) | C97: =ExponentialModelRange($C$91,$H$86-C$100,2.5) -> 97.09697109 | D97: =ExponentialModelRange($C$91,$I$86-D$100,2.5) -> 127.9987364 | E97: (m)
A98: Distance LOS w/o (2.7) | C98: =ExponentialModelRange($C$91,$H$86-C$100,2.7) -> 49.08054608 | D98: =ExponentialModelRange($C$91,$I$86-D$100,2.7) -> 63.38996285 | E98: (m)
A100: Fade Margin | C100: =C94 -> 10 | D100: =C94 -> 10 | E100: (dB)
A104: ITU P.1441-9 Model Calculation: | C104: Downlink | D104: Uplink | R104: COST231-Hata Model Calculation:
B105: Above Rooftop NLoS Range, 90% of Clients | C105: =ITUAboveRooftopRangeNLoS(C$91,H$86-C$100,1.3) -> 102.8387411 | D105: =ITUAboveRooftopRangeNLoS($C$91,I$86-D$100,1.3) -> 120.3632433 | E105: m | R105: Frequency_term | S105: =33.9*LOG10(1000*$Q75) -> 114.9347348
B106: Street Canyon NLoS Range, 90% of Clients | C106: =ITUStreetCanyonRangeNLoS(C$91,H$86-C$100,1.3) -> 58.56807604 | D106: =ITUStreetCanyonRangeNLoS($C$91,I$86-D$100,1.3) -> 69.60828883 | E106: m | R106: Tx_height_factor | S106: =13.82*LOG10(MAX($C16,$L16)) -> 13.82
R107: A_factor_suburban | S107: =(1.1*LOG10(1000*$Q75)-0.7)*MIN($C$16,$L16) - (1.56*LOG10(1000*$Q75) - 0.8) -> 1.5698593
B108: ITU Urban Low Antenna Height Range, 50% of Clients | C108: =ITULowHeightRangeUrban($C$91,H$86-C$100,50) -> 55.37986619 | D108: =ITULowHeightRangeUrban($C$91,I$86-D$100,50) -> 56.62978872 | E108: m | R108: A_factor_urban | S108: =3.2*POWER(LOG10(11.75*MIN($C16,$L16)), 2) - 4.97 -> 1.045446665
B109: ITU Suburban Low Antenna Height Range, 50% of Clients | C109: =ITULowHeightRangeSuburban($C$91,H$86-C$100,50) -> 57.22495359 | D109: =ITULowHeightRangeSuburban($C$91,I$86-D$100,50) -> 58.68115911 | E109: m | R109: Cm_term_suburban | S109: 0
R110: Cm_term_urban | S110: 3
B111: ITU Indoor NLoS Range, Same Floor | C111: =ITUIndoorRangeNLoS($C$91,H$86-C$100,0) -> 297.2098709 | D111: =ITUIndoorRangeNLoS($C$91,I$86-D$100,0) -> 374.1650591 | E111: m | V111: Macro calculations
R112: Distance (suburban) | S112: =1000*POWER(10, (($H87 - $B94 - 46.3 - $S105 + $S106 + $S107 -$S109) / (44.9 - 6.55*LOG10(MAX($C16,$L16))))) -> 116.2311869 | T112: (m) | V112: =COSTHataRangeSuburban(C91,H87,C16,L16) -> 116.2311869
B113: Weissberger's Model: Range through Foliage | C113: =WeissbergerRange(C$91,H$86-C$100) -> 76.76958935 | D113: =WeissbergerRange(C$91,I$86-D$100) -> 87.89087737 | E113: m | R113: Distance (urban) | S113: =1000*POWER(10, (($H87 - $B94 - 46.3 - $S105 + $S106 + $S108 - $S110) / (44.9 - 6.55*LOG10(MAX($C16,$L16))))) -> 94.06356415 | T113: (m) | V113: =costhatarangeurban(C91,H87,C16,L16) -> 94.06356415
A117: Warnings:
A118: cell B23: | B118: **** CHOOSE A VALID CHANNEL ****
A119: cells C34 & K34: | B119: Max Allowable EIRP =
A120: cells C35 & K35: | B120: *** MAX EIRP EXCEEDED → LOWER POWER or ANTENNA GAIN ***
A121: cell C15 | B121: *** ANTENNA GAIN CANNOT EXCEED 13 dBi ***
A122: cell M41 lower warning | B122: URBAN NLOS MODEL MAY BE INACCURATE FOR PATHS < 30 m !
A123: cell M41 upper warning | B123: URBAN NLOS MODEL MAY BE INACCURATE FOR PATHS > 715 m !
A125: cell M40 | B125: ABOVE ROOFTOP NLOS MODEL IS NOT VALID FOR PATHS LESS THAN 260 m. REFER TO THE URBAN MODEL FOR NLOS PREDICTIONS AT SHORT DISTANCES.

Sheet 2.4GHz Backhaul
G1: Cisco 6300 Series 2.4 GHz Mesh or WGB Backhaul Outdoor Link
G2: Only edit orange input cells and select from dropdown menus
A4: Regulatory Domain ―――――――――――――→
C6: Site 1 | I6: Site 2
A7: Select Device ―――――――――――――→ | H7: Select Device ――――――――――→
A8: Note: When choosing antennas and power levels, EIRP cannot exceed the regulatory power limit
A9: Select Data Rate ―――――――――――――→
A10: IW-6300 typical sensitivity for 10% PER ―――→ | C10: =T81 -> -69 | D10: dBm | H10: IW-6300 typical sensitivity for 10% PER ――――→ | L10: =T81 -> -69 | M10: dBm
A12: Select Antenna 1 Here ―――――――――→ | H12: Select Antenna 2 Here ―――→
A13: For other Antenna - Enter Gain Here ―――→ | D13: dBi | H13: For other Antenna - Enter Gain Here ―――――→ | M13: dBi
C14: =IF(AND(G58=6,H58>13),$B143,"") ->  | L14: =IF(AND(G72=6,H72>13),$B143,"") -> 
A16: Enter Antenna Height Here -------------> | C16: 10 | D16: (meters) | H16: Enter Antenna Height Here------------------> | L16: 10 | M16: (meters)
A17: Note: When the minimum of the two antenna heights exceeds 10 m or when the maximum exceeds 200 m, the LOS model is recommended
A20: Select Channel ―――――――――――――――→
B21: =IF(Q58=-1000,B140," " ) -> 
A23: Select Conducted Power Level in dBm ―――→ | E23: dBm | H23: Select Conducted Power level ――→ | M23: dBm
A25: Select Cable Type 1 ――――――――――――→ | H25: Select Cable Type 2 ―――――――→
A26: Enter Length of Cable 1 ―――――――――――――――――→ | D26: 20 | E26: feet | H26: Enter Length of Cable 2 ――――――――――――→ | L26: 20 | M26: feet
A27: Or Enter Loss in dB Here for "Other Cable" ――――→ | E27: dB | H27: Or Enter Loss in dB Here for "Other Cable" ――→ | M27: dB
A31: Beamforming active gives greater EIRP? ――――――――→ | D31: =IF('6300_2G_BH_Pwr'!J7=1,"Yes (+3 dB)","No") -> Yes (+3 dB) | H31: Beamforming active for greater EIRP? ―――――→ | L31: =IF('6300_2G_BH_Pwr'!J15=1,"Yes (+3 dB)","No") -> Yes (+3 dB)
A32: Effective Isotropic Radiated Power (EIRP) ――――――――→ | D32: =C97 -> 34 | E32: dBm | H32: Effective Isotropic Radiated Power (EIRP) ――――→ | L32: =D97 -> 34 | M32: dBm
C33: =IF(C98=1,B141," ") ->  | D33: =IF($C98=1,E$68," ") ->  | E33: =IF(C98=1,"dBm","") ->  | K33: =IF(D98=1,B141," ") ->  | L33: =IF($D98=1,E$89," ") ->  | M33: =IF(D98=1,"dBm","") -> 
A35: Enter Fade Margin ―――――――――――――→ | C35: 10 | D35: dB | E35: =IF(C35<0,B145,"") -> 
A37: Total Link Budget | B37: Downlink | C37: =H97-C35 -> 97 | D37: dB | E37: Uplink | F37: =I97-C35 -> 97 | G37: dB ----------→ | H37: Limiting | I37: =$H98-$C35 -> 97 | J37: dB
A39: ="Theoretical Max Achievable Range at "&INDEX($S$51:$S$78,$S$81)&" with "&$C$35&" dB fade margin" -> Theoretical Max Achievable Range at HT20 MCS15 2SS with 10 dB fade margin
A40: LoS with Fresnel zone clearance | E40: =IF(($C$98+$D$98)>0,0,$B115*5280) -> 2275.284026 | F40: feet | G40: =E40*0.3048 -> 693.5065711 | H40: m | K40: Max radius of first Fresnel zone = | L40: =N40/0.3048 -> 15.14955272 | M40: ft | N40: =8.656*SQRT(G40/$C$102) -> 4.617583668 | O40: m
A41: LoS w/o Fresnel zone clearance (PLE = 2.3) | E41: =IF(($C$98+$D$98)>0,0,$B116*5280) -> 530.1843721 | F41: feet | G41: =E41*0.3048 -> 161.6001966 | H41: m | K41: Max radius of first Fresnel zone = | L41: =N41/0.3048 -> 7.312998139 | M41: ft | N41: =8.656*SQRT(G41/$C$102) -> 2.229001833 | O41: m
A42: LoS with entire path through dense foliage | E42: =G42/0.3048 -> 219.7707469 | F42: feet | G42: =IF(($C$98+$D$98)>0,0,MIN($C135,$D135)) -> 66.98612366 | H42: m
A43: NLoS urban, estimate to reach 90% of MAPs/WGBs | E43: =G43/0.3048 -> 162.4576905 | F43: feet | G43: =IF(($C$98+$D$98)>0,0,MIN($C128,$D128)) -> 49.51710408 | H43: m
A44: NLoS with MAP/WGB antenna height ≤ 3 m amid taller obstructions | E44: =G44/0.3048 -> 183.1635573 | F44: feet | G44: =IF(($C$98+$D$98)>0,0,MIN($C131,$D131)) -> 55.82825225 | H44: m
A45: Note: The radio range varies by neighborhood, depending upon the local terrain, foliage, building construction, etc.
A48: Country and Regulatory Domain Selection | G48: Antenna Selection | J48: Conducted Power Selection | M48: Cable Selection | P48: Channel Selection | S48: Data Rate Selection
B49: Site 1 | G49: Site 1 | J49: Site 1 | M49: Site 1 | T49: Rx Sensitivity Threshold (dBm)
A50: Country List | B50: Model Numbers | C50: Domain Index for Pwr Table | D50: Antenna Set | E50: Max EIRP (dBm) | G50: Antenna | H50: Gain (dBi) | I50: Gain list order reversed for match function | J50: Level | K50: Power (dBm) | M50: Cable | N50: Loss (dB) | P50: Channel | S50: Data Rate | T50: IW-6300 Typical | U50: IW-6300 Worst Case Over Temp | V50: IEEE Spec - 6dB | W50: IEEE Spec
A51: -A (Americas) | B51: IW-6300H-xxx-A-K9 | C51: 1 | D51: 11 | E51: 36 | G51: AIR-ANT2547V-N, VG-N, or V-N-HZ (4 dBi) | H51: 4 | I51: 13 | J51: PL1 | K51: ='6300_2G_BH_Pwr'!P4 -> 27 | M51: No Cable | N51: 0 | P51: Channel 1: 2412 MHz | Q51: 1 | S51: DSSS 1 Mbps | T51: -97 | U51: -92 | V51: =W51-6 -> -88 | W51: -82
A52: -B (United States) | B52: IW-6300H-xxx-B-K9 | C52: 1 | D52: 11 | E52: 36 | G52: AIR-ANT2450VG-N or HG-N (5 dBi) | H52: 5 | I52: 8 | J52: PL2 | K52: ='6300_2G_BH_Pwr'!P5 -> 24 | M52: LMR-240 | N52: =-RF_coax_cable_loss(1000*Q$74,D$26,"LMR-240",-0.1,-0.1) -> 2.750650652 | P52: Channel 2: 2417 MHz | Q52: 2 | S52: DSSS 2 Mbps | T52: -94 | U52: -89 | V52: =W52-6 -> -86 | W52: -80
A53: -C (Egypt, Bahrain, Pakistan) | B53: IW-6300H-xxx-C-K9 | C53: 2 | D53: 11 | E53: 20 | G53: AIR-ANT2568VG-N (6 dBi) | H53: 6 | I53: 6 | J53: PL3 | K53: ='6300_2G_BH_Pwr'!P6 -> 21 | M53: LMR-400 | N53: =-RF_coax_cable_loss(1000*Q$74,D$26,"LMR-400",-0.1,-0.1) -> 1.533717111 | P53: Channel 3: 2422 MHz | Q53: 3 | S53: CCK 5.5 Mbps | T53: -90 | U53: -85 | V53: -84 | W53: -78
A54: -D (India) | B54: IW-6300H-xxx-D-K9 | C54: 1 | D54: 11 | E54: 36 | G54: AIR-ANT2480V-N or AIR-ANT2588P3M-N (8 dBi) | H54: 8 | I54: 5 | J54: PL4 | K54: ='6300_2G_BH_Pwr'!P7 -> 18 | M54: LMR-600 | N54: =-RF_coax_cable_loss(1000*Q$74,D$26,"LMR-600",-0.1,-0.1) -> 1.07223328 | P54: Channel 4: 2427 MHz | Q54: 3 | S54: CCK 11 Mbps | T54: -87 | U54: -82 | V54: -82 | W54: -76
A55: -E (ETSI) | B55: IW-6300H-xxx-E-K9 | C55: 2 | D55: 11 | E55: 20 | G55: AIR-ANT2413P2M-N or AIR-ANT2513P4M-N (13 dBi) | H55: 13 | I55: 4 | J55: PL5 | K55: ='6300_2G_BH_Pwr'!P8 -> 15 | M55: Other cable: enter loss below | N55: =D$27 -> 0 | P55: Channel 5: 2432 MHz | Q55: 3 | S55: OFDM 6 Mbps | T55: -89 | U55: -85 | V55: -88 | W55: -82
A56: -F (Indonesia) | B56: IW-6300H-xxx-F-K9 | C56: 3 | D56: 11 | E56: 33 | G56: Other Antenna: Enter Gain Below | H56: =C13 -> 0 | P56: Channel 6: 2437 MHz | Q56: 3 | S56: OFDM 9 Mbps | T56: -89 | U56: -84 | V56: -87 | W56: -81
A57: -G (Pakistan) | B57: IW-6300H-xxx-G-K9 | C57: 2 | D57: 11 | E57: 20 | G57: Antenna Choice: | J57: PL Choice: | P57: Channel 7: 2442 MHz | Q57: 3 | S57: OFDM 12 Mbps | T57: -87 | U57: -83 | V57: -85 | W57: -79
A58: -H (China) | B58: IW-6300H-xxx-H-K9 | C58: 2 | D58: 11 | E58: 20 | G58: 1 | H58: =INDEX(H51:H56,G58) -> 4 | J58: 1 | K58: =INDEX(K51:K55,J58) -> 27 | P58: Channel 8: 2447 MHz | Q58: 3 | S58: OFDM 18 Mbps | T58: -85 | U58: -80 | V58: -83 | W58: -77
A59: -K (Korea) | B59: IW-6300H-xxx-K-K9 | C59: 4 | D59: 11 | E59: 29 | P59: Channel 9: 2452 MHz | Q59: 3 | S59: OFDM 24 Mbps | T59: -83 | U59: -78 | V59: -80 | W59: -74
A60: -L (Malaysia) | B60: IW-6300H-xxx-L-K9 | C60: 5 | D60: 11 | E60: 27 | G60: Ant Index for Pwr Table: | H60: =IF(G58=6,6-MATCH(H58,I51:I55,-1),G58) -> 1 | M60: Cable Choice: | P60: Channel 10: 2457 MHz | Q60: 4 | S60: OFDM 36 Mbps | T60: -80 | U60: -75 | V60: -76 | W60: -70
A61: -M (Saudi Arabia, UAE, Qatar, Iraq, Kuwait) | B61: IW-6300H-xxx-M-K9 | C61: 2 | D61: 11 | E61: 20 | M61: 1 | N61: =INDEX(N51:N55,M61) -> 0 | P61: Channel 11: 2462 MHz | Q61: 5 | S61: OFDM 48 Mbps | T61: -75 | U61: -70 | V61: -72 | W61: -66
A62: -N (Panama) | B62: IW-6300H-xxx-N-K9 | C62: 1 | D62: 11 | E62: 36 | P62: =IF(OR(C68=1,C68=4),"Invalid choice","Channel 12: 2467 MHz") -> Invalid choice | Q62: 6 | S62: OFDM 54 Mbps | T62: -74 | U62: -69 | V62: -71 | W62: -65
A63: -Q (Japan) | B63: IW-6300H-xxx-Q-K9 | C63: 6 | D63: 11 | E63: 25 | G63: Site 2 | J63: Site 2 | M63: Site 2 | P63: =IF(OR(C68=1,C68=4),"Invalid choice","Channel 13: 2472 MHz") -> Invalid choice | Q63: 6 | S63: HT20 MCS0 | T63: -89 | U63: -85 | V63: -88 | W63: -82
A64: -R (Russia) | B64: IW-6300H-xxx-R-K9 | C64: 7 | D64: 11 | E64: 25 | G64: Antenna | H64: Gain (dBi) | J64: Level | K64: Power (dBm) | M64: Cable | N64: Loss (dB) | S64: HT20 MCS1 | T64: -89 | U64: -84 | V64: -85 | W64: -79
A65: -S (Singapore, Thailand, Vietnam, Brunei) | B65: IW-6300H-xxx-S-K9 | C65: 2 | D65: 11 | E65: 20 | G65: AIR-ANT2547V-N, VG-N, or V-N-HZ (4 dBi) | H65: 4 | I65: 13 | J65: PL1 | K65: ='6300_2G_BH_Pwr'!P12 -> 27 | M65: No Cable | N65: 0 | P65: Channel Choice: | Q65: Channel Index: | S65: HT20 MCS2 | T65: -87 | U65: -83 | V65: -83 | W65: -77
A66: -T (Taiwan) | B66: IW-6300H-xxx-T-K9 | C66: 1 | D66: 11 | E66: 36 | G66: AIR-ANT2450VG-N or HG-N (5 dBi) | H66: 5 | I66: 8 | J66: PL2 | K66: ='6300_2G_BH_Pwr'!P13 -> 24 | M66: LMR-240 | N66: =-RF_coax_cable_loss(1000*Q$74,L$26,"LMR-240",-0.1,-0.1) -> 2.750650652 | P66: 6 | Q66: =INDEX(Q51:Q63,P66) -> 3 | S66: HT20 MCS3 | T66: -85 | U66: -80 | V66: -80 | W66: -74
A67: -Z (Australia, New Zealand, Brazil) | B67: IW-6300H-xxx-Z-K9 | C67: 1 | D67: 11 | E67: 36 | G67: AIR-ANT2568VG-N (6 dBi) | H67: 6 | I67: 6 | J67: PL3 | K67: ='6300_2G_BH_Pwr'!P14 -> 21 | M67: LMR-400 | N67: =-RF_coax_cable_loss(1000*Q$74,L$26,"LMR-400",-0.1,-0.1) -> 1.533717111 | S67: HT20 MCS4 | T67: -83 | U67: -78 | V67: -76 | W67: -70
A68: Country Choice: | B68: =A69 -> 2 | C68: =INDEX(C51:C67,$B68) -> 1 | D68: =INDEX(D51:D67,$B68) -> 11 | E68: =INDEX(E51:E67,$B68) -> 36 | G68: AIR-ANT2480V-N or AIR-ANT2588P3M-N (8 dBi) | H68: 8 | I68: 5 | J68: PL4 | K68: ='6300_2G_BH_Pwr'!P15 -> 18 | M68: LMR-600 | N68: =-RF_coax_cable_loss(1000*Q$74,L$26,"LMR-600",-0.1,-0.1) -> 1.07223328 | S68: HT20 MCS5 | T68: -80 | U68: -75 | V68: -72 | W68: -66
A69: 2 | G69: AIR-ANT2413P2M-N or AIR-ANT2513P4M-N (13 dBi) | H69: 13 | I69: 4 | J69: PL5 | K69: ='6300_2G_BH_Pwr'!P16 -> 15 | M69: Other cable: enter loss below | N69: =L$27 -> 0 | S69: HT20 MCS6 | T69: -75 | U69: -70 | V69: -71 | W69: -65
G70: Other Antenna: Enter Gain Below | H70: =L13 -> 0 | S70: HT20 MCS7 | T70: -74 | U70: -69 | V70: -70 | W70: -64
A71: Country List | B71: Model Numbers | C71: Domain Index for Pwr Table | D71: Antenna Set | E71: Max EIRP (dBm) | G71: Antenna Choice: | J71: PL Choice: | S71: HT20 MCS8 2SS | T71: -88 | U71: -83 | V71: -88 | W71: -82
A72: -A (Americas) | B72: IW-6300H-xxx-A-K9 | C72: 1 | D72: 11 | E72: 36 | G72: 1 | H72: =INDEX(H65:H70,G72) -> 4 | J72: 1 | K72: =INDEX(K65:K69,J72) -> 27 | S72: HT20 MCS9 2SS | T72: -85 | U72: -80 | V72: -85 | W72: -79
A73: -B (United States) | B73: IW-6300H-xxx-B-K9 | C73: 1 | D73: 11 | E73: 36 | S73: HT20 MCS10 2SS | T73: -83 | U73: -78 | V73: -83 | W73: -77
A74: -C (Egypt, Bahrain, Pakistan) | B74: IW-6300H-xxx-C-K9 | C74: 2 | D74: 11 | E74: 20 | G74: Ant Index for Pwr Table: | H74: =IF(G72=6,6-MATCH(H72,I65:I69,-1),G72) -> 1 | M74: Cable Choice: | P74: Freq (GHz) | Q74: =2.407+(P66*0.005) -> 2.437 | S74: HT20 MCS11 2SS | T74: -80 | U74: -74 | V74: -80 | W74: -74
A75: -D (India) | B75: IW-6300H-xxx-D-K9 | C75: 1 | D75: 11 | E75: 36 | M75: 1 | N75: =INDEX(N65:N69,M75) -> 0 | S75: HT20 MCS12 2SS | T75: -76 | U75: -70 | V75: -76 | W75: -70
A76: -E (ETSI) | B76: IW-6300H-xxx-E-K9 | C76: 2 | D76: 11 | E76: 20 | S76: HT20 MCS13 2SS | T76: -72 | U76: -66 | V76: -72 | W76: -66
A77: -F (Indonesia) | B77: IW-6300H-xxx-F-K9 | C77: 3 | D77: 11 | E77: 33 | S77: HT20 MCS14 2SS | T77: -71 | U77: -65 | V77: -71 | W77: -65
A78: -G (Pakistan) | B78: IW-6300H-xxx-G-K9 | C78: 2 | D78: 11 | E78: 20 | S78: HT20 MCS15 2SS | T78: -69 | U78: -63 | V78: -70 | W78: -64
A79: -H (China) | B79: IW-6300H-xxx-H-K9 | C79: 2 | D79: 11 | E79: 20
A80: -K (Korea) | B80: IW-6300H-xxx-K-K9 | C80: 4 | D80: 11 | E80: 29 | S80: Rate Choice:
A81: -L (Malaysia) | B81: IW-6300H-xxx-L-K9 | C81: 5 | D81: 11 | E81: 27 | S81: 28 | T81: =INDEX(T51:T78,$S81) -> -69 | U81: =INDEX(U51:U78,$S81) -> -63 | V81: =INDEX(V51:V78,$S81) -> -70 | W81: =INDEX(W51:W78,$S81) -> -64
A82: -M (Saudi Arabia, UAE, Qatar, Iraq, Kuwait) | B82: IW-6300H-xxx-M-K9 | C82: 2 | D82: 11 | E82: 20 | S82: Beamforming Flag: | T82: =IF(OR(S81<5,S81>12),0,1) -> 0
A83: -N (Panama) | B83: IW-6300H-xxx-N-K9 | C83: 1 | D83: 11 | E83: 36
A84: -Q (Japan) | B84: IW-6300H-xxx-Q-K9 | C84: 6 | D84: 11 | E84: 25
A85: -R (Russia) | B85: IW-6300H-xxx-R-K9 | C85: 7 | D85: 11 | E85: 25
A86: -S (Singapore, Thailand, Vietnam, Brunei) | B86: IW-6300H-xxx-S-K9 | C86: 2 | D86: 11 | E86: 20
A87: -T (Taiwan) | B87: IW-6300H-xxx-T-K9 | C87: 1 | D87: 11 | E87: 36
A88: -Z (Australia, New Zealand, Brazil) | B88: IW-6300H-xxx-Z-K9 | C88: 1 | D88: 11 | E88: 36
B89: =A69 -> 2 | C89: =INDEX(C72:C88,$B89) -> 1 | D89: =INDEX(D72:D88,$B89) -> 11 | E89: =INDEX(E72:E88,$B89) -> 36
B91: EIRP Calculation | G91: Pathloss Calculation
C92: Site 1 | D92: Site 2 | H92: Site 1 > 2 | I92: Site 2 > 1
B93: Tx Conducted Power (dBm) | C93: =K58 -> 27 | D93: =K72 -> 27 | G93: Tx EIRP (dBm) | H93: =C97 -> 34 | I93: =D97 -> 34
B94: Tx Cable Loss (dB) | C94: =-N61 -> 0 | D94: =-N75 -> 0 | G94: Rx Antenna Gain (dBi) | H94: =H72 -> 4 | I94: =H58 -> 4
B95: Tx Antenna Gain (dBi) | C95: =H58 -> 4 | D95: =H72 -> 4 | G95: Rx Cable Loss (dB) | H95: =-N75 -> 0 | I95: =-N61 -> 0
B96: Beamforming Gain (dB) | C96: =3*'6300_2G_BH_Pwr'!J7 -> 3 | D96: =3*'6300_2G_BH_Pwr'!J15 -> 3 | G96: Rx Sensitivity (-dBm) | H96: =-T81 -> 69 | I96: =-T81 -> 69
B97: Tx EIRP | C97: =SUM(C93:C96) -> 34 | D97: =SUM(D93:D96) -> 34 | G97: Pathloss | H97: =SUM(H93:H96) -> 107 | I97: =SUM(I93:I96) -> 107
B98: EIRP Limit Flag | C98: =IF(C97>E68,1,0) -> 0 | D98: =IF(D97>E89,1,0) -> 0 | G98: Min Pathloss | H98: =MIN(H97:I97) -> 107
B102: f = | C102: =Q74*1000 -> 2437 | D102: MHz
A104: LOS Distance Calculation
A105: Environmental conditions:
B106: Terrain | G106: Humidity
A107: Very smooth terrain over water or flat desert; | C107: 0.25 | E107: Hot, humid and/or coastal areas; | H107: 0.5
A108: Average terrain with some roughness; | C108: 1 | E108: Normal, interior continent temperate or sub-artic | H108: 0.25
A109: Mountains, very rough or very dry terrain | C109: 4 | E109: Very dry but nonreflective areas | H109: 0.125
A110: 2 | B110: Average | C110: =INDEX(C107:C109,A110) -> 1 | E110: 1 | G110: Normal | H110: =INDEX(H107:H109,E110) -> 0.5
B112: Calculation
A113: minimum link margin | B113: =C35 -> 10
A114: availability | B114: 0.99965 | D114: PLE Distance | E114: Envrn Distance | G114: Calculation without any environmental conditions considered | K114: Delta compared to calculation with environmental conditions considered
A115: Distance LOS (2.0) | B115: =MIN(POWER(((1-$B$114)*1000000/(2.5*$C$110*$H$110*$Q$74))*((((0.3*3.2808)/($Q$74*5280))/(4*PI()))^2)/10^(-$H$98/10),0.2),((0.3*3.2808)/($Q$74*5280))/(4*PI()*POWER(10^((-$H$98+$B$113)/10),(1/2)))) -> 0.4309250049 | C115: (mi) | D115: =((0.3*3.2808)/($Q$74*5280))/(4*PI()*POWER(10^((-$H$98+$B$113)/10),(1/2))) -> 0.4309250049 | E115: =POWER(((1-$B$114)*1000000/(2.5*$C$110*$H$110*$Q$74))*((((0.3*3.2808)/($Q$74*5280))/(4*PI()))^2)/10^(-$H$98/10),0.2) -> 2.922948601 | G115: =FreeSpaceRange(C$102,$H$98-B$113) -> 693.035226 | H115: m | I115: =G115/1609.334 -> 0.4306348005 | J115: mi | K115: =(I115-B115)/B115 -> -0.0006734454039
A116: Distance LOS w/o (2.3) | B116: =MIN(POWER(((1-$B$114)*1000000/(2.5*$C$110*$H$110*$Q$74))*((((0.3*3.2808)/($Q$74*5280))/(4*PI()))^2)/10^(-$H$98/10),0.2),((0.3*3.2808)/($Q$74*5280))/(4*PI()*POWER(10^((-$H$98+$B$113)/10),(1/2.3)))) -> 0.1004137068 | C116: (mi) | D116: =((0.3*3.2808)/($Q$74*5280))/(4*PI()*POWER(10^((-$H$98+$B$113)/10),(1/2.3))) -> 0.1004137068 | E116: =POWER(((1-$B$114)*1000000/(2.5*$C$110*$H$110*$Q$74))*((((0.3*3.2808)/($Q$74*5280))/(4*PI()))^2)/10^(-$H$98/10),0.2) -> 2.922948601 | G116: =ExponentialModelRange(C$102,H$98-B$113,2.3) -> 161.4903642 | H116: m | I116: =G116/1609.334 -> 0.1003460837 | J116: mi | K116: =(I116-B116)/B116 -> -0.0006734454039
A117: Distance LOS w/o (2.5) | B117: =MIN(POWER(((1-$B$114)*1000000/(2.5*$C$110*$H$110*$Q$74))*((((0.3*3.2808)/($Q$74*5280))/(4*PI()))^2)/10^(-$H$98/10),0.2),((0.3*3.2808)/($Q$74*5280))/(4*PI()*POWER(10^((-$H$98+$B$113)/10),(1/2.5)))) -> 0.04617444619 | C117: (mi) | D117: =((0.3*3.2808)/($Q$74*5280))/(4*PI()*POWER(10^((-$H$98+$B$113)/10),(1/2.5))) -> 0.04617444619 | E117: =POWER(((1-$B$114)*1000000/(2.5*$C$110*$H$110*$Q$74))*((((0.3*3.2808)/($Q$74*5280))/(4*PI()))^2)/10^(-$H$98/10),0.2) -> 2.922948601 | G117: =ExponentialModelRange(C$102,H$98-B$113,2.5) -> 74.26006238 | H117: m | I117: =G117/1609.334 -> 0.04614335022 | J117: mi | K117: -0.0006734454039
A118: Distance LOS w/o (2.7) | B118: =MIN(POWER(((1-$B$114)*1000000/(2.5*$C$110*$H$110*$Q$74))*((((0.3*3.2808)/($Q$74*5280))/(4*PI()))^2)/10^(-$H$98/10),0.2),((0.3*3.2808)/($Q$74*5280))/(4*PI()*POWER(10^((-$H$98+$B$113)/10),(1/2.7)))) -> 0.02382288136 | C118: (mi) | D118: =((0.3*3.2808)/($Q$74*5280))/(4*PI()*POWER(10^((-$H$98+$B$113)/10),(1/2.7))) -> 0.02382288136 | E118: =POWER(((1-$B$114)*1000000/(2.5*$C$110*$H$110*$Q$74))*((((0.3*3.2808)/($Q$74*5280))/(4*PI()))^2)/10^(-$H$98/10),0.2) -> 2.922948601 | G118: =ExponentialModelRange(C$102,H$98-B$113,2.7) -> 38.31315374 | H118: m | I118: 0.02380683795 | J118: mi | K118: -0.0006734454039
A120: Calculatd Fade Margin | B120: =-10*LOG10(MIN(10^(-B113/10),(1-B114)/(2.5*C110*H110*$Q$74*B115^3*0.000001))) -> 10
A121: Earth Bulge | B121: =IF(OR(B116<1,B116=1),3,IF(AND(B116>1,B116<5),5,IF(AND(B116>5,B116<10),13,IF(AND(B116>10,B116<15),28,IF(AND(EC102>15,B116<20),50,IF(AND(B116>20,B116<22),64,IF(AND(B116>22,B116<25),78,"90"))))))) -> 3
A122: Fresnel Zone | B122: =43.3*(SQRT(B116/(4*5.8))) -> 2.848658598
A126: ITU P.1441-9 Model Calculation: | C126: Downlink | D126: Uplink | L126: COST231-Hata Model Calculation:
B127: Above Rooftop NLoS Range, 90% of Clients | C127: =ITUAboveRooftopRangeNLoS($C$102,H$97-B$120,1.3) -> 88.24281126 | D127: =ITUAboveRooftopRangeNLoS($C$102,I$97-B$120,1.3) -> 88.24281126 | E127: m | M127: Frequency_term | N127: =33.9*LOG10(1000*$Q74) -> 114.8144024
B128: Street Canyon NLoS Range, 90% of Clients | C128: =ITUStreetCanyonRangeNLoS($C$102,H$97-B$120,1.3) -> 49.51710408 | D128: =ITUStreetCanyonRangeNLoS($C$102,I$97-B$120,1.3) -> 49.51710408 | E128: m | M128: Tx_height_factor | N128: =13.82*LOG10(MAX($C16,$L16)) -> 13.82
M129: A_factor_suburban | N129: =(1.1*LOG10(1000*$Q74)-0.7)*MIN($C16,$L16) - (1.56*LOG10(1000*$Q74) - 0.8) -> 25.7719162
B130: ITU Urban Low Antenna Height Range, 50% of Clients | C130: =ITULowHeightRangeUrban($C$102,H$98-B$120,50) -> 54.17796782 | D130: =ITULowHeightRangeUrban($C$102,I$97-B$120,50) -> 54.17796782 | E130: m | M130: A_factor_urban | N130: =3.2*POWER(LOG10(11.75*MIN($C16, $L16)), 2) - 4.97 -> 8.742181661
B131: ITU Suburban Low Antenna Height Range, 50% of Clients | C131: =ITULowHeightRangeSuburban($C$102,H$97-B$120,50) -> 55.82825225 | D131: =ITULowHeightRangeSuburban($C$102,I$97-B$120,50) -> 55.82825225 | E131: m | M131: Cm_term_suburban | N131: 0
M132: Cm_term_urban | N132: 3
B133: ITU Indoor NLoS Range, Same Floor | C133: =ITUIndoorRangeNLoS($C$102,H$97-B$120,0) -> 237.3720865 | D133: =ITUIndoorRangeNLoS($C$102,I$97-B$120,0) -> 237.3720865 | E133: m | P133: COST231 Hata Model macro calculations
M134: Distance (suburban) | N134: =POWER(10, (($H98- $B113 - 46.3 - $N127 + $N128 + $N129 - $N131) / (44.9 - 6.55*LOG10(MAX($C16,$L16))))) -> 0.2293828712 | O134: (km) | P134: =COSTHataRangeSuburban(C102,H98-B113,C16,L16) -> 229.3828712 | Q134: m
B135: Weissberger's Model: Range through Foliage | C135: =WeissbergerRange(C$102,H$97-B$120) -> 66.98612366 | D135: =WeissbergerRange(C$102,I$97-B$120) -> 66.98612366 | E135: m | M135: Distance (urban) | N135: =POWER(10, (($H98 -$B113 - 46.3 - $N127 + $N128 + $N130 - $N132) / (44.9 - 6.55*LOG10(MAX($C16,$L16))))) -> 0.06890857234 | O135: (km) | P135: =costhatarangeurban(C102,H98-B113,C16,L16) -> 68.90857234 | Q135: m
A139: Warnings:
A140: cell B23: | B140: **** CHOOSE A VALID DOMAIN ****
A141: cells C34 & K34: | B141: Max Allowable EIRP =
A142: cells C35 & K35: | B142: *** MAX EIRP EXCEEDED → LOWER POWER or ANTENNA GAIN ***
A143: cell C15 | B143: *** ANTENNA GAIN CANNOT EXCEED 13 dBi ***
A144: cell C13 | B144: *** INVALID BANDWIDTH FOR DATA RATE ***
A145: cell E35 | B145: *** FADE MARGIN MUST BE ≥ 0 dB ***

Sheet 5GHz Client Access
G1: Cisco 6300 Series 5 GHz Client Access Outdoor Link
G2: Only edit orange input cells and select from dropdown menus
A4: Regulatory Domain ――――――――――――→
C6: Site 1 | I6: Site 2
A7: Select Device ――――――――――――→ | H7: Select Device ――――――――――→
A8: Note: When choosing antennas and power levels, EIRP cannot exceed the regulatory power limit
A9: Select Data Rate ――――――――――――――→
A10: Select Channel Bandwidth ―――――――――→ | H10: Client sensitivity known? ―→
A11: PHY data rate with long guard interval ―――→ | C11: =IF(X94>=1,X94,"") -> 6.5 | D11: Mbps | E11: =IF(X94>=1,"",B124) ->  | I11: Input client sensitivity if known ―→ | M11: dBm
A12: IW-6300 typical sensitivity for 10% PER ―――→ | C12: =IF(X94>=1,Y94,"") -> -90 | D12: dBm | H12: Client receiver sensitivity ――――――――――→ | L12: =$Q$80 -> -82 | M12: dBm
A14: Select Antenna 1 Here ―――――――――→ | H14: Select Antenna 1 Here ―――――→
A15: For other Antenna - Enter Gain Here ―――→ | D15: dBi | H15: For other Antenna - Enter Gain Here ―――→ | M15: dBi
C16: =IF(AND(G60=6,H60>14),B123,IF(AND(A73=9,H60>5),B122,"")) -> 
A18: Enter Antenna Height Here--------------------> | C18: 10 | D18: (meters) | H18: Enter Antenna Height Here------------------> | L18: 2 | M18: (meters)
A19: Note: When the minimum of the two antenna heights exceeds 10 m or when the maximum exceeds 200 m, the LOS model is recommended
A21: Enter Center Carrier Frequency Here ---------> | C21: 5.745 | D21: GHz
A22: Select Frequency Range ――――――――――→
B23: =IF(Q60=-1000,B119," " ) -> 
A25: Select Conducted Power Level in dBm ―――→ | E25: dBm | H25: Select Conducted Power Level ――→ | M25: dBm
A27: Select Cable Type 1 ――――――――――――→ | H27: Select Cable Type 1 ―――――――→
A28: Enter Length of Cable 1 ―――――――――――――――――→ | D28: 20 | E28: feet | H28: Enter Length of Cable 1 ―――――――――――→ | L28: 20 | M28: feet
A29: Or Enter Loss in dB Here for "Other Cable" ――――→ | E29: dB | H29: Or Enter Loss Here for "Other Cable" ――→ | M29: dB
A33: Beamforming active gives greater EIRP? ――――――――→ | D33: =IF('6300_5G_PwrTable'!$J7=1,"Yes (+3 dB)","No") -> No | H33: Client transmit beamforming? ――→
A34: Effective Isotropic Radiated Power (EIRP) ――――――――→ | D34: =C87 -> 34 | E34: dBm | H34: Effective Isotropic Radiated Power (EIRP) ―――→ | L34: =D87 -> 20 | M34: dBm
C35: =IF(C88=1,B120," ") ->  | D35: =IF($C88=1,E$72," ") ->  | E35: =IF($C88=1,"dBm","") ->  | K35: =IF(D88=1,B120," ") ->  | L35: =IF(D88=1,#REF!," ") ->  | M35: =IF($D88=1,"dBm","") -> 
C36: =IF(C88=1,B121," ") ->  | K36: =IF(D88=1,B121," ") -> 
A37: Enter Fade Margin ―――――――――――――→ | C37: 10 | D37: dB
A39: Total Link Budget | B39: Downlink | C39: =$H87-$C37 -> 106 | D39: dB | E39: Uplink | F39: =$I87-$C37 -> 107 | G39: dB
A41: ="Theoretical Max Achievable Range at "&INDEX($W$53:$W$80,$W$94)&" BW, "&INDEX($S$53:$S$55,$S$60)&" ("&X94&" Mbps) with "&$C$37&" dB fade margin" -> Theoretical Max Achievable Range at VHT/HT MCS0 1SS BW, 20 MHz (6.5 Mbps) with 10 dB fade margin
C42: Downlink (Site 1 → Site 2) | F42: Uplink (Site 2 → Site 1) | I42: ="Limiting range for bidirectional communication at "&INDEX($W$53:$W$80,$W$94)&" BW, "&INDEX($S$53:$S$55,$S$60) -> Limiting range for bidirectional communication at VHT/HT MCS0 1SS BW, 20 MHz
C43: ft | D43: m | F43: ft | G43: m | I43: ft | J43: m
A44: LoS w/o Fresnel zone clearance (PLE = 2.3) | C44: =3.2808*D44 -> 553.3452858 | D44: =IF(($C$88+$D$88)>0,0,$C97) -> 168.661694 | F44: =3.2808*G44 -> 611.6098557 | G44: =IF(($C$88+$D$88)>0,0,$D97) -> 186.4209509 | I44: =3.2808*J44 -> 553.3452858 | J44: =MIN(D44,G44) -> 168.661694
A45: LoS with entire path through dense foliage | C45: =3.2808*D45 -> 184.5381372 | D45: =IF(($C$88+$D$88)>0,0,$C116) -> 56.2479082 | F45: =3.2808*G45 -> 192.8852496 | G45: =IF(($C$88+$D$88)>0,0,$D116) -> 58.792139 | I45: =3.2808*J45 -> 184.5381372 | J45: =MIN(D45,G45) -> 56.2479082
A46: NLoS urban, estimate to reach 90% of clients | C46: =3.2808*D46 -> 164.4366562 | D46: =IF(($C$88+$D$88)>0,0,$C107) -> 50.12090227 | F46: =3.2808*G46 -> 174.1801406 | G46: =IF(($C$88+$D$88)>0,0,$D107) -> 53.09075244 | I46: =3.2808*J46 -> 164.4366562 | J46: =MIN(D46,G46) -> 50.12090227 | M46: =IF(J46>=J44,B126,IF(J46>715,B127,"")) -> 
A47: Note: The radio range varies by neighborhood, depending upon the local terrain, foliage, building construction, etc.
A50: Country and Regulatory Domain Selection | C50: ABCDEFGHKLMNQRSTZ | G50: Antenna Selection | J50: Conducted Power Selection | M50: Cable Selection | P50: Channel Selection | S50: Bandwidth | W50: Data Rate Selection
B51: Site 1 | G51: Site 1 | J51: Site 1 | M51: Site 1 | X51: 20 MHz Rx threshold (dBm) | AA51: 40 MHz Rx threshold (dBm) | AD51: 80 MHz Rx threshold (dBm)
A52: Country List | B52: Model Numbers | C52: Channel Set | D52: Antenna Set | E52: Max EIRP (dBm) | G52: Antenna | H52: Gain (dBi) | I52: Gain list order reversed for match function | J52: Level | K52: Power (dBm) | M52: Cable | N52: Loss (dB) | P52: Band | S52: BW | W52: Data Rate | X52: Long GI PHY rate (Mbps) | Y52: IW-6300 typical | Z52: IEEE Spec | AA52: Long GI PHY rate (Mbps) | AB52: IW-6300 typical | AC52: IEEE Spec | AD52: Long GI PHY rate (Mbps) | AE52: IW-6300 typical | AF52: IEEE Spec | AG52: IEEE Spec - 6dB
A53: -A (Americas) | B53: IW-6300H-xxx-A-K9 | C53: 1110 | D53: 11 | E53: =IF($P$60=4, 36, IF($P$60=2,24,27)) -> 36 | G53: AIR-ANT5150VG-N or HG-N (5 dBi) | H53: 5 | I53: 14 | J53: PL1 | K53: ='6300_5G_PwrTable'!P4 -> 27 | M53: No Cable | N53: 0 | P53: =IF(MOD(C$72,2)=1,"UNII-1: Ch. 36 - 48: 5.17 - 5.25 GHz", "Not a Valid Choice") -> UNII-1: Ch. 36 - 48: 5.17 - 5.25 GHz | Q53: =IF(MOD(C$72,2)=1,1,-1000) -> 1 | S53: 20 MHz | T53: 0 | W53: OFDM 6 Mbps | X53: 6 | Y53: -90 | Z53: -82 | AA53: 0 | AB53: 99 | AC53: 99 | AD53: 0 | AE53: 99 | AF53: 99 | AG53: =IF(T$60=0,Z53-6,IF(T$60=1,AC53-6,AF53-6)) -> -88
A54: -B (United States) | B54: IW-6300H-xxx-B-K9 | C54: 1111 | D54: 11 | E54: =IF(OR(P$60=1, P$60=4), 36, 27) -> 36 | G54: AIR-ANT2547V-N, VG-N, or V-N-HZ (7 dBi) | H54: 7 | I54: 13 | J54: PL2 | K54: ='6300_5G_PwrTable'!P5 -> 24 | M54: LMR-240 | N54: =-RF_coax_cable_loss(1000*Q$69,D$28,"LMR-240",-0.1,-0.1) -> 4.248119069 | P54: =IF(MOD(INT(C$72/10),2)=1,"UNII-2A: Ch. 52 - 68: 5.25 - 5.35 GHz", "Not a Valid Choice ") -> UNII-2A: Ch. 52 - 68: 5.25 - 5.35 GHz | Q54: =IF(MOD(INT(C$72/10),2)=1, 2, -1000) -> 2 | S54: =IF(W$94<8.5,"Invalid bandwidth!","40 MHz") -> 40 MHz | T54: =IF(W$94<8.5,-99,1) -> 1 | W54: OFDM 9 Mbps | X54: 9 | Y54: -88 | Z54: -81 | AA54: 0 | AB54: 99 | AC54: 99 | AD54: 0 | AE54: 99 | AF54: 99 | AG54: -87
A55: -C (Egypt, Bahrain, Pakistan) | B55: IW-6300H-xxx-C-K9 | C55: 1000 | D55: 11 | E55: 30 | G55: AIR-ANT5180VG-N, 2568VG-N, or 2588P3M-N (8 dBi) | H55: 8 | I55: 8 | J55: PL3 | K55: ='6300_5G_PwrTable'!P6 -> 21 | M55: LMR-400 | N55: =-RF_coax_cable_loss(1000*Q$69,D$28,"LMR-400",-0.1,-0.1) -> 2.351570336 | P55: =IF(MOD(INT(C$72/100),2)=1,"UNII-2C: Ch. 100 - 140: 5.49 - 5.71 GHz", "Not a Valid Choice") -> UNII-2C: Ch. 100 - 140: 5.49 - 5.71 GHz | Q55: =IF(MOD(INT(C$72/100),2)=1, 3, -1000) -> 3 | S55: =IF(W$94<8.5,"Invalid bandwidth!","80 MHz") -> 80 MHz | T55: =IF(W$94<8.5,-99,2) -> 2 | W55: OFDM 12 Mbps | X55: 12 | Y55: -87 | Z55: -79 | AA55: 0 | AB55: 99 | AC55: 99 | AD55: 0 | AE55: 99 | AF55: 99 | AG55: -85
A56: -D (India) | B56: IW-6300H-xxx-D-K9 | C56: 11100 | D56: 11 | E56: =IF($P$60=5,31,20) -> 20 | G56: AIR-ANT2513P4M-N or AIR-ANT5114P2M-N (13 dBi) | H56: 13 | I56: 7 | J56: PL4 | K56: ='6300_5G_PwrTable'!P7 -> 18 | M56: LMR-600 | N56: =-RF_coax_cable_loss(1000*Q$69,D$28,"LMR-600",-0.1,-0.1) -> 1.643015052 | P56: =IF(MOD(INT(C$72/1000),2)=1,"UNII-3: Ch. 149 - 165: 5.735 - 5.835 GHz", "Not a Valid Choice") -> UNII-3: Ch. 149 - 165: 5.735 - 5.835 GHz | Q56: =IF(MOD(INT(C$72/1000),2)=1, 4, -1000) -> 4 | W56: OFDM 18 Mbps | X56: 18 | Y56: -84 | Z56: -77 | AA56: 0 | AB56: 99 | AC56: 99 | AD56: 0 | AE56: 99 | AF56: 99 | AG56: -83
A57: -E (ETSI) | B57: IW-6300H-xxx-E-K9 | C57: 100 | D57: 11 | E57: 30 | G57: (14 dBi) | H57: 14 | I57: 5 | J57: PL5 | K57: ='6300_5G_PwrTable'!P8 -> 15 | M57: Other cable: enter loss below | N57: =D$29 -> 0 | P57: =IF(MOD(INT(C$72/10000),2)=1,"India outdoor: Ch. 169 - 173, 5.835 - 5.875 GHz", "Not a Valid Choice") -> Not a Valid Choice | Q57: =IF(MOD(INT(C$72/10000),2)=1, 5, -1000) -> -1000 | W57: OFDM 24 Mbps | X57: 24 | Y57: -81 | Z57: -74 | AA57: 0 | AB57: 99 | AC57: 99 | AD57: 0 | AE57: 99 | AF57: 99 | AG57: -80
A58: -F (Indonesia) | B58: IW-6300H-xxx-F-K9 | C58: 1000 | D58: 11 | E58: 33 | G58: Other Antenna: Enter Gain Below | H58: =C$15 -> 0 | W58: OFDM 36 Mbps | X58: 36 | Y58: -77 | Z58: -70 | AA58: 0 | AB58: 99 | AC58: 99 | AD58: 0 | AE58: 99 | AF58: 99 | AG58: -76
A59: -G (Pakistan) | B59: IW-6300H-xxx-G-K9 | C59: 1000 | D59: 11 | E59: 20 | G59: Antenna Choice: | J59: PL Choice: | P59: Channel Choice: | S59: Bandwidth choice: | W59: OFDM 48 Mbps | X59: 48 | Y59: -75 | Z59: -66 | AA59: 0 | AB59: 99 | AC59: 99 | AD59: 0 | AE59: 99 | AF59: 99 | AG59: -72
A60: -H (China, Mongolia) | B60: IW-6300H-xxx-H-K9 | C60: 1000 | D60: 11 | E60: 33 | G60: 2 | H60: =INDEX(H53:H58,G60) -> 7 | J60: 1 | K60: =INDEX(K53:K57,J60) -> 27 | P60: 4 | Q60: =INDEX(Q53:Q57,P60) -> 4 | S60: 1 | T60: =INDEX(T53:T55,S60) -> 0 | W60: OFDM 54 Mbps | X60: 54 | Y60: -74 | Z60: -65 | AA60: 0 | AB60: 99 | AC60: 99 | AD60: 0 | AE60: 99 | AF60: 99 | AG60: -71
A61: -I (Israel, Tunisia, Uzbekistan) | B61: IW-6300H-xxx-I-K9 | C61: 11 | D61: 11 | E61: 23 | I61: Pwr tbl gain | W61: VHT/HT MCS0 1SS | X61: 6.5 | Y61: -90 | Z61: -82 | AA61: 13.5 | AB61: -86 | AC61: -79 | AD61: 29.25 | AE61: -84 | AF61: -76 | AG61: -88
A62: -K (Korea) | B62: IW-6300H-xxx-K-K9 | C62: 1110 | D62: 11 | E62: =IF($P$60=4, 28, 26) -> 28 | G62: Ant Index for Pwr Table: | H62: =IF(G60=6,6-MATCH(H60,I53:I57,-1),G60) -> 2 | I62: =INDEX(H53:H57,H62,1) -> 7 | M62: Cable Choice: | W62: VHT/HT MCS1 1SS | X62: 13 | Y62: -88 | Z62: -79 | AA62: 27 | AB62: -86 | AC62: -76 | AD62: 58.5 | AE62: -83 | AF62: -73 | AG62: -85
A63: -L (Malaysia) | B63: IW-6300H-xxx-L-K9 | C63: 11100 | D63: 11 | E63: 30 | M63: 1 | N63: =INDEX(N53:N57,M63) -> 0 | P63: Frequency Term Check | W63: VHT/HT MCS2 1SS | X63: 19.5 | Y63: -86 | Z63: -77 | AA63: 40.5 | AB63: -84 | AC63: -74 | AD63: 87.75 | AE63: -82 | AF63: -71 | AG63: -83
A64: -M (Saudi Arabia, UAE, Qatar, Iraq, Kuwait) | B64: IW-6300H-xxx-M-K9 | C64: 1100 | D64: 11 | E64: 30 | P64: Ch. 48 | Q64: 5.24 | W64: VHT/HT MCS3 1SS | X64: 26 | Y64: -84 | Z64: -74 | AA64: 54 | AB64: -81 | AC64: -71 | AD64: 117 | AE64: -79 | AF64: -68 | AG64: -80
A65: -N (Panama, Barbados, Fiji) | B65: IW-6300H-xxx-N-K9 | C65: 1000 | D65: 11 | E65: 36 | G65: Site 2 | J65: Site 2 | M65: Site 2 | P65: Ch. 64 | Q65: 5.32 | W65: VHT/HT MCS4 1SS | X65: 39 | Y65: -81 | Z65: -70 | AA65: 81 | AB65: -78 | AC65: -67 | AD65: 175.5 | AE65: -76 | AF65: -64 | AG65: -76
A66: -P | B66: IW-6300H-xxx-P-K9 | C66: 111 | D66: 11 | E66: 34 | G66: Antenna | H66: Gain (dBi) | J66: Level | K66: Power (dBm) | M66: Cable | N66: Loss (dB) | P66: Ch. 144 | Q66: 5.72 | W66: VHT/HT MCS5 1SS | X66: 52 | Y66: -76 | Z66: -66 | AA66: 108 | AB66: -74 | AC66: -63 | AD66: 234 | AE66: -72 | AF66: -60 | AG66: -72
A67: -Q (Japan) | B67: IW-6300H-xxx-Q-K9 | C67: 100 | D67: 11 | E67: 26 | G67: 0 dBi | H67: 0 | J67: PL1 | K67: 27 | M67: No Cable | N67: 0 | P67: Ch. 165 | Q67: 5.825 | W67: VHT/HT MCS6 1SS | X67: 58.5 | Y67: -75 | Z67: -65 | AA67: 121.5 | AB67: -73 | AC67: -62 | AD67: 263.25 | AE67: -70 | AF67: -59 | AG67: -71
A68: -R (Russia) | B68: IW-6300H-xxx-R-K9 | C68: 1110 | D68: 11 | E68: =IF($P$60=4, 38, IF($P$60=3,36,30)) -> 38 | G68: 2 dBi | H68: 2 | J68: PL2 | K68: 24 | M68: LMR-240 | N68: =-RF_coax_cable_loss(1000*Q$69,L$28,"LMR-240",-0.1,-0.1) -> 4.248119069 | P68: Ch. 173 | Q68: 5.865 | W68: VHT/HT MCS7 1SS | X68: 65 | Y68: -73 | Z68: -64 | AA68: 135 | AB68: -71 | AC68: -61 | AD68: 292.5 | AE68: -68 | AF68: -58 | AG68: -70
A69: -S (Singapore, Thailand, Vietnam, Hong Kong, Brunei) | B69: IW-6300H-xxx-S-K9 | C69: 1100 | D69: 11 | E69: 30 | G69: Other Antenna: Enter Gain Below | H69: =L15 -> 0 | J69: PL3 | K69: 20 | M69: LMR-400 | N69: =-RF_coax_cable_loss(1000*Q$69,L$28,"LMR-400",-0.1,-0.1) -> 2.351570336 | P69: Final Freq | Q69: =IF(AND(C21>5.2, C21<5.9),C21,INDEX(Q64:Q68,P60)) -> 5.745 | W69: VHT MCS8 1SS | X69: 78 | Y69: -69 | Z69: -59 | AA69: 162 | AB69: -67 | AC69: -56 | AD69: 351 | AE69: -64 | AF69: -53 | AG69: -65
A70: -T (Taiwan) | B70: IW-6300H-xxx-T-K9 | C70: 1100 | D70: 11 | E70: =IF($P$60=4,36,27) -> 36 | J70: PL4 | K70: 17 | M70: LMR-600 | N70: =-RF_coax_cable_loss(1000*Q$69,L$28,"LMR-600",-0.1,-0.1) -> 1.643015052 | W70: VHT MCS9 1SS | X70: 0 | Y70: 99 | Z70: -57 | AA70: 180 | AB70: -65 | AC70: -54 | AD70: 390 | AE70: -62 | AF70: -51 | AG70: -63
A71: -Z (Australia, New Zealand, Brazil) | B71: IW-6300H-xxx-Z-K9 | C71: 1100 | D71: 11 | E71: =IF($P$60=4,36,30) -> 36 | J71: PL5 | K71: 14 | M71: Other cable: enter loss below | N71: =L$29 -> 0 | W71: VHT MCS0 2SS/HT MCS8 | X71: 13 | Y71: -89 | Z71: -82 | AA71: 27 | AB71: -86 | AC71: -79 | AD71: 58.5 | AE71: -84 | AF71: -76 | AG71: -88
A72: Country Choice: | B72: =A73 -> 2 | C72: =INDEX(C53:C71,A73) -> 1111 | D72: =INDEX(D53:D71,A73) -> 11 | E72: =INDEX(E53:E71,A73) -> 36 | J72: PL6 | K72: 10 | P72: Client transmit beamforming? | W72: VHT MCS1 2SS/HT MCS9 | X72: 26 | Y72: -86 | Z72: -79 | AA72: 54 | AB72: -84 | AC72: -76 | AD72: 117 | AE72: -81 | AF72: -73 | AG72: -85
A73: 2 | G73: Antenna Choice: | J73: PL7 | K73: 7 | P73: No (0 dB) | Q73: 0 | W73: VHT MCS2 2SS/HT MCS10 | X73: 39 | Y73: -83 | Z73: -77 | AA73: 81 | AB73: -82 | AC73: -74 | AD73: 175.5 | AE73: -78 | AF73: -71 | AG73: -83
B74: Site 2 | G74: 1 | H74: =INDEX(H67:H70,G74) -> 0 | J74: PL8 | K74: 4 | P74: Yes (+3 dB) | Q74: 3 | W74: VHT MCS3 2SS/HT MCS11 | X74: 52 | Y74: -80 | Z74: -74 | AA74: 108 | AB74: -78 | AC74: -71 | AD74: 234 | AE74: -74 | AF74: -68 | AG74: -80
B75: Model Numbers | C75: Channel Set | D75: Antenna Set | E75: Max EIRP | J75: PL9 | K75: 0 | P75: 1 | Q75: =INDEX(Q73:Q74,P75) -> 0 | W75: VHT MCS4 2SS/HT MCS12 | X75: 78 | Y75: -77 | Z75: -70 | AA75: 162 | AB75: -75 | AC75: -67 | AD75: 351 | AE75: -71 | AF75: -64 | AG75: -76
B76: CPE or Client Device | E76: =E72 -> 36 | J76: PL Choice: | M76: Cable Choice: | W76: VHT MCS5 2SS/HT MCS13 | X76: 104 | Y76: -73 | Z76: -66 | AA76: 216 | AB76: -70 | AC76: -63 | AD76: 468 | AE76: -67 | AF76: -60 | AG76: -72
A77: 1 | J77: 3 | K77: =INDEX(K67:K75,J77) -> 20 | M77: 1 | N77: =INDEX(N67:N71,M77) -> 0 | P77: Client sensitivity known? | W77: VHT MCS6 2SS/HT MCS14 | X77: 117 | Y77: -71 | Z77: -65 | AA77: 243 | AB77: -68 | AC77: -62 | AD77: 526.5 | AE77: -65 | AF77: -59 | AG77: -71
P78: No, assume IEEE spec | Q78: =$Z$94 -> -82 | W78: VHT MCS7 2SS/HT MCS15 | X78: 130 | Y78: -70 | Z78: -64 | AA78: 270 | AB78: -67 | AC78: -61 | AD78: 585 | AE78: -64 | AF78: -58 | AG78: -70
P79: Yes, input sensitivity below | Q79: =L11 -> 0 | W79: VHT MCS8 2SS | X79: 156 | Y79: -65 | Z79: -59 | AA79: 324 | AB79: -62 | AC79: -56 | AD79: 702 | AE79: -59 | AF79: -53 | AG79: -65
P80: 1 | Q80: =INDEX(Q78:Q79,P80) -> -82 | W80: VHT MCS9 2SS | X80: 0 | Y80: 99 | Z80: -57 | AA80: 360 | AB80: -60 | AC80: -54 | AD80: 780 | AE80: -58 | AF80: -51 | AG80: -63
B81: EIRP Calculation | G81: Pathloss Calculation
C82: Site 1 | D82: Site 2 | H82: Site 1 > 2 | I82: Site 2 > 1
B83: Tx Conducted Power (dBm) | C83: =K60 -> 27 | D83: =K77 -> 20 | G83: Tx EIRP (dBm) | H83: =C87 -> 34 | I83: =D87 -> 20
B84: Tx Cable Loss (dB) | C84: =-N63 -> 0 | D84: =-N77 -> 0 | G84: Rx Antenna Gain (dBi) | H84: =H74 -> 0 | I84: =H60 -> 7
B85: Tx Antenna Gain (dBi) | C85: =H60 -> 7 | D85: =H74 -> 0 | G85: Rx Cable Loss (dB) | H85: =-N77 -> 0 | I85: =-N63 -> 0
B86: Beamforming Gain (dB) | C86: =3*'6300_5G_PwrTable'!J7 -> 0 | D86: =Q75 -> 0 | G86: Rx Sensitivity (-dBm) | H86: =-Q80 -> 82 | I86: =-Y94 -> 90
B87: Tx EIRP | C87: =SUM(C83:C86) -> 34 | D87: =SUM(D83:D86) -> 20 | G87: Pathloss | H87: =SUM(H83:H86) -> 116 | I87: =SUM(I83:I86) -> 117
B88: EIRP Limit Flag | C88: =IF(C87>E72,1,0) -> 0 | D88: =IF(D87>E76,1,0) -> 0 | G88: Min Pathloss | H88: =MIN(H87:I87) -> 116
B92: f = | C92: =Q69*1000 -> 5745 | D92: MHz
W93: Rate Choice: | X93: PHY rate (Mbps) | Y93: IW-6300 spec | Z93: IEEE spec | AB93: IEEE spec + 6 dB
A94: LOS Distance Calculation | C94: Downlink | D94: Uplink | W94: 9 | X94: =IF($T$60=0,INDEX(X53:X80,$W94),IF($T$60=1,INDEX(AA53:AA80,$W94),INDEX(AD53:AD80,$W94))) -> 6.5 | Y94: =IF($T$60=0,INDEX(Y53:Y80,$W94),IF($T$60=1,INDEX(AB53:AB80,$W94),INDEX(AE53:AE80,$W94))) -> -90 | Z94: =IF($T$60=0,INDEX(Z53:Z80,$W94),IF($T$60=1,INDEX(AC53:AC80,$W94),INDEX(AF53:AF80,$W94))) -> -82 | AB94: =INDEX(AG53:AG80,$W94) -> -88
A95: minimum link margin | C95: =C37 -> 10
A96: Distance LOS (2.0) | C96: =FreeSpaceRange($C$92,H$87-C$101) -> 828.5539763 | D96: =FreeSpaceRange($C$92,I$87-D$101) -> 929.6528518 | E96: m
A97: Distance LOS w/o (2.3) | C97: =ExponentialModelRange($C$92,$H$87-C$101,2.3) -> 168.661694 | D97: =ExponentialModelRange($C$92,$I$87-D$101,2.3) -> 186.4209509 | E97: m | F97: =WeissbergerLoss(C92,C97,C97) -> 136.7370431
A98: Distance LOS w/o (2.5) | C98: =ExponentialModelRange($C$92,$H$87-C$101,2.5) -> 72.16403457 | D98: =ExponentialModelRange($C$92,$I$87-D$101,2.5) -> 79.12629045 | E98: m
A99: Distance LOS w/o (2.7) | C99: =ExponentialModelRange($C$92,$H$87-C$101,2.7) -> 35.01440347 | D99: =ExponentialModelRange($C$92,$I$87-D$101,2.7) -> 38.13148939 | E99: m
A101: Fade Margin | C101: =C95 -> 10 | D101: =C95 -> 10 | E101: dB
A105: ITU P.1441-9 Model Calculation: | C105: Downlink | D105: Uplink | L105: COST231-Hata Model Calculation:
B106: Above Rooftop NLoS Range, 90% of Clients | C106: =ITUAboveRooftopRangeNLoS($C$92,H$87-C$101,1.3) -> 90.27460282 | D106: =ITUAboveRooftopRangeNLoS($C$92,I$87-D$101,1.3) -> 95.1359435 | E106: m | F106: valid for paths between 260 - 1200 m | M106: Frequency_term | N106: =33.9*LOG10(1000*$Q69) -> 127.4399321
B107: Street Canyon NLoS Range, 90% of Clients | C107: =ITUStreetCanyonRangeNLoS($C$92,H$87-C$101,1.3) -> 50.12090227 | D107: =ITUStreetCanyonRangeNLoS($C$92,I$87-D$101,1.3) -> 53.09075244 | E107: m | F107: valid for paths between 30 - 715 m | M107: Tx_height_factor | N107: =13.82*LOG10(MAX($C18,$L18)) -> 13.82
M108: A_factor_suburban | N108: =(1.1*LOG10(1000*$Q69)-0.7)*MIN($C18,$L18) - (1.56*LOG10(1000*$Q69) - 0.8) -> 1.805945621
B109: Above Rooftop LoS Range, 90% of Clients | C109: =ITUAboveRooftopRangeLoS($C$92,H$87-C$101,1.3) -> 340.7888575 | D109: =ITUAboveRooftopRangeLoS(C$92,I$87-D$101,1.3) -> 376.836975 | E109: m | M109: A_factor_urban | N109: =3.2*POWER(LOG10(11.75*MIN($C18, $L18)), 2) - 4.97 -> 1.045446665
B110: Street Canyon LoS Range, 90% of Clients | C110: =ITUStreetCanyonRangeLoS($C$92,H$87-C$101,1.3) -> 360.2881799 | D110: =ITUStreetCanyonRangeLoS($C$92,I$87-D$101,1.3) -> 401.6241557 | E110: m | M110: Cm_term_suburban | N110: 0
M111: Cm_term_urban | N111: 3
B112: ITU Indoor NLoS Range, Same Floor | C112: =ITUIndoorRangeNLoS($C$92,H$87-C$101,0) -> 91.30053267 | D112: =ITUIndoorRangeNLoS($C$92,I$87-D$101,0) -> 98.58404748 | E112: m | P112: Macro calculations
B113: ITU Urban Low Antenna Height Range, 50% of Clients | C113: =ITULowHeightRangeUrban($C$92,H$87-C$101,50) -> 53.09667146 | D113: =ITULowHeightRangeUrban($C$92,I$87-D$101,50) -> 53.44616846 | E113: m | M113: Distance (suburban) | N113: =1000*POWER(10, (($H88- $B95 - 46.3 - N106 +N107 + N108 - N110) / (44.9 - 6.55*LOG10(MAX(C18,$L18))))) -> 79.77222785 | O113: (m) | P113: =COSTHataRangeSuburban(C92,H88,C18,L18) -> 79.77222785 | Q113: =HataRangeLargeCity(C92,H88,C18,L18) -> 108.2637098
B114: ITU Suburban Low Antenna Height Range, 50% of Clients | C114: =ITULowHeightRangeSuburban($C$92,H$87-C$101,50) -> 54.2964186 | D114: =ITULowHeightRangeSuburban($C$92,I$87-D$101,50) -> 54.69304649 | E114: m | M114: Distance (urban) | N114: =1000*POWER(10, (($H88 -$B95 - 46.3 - N106 + N107 + N109 - N111) / (44.9 - 6.55*LOG10(MAX(C18,$L18))))) -> 63.64940994 | O114: (m) | P114: =costhatarangeurban(C92,H88,C18,L18) -> 63.64940994
B116: Weissberger's Model: Range through Foliage | C116: =WeissbergerRange(C$92,H$87-C$101) -> 56.2479082 | D116: =WeissbergerRange(C$92,I$87-C$101) -> 58.792139 | E116: m
A118: Warnings:
A119: cell B23: | B119: **** CHOOSE A VALID DOMAIN ****
A120: cells C34 & K34: | B120: Max Allowable EIRP =
A121: cells C35 & K35: | B121: *** MAX EIRP EXCEEDED → LOWER POWER or ANTENNA GAIN ***
A122: cell C17 | B122: *** Antenna gain > 5 dBi not allowed in -I domain ***
A123: cell C17 | B123: *** ANTENNA GAIN CANNOT EXCEED 14 dBi ***
A124: cell C13 | B124: *** INVALID BANDWIDTH FOR DATA RATE ***
A126: cell M42 lower warning | B126: USE LOS W/O FRESNEL ZONE CLEARANCE CALCULATION AT SHORT RANGES
A127: cell M42 upper warning | B127: URBAN NLOS MODEL MAY BE INACCURATE FOR PATHS > 715 m !
A129: cell M41 | B129: ABOVE ROOFTOP NLOS MODEL IS NOT VALID FOR PATHS LESS THAN 260 m. REFER TO THE URBAN MODEL.

Sheet 5GHz Backhaul
G1: Cisco 6300 Series 5 GHz Mesh or WGB Backhaul Outdoor Link
G2: Only edit orange input cells and select from dropdown menus
A4: Regulatory Domain ――――――――――――→
C6: Site 1 | I6: Site 2
A7: Select Device ――――――――――――→ | H7: Select Device ――――――――――→
A8: Note: When choosing antennas and power levels, EIRP cannot exceed the regulatory power limit
A9: Select Data Rate ――――――――――――――→
A10: Select Channel Bandwidth ―――――――――→
A11: PHY data rate with long guard interval ―――→ | C11: =IF(X99>=1,X99,"") -> 130 | D11: Mbps | E11: =IF(X99>=1,"",B150) -> 
A12: IW-6300 typical sensitivity for 10% PER ―――→ | C12: =IF(X99>=1,Y99,"") -> -70 | D12: dBm | H12: IW-6300 typical sensitivity for 10% PER ――――→ | L12: =Y99 -> -70 | M12: dBm
A14: Select Antenna 1 Here ―――――――――→ | H14: Select Antenna 1 Here ―――――→
A15: For other Antenna - Enter Gain Here ―――→ | D15: dBi | H15: For other Antenna - Enter Gain Here ―――→ | M15: dBi
C16: =IF(AND(G60=6,H60>14),B152,IF(AND(A73=9,H60>5),B151,"")) -> 
A18: Enter Antenna Height Here -------------> | C18: 10 | D18: (meters) | H18: Enter Antenna Height Here------------------> | L18: 10 | M18: (meters)
A19: Note: When the minimum of the two antenna heights exceeds 10 m or when the maximum exceeds 200 m, the LOS model is recommended
A21: Enter Center Carrier Frequency Here -----> | C21: 5.745 | D21: (GHz)
A22: Select Frequency Range ――――――――――→
B23: =IF(Q60=-1000,B146," " ) -> 
A25: Select Conducted Power Level in dBm ―――→ | E25: dBm | H25: Select Conducted Power Level ――→ | M25: dBm
A27: Select Cable Type 1 ――――――――――――→ | H27: Select Cable Type 1 ―――――――→
A28: Enter Length of Cable 1 ―――――――――――――――――→ | D28: 10 | E28: feet | H28: Enter Length of Cable 1 ―――――――――――→ | L28: 10 | M28: feet
A29: Or Enter Loss in dB Here for "Other cable" ――――→ | E29: dB | H29: Or Enter Loss Here for "Other cable" ――→ | M29: dB
A33: Beamforming active gives greater EIRP? ――――――――→ | D33: =IF('6300_5G_BH_Pwr'!J7=1,"Yes (+3 dB)","No") -> Yes (+3 dB) | H33: Beamforming active for greater EIRP? ――――→ | L33: =IF('6300_5G_BH_Pwr'!J15=1,"Yes (+3 dB)","No") -> Yes (+3 dB)
A34: Effective Isotropic Radiated Power (EIRP) ――――――――→ | D34: =C103 -> 33 | E34: dBm | H34: Effective Isotropic Radiated Power (EIRP) ―――→ | L34: =D103 -> 33 | M34: dBm
C35: =IF(C104=1,B147," ") ->  | D35: =IF($C104=1,E$72," ") ->  | E35: =IF($C104=1,"dBm","") ->  | K35: =IF(D104=1,B147," ") ->  | L35: =IF($D104=1,E$95," ") ->  | M35: =IF($C104=1,"dBm","") -> 
A37: Enter Fade Margin ―――――――――――――→ | C37: 10 | D37: dB | E37: =IF(C37<0,B149,"") -> 
A39: Total Link Budget | B39: Downlink | C39: =H103-$C37 -> 106 | D39: dB | E39: Uplink | F39: =I103-$C37 -> 106 | G39: dB -----------------→ | H39: Limiting | I39: =$H104-$C37 -> 106 | J39: dB
A41: ="Theoretical Max Achievable Range at "&INDEX($W$53:$W$80,$W$99)&" BW, "&INDEX($S$53:$S$55,$S$60)&" ("&X99&" Mbps) with "&$C$37&" dB fade margin" -> Theoretical Max Achievable Range at VHT MCS7 2SS/HT MCS15 BW, 20 MHz (130 Mbps) with 10 dB fade margin
A42: LoS with Fresnel zone clearance | C42: =IF(($C$104+$D$104+$E$104)>0,0,$B121*5280) -> 2664.545438 | D42: feet | E42: =C42*0.3048 -> 812.1534494 | F42: m | H42: Max radius of first Fresnel zone = | I42: =K42/0.3048 -> 10.60408907 | J42: ft | K42: =8.656*SQRT(E42/$C$108) -> 3.232126348 | L42: m
A43: LoS w/o Fresnel zone clearance (PLE = 2.3) | C43: =IF(($C$104+$D$104+$E$104)>0,0,$B122*5280) -> 542.3988783 | D43: feet | E43: =C43*0.3048 -> 165.3231781 | F43: m | H43: Max radius of first Fresnel zone = | I43: =K43/0.3048 -> 4.78433072 | J43: ft | K43: =8.656*SQRT(E43/$C$108) -> 1.458264004 | L43: m
A44: LoS with entire path through dense foliage | C44: =E44/0.3048 -> 182.8046593 | D44: feet | E44: =IF(($C$104+$D$104+$E$104)>0,0,MIN($C139,$D139)) -> 55.71886015 | F44: m
A45: NLoS Suburban, antennas above rooftops | C45: =E45/0.3048 -> 294.0383834 | D45: feet | E45: =IF(($C$104+$D$104+$E$104)>0,0,MIN($C133,$D133)) -> 89.62289925 | F45: m
A46: NLoS Urban, antennas below rooftops | C46: =E46/0.3048 -> 163.1024328 | D46: feet | E46: =IF(($C$104+$D$104+$E$104)>0,0,MIN($C134,$D134)) -> 49.7136215 | F46: m
A47: Note: The radio range varies by neighborhood, depending upon the local terrain, foliage, building construction, etc.
A50: Country and Regulatory Domain Selection | G50: Antenna Selection | J50: Conducted Power Selection | M50: Cable Selection | P50: Channel Selection | S50: Bandwidth | W50: Data Rate Selection
B51: Site 1 | G51: Site 1 | J51: Site 1 | M51: Site 1 | X51: 20 MHz Rx threshold (dBm) | AA51: 40 MHz Rx threshold (dBm) | AD51: 80 MHz Rx threshold (dBm)
A52: Country List | B52: Model Numbers | C52: Channel Set | D52: Antenna Set | E52: Max EIRP (dBm) | G52: Antenna | H52: Gain (dBi) | I52: Gain list order reversed for match function | J52: Level | K52: Power (dBm) | M52: Cable | N52: Loss (dB) | P52: Band | S52: BW | W52: Data Rate | X52: Long GI PHY rate (Mbps) | Y52: IW-6300 typical | Z52: IEEE Spec | AA52: Long GI PHY rate (Mbps) | AB52: IW-6300 typical | AC52: IEEE Spec | AD52: Long GI PHY rate (Mbps) | AE52: IW-6300 typical | AF52: IEEE Spec | AG52: IEEE Spec + 6dB
A53: -A (Americas) | B53: IW-6300H-xxx-A-K9 | C53: 1110 | D53: 11 | E53: =IF($P$60=4, 36, IF($P$60=2,24,27)) -> 36 | G53: AIR-ANT5150VG-N (5 dBi) | H53: 5 | I53: 14 | J53: PL1 | K53: ='6300_5G_BH_Pwr'!P4 -> 17 | M53: No Cable | N53: 0 | P53: =IF(MOD(C$72,2)=1,"UNII-1: Ch. 36 - 48: 5.17 - 5.25 GHz", "Not a Valid Choice") -> UNII-1: Ch. 36 - 48: 5.17 - 5.25 GHz | Q53: =IF(MOD(C$72,2)=1,1,-1000) -> 1 | S53: 20 MHz | T53: 0 | W53: OFDM 6 Mbps | X53: 6 | Y53: -90 | Z53: -82 | AA53: 0 | AB53: 99 | AC53: 99 | AD53: 0 | AE53: 99 | AF53: 99 | AG53: =IF(T$60=0,Z53+6,IF(T$60=1,AC53+6,AF53+6)) -> -76
A54: -B (United States) | B54: IW-6300H-xxx-B-K9 | C54: 1111 | D54: 11 | E54: =IF(OR(P$60=1, P$60=4), 36, 27) -> 36 | G54: AIR-ANT2547V-N, VG-N, or V-N-HZ (7 dBi) | H54: 7 | I54: 13 | J54: PL2 | K54: ='6300_5G_BH_Pwr'!P5 -> 14 | M54: LMR-240 | N54: =-RF_coax_cable_loss(1000*Q$69,D$28,"LMR-240",-0.1,-0.1) -> 2.239424769 | P54: =IF(MOD(INT(C$72/10),2)=1,"UNII-2A: Ch. 52 - 68: 5.25 - 5.35 GHz", "Not a Valid Choice ") -> UNII-2A: Ch. 52 - 68: 5.25 - 5.35 GHz | Q54: =IF(MOD(INT(C$72/10),2)=1, 2, -1000) -> 2 | S54: =IF(W$99<8.5,"Invalid bandwidth!","40 MHz") -> 40 MHz | T54: =IF(W$99<8.5,-99,1) -> 1 | W54: OFDM 9 Mbps | X54: 9 | Y54: -88 | Z54: -81 | AA54: 0 | AB54: 99 | AC54: 99 | AD54: 0 | AE54: 99 | AF54: 99 | AG54: =IF(T$60=0,Z54+6,IF(T$60=1,AC54+6,AF54+6)) -> -75
A55: -C (Egypt, Bahrain, Pakistan) | B55: IW-6300H-xxx-C-K9 | C55: 1000 | D55: 11 | E55: 30 | G55: AIR-ANT5180VG-N, 2568VG-N, or 2588P3M-N (8 dBi) | H55: 8 | I55: 8 | J55: PL3 | K55: ='6300_5G_BH_Pwr'!P6 -> 11 | M55: LMR-400 | N55: =-RF_coax_cable_loss(1000*Q$69,D$28,"LMR-400",-0.1,-0.1) -> 1.284289411 | P55: =IF(MOD(INT(C$72/100),2)=1,"UNII-2C: Ch. 100 - 140: 5.49 - 5.71 GHz", "Not a Valid Choice") -> UNII-2C: Ch. 100 - 140: 5.49 - 5.71 GHz | Q55: =IF(MOD(INT(C$72/100),2)=1, 3, -1000) -> 3 | S55: =IF(W$99<8.5,"Invalid bandwidth!","80 MHz") -> 80 MHz | T55: =IF(W$99<8.5,-99,2) -> 2 | W55: OFDM 12 Mbps | X55: 12 | Y55: -87 | Z55: -79 | AA55: 0 | AB55: 99 | AC55: 99 | AD55: 0 | AE55: 99 | AF55: 99 | AG55: -73
A56: -D (India) | B56: IW-6300H-xxx-D-K9 | C56: 11100 | D56: 11 | E56: =IF($P$60=5,31,20) -> 20 | G56: AIR-ANT2513P4M-N (13 dBi) | H56: 13 | I56: 7 | J56: PL4 | K56: ='6300_5G_BH_Pwr'!P7 -> 8 | M56: LMR-600 | N56: =-RF_coax_cable_loss(1000*Q$69,D$28,"LMR-600",-0.1,-0.1) -> 0.927553612 | P56: =IF(MOD(INT(C$72/1000),2)=1,"UNII-3: Ch. 149 - 165: 5.735 - 5.835 GHz", "Not a Valid Choice") -> UNII-3: Ch. 149 - 165: 5.735 - 5.835 GHz | Q56: =IF(MOD(INT(C$72/1000),2)=1, 4, -1000) -> 4 | W56: OFDM 18 Mbps | X56: 18 | Y56: -84 | Z56: -77 | AA56: 0 | AB56: 99 | AC56: 99 | AD56: 0 | AE56: 99 | AF56: 99 | AG56: -71
A57: -E (ETSI) | B57: IW-6300H-xxx-E-K9 | C57: 100 | D57: 11 | E57: 30 | G57: AIR-ANT5114P2M-N (14 dBi) | H57: 14 | I57: 5 | J57: PL5 | K57: ='6300_5G_BH_Pwr'!P8 -> 5 | M57: Other cable: enter loss below | N57: =D$29 -> 0 | P57: =IF(MOD(INT(C$72/10000),2)=1,"India outdoor: Ch. 169 - 173, 5.835 - 5.875 GHz", "Not a Valid Choice") -> Not a Valid Choice | Q57: =IF(MOD(INT(C$72/10000),2)=1, 5, -1000) -> -1000 | W57: OFDM 24 Mbps | X57: 24 | Y57: -81 | Z57: -74 | AA57: 0 | AB57: 99 | AC57: 99 | AD57: 0 | AE57: 99 | AF57: 99 | AG57: -68
A58: -F (Indonesia) | B58: IW-6300H-xxx-F-K9 | C58: 1000 | D58: 11 | E58: 33 | G58: Other Antenna: Enter Gain Below | H58: =C15 -> 0 | W58: OFDM 36 Mbps | X58: 36 | Y58: -77 | Z58: -70 | AA58: 0 | AB58: 99 | AC58: 99 | AD58: 0 | AE58: 99 | AF58: 99 | AG58: -64
A59: -G (Pakistan) | B59: IW-6300H-xxx-G-K9 | C59: 1000 | D59: 11 | E59: 20 | G59: Antenna Choice: | J59: PL Choice: | P59: Channel Choice: | S59: Bandwidth choice: | W59: OFDM 48 Mbps | X59: 48 | Y59: -75 | Z59: -66 | AA59: 0 | AB59: 99 | AC59: 99 | AD59: 0 | AE59: 99 | AF59: 99 | AG59: -60
A60: -H (China, Mongolia) | B60: IW-6300H-xxx-H-K9 | C60: 1000 | D60: 11 | E60: 33 | G60: 4 | H60: =INDEX(H53:H58,G60) -> 13 | J60: 1 | K60: =INDEX(K53:K57,J60) -> 17 | P60: 4 | Q60: =INDEX(Q53:Q57,P60) -> 4 | S60: 1 | T60: =INDEX(T53:T55,S60) -> 0 | W60: OFDM 54 Mbps | X60: 54 | Y60: -74 | Z60: -65 | AA60: 0 | AB60: 99 | AC60: 99 | AD60: 0 | AE60: 99 | AF60: 99 | AG60: -59
A61: -I (Israel, Tunisia, Uzbekistan) | B61: IW-6300H-xxx-I-K9 | C61: 11 | D61: 11 | E61: 23 | I61: Pwr tbl gain | W61: VHT/HT MCS0 1SS | X61: 6.5 | Y61: -90 | Z61: -82 | AA61: 13.5 | AB61: -86 | AC61: -79 | AD61: 29.25 | AE61: -84 | AF61: -76 | AG61: -76
A62: -K (Korea) | B62: IW-6300H-xxx-K-K9 | C62: 1110 | D62: 11 | E62: =IF($P$60=4, 28, 26) -> 28 | G62: Ant Index for Pwr Table: | H62: =IF(G60=6,6-MATCH(H60,I53:I57,-1),G60) -> 4 | I62: =INDEX(H53:H57,H62,1) -> 13 | M62: Cable Choice: | W62: VHT/HT MCS1 1SS | X62: 13 | Y62: -88 | Z62: -79 | AA62: 27 | AB62: -86 | AC62: -76 | AD62: 58.5 | AE62: -83 | AF62: -73 | AG62: -73
A63: -L (Malaysia) | B63: IW-6300H-xxx-L-K9 | C63: 11100 | D63: 11 | E63: 30 | M63: 1 | N63: =INDEX(N53:N57,M63) -> 0 | P63: Frequency Term Check | W63: VHT/HT MCS2 1SS | X63: 19.5 | Y63: -86 | Z63: -77 | AA63: 40.5 | AB63: -84 | AC63: -74 | AD63: 87.75 | AE63: -82 | AF63: -71 | AG63: -71
A64: -M (Saudi Arabia, UAE, Qatar, Iraq, Kuwait) | B64: IW-6300H-xxx-M-K9 | C64: 1100 | D64: 11 | E64: 30 | P64: Ch. 48 | Q64: 5.24 | W64: VHT/HT MCS3 1SS | X64: 26 | Y64: -84 | Z64: -74 | AA64: 54 | AB64: -81 | AC64: -71 | AD64: 117 | AE64: -79 | AF64: -68 | AG64: -68
A65: -N (Panama, Barbados, Fiji) | B65: IW-6300H-xxx-N-K9 | C65: 1000 | D65: 11 | E65: 36 | G65: Site 2 | J65: Site 2 | M65: Site 2 | P65: Ch. 64 | Q65: 5.32 | W65: VHT/HT MCS4 1SS | X65: 39 | Y65: -81 | Z65: -70 | AA65: 81 | AB65: -78 | AC65: -67 | AD65: 175.5 | AE65: -76 | AF65: -64 | AG65: -64
A66: -P | B66: IW-6300H-xxx-P-K9 | C66: 111 | D66: 11 | E66: 34 | G66: Antenna | H66: Gain (dBi) | J66: Level | K66: Power (dBm) | M66: Cable | N66: Loss (dB) | P66: Ch. 144 | Q66: 5.72 | W66: VHT/HT MCS5 1SS | X66: 52 | Y66: -76 | Z66: -66 | AA66: 108 | AB66: -74 | AC66: -63 | AD66: 234 | AE66: -72 | AF66: -60 | AG66: -60
A67: -Q (Japan) | B67: IW-6300H-xxx-Q-K9 | C67: 100 | D67: 11 | E67: 26 | G67: AIR-ANT5150VG-N (5 dBi) | H67: 5 | I67: 14 | J67: PL1 | K67: ='6300_5G_BH_Pwr'!P12 -> 17 | M67: No Cable | N67: 0 | P67: Ch. 165 | Q67: 5.825 | W67: VHT/HT MCS6 1SS | X67: 58.5 | Y67: -75 | Z67: -65 | AA67: 121.5 | AB67: -73 | AC67: -62 | AD67: 263.25 | AE67: -70 | AF67: -59 | AG67: -59
A68: -R (Russia) | B68: IW-6300H-xxx-R-K9 | C68: 1110 | D68: 11 | E68: =IF($P$60=4, 38, IF($P$60=3,36,30)) -> 38 | G68: AIR-ANT2547V-N, VG-N, or V-N-HZ (7 dBi) | H68: 7 | I68: 13 | J68: PL2 | K68: ='6300_5G_BH_Pwr'!P13 -> 14 | M68: LMR-240 | N68: =-RF_coax_cable_loss(1000*Q$69,L$28,"LMR-240",-0.1,-0.1) -> 2.239424769 | P68: Ch. 173 | Q68: 5.865 | W68: VHT/HT MCS7 1SS | X68: 65 | Y68: -73 | Z68: -64 | AA68: 135 | AB68: -71 | AC68: -61 | AD68: 292.5 | AE68: -68 | AF68: -58 | AG68: -58
A69: -S (Singapore, Thailand, Vietnam, Hong Kong, Brunei) | B69: IW-6300H-xxx-S-K9 | C69: 1100 | D69: 11 | E69: 30 | G69: AIR-ANT5180VG-N, 2568VG-N, or 2588P3M-N (8 dBi) | H69: 8 | I69: 8 | J69: PL3 | K69: ='6300_5G_BH_Pwr'!P14 -> 11 | M69: LMR-400 | N69: =-RF_coax_cable_loss(1000*Q$69,L$28,"LMR-400",-0.1,-0.1) -> 1.284289411 | P69: Final Freq | Q69: =IF(AND(C20>5.2, C20<5.9),C20,INDEX(Q64:Q68,P60)) -> 5.825 | W69: VHT MCS8 1SS | X69: 78 | Y69: -69 | Z69: -59 | AA69: 162 | AB69: -67 | AC69: -56 | AD69: 351 | AE69: -64 | AF69: -53 | AG69: -53
A70: -T (Taiwan) | B70: IW-6300H-xxx-T-K9 | C70: 1100 | D70: 11 | E70: =IF($P$60=4,36,27) -> 36 | G70: AIR-ANT2513P4M-N (13 dBi) | H70: 13 | I70: 7 | J70: PL4 | K70: ='6300_5G_BH_Pwr'!P15 -> 8 | M70: LMR-600 | N70: =-RF_coax_cable_loss(1000*Q$69,L$28,"LMR-600",-0.1,-0.1) -> 0.927553612 | W70: VHT MCS9 1SS | X70: 0 | Y70: 99 | Z70: -57 | AA70: 180 | AB70: -65 | AC70: -54 | AD70: 390 | AE70: -62 | AF70: -51 | AG70: -51
A71: -Z (Australia, New Zealand, Brazil) | B71: IW-6300H-xxx-Z-K9 | C71: 1100 | D71: 11 | E71: =IF($P$60=4,36,30) -> 36 | G71: AIR-ANT5114P2M-N (14 dBi) | H71: 14 | I71: 5 | J71: PL5 | K71: ='6300_5G_BH_Pwr'!P16 -> 5 | M71: Other cable: enter loss below | N71: =L$29 -> 0 | W71: VHT MCS0 2SS/HT MCS8 | X71: 13 | Y71: -89 | Z71: -82 | AA71: 27 | AB71: -86 | AC71: -79 | AD71: 58.5 | AE71: -84 | AF71: -76 | AG71: -76
A72: Country Choice: | B72: =A73 -> 2 | C72: =INDEX(C53:C71,A73) -> 1111 | D72: =INDEX(D53:D71,A73) -> 11 | E72: =INDEX(E53:E71,A73) -> 36 | G72: Other Antenna: Enter Gain Below | H72: =L15 -> 0 | W72: VHT MCS1 2SS/HT MCS9 | X72: 26 | Y72: -86 | Z72: -79 | AA72: 54 | AB72: -84 | AC72: -76 | AD72: 117 | AE72: -81 | AF72: -73 | AG72: -73
A73: 2 | G73: Antenna Choice: | J73: PL Choice: | W73: VHT MCS2 2SS/HT MCS10 | X73: 39 | Y73: -83 | Z73: -77 | AA73: 81 | AB73: -82 | AC73: -74 | AD73: 175.5 | AE73: -78 | AF73: -71 | AG73: -71
G74: 4 | H74: =INDEX(H67:H72,G74) -> 13 | J74: 1 | K74: =INDEX(K67:K71,J74) -> 17 | W74: VHT MCS3 2SS/HT MCS11 | X74: 52 | Y74: -80 | Z74: -74 | AA74: 108 | AB74: -78 | AC74: -71 | AD74: 234 | AE74: -74 | AF74: -68 | AG74: -68
A75: Country List | B75: Model Numbers | C75: Channel Set | D75: Antenna Set | E75: Max EIRP (dBm) | I75: Pwr tbl gain | W75: VHT MCS4 2SS/HT MCS12 | X75: 78 | Y75: -77 | Z75: -70 | AA75: 162 | AB75: -75 | AC75: -67 | AD75: 351 | AE75: -71 | AF75: -64 | AG75: -64
A76: -A (Americas) | B76: IW-6300H-xxx-A-K9 | C76: 1110 | D76: 11 | E76: =IF($P$60=4, 36, IF($P$60=2,24,27)) -> 36 | G76: Ant Index for Pwr Table: | H76: =IF(G74=6,6-MATCH(H74,I67:I71,-1),G74) -> 4 | I76: =INDEX(H67:H71,H76,1) -> 13 | M76: Cable Choice: | W76: VHT MCS5 2SS/HT MCS13 | X76: 104 | Y76: -73 | Z76: -66 | AA76: 216 | AB76: -70 | AC76: -63 | AD76: 468 | AE76: -67 | AF76: -60 | AG76: -60
A77: -B (United States) | B77: IW-6300H-xxx-B-K9 | C77: 1111 | D77: 11 | E77: =IF(OR(P$60=1, P$60=4), 36, 27) -> 36 | M77: 1 | N77: =INDEX(N67:N71,M77) -> 0 | W77: VHT MCS6 2SS/HT MCS14 | X77: 117 | Y77: -71 | Z77: -65 | AA77: 243 | AB77: -68 | AC77: -62 | AD77: 526.5 | AE77: -65 | AF77: -59 | AG77: -59
A78: -C (Egypt, Bahrain, Pakistan) | B78: IW-6300H-xxx-C-K9 | C78: 1000 | D78: 11 | E78: 30 | W78: VHT MCS7 2SS/HT MCS15 | X78: 130 | Y78: -70 | Z78: -64 | AA78: 270 | AB78: -67 | AC78: -61 | AD78: 585 | AE78: -64 | AF78: -58 | AG78: -58
A79: -D (India) | B79: IW-6300H-xxx-D-K9 | C79: 11100 | D79: 11 | E79: =IF($P$60=5,31,20) -> 20 | W79: VHT MCS8 2SS | X79: 156 | Y79: -65 | Z79: -59 | AA79: 324 | AB79: -62 | AC79: -56 | AD79: 702 | AE79: -59 | AF79: -53 | AG79: -53
A80: -E (ETSI) | B80: IW-6300H-xxx-E-K9 | C80: 100 | D80: 11 | E80: 30 | W80: VHT MCS9 2SS | X80: 0 | Y80: 99 | Z80: -57 | AA80: 360 | AB80: -60 | AC80: -54 | AD80: 780 | AE80: -58 | AF80: -51 | AG80: -51
A81: -F (Indonesia) | B81: IW-6300H-xxx-F-K9 | C81: 1000 | D81: 11 | E81: 33
A82: -G (Pakistan) | B82: IW-6300H-xxx-G-K9 | C82: 1000 | D82: 11 | E82: 20
A83: -H (China, Mongolia) | B83: IW-6300H-xxx-H-K9 | C83: 1000 | D83: 11 | E83: 33
A84: -I (Israel, Tunisia, Uzbekistan) | B84: IW-6300H-xxx-I-K9 | C84: 11 | D84: 11 | E84: 23
A85: -K (Korea) | B85: IW-6300H-xxx-K-K9 | C85: 1110 | D85: 11 | E85: =IF($P$60=4, 28, 26) -> 28
A86: -L (Malaysia) | B86: IW-6300H-xxx-L-K9 | C86: 11100 | D86: 11 | E86: 30
A87: -M (Saudi Arabia, UAE, Qatar, Iraq, Kuwait) | B87: IW-6300H-xxx-M-K9 | C87: 1100 | D87: 11 | E87: 30
A88: -N (Panama, Barbados, Fiji) | B88: IW-6300H-xxx-N-K9 | C88: 1000 | D88: 11 | E88: 36
A89: -P | B89: IW-6300H-xxx-P-K9 | C89: 111 | D89: 11 | E89: 34
A90: -Q (Japan) | B90: IW-6300H-xxx-Q-K9 | C90: 100 | D90: 11 | E90: 26
A91: -R (Russia) | B91: IW-6300H-xxx-R-K9 | C91: 1110 | D91: 11 | E91: =IF($P$60=4, 38, IF($P$60=3,36,30)) -> 38
A92: -S (Singapore, Thailand, Vietnam, Hong Kong, Brunei) | B92: IW-6300H-xxx-S-K9 | C92: 1100 | D92: 11 | E92: 30
A93: -T (Taiwan) | B93: IW-6300H-xxx-T-K9 | C93: 1100 | D93: 11 | E93: =IF($P$60=4,36,27) -> 36
A94: -Z (Australia, New Zealand, Brazil) | B94: IW-6300H-xxx-Z-K9 | C94: 1100 | D94: 11 | E94: =IF($P$60=4,36,30) -> 36
B95: =A73 -> 2 | C95: =INDEX(C76:C94,B95) -> 1111 | D95: =INDEX(D76:D94,B95) -> 11 | E95: =INDEX(E76:E94,B95) -> 36
B97: EIRP Calculation | G97: Pathloss Calculation
C98: Site 1 | D98: Site 2 | H98: Site 1 > 2 | I98: Site 2 > 1 | W98: Rate Choice: | X98: PHY rate (Mbps) | Y98: IW-6300 spec | Z98: IEEE spec | AB98: IEEE spec + 6 dB
B99: Tx Conducted Power (dBm) | C99: =K60 -> 17 | D99: =K74 -> 17 | G99: Tx EIRP (dBm) | H99: =C103 -> 33 | I99: =D103 -> 33 | W99: 26 | X99: =IF($T$60=0,INDEX(X53:X80,$W99),IF($T$60=1,INDEX(AA53:AA80,$W99),INDEX(AD53:AD80,$W99))) -> 130 | Y99: =IF($T$60=0,INDEX(Y53:Y80,$W99),IF($T$60=1,INDEX(AB53:AB80,$W99),INDEX(AE53:AE80,$W99))) -> -70 | Z99: =IF($T$60=0,INDEX(Z53:Z80,$W99),IF($T$60=1,INDEX(AC53:AC80,$W99),INDEX(AF53:AF80,$W99))) -> -64 | AB99: =INDEX(AG53:AG80,$W99) -> -58
B100: Tx Cable Loss (dB) | C100: =-N63 -> 0 | D100: =-N77 -> 0 | G100: Rx Antenna Gain (dBi) | H100: =H74 -> 13 | I100: =H60 -> 13
B101: Tx Antenna Gain (dBi) | C101: =H60 -> 13 | D101: =H74 -> 13 | G101: Rx Cable Loss (dB) | H101: =-N77 -> 0 | I101: =-N63 -> 0
B102: Beamforming Gain (dB) | C102: =3*'6300_5G_BH_Pwr'!J7 -> 3 | D102: =3*'6300_5G_BH_Pwr'!J15 -> 3 | G102: Rx Sensitivity (-dBm) | H102: =-Y99 -> 70 | I102: =-Y99 -> 70
B103: Tx EIRP | C103: =SUM(C99:C102) -> 33 | D103: =SUM(D99:D102) -> 33 | E103: Fade margin flag | G103: Pathloss | H103: =SUM(H99:H102) -> 116 | I103: =SUM(I99:I102) -> 116
B104: EIRP Limit Flag | C104: =IF(C103>E72,1,0) -> 0 | D104: =IF(D103>E95,1,0) -> 0 | E104: =IF(C37<0,1,0) -> 0 | G104: Min Pathloss | H104: =MIN(H103:I103) -> 116
B108: f = | C108: =Q69*1000 -> 5825 | D108: MHz
A110: LOS Distance Calculation
A111: Environmental conditions:
B112: Terrain | G112: Humidity
A113: Very smooth terrain over water or flat desert; | C113: 0.25 | E113: Hot, humid and/or coastal areas; | H113: 0.5
A114: Average terrain with some roughness; | C114: 1 | E114: Normal, interior continent temperate or sub-artic | H114: 0.25
A115: Mountains, very rough or very dry terrain | C115: 4 | E115: Very dry but nonreflective areas | H115: 0.125
A116: 2 | B116: Average | C116: =INDEX(C113:C115,A116) -> 1 | E116: 1 | G116: Normal | H116: =INDEX(H113:H115,E116) -> 0.5
B118: Calculation
A119: minimum link margin | B119: =C37 -> 10
A120: availability | B120: 0.99965 | D120: PLE Distance | E120: Envrn Distance | G120: Calculation without any environmental conditions considered | K120: Delta compared to calculation with environmental conditions considered
A121: Distance LOS (2.0) | B121: =MIN(POWER(((1-$B$120)*1000000/(2.5*$C$116*$H$116*Q68))*((((0.3*3.2808)/(Q68*5280))/(4*PI()))^2)/10^(-$H$104/10),0.2),((0.3*3.2808)/(Q68*5280))/(4*PI()*POWER(10^((-$H$104+$B$119)/10),(1/2)))) -> 0.5046487571 | C121: (mi) | D121: =((0.3*3.2808)/($Q$68*5280))/(4*PI()*POWER(10^((-$H$104+$B$119)/10),(1/2))) -> 0.5046487571 | E121: =POWER(((1-$B$120)*1000000/(2.5*$C$116*$H$116*$Q$68))*((((0.3*3.2808)/($Q$68*5280))/(4*PI()))^2)/10^(-$H$104/10),0.2) -> 2.612003089 | G121: =FreeSpaceRange(C$108,H$104-B$119) -> 817.1746942 | H121: m | I121: =G121/1609.334 -> 0.5077719692 | J121: mi | K121: =(I121-B121)/B121 -> 0.006188882868
A122: Distance LOS w/o (2.3) | B122: =MIN(POWER(((1-$B$120)*1000000/(2.5*$C$116*$H$116*Q68))*((((0.3*3.2808)/(Q68*5280))/(4*PI()))^2)/10^(-$H$104/10),0.2),((0.3*3.2808)/(Q68*5280))/(4*PI()*POWER(10^((-$H$104+$B$119)/10),(1/2.3)))) -> 0.1027270603 | C122: (mi) | D122: =((0.3*3.2808)/($Q$68*5280))/(4*PI()*POWER(10^((-$H$104+$B$119)/10),(1/2.3))) -> 0.1027270603 | E122: =POWER(((1-$B$120)*1000000/(2.5*$C$116*$H$116*$Q$68))*((((0.3*3.2808)/($Q$68*5280))/(4*PI()))^2)/10^(-$H$104/10),0.2) -> 2.612003089 | G122: =ExponentialModelRange(C$108,H$104-B$119,2.3) -> 166.3453103 | H122: m | I122: =G122/1609.334 -> 0.103362826 | J122: mi | K122: =(I122-B122)/B122 -> 0.006188882868
A123: Distance LOS w/o (2.5) | B123: =MIN(POWER(((1-$B$120)*1000000/(2.5*$C$116*$H$116*Q68))*((((0.3*3.2808)/(Q68*5280))/(4*PI()))^2)/10^(-$H$104/10),0.2),((0.3*3.2808)/(Q68*5280))/(4*PI()*POWER(10^((-$H$104+$B$119)/10),(1/2.5)))) -> 0.04395306932 | C123: (mi) | D123: =((0.3*3.2808)/($Q$68*5280))/(4*PI()*POWER(10^((-$H$104+$B$119)/10),(1/2.5))) -> 0.04395306932 | E123: =POWER(((1-$B$120)*1000000/(2.5*$C$116*$H$116*$Q$68))*((((0.3*3.2808)/($Q$68*5280))/(4*PI()))^2)/10^(-$H$104/10),0.2) -> 2.612003089 | G123: =ExponentialModelRange(C$108,H$104-B$119,2.5) -> 71.17294053 | H123: m | I123: =G123/1609.334 -> 0.04422508972 | J123: mi | K123: 0.006188882868
A124: Distance LOS w/o (2.7) | B124: =MIN(POWER(((1-$B$120)*1000000/(2.5*$C$116*$H$116*Q68))*((((0.3*3.2808)/(Q68*5280))/(4*PI()))^2)/10^(-$H$104/10),0.2),((0.3*3.2808)/(Q68*5280))/(4*PI()*POWER(10^((-$H$104+$B$119)/10),(1/2.7)))) -> 0.02132628133 | C124: (mi) | D124: =((0.3*3.2808)/($Q$68*5280))/(4*PI()*POWER(10^((-$H$104+$B$119)/10),(1/2.7))) -> 0.02132628133 | E124: =POWER(((1-$B$120)*1000000/(2.5*$C$116*$H$116*$Q$68))*((((0.3*3.2808)/($Q$68*5280))/(4*PI()))^2)/10^(-$H$104/10),0.2) -> 2.612003089 | G124: =ExponentialModelRange(C$108,H$104-B$119,2.7) -> 34.53351896 | H124: m | I124: 0.02145826718 | J124: mi | K124: 0.006188882868
A126: Calculatd Fade Margin | B126: =-10*LOG10(MIN(10^(-B119/10),(1-B120)/(2.5*C116*H116*Q68*B121^3*0.000001))) -> 10
A127: Earth Bulge | B127: =IF(OR(B122<1,B122=1),3,IF(AND(B122>1,B122<5),5,IF(AND(B122>5,B122<10),13,IF(AND(B122>10,B122<15),28,IF(AND(EI108>15,B122<20),50,IF(AND(B122>20,B122<22),64,IF(AND(B122>22,B122<25),78,"90"))))))) -> 3
A128: Fresnel Zone | B128: =43.3*(SQRT(B122/(4*5.8))) -> 2.881285768
A132: ITU P.1441-9 Model Calculation: | C132: Downlink | D132: Uplink | L132: COST231-Hata Model Calculation:
B133: Above Rooftop NLoS Range, 90% of Clients | C133: =ITUAboveRooftopRangeNLoS($C$108,H$103-B$119,1.3) -> 89.62289925 | D133: =ITUAboveRooftopRangeNLoS($C$108,I$103-B$119,1.3) -> 89.62289925 | E133: m | M133: Frequency_term | N133: =33.9*LOG10(1000*$Q68) -> 127.7442858
B134: Street Canyon NLoS Range, 90% of Clients | C134: =ITUStreetCanyonRangeNLoS($C$108,H$103-B$119,1.3) -> 49.7136215 | D134: =ITUStreetCanyonRangeNLoS($C$108,I$103-B$119,1.3) -> 49.7136215 | E134: m | M134: Tx_height_factor | N134: =13.82*LOG10(MAX($C18,$L18)) -> 13.82
M135: A_factor_suburban | N135: =(1.1*LOG10(1000*$Q68)-0.7)*MIN($C18,$L18) - (1.56*LOG10(1000*$Q68) - 0.8) -> 29.37245008
B136: Above Rooftop LoS Range, 90% of Clients | C136: =ITUAboveRooftopRangeLoS($C$108,H$103-B$119,1.3) -> 336.7789732 | D136: =ITUAboveRooftopRangeLoS($C$108,I$103-B$119,1.3) -> 336.7789732 | E136: m | M136: A_factor_urban | N136: =3.2*POWER(LOG10(11.75*MIN($C18, $L18)), 2) - 4.97 -> 8.742181661
B137: Street Canyon LoS Range, 90% of Clients | C137: =ITUStreetCanyonRangeLoS($C$108,H$103-B$119,1.3) -> 355.3631962 | D137: =ITUStreetCanyonRangeLoS($C$108,I$103-B$119,1.3) -> 355.3631962 | E137: m | M137: Cm_term_suburban | N137: 0
M138: Cm_term_urban | N138: 3
B139: Weissberger's Model: Range through Foliage | C139: =WeissbergerRange(C$108,H$103-B$126) -> 55.71886015 | D139: =WeissbergerRange(C$108,I$103-B$126) -> 55.71886015 | E139: m | P139: COST231 Hata Model macro calculations
M140: Distance (suburban) | N140: =POWER(10, (($H104- $B119 - 46.3 - $N133 + $N134 + $N135 - $N137) / (44.9 - 6.55*LOG10(MAX($C18,$L18))))) -> 0.2248914756 | O140: (km) | P140: =COSTHataRangeSuburban(C108,H104-B119,C18,L18) -> 225.8752361 | Q140: m
M141: Distance (urban) | N141: =POWER(10, (($H104 -$B119 - 46.3 - $N133 + $N134 + $N136 - $N138) / (44.9 - 6.55*LOG10(MAX($C18,$L18))))) -> 0.05442508436 | O141: (km) | P141: =costhatarangeurban(C108,H104-B119,C18,L18) -> 54.75532072 | Q141: m
A145: Warnings:
A146: cell B23: | B146: **** CHOOSE A VALID FREQUENCY RANGE ****
A147: cells C34 & K34: | B147: Max Allowable EIRP =
A148: cells C35 & K35: | B148: *** MAX EIRP EXCEEDED → LOWER POWER or ANTENNA GAIN ***
A149: cell E37 | B149: *** FADE MARGIN MUST BE ≥ 0 dB ***
A150: cell C13 | B150: *** INVALID BANDWIDTH FOR DATA RATE ***
A151: cell C17 | B151: *** Antenna gain > 5 dBi not allowed in -I domain ***
A152: cell C17 | B152: *** ANTENNA GAIN CANNOT EXCEED 14 dBi ***

Sheet 2.4GHz AP Density Estimator
B1: Cisco 6300 Series 2.4 GHz AP Density Estimator
D2: Only enter values in orange cells
A4: Note: Please input the correct information on the Client Access sheet before using this AP Density Estimator
A7: 1) Enter area under consideration in squre km: | F7: 2 | G7: square km
A9: 2) What percentage of area do you expect RF coverage for clients? | F9: 0.9
A11: 3) Topology of deployment:
E12: Identify % of terrain type in your deployment coverage area | F12: Expected RF coverage in square km | H12: Number of IW-6300s required
B13: Suburban | E13: 0.6 | F13: =F7*E13*F9 -> 1.08 | H13: =F13*C26 -> 100.219439
B14: Urban or Dense Foliage | E14: =E15-E13 -> 0.4 | F14: =F7*E14*F9 -> 0.72 | H14: =F14*C27 -> 69.98608913
D15: Total: | E15: 1 | F15: =F13+F14 -> 1.8 | H15: =H13+H14 -> 170.2055282
A19: Total number of IW-6300 units required: | D19: =H15 -> 170.2055282
A21: Average number of IW-6300 units per square km: | D21: =H15/F7 -> 85.10276408
A25: Number of APs per square km:
B26: Suburban | C26: =1/(PI()*('2.4GHz Client Access'!L44)^2*0.000001) -> 92.79577687 | D26: / these are taken from the 2.4 GHz
B27: Urban or Dense Foliage | C27: =1/(PI()*'2.4GHz Client Access'!L45^2*0.000001) -> 97.20290158 | D27: \ Client Access Worksheet

Sheet 6300_2G_PwrTable (hidden)
A1: DO NOT EDIT: | B1: This worksheet contain data for the "2.4GHz Client Access" worksheet.
C3: SITE 1 | L3: Allowed Powers List: | M3: =IF(K5+3>K4,K5,K4) -> 24 | P3: Final List
J4: Max Power (total 2 Tx) w/o BF = | K4: =MAX(INDEX(F$15:BB$134,B$8,E7),INDEX(F$15:BB$134,B$9,E7)+3) -> 24 | M4: =IF(M3-3>3,M3-3,4) -> 21 | P4: PL1 = | Q4: =IF(B6=0,-99,M3) -> 24
A5: Reg Domain index | B5: ='2.4GHz Client Access'!$C$69 -> 1 | J5: Max Power (total 2 Tx) with BF = | K5: =INDEX(F$15:BB$134,B$9,E8)+3 -> 21 | M5: =IF(M4-3>3,M4-3,4) -> 18 | P5: PL2 = | Q5: =IF(B6=0,-99,INDEX(M3:M10,K6+1)) -> 21
A6: Antenna gain index | B6: ='2.4GHz Client Access'!$H$61 -> 1 | D6: Rate index | E6: ='2.4GHz Client Access'!$S$82 -> 13 | J6: PL sequence = | K6: =IF(K7=1,MATCH(K$5,M$3:M$10,-1),MATCH(K$4,M$3:M$10,-1)) -> 1 | M6: 15 | P6: PL3 = | Q6: =IF(B6=0,-99,INDEX(M3:M10,K6+2)) -> 18
A7: Channel index | B7: ='2.4GHz Client Access'!Q67 -> 4 | D7: Rate Column w/o BF | E7: =IF(E6<5,1,E6-3) -> 10 | J7: BF flag = | K7: =IF(K5+3>K4,1,0) -> 0 | M7: 12 | P7: PL4 = | Q7: =IF(B6=0,-99,INDEX(M3:M10,K6+3)) -> 15
A8: 1 ANT max pwr row | B8: =B9-1 -> 7 | D8: Rate Column with BF | E8: =E7+24 -> 34 | M8: 9 | P8: PL5 = | Q8: =IF(B6=0,-99,INDEX(M3:M10,K6+4)) -> 12
A9: 2 ANT max pwr row | B9: =IF(B5=1,12*(B$6-1)+2*B$7,60+10*(B$5-2)+2*B$6) -> 8 | M9: 6
M10: 4
E11: Column index | F11: 1 | G11: 2 | H11: 3 | I11: 4 | J11: 5 | K11: 6 | L11: 7 | M11: 8 | N11: 9 | O11: 10 | P11: 11 | Q11: 12 | R11: 13 | S11: 14 | T11: 15 | U11: 16 | V11: 17 | W11: 18 | X11: 19 | Y11: 20 | Z11: 21 | AA11: 22 | AB11: 23 | AC11: 24 | AD11: 25 | AE11: 26 | AF11: 27 | AG11: 28 | AH11: 29 | AI11: 30 | AJ11: 31 | AK11: 32 | AL11: 33 | AM11: 34 | AN11: 35 | AO11: 36 | AP11: 37 | AQ11: 38 | AR11: 39 | AS11: 40 | AT11: 41 | AU11: 42 | AV11: 43 | AW11: 44 | AX11: 45 | AY11: 46 | AZ11: 47 | BA11: 48 | BB11: 49
A12: Rate Type | F12: CCK | G12: OFDM | O12: HT20 1SS | W12: HT20 2SS | AE12: OFDM LBF | AM12: HT20 1SS BF | AU12: HT20 2SS BF / STBC
A13: Rate Index | F13: 4 | G13: 5 | H13: 6 | I13: 7 | J13: 8 | K13: 9 | L13: 10 | M13: 11 | N13: 20 | O13: 21 | P13: 22 | Q13: 23 | R13: 24 | S13: 25 | T13: 26 | U13: 27 | V13: 28 | W13: 29 | X13: 30 | Y13: 31 | Z13: 32 | AA13: 33 | AB13: 34 | AC13: 35 | AD13: 36
B14: Domain | C14: Start Ch | D14: Stop Ch | E14: Ant Gain | F14: ALL | G14: 6 | H14: 9 | I14: 12 | J14: 18 | K14: 24 | L14: 36 | M14: 48 | N14: 54 | O14: M0 | P14: M1 | Q14: M2 | R14: M3 | S14: M4 | T14: M5 | U14: M6 | V14: M7 | W14: M8 | X14: M9 | Y14: M10 | Z14: M11 | AA14: M12 | AB14: M13 | AC14: M14 | AD14: M15 | AE14: 6 | AF14: 9 | AG14: 12 | AH14: 18 | AI14: 24 | AJ14: 36 | AK14: 48 | AL14: 54 | AM14: M0 | AN14: M1 | AO14: M2 | AP14: M3 | AQ14: M4 | AR14: M5 | AS14: M6 | AT14: M7 | AU14: M8 | AV14: M9 | AW14: M10 | AX14: M11 | AY14: M12 | AZ14: M13 | BA14: M14 | BB14: M15 | BC14: Row index
A15: Single Antenna | B15: A | C15: 1 | D15: 1 | E15: 4 | F15: 24 | G15: 23 | H15: 23 | I15: 23 | J15: 23 | K15: 23 | L15: 23 | M15: 23 | N15: 23 | O15: 22 | P15: 22 | Q15: 22 | R15: 22 | S15: 22 | T15: 22 | U15: 22 | V15: 22 | W15: -99 | X15: -99 | Y15: -99 | Z15: -99 | AA15: -99 | AB15: -99 | AC15: -99 | AD15: -99 | AE15: -99 | AF15: -99 | AG15: -99 | AH15: -99 | AI15: -99 | AJ15: -99 | AK15: -99 | AL15: -99 | AM15: -99 | AN15: -99 | AO15: -99 | AP15: -99 | AQ15: -99 | AR15: -99 | AS15: -99 | AT15: -99 | AU15: -99 | AV15: -99 | AW15: -99 | AX15: -99 | AY15: -99 | AZ15: -99 | BA15: -99 | BB15: -99 | BC15: 1
A16: Dual Antenna | B16: A | C16: 1 | D16: 1 | E16: 4 | F16: 24 | G16: 22 | H16: 22 | I16: 22 | J16: 22 | K16: 22 | L16: 22 | M16: 22 | N16: 22 | O16: 22 | P16: 22 | Q16: 22 | R16: 22 | S16: 22 | T16: 22 | U16: 22 | V16: 22 | W16: 22 | X16: 22 | Y16: 22 | Z16: 22 | AA16: 22 | AB16: 22 | AC16: 22 | AD16: 22 | AE16: 21 | AF16: 21 | AG16: 21 | AH16: 21 | AI16: 21 | AJ16: 21 | AK16: 21 | AL16: 21 | AM16: 20 | AN16: 20 | AO16: 20 | AP16: 20 | AQ16: 20 | AR16: 20 | AS16: 20 | AT16: 20 | AU16: 22 | AV16: 22 | AW16: 22 | AX16: 22 | AY16: 22 | AZ16: 22 | BA16: 22 | BB16: 22 | BC16: 2
A17: Single Antenna | B17: A | C17: 2 | D17: 2 | E17: 4 | F17: 24 | G17: 24 | H17: 24 | I17: 24 | J17: 24 | K17: 24 | L17: 24 | M17: 24 | N17: 24 | O17: 24 | P17: 24 | Q17: 24 | R17: 24 | S17: 24 | T17: 24 | U17: 24 | V17: 24 | W17: -99 | X17: -99 | Y17: -99 | Z17: -99 | AA17: -99 | AB17: -99 | AC17: -99 | AD17: -99 | AE17: -99 | AF17: -99 | AG17: -99 | AH17: -99 | AI17: -99 | AJ17: -99 | AK17: -99 | AL17: -99 | AM17: -99 | AN17: -99 | AO17: -99 | AP17: -99 | AQ17: -99 | AR17: -99 | AS17: -99 | AT17: -99 | AU17: -99 | AV17: -99 | AW17: -99 | AX17: -99 | AY17: -99 | AZ17: -99 | BA17: -99 | BB17: -99 | BC17: 3
A18: Dual Antenna | B18: A | C18: 2 | D18: 2 | E18: 4 | F18: 24 | G18: 24 | H18: 24 | I18: 24 | J18: 24 | K18: 24 | L18: 24 | M18: 24 | N18: 24 | O18: 24 | P18: 24 | Q18: 24 | R18: 24 | S18: 24 | T18: 24 | U18: 24 | V18: 24 | W18: 24 | X18: 24 | Y18: 24 | Z18: 24 | AA18: 24 | AB18: 24 | AC18: 24 | AD18: 24 | AE18: 23 | AF18: 23 | AG18: 23 | AH18: 23 | AI18: 23 | AJ18: 23 | AK18: 23 | AL18: 23 | AM18: 23 | AN18: 23 | AO18: 23 | AP18: 23 | AQ18: 23 | AR18: 23 | AS18: 23 | AT18: 23 | AU18: 24 | AV18: 24 | AW18: 24 | AX18: 24 | AY18: 24 | AZ18: 24 | BA18: 24 | BB18: 24 | BC18: 4
A19: Single Antenna | B19: A | C19: 3 | D19: 9 | E19: 4 | F19: 24 | G19: 24 | H19: 24 | I19: 24 | J19: 24 | K19: 24 | L19: 24 | M19: 24 | N19: 24 | O19: 24 | P19: 24 | Q19: 24 | R19: 24 | S19: 24 | T19: 24 | U19: 24 | V19: 24 | W19: -99 | X19: -99 | Y19: -99 | Z19: -99 | AA19: -99 | AB19: -99 | AC19: -99 | AD19: -99 | AE19: -99 | AF19: -99 | AG19: -99 | AH19: -99 | AI19: -99 | AJ19: -99 | AK19: -99 | AL19: -99 | AM19: -99 | AN19: -99 | AO19: -99 | AP19: -99 | AQ19: -99 | AR19: -99 | AS19: -99 | AT19: -99 | AU19: -99 | AV19: -99 | AW19: -99 | AX19: -99 | AY19: -99 | AZ19: -99 | BA19: -99 | BB19: -99 | BC19: 5
A20: Dual Antenna | B20: A | C20: 3 | D20: 9 | E20: 4 | F20: 24 | G20: 24 | H20: 24 | I20: 24 | J20: 24 | K20: 24 | L20: 24 | M20: 24 | N20: 24 | O20: 24 | P20: 24 | Q20: 24 | R20: 24 | S20: 24 | T20: 24 | U20: 24 | V20: 24 | W20: 24 | X20: 24 | Y20: 24 | Z20: 24 | AA20: 24 | AB20: 24 | AC20: 24 | AD20: 24 | AE20: 24 | AF20: 24 | AG20: 24 | AH20: 24 | AI20: 24 | AJ20: 24 | AK20: 24 | AL20: 24 | AM20: 24 | AN20: 24 | AO20: 24 | AP20: 24 | AQ20: 24 | AR20: 24 | AS20: 24 | AT20: 24 | AU20: 24 | AV20: 24 | AW20: 24 | AX20: 24 | AY20: 24 | AZ20: 24 | BA20: 24 | BB20: 24 | BC20: 6
A21: Single Antenna | B21: A | C21: 10 | D21: 10 | E21: 4 | F21: 24 | G21: 23 | H21: 23 | I21: 23 | J21: 23 | K21: 23 | L21: 23 | M21: 23 | N21: 23 | O21: 24 | P21: 24 | Q21: 24 | R21: 24 | S21: 24 | T21: 24 | U21: 24 | V21: 24 | W21: -99 | X21: -99 | Y21: -99 | Z21: -99 | AA21: -99 | AB21: -99 | AC21: -99 | AD21: -99 | AE21: -99 | AF21: -99 | AG21: -99 | AH21: -99 | AI21: -99 | AJ21: -99 | AK21: -99 | AL21: -99 | AM21: -99 | AN21: -99 | AO21: -99 | AP21: -99 | AQ21: -99 | AR21: -99 | AS21: -99 | AT21: -99 | AU21: -99 | AV21: -99 | AW21: -99 | AX21: -99 | AY21: -99 | AZ21: -99 | BA21: -99 | BB21: -99 | BC21: 7
A22: Dual Antenna | B22: A | C22: 10 | D22: 10 | E22: 4 | F22: 24 | G22: 22 | H22: 22 | I22: 22 | J22: 22 | K22: 22 | L22: 22 | M22: 22 | N22: 22 | O22: 21 | P22: 21 | Q22: 21 | R22: 21 | S22: 21 | T22: 21 | U22: 21 | V22: 21 | W22: 24 | X22: 24 | Y22: 24 | Z22: 24 | AA22: 24 | AB22: 24 | AC22: 24 | AD22: 24 | AE22: 18 | AF22: 18 | AG22: 18 | AH22: 18 | AI22: 18 | AJ22: 18 | AK22: 18 | AL22: 18 | AM22: 18 | AN22: 18 | AO22: 18 | AP22: 18 | AQ22: 18 | AR22: 18 | AS22: 18 | AT22: 18 | AU22: 21 | AV22: 21 | AW22: 21 | AX22: 21 | AY22: 21 | AZ22: 21 | BA22: 21 | BB22: 21 | BC22: 8
A23: Single Antenna | B23: A | C23: 11 | D23: 11 | E23: 4 | F23: 24 | G23: 20 | H23: 20 | I23: 20 | J23: 20 | K23: 20 | L23: 20 | M23: 20 | N23: 20 | O23: 19 | P23: 19 | Q23: 19 | R23: 19 | S23: 19 | T23: 19 | U23: 19 | V23: 19 | W23: -99 | X23: -99 | Y23: -99 | Z23: -99 | AA23: -99 | AB23: -99 | AC23: -99 | AD23: -99 | AE23: -99 | AF23: -99 | AG23: -99 | AH23: -99 | AI23: -99 | AJ23: -99 | AK23: -99 | AL23: -99 | AM23: -99 | AN23: -99 | AO23: -99 | AP23: -99 | AQ23: -99 | AR23: -99 | AS23: -99 | AT23: -99 | AU23: -99 | AV23: -99 | AW23: -99 | AX23: -99 | AY23: -99 | AZ23: -99 | BA23: -99 | BB23: -99 | BC23: 9
A24: Dual Antenna | B24: A | C24: 11 | D24: 11 | E24: 4 | F24: 24 | G24: 19 | H24: 19 | I24: 19 | J24: 19 | K24: 19 | L24: 19 | M24: 19 | N24: 19 | O24: 17 | P24: 17 | Q24: 17 | R24: 17 | S24: 17 | T24: 17 | U24: 17 | V24: 17 | W24: 17 | X24: 17 | Y24: 17 | Z24: 17 | AA24: 17 | AB24: 17 | AC24: 17 | AD24: 17 | AE24: 14 | AF24: 14 | AG24: 14 | AH24: 14 | AI24: 14 | AJ24: 14 | AK24: 14 | AL24: 14 | AM24: 15 | AN24: 15 | AO24: 15 | AP24: 15 | AQ24: 15 | AR24: 15 | AS24: 15 | AT24: 15 | AU24: 17 | AV24: 17 | AW24: 17 | AX24: 17 | AY24: 17 | AZ24: 17 | BA24: 17 | BB24: 17 | BC24: 10
A25: Single Antenna | B25: A | C25: 12 | D25: 13 | E25: 4 | F25: -99 | G25: -99 | H25: -99 | I25: -99 | J25: -99 | K25: -99 | L25: -99 | M25: -99 | N25: -99 | O25: -99 | P25: -99 | Q25: -99 | R25: -99 | S25: -99 | T25: -99 | U25: -99 | V25: -99 | W25: -99 | X25: -99 | Y25: -99 | Z25: -99 | AA25: -99 | AB25: -99 | AC25: -99 | AD25: -99 | AE25: -99 | AF25: -99 | AG25: -99 | AH25: -99 | AI25: -99 | AJ25: -99 | AK25: -99 | AL25: -99 | AM25: -99 | AN25: -99 | AO25: -99 | AP25: -99 | AQ25: -99 | AR25: -99 | AS25: -99 | AT25: -99 | AU25: -99 | AV25: -99 | AW25: -99 | AX25: -99 | AY25: -99 | AZ25: -99 | BA25: -99 | BB25: -99 | BC25: 11
A26: Dual Antenna | B26: A | C26: 12 | D26: 13 | E26: 4 | F26: -99 | G26: -99 | H26: -99 | I26: -99 | J26: -99 | K26: -99 | L26: -99 | M26: -99 | N26: -99 | O26: -99 | P26: -99 | Q26: -99 | R26: -99 | S26: -99 | T26: -99 | U26: -99 | V26: -99 | W26: -99 | X26: -99 | Y26: -99 | Z26: -99 | AA26: -99 | AB26: -99 | AC26: -99 | AD26: -99 | AE26: -99 | AF26: -99 | AG26: -99 | AH26: -99 | AI26: -99 | AJ26: -99 | AK26: -99 | AL26: -99 | AM26: -99 | AN26: -99 | AO26: -99 | AP26: -99 | AQ26: -99 | AR26: -99 | AS26: -99 | AT26: -99 | AU26: -99 | AV26: -99 | AW26: -99 | AX26: -99 | AY26: -99 | AZ26: -99 | BA26: -99 | BB26: -99 | BC26: 12
A27: Single Antenna | B27: A | C27: 1 | D27: 1 | E27: 5 | F27: 24 | G27: 23 | H27: 23 | I27: 23 | J27: 23 | K27: 23 | L27: 23 | M27: 23 | N27: 23 | O27: 22 | P27: 22 | Q27: 22 | R27: 22 | S27: 22 | T27: 22 | U27: 22 | V27: 22 | W27: -99 | X27: -99 | Y27: -99 | Z27: -99 | AA27: -99 | AB27: -99 | AC27: -99 | AD27: -99 | AE27: -99 | AF27: -99 | AG27: -99 | AH27: -99 | AI27: -99 | AJ27: -99 | AK27: -99 | AL27: -99 | AM27: -99 | AN27: -99 | AO27: -99 | AP27: -99 | AQ27: -99 | AR27: -99 | AS27: -99 | AT27: -99 | AU27: -99 | AV27: -99 | AW27: -99 | AX27: -99 | AY27: -99 | AZ27: -99 | BA27: -99 | BB27: -99 | BC27: 13
A28: Dual Antenna | B28: A | C28: 1 | D28: 1 | E28: 5 | F28: 24 | G28: 22 | H28: 22 | I28: 22 | J28: 22 | K28: 22 | L28: 22 | M28: 22 | N28: 22 | O28: 22 | P28: 22 | Q28: 22 | R28: 22 | S28: 22 | T28: 22 | U28: 22 | V28: 22 | W28: 22 | X28: 22 | Y28: 22 | Z28: 22 | AA28: 22 | AB28: 22 | AC28: 22 | AD28: 22 | AE28: 21 | AF28: 21 | AG28: 21 | AH28: 21 | AI28: 21 | AJ28: 21 | AK28: 21 | AL28: 21 | AM28: 18 | AN28: 18 | AO28: 18 | AP28: 18 | AQ28: 18 | AR28: 18 | AS28: 18 | AT28: 18 | AU28: 22 | AV28: 22 | AW28: 22 | AX28: 22 | AY28: 22 | AZ28: 22 | BA28: 22 | BB28: 22 | BC28: 14
A29: Single Antenna | B29: A | C29: 2 | D29: 2 | E29: 5 | F29: 24 | G29: 24 | H29: 24 | I29: 24 | J29: 24 | K29: 24 | L29: 24 | M29: 24 | N29: 24 | O29: 24 | P29: 24 | Q29: 24 | R29: 24 | S29: 24 | T29: 24 | U29: 24 | V29: 24 | W29: -99 | X29: -99 | Y29: -99 | Z29: -99 | AA29: -99 | AB29: -99 | AC29: -99 | AD29: -99 | AE29: -99 | AF29: -99 | AG29: -99 | AH29: -99 | AI29: -99 | AJ29: -99 | AK29: -99 | AL29: -99 | AM29: -99 | AN29: -99 | AO29: -99 | AP29: -99 | AQ29: -99 | AR29: -99 | AS29: -99 | AT29: -99 | AU29: -99 | AV29: -99 | AW29: -99 | AX29: -99 | AY29: -99 | AZ29: -99 | BA29: -99 | BB29: -99 | BC29: 15
A30: Dual Antenna | B30: A | C30: 2 | D30: 2 | E30: 5 | F30: 24 | G30: 24 | H30: 24 | I30: 24 | J30: 24 | K30: 24 | L30: 24 | M30: 24 | N30: 24 | O30: 24 | P30: 24 | Q30: 24 | R30: 24 | S30: 24 | T30: 24 | U30: 24 | V30: 24 | W30: 24 | X30: 24 | Y30: 24 | Z30: 24 | AA30: 24 | AB30: 24 | AC30: 24 | AD30: 24 | AE30: 24 | AF30: 24 | AG30: 24 | AH30: 24 | AI30: 24 | AJ30: 24 | AK30: 24 | AL30: 24 | AM30: 21 | AN30: 21 | AO30: 21 | AP30: 21 | AQ30: 21 | AR30: 21 | AS30: 21 | AT30: 21 | AU30: 24 | AV30: 24 | AW30: 24 | AX30: 24 | AY30: 24 | AZ30: 24 | BA30: 24 | BB30: 24 | BC30: 16
A31: Single Antenna | B31: A | C31: 3 | D31: 9 | E31: 5 | F31: 24 | G31: 24 | H31: 24 | I31: 24 | J31: 24 | K31: 24 | L31: 24 | M31: 24 | N31: 24 | O31: 24 | P31: 24 | Q31: 24 | R31: 24 | S31: 24 | T31: 24 | U31: 24 | V31: 24 | W31: -99 | X31: -99 | Y31: -99 | Z31: -99 | AA31: -99 | AB31: -99 | AC31: -99 | AD31: -99 | AE31: -99 | AF31: -99 | AG31: -99 | AH31: -99 | AI31: -99 | AJ31: -99 | AK31: -99 | AL31: -99 | AM31: -99 | AN31: -99 | AO31: -99 | AP31: -99 | AQ31: -99 | AR31: -99 | AS31: -99 | AT31: -99 | AU31: -99 | AV31: -99 | AW31: -99 | AX31: -99 | AY31: -99 | AZ31: -99 | BA31: -99 | BB31: -99 | BC31: 17
A32: Dual Antenna | B32: A | C32: 3 | D32: 9 | E32: 5 | F32: 24 | G32: 24 | H32: 24 | I32: 24 | J32: 24 | K32: 24 | L32: 24 | M32: 24 | N32: 24 | O32: 24 | P32: 24 | Q32: 24 | R32: 24 | S32: 24 | T32: 24 | U32: 24 | V32: 24 | W32: 24 | X32: 24 | Y32: 24 | Z32: 24 | AA32: 24 | AB32: 24 | AC32: 24 | AD32: 24 | AE32: 24 | AF32: 24 | AG32: 24 | AH32: 24 | AI32: 24 | AJ32: 24 | AK32: 24 | AL32: 24 | AM32: 24 | AN32: 24 | AO32: 24 | AP32: 24 | AQ32: 24 | AR32: 24 | AS32: 24 | AT32: 24 | AU32: 24 | AV32: 24 | AW32: 24 | AX32: 24 | AY32: 24 | AZ32: 24 | BA32: 24 | BB32: 24 | BC32: 18
A33: Single Antenna | B33: A | C33: 10 | D33: 10 | E33: 5 | F33: 24 | G33: 23 | H33: 23 | I33: 23 | J33: 23 | K33: 23 | L33: 23 | M33: 23 | N33: 23 | O33: 22 | P33: 22 | Q33: 22 | R33: 22 | S33: 22 | T33: 22 | U33: 22 | V33: 22 | W33: -99 | X33: -99 | Y33: -99 | Z33: -99 | AA33: -99 | AB33: -99 | AC33: -99 | AD33: -99 | AE33: -99 | AF33: -99 | AG33: -99 | AH33: -99 | AI33: -99 | AJ33: -99 | AK33: -99 | AL33: -99 | AM33: -99 | AN33: -99 | AO33: -99 | AP33: -99 | AQ33: -99 | AR33: -99 | AS33: -99 | AT33: -99 | AU33: -99 | AV33: -99 | AW33: -99 | AX33: -99 | AY33: -99 | AZ33: -99 | BA33: -99 | BB33: -99 | BC33: 19
A34: Dual Antenna | B34: A | C34: 10 | D34: 10 | E34: 5 | F34: 24 | G34: 20 | H34: 20 | I34: 20 | J34: 20 | K34: 20 | L34: 20 | M34: 20 | N34: 20 | O34: 21 | P34: 21 | Q34: 21 | R34: 21 | S34: 21 | T34: 21 | U34: 21 | V34: 21 | W34: 21 | X34: 21 | Y34: 21 | Z34: 21 | AA34: 21 | AB34: 21 | AC34: 21 | AD34: 21 | AE34: 17 | AF34: 17 | AG34: 17 | AH34: 17 | AI34: 17 | AJ34: 17 | AK34: 17 | AL34: 17 | AM34: 18 | AN34: 18 | AO34: 18 | AP34: 18 | AQ34: 18 | AR34: 18 | AS34: 18 | AT34: 18 | AU34: 21 | AV34: 21 | AW34: 21 | AX34: 21 | AY34: 21 | AZ34: 21 | BA34: 21 | BB34: 21 | BC34: 20
A35: Single Antenna | B35: A | C35: 11 | D35: 11 | E35: 5 | F35: 24 | G35: 19 | H35: 19 | I35: 19 | J35: 19 | K35: 19 | L35: 19 | M35: 19 | N35: 19 | O35: 18 | P35: 18 | Q35: 18 | R35: 18 | S35: 18 | T35: 18 | U35: 18 | V35: 18 | W35: -99 | X35: -99 | Y35: -99 | Z35: -99 | AA35: -99 | AB35: -99 | AC35: -99 | AD35: -99 | AE35: -99 | AF35: -99 | AG35: -99 | AH35: -99 | AI35: -99 | AJ35: -99 | AK35: -99 | AL35: -99 | AM35: -99 | AN35: -99 | AO35: -99 | AP35: -99 | AQ35: -99 | AR35: -99 | AS35: -99 | AT35: -99 | AU35: -99 | AV35: -99 | AW35: -99 | AX35: -99 | AY35: -99 | AZ35: -99 | BA35: -99 | BB35: -99 | BC35: 21
A36: Dual Antenna | B36: A | C36: 11 | D36: 11 | E36: 5 | F36: 24 | G36: 17 | H36: 17 | I36: 17 | J36: 17 | K36: 17 | L36: 17 | M36: 17 | N36: 17 | O36: 17 | P36: 17 | Q36: 17 | R36: 17 | S36: 17 | T36: 17 | U36: 17 | V36: 17 | W36: 17 | X36: 17 | Y36: 17 | Z36: 17 | AA36: 17 | AB36: 17 | AC36: 17 | AD36: 17 | AE36: 14 | AF36: 14 | AG36: 14 | AH36: 14 | AI36: 14 | AJ36: 14 | AK36: 14 | AL36: 14 | AM36: 15 | AN36: 15 | AO36: 15 | AP36: 15 | AQ36: 15 | AR36: 15 | AS36: 15 | AT36: 15 | AU36: 17 | AV36: 17 | AW36: 17 | AX36: 17 | AY36: 17 | AZ36: 17 | BA36: 17 | BB36: 17 | BC36: 22
A37: Single Antenna | B37: A | C37: 12 | D37: 13 | E37: 5 | F37: -99 | G37: -99 | H37: -99 | I37: -99 | J37: -99 | K37: -99 | L37: -99 | M37: -99 | N37: -99 | O37: -99 | P37: -99 | Q37: -99 | R37: -99 | S37: -99 | T37: -99 | U37: -99 | V37: -99 | W37: -99 | X37: -99 | Y37: -99 | Z37: -99 | AA37: -99 | AB37: -99 | AC37: -99 | AD37: -99 | AE37: -99 | AF37: -99 | AG37: -99 | AH37: -99 | AI37: -99 | AJ37: -99 | AK37: -99 | AL37: -99 | AM37: -99 | AN37: -99 | AO37: -99 | AP37: -99 | AQ37: -99 | AR37: -99 | AS37: -99 | AT37: -99 | AU37: -99 | AV37: -99 | AW37: -99 | AX37: -99 | AY37: -99 | AZ37: -99 | BA37: -99 | BB37: -99 | BC37: 23
A38: Dual Antenna | B38: A | C38: 12 | D38: 13 | E38: 5 | F38: -99 | G38: -99 | H38: -99 | I38: -99 | J38: -99 | K38: -99 | L38: -99 | M38: -99 | N38: -99 | O38: -99 | P38: -99 | Q38: -99 | R38: -99 | S38: -99 | T38: -99 | U38: -99 | V38: -99 | W38: -99 | X38: -99 | Y38: -99 | Z38: -99 | AA38: -99 | AB38: -99 | AC38: -99 | AD38: -99 | AE38: -99 | AF38: -99 | AG38: -99 | AH38: -99 | AI38: -99 | AJ38: -99 | AK38: -99 | AL38: -99 | AM38: -99 | AN38: -99 | AO38: -99 | AP38: -99 | AQ38: -99 | AR38: -99 | AS38: -99 | AT38: -99 | AU38: -99 | AV38: -99 | AW38: -99 | AX38: -99 | AY38: -99 | AZ38: -99 | BA38: -99 | BB38: -99 | BC38: 24
A39: Single Antenna | B39: A | C39: 1 | D39: 1 | E39: 6 | F39: 24 | G39: 23 | H39: 23 | I39: 23 | J39: 23 | K39: 23 | L39: 23 | M39: 23 | N39: 23 | O39: 22 | P39: 22 | Q39: 22 | R39: 22 | S39: 22 | T39: 22 | U39: 22 | V39: 22 | W39: -99 | X39: -99 | Y39: -99 | Z39: -99 | AA39: -99 | AB39: -99 | AC39: -99 | AD39: -99 | AE39: -99 | AF39: -99 | AG39: -99 | AH39: -99 | AI39: -99 | AJ39: -99 | AK39: -99 | AL39: -99 | AM39: -99 | AN39: -99 | AO39: -99 | AP39: -99 | AQ39: -99 | AR39: -99 | AS39: -99 | AT39: -99 | AU39: -99 | AV39: -99 | AW39: -99 | AX39: -99 | AY39: -99 | AZ39: -99 | BA39: -99 | BB39: -99 | BC39: 25
A40: Dual Antenna | B40: A | C40: 1 | D40: 1 | E40: 6 | F40: 24 | G40: 21 | H40: 21 | I40: 21 | J40: 21 | K40: 21 | L40: 21 | M40: 21 | N40: 21 | O40: 22 | P40: 22 | Q40: 22 | R40: 22 | S40: 22 | T40: 22 | U40: 22 | V40: 22 | W40: 22 | X40: 22 | Y40: 22 | Z40: 22 | AA40: 22 | AB40: 22 | AC40: 22 | AD40: 22 | AE40: 18 | AF40: 18 | AG40: 18 | AH40: 18 | AI40: 18 | AJ40: 18 | AK40: 18 | AL40: 18 | AM40: 18 | AN40: 18 | AO40: 18 | AP40: 18 | AQ40: 18 | AR40: 18 | AS40: 18 | AT40: 18 | AU40: 22 | AV40: 22 | AW40: 22 | AX40: 22 | AY40: 22 | AZ40: 22 | BA40: 22 | BB40: 22 | BC40: 26
A41: Single Antenna | B41: A | C41: 2 | D41: 2 | E41: 6 | F41: 24 | G41: 24 | H41: 24 | I41: 24 | J41: 24 | K41: 24 | L41: 24 | M41: 24 | N41: 24 | O41: 24 | P41: 24 | Q41: 24 | R41: 24 | S41: 24 | T41: 24 | U41: 24 | V41: 24 | W41: -99 | X41: -99 | Y41: -99 | Z41: -99 | AA41: -99 | AB41: -99 | AC41: -99 | AD41: -99 | AE41: -99 | AF41: -99 | AG41: -99 | AH41: -99 | AI41: -99 | AJ41: -99 | AK41: -99 | AL41: -99 | AM41: -99 | AN41: -99 | AO41: -99 | AP41: -99 | AQ41: -99 | AR41: -99 | AS41: -99 | AT41: -99 | AU41: -99 | AV41: -99 | AW41: -99 | AX41: -99 | AY41: -99 | AZ41: -99 | BA41: -99 | BB41: -99 | BC41: 27
A42: Dual Antenna | B42: A | C42: 2 | D42: 2 | E42: 6 | F42: 24 | G42: 24 | H42: 24 | I42: 24 | J42: 24 | K42: 24 | L42: 24 | M42: 24 | N42: 24 | O42: 24 | P42: 24 | Q42: 24 | R42: 24 | S42: 24 | T42: 24 | U42: 24 | V42: 24 | W42: 24 | X42: 24 | Y42: 24 | Z42: 24 | AA42: 24 | AB42: 24 | AC42: 24 | AD42: 24 | AE42: 21 | AF42: 21 | AG42: 21 | AH42: 21 | AI42: 21 | AJ42: 21 | AK42: 21 | AL42: 21 | AM42: 21 | AN42: 21 | AO42: 21 | AP42: 21 | AQ42: 21 | AR42: 21 | AS42: 21 | AT42: 21 | AU42: 24 | AV42: 24 | AW42: 24 | AX42: 24 | AY42: 24 | AZ42: 24 | BA42: 24 | BB42: 24 | BC42: 28
A43: Single Antenna | B43: A | C43: 3 | D43: 9 | E43: 6 | F43: 24 | G43: 24 | H43: 24 | I43: 24 | J43: 24 | K43: 24 | L43: 24 | M43: 24 | N43: 24 | O43: 24 | P43: 24 | Q43: 24 | R43: 24 | S43: 24 | T43: 24 | U43: 24 | V43: 24 | W43: -99 | X43: -99 | Y43: -99 | Z43: -99 | AA43: -99 | AB43: -99 | AC43: -99 | AD43: -99 | AE43: -99 | AF43: -99 | AG43: -99 | AH43: -99 | AI43: -99 | AJ43: -99 | AK43: -99 | AL43: -99 | AM43: -99 | AN43: -99 | AO43: -99 | AP43: -99 | AQ43: -99 | AR43: -99 | AS43: -99 | AT43: -99 | AU43: -99 | AV43: -99 | AW43: -99 | AX43: -99 | AY43: -99 | AZ43: -99 | BA43: -99 | BB43: -99 | BC43: 29
A44: Dual Antenna | B44: A | C44: 3 | D44: 9 | E44: 6 | F44: 24 | G44: 24 | H44: 24 | I44: 24 | J44: 24 | K44: 24 | L44: 24 | M44: 24 | N44: 24 | O44: 24 | P44: 24 | Q44: 24 | R44: 24 | S44: 24 | T44: 24 | U44: 24 | V44: 24 | W44: 24 | X44: 24 | Y44: 24 | Z44: 24 | AA44: 24 | AB44: 24 | AC44: 24 | AD44: 24 | AE44: 24 | AF44: 24 | AG44: 24 | AH44: 24 | AI44: 24 | AJ44: 24 | AK44: 24 | AL44: 24 | AM44: 24 | AN44: 24 | AO44: 24 | AP44: 24 | AQ44: 24 | AR44: 24 | AS44: 24 | AT44: 24 | AU44: 24 | AV44: 24 | AW44: 24 | AX44: 24 | AY44: 24 | AZ44: 24 | BA44: 24 | BB44: 24 | BC44: 30
A45: Single Antenna | B45: A | C45: 10 | D45: 10 | E45: 6 | F45: 24 | G45: 22 | H45: 22 | I45: 22 | J45: 22 | K45: 22 | L45: 22 | M45: 22 | N45: 22 | O45: 21 | P45: 21 | Q45: 21 | R45: 21 | S45: 21 | T45: 21 | U45: 21 | V45: 21 | W45: -99 | X45: -99 | Y45: -99 | Z45: -99 | AA45: -99 | AB45: -99 | AC45: -99 | AD45: -99 | AE45: -99 | AF45: -99 | AG45: -99 | AH45: -99 | AI45: -99 | AJ45: -99 | AK45: -99 | AL45: -99 | AM45: -99 | AN45: -99 | AO45: -99 | AP45: -99 | AQ45: -99 | AR45: -99 | AS45: -99 | AT45: -99 | AU45: -99 | AV45: -99 | AW45: -99 | AX45: -99 | AY45: -99 | AZ45: -99 | BA45: -99 | BB45: -99 | BC45: 31
A46: Dual Antenna | B46: A | C46: 10 | D46: 10 | E46: 6 | F46: 24 | G46: 19 | H46: 19 | I46: 19 | J46: 19 | K46: 19 | L46: 19 | M46: 19 | N46: 19 | O46: 18 | P46: 18 | Q46: 18 | R46: 18 | S46: 18 | T46: 18 | U46: 18 | V46: 18 | W46: 18 | X46: 18 | Y46: 18 | Z46: 18 | AA46: 18 | AB46: 18 | AC46: 18 | AD46: 18 | AE46: 16 | AF46: 16 | AG46: 16 | AH46: 16 | AI46: 16 | AJ46: 16 | AK46: 16 | AL46: 16 | AM46: 17 | AN46: 17 | AO46: 17 | AP46: 17 | AQ46: 17 | AR46: 17 | AS46: 17 | AT46: 17 | AU46: 18 | AV46: 18 | AW46: 18 | AX46: 18 | AY46: 18 | AZ46: 18 | BA46: 18 | BB46: 18 | BC46: 32
A47: Single Antenna | B47: A | C47: 11 | D47: 11 | E47: 6 | F47: 24 | G47: 19 | H47: 19 | I47: 19 | J47: 19 | K47: 19 | L47: 19 | M47: 19 | N47: 19 | O47: 17 | P47: 17 | Q47: 17 | R47: 17 | S47: 17 | T47: 17 | U47: 17 | V47: 17 | W47: -99 | X47: -99 | Y47: -99 | Z47: -99 | AA47: -99 | AB47: -99 | AC47: -99 | AD47: -99 | AE47: -99 | AF47: -99 | AG47: -99 | AH47: -99 | AI47: -99 | AJ47: -99 | AK47: -99 | AL47: -99 | AM47: -99 | AN47: -99 | AO47: -99 | AP47: -99 | AQ47: -99 | AR47: -99 | AS47: -99 | AT47: -99 | AU47: -99 | AV47: -99 | AW47: -99 | AX47: -99 | AY47: -99 | AZ47: -99 | BA47: -99 | BB47: -99 | BC47: 33
A48: Dual Antenna | B48: A | C48: 11 | D48: 11 | E48: 6 | F48: 24 | G48: 16 | H48: 16 | I48: 16 | J48: 16 | K48: 16 | L48: 16 | M48: 16 | N48: 16 | O48: 15 | P48: 15 | Q48: 15 | R48: 15 | S48: 15 | T48: 15 | U48: 15 | V48: 15 | W48: 15 | X48: 15 | Y48: 15 | Z48: 15 | AA48: 15 | AB48: 15 | AC48: 15 | AD48: 15 | AE48: 14 | AF48: 14 | AG48: 14 | AH48: 14 | AI48: 14 | AJ48: 14 | AK48: 14 | AL48: 14 | AM48: 14 | AN48: 14 | AO48: 14 | AP48: 14 | AQ48: 14 | AR48: 14 | AS48: 14 | AT48: 14 | AU48: 15 | AV48: 15 | AW48: 15 | AX48: 15 | AY48: 15 | AZ48: 15 | BA48: 15 | BB48: 15 | BC48: 34
A49: Single Antenna | B49: A | C49: 12 | D49: 13 | E49: 6 | F49: -99 | G49: -99 | H49: -99 | I49: -99 | J49: -99 | K49: -99 | L49: -99 | M49: -99 | N49: -99 | O49: -99 | P49: -99 | Q49: -99 | R49: -99 | S49: -99 | T49: -99 | U49: -99 | V49: -99 | W49: -99 | X49: -99 | Y49: -99 | Z49: -99 | AA49: -99 | AB49: -99 | AC49: -99 | AD49: -99 | AE49: -99 | AF49: -99 | AG49: -99 | AH49: -99 | AI49: -99 | AJ49: -99 | AK49: -99 | AL49: -99 | AM49: -99 | AN49: -99 | AO49: -99 | AP49: -99 | AQ49: -99 | AR49: -99 | AS49: -99 | AT49: -99 | AU49: -99 | AV49: -99 | AW49: -99 | AX49: -99 | AY49: -99 | AZ49: -99 | BA49: -99 | BB49: -99 | BC49: 35
A50: Dual Antenna | B50: A | C50: 12 | D50: 13 | E50: 6 | F50: -99 | G50: -99 | H50: -99 | I50: -99 | J50: -99 | K50: -99 | L50: -99 | M50: -99 | N50: -99 | O50: -99 | P50: -99 | Q50: -99 | R50: -99 | S50: -99 | T50: -99 | U50: -99 | V50: -99 | W50: -99 | X50: -99 | Y50: -99 | Z50: -99 | AA50: -99 | AB50: -99 | AC50: -99 | AD50: -99 | AE50: -99 | AF50: -99 | AG50: -99 | AH50: -99 | AI50: -99 | AJ50: -99 | AK50: -99 | AL50: -99 | AM50: -99 | AN50: -99 | AO50: -99 | AP50: -99 | AQ50: -99 | AR50: -99 | AS50: -99 | AT50: -99 | AU50: -99 | AV50: -99 | AW50: -99 | AX50: -99 | AY50: -99 | AZ50: -99 | BA50: -99 | BB50: -99 | BC50: 36
A51: Single Antenna | B51: A | C51: 1 | D51: 1 | E51: 8 | F51: 24 | G51: 22 | H51: 22 | I51: 22 | J51: 22 | K51: 22 | L51: 22 | M51: 22 | N51: 22 | O51: 22 | P51: 22 | Q51: 22 | R51: 22 | S51: 22 | T51: 22 | U51: 22 | V51: 22 | W51: -99 | X51: -99 | Y51: -99 | Z51: -99 | AA51: -99 | AB51: -99 | AC51: -99 | AD51: -99 | AE51: -99 | AF51: -99 | AG51: -99 | AH51: -99 | AI51: -99 | AJ51: -99 | AK51: -99 | AL51: -99 | AM51: -99 | AN51: -99 | AO51: -99 | AP51: -99 | AQ51: -99 | AR51: -99 | AS51: -99 | AT51: -99 | AU51: -99 | AV51: -99 | AW51: -99 | AX51: -99 | AY51: -99 | AZ51: -99 | BA51: -99 | BB51: -99 | BC51: 37
A52: Dual Antenna | B52: A | C52: 1 | D52: 1 | E52: 8 | F52: 24 | G52: 21 | H52: 21 | I52: 21 | J52: 21 | K52: 21 | L52: 21 | M52: 21 | N52: 21 | O52: 18 | P52: 18 | Q52: 18 | R52: 18 | S52: 18 | T52: 18 | U52: 18 | V52: 18 | W52: 18 | X52: 18 | Y52: 18 | Z52: 18 | AA52: 18 | AB52: 18 | AC52: 18 | AD52: 18 | AE52: 16 | AF52: 16 | AG52: 16 | AH52: 16 | AI52: 16 | AJ52: 16 | AK52: 16 | AL52: 16 | AM52: 16 | AN52: 16 | AO52: 16 | AP52: 16 | AQ52: 16 | AR52: 16 | AS52: 16 | AT52: 16 | AU52: 18 | AV52: 18 | AW52: 18 | AX52: 18 | AY52: 18 | AZ52: 18 | BA52: 18 | BB52: 18 | BC52: 38
A53: Single Antenna | B53: A | C53: 2 | D53: 2 | E53: 8 | F53: 24 | G53: 24 | H53: 24 | I53: 24 | J53: 24 | K53: 24 | L53: 24 | M53: 24 | N53: 24 | O53: 24 | P53: 24 | Q53: 24 | R53: 24 | S53: 24 | T53: 24 | U53: 24 | V53: 24 | W53: -99 | X53: -99 | Y53: -99 | Z53: -99 | AA53: -99 | AB53: -99 | AC53: -99 | AD53: -99 | AE53: -99 | AF53: -99 | AG53: -99 | AH53: -99 | AI53: -99 | AJ53: -99 | AK53: -99 | AL53: -99 | AM53: -99 | AN53: -99 | AO53: -99 | AP53: -99 | AQ53: -99 | AR53: -99 | AS53: -99 | AT53: -99 | AU53: -99 | AV53: -99 | AW53: -99 | AX53: -99 | AY53: -99 | AZ53: -99 | BA53: -99 | BB53: -99 | BC53: 39
A54: Dual Antenna | B54: A | C54: 2 | D54: 2 | E54: 8 | F54: 24 | G54: 24 | H54: 24 | I54: 24 | J54: 24 | K54: 24 | L54: 24 | M54: 24 | N54: 24 | O54: 21 | P54: 21 | Q54: 21 | R54: 21 | S54: 21 | T54: 21 | U54: 21 | V54: 21 | W54: 21 | X54: 21 | Y54: 21 | Z54: 21 | AA54: 21 | AB54: 21 | AC54: 21 | AD54: 21 | AE54: 19 | AF54: 19 | AG54: 19 | AH54: 19 | AI54: 19 | AJ54: 19 | AK54: 19 | AL54: 19 | AM54: 19 | AN54: 19 | AO54: 19 | AP54: 19 | AQ54: 19 | AR54: 19 | AS54: 19 | AT54: 19 | AU54: 21 | AV54: 21 | AW54: 21 | AX54: 21 | AY54: 21 | AZ54: 21 | BA54: 21 | BB54: 21 | BC54: 40
A55: Single Antenna | B55: A | C55: 3 | D55: 9 | E55: 8 | F55: 24 | G55: 24 | H55: 24 | I55: 24 | J55: 24 | K55: 24 | L55: 24 | M55: 24 | N55: 24 | O55: 24 | P55: 24 | Q55: 24 | R55: 24 | S55: 24 | T55: 24 | U55: 24 | V55: 24 | W55: -99 | X55: -99 | Y55: -99 | Z55: -99 | AA55: -99 | AB55: -99 | AC55: -99 | AD55: -99 | AE55: -99 | AF55: -99 | AG55: -99 | AH55: -99 | AI55: -99 | AJ55: -99 | AK55: -99 | AL55: -99 | AM55: -99 | AN55: -99 | AO55: -99 | AP55: -99 | AQ55: -99 | AR55: -99 | AS55: -99 | AT55: -99 | AU55: -99 | AV55: -99 | AW55: -99 | AX55: -99 | AY55: -99 | AZ55: -99 | BA55: -99 | BB55: -99 | BC55: 41
A56: Dual Antenna | B56: A | C56: 3 | D56: 9 | E56: 8 | F56: 24 | G56: 24 | H56: 24 | I56: 24 | J56: 24 | K56: 24 | L56: 24 | M56: 24 | N56: 24 | O56: 24 | P56: 24 | Q56: 24 | R56: 24 | S56: 24 | T56: 24 | U56: 24 | V56: 24 | W56: 24 | X56: 24 | Y56: 24 | Z56: 24 | AA56: 24 | AB56: 24 | AC56: 24 | AD56: 24 | AE56: 22 | AF56: 22 | AG56: 22 | AH56: 22 | AI56: 22 | AJ56: 22 | AK56: 22 | AL56: 22 | AM56: 22 | AN56: 22 | AO56: 22 | AP56: 22 | AQ56: 22 | AR56: 22 | AS56: 22 | AT56: 22 | AU56: 24 | AV56: 24 | AW56: 24 | AX56: 24 | AY56: 24 | AZ56: 24 | BA56: 24 | BB56: 24 | BC56: 42
A57: Single Antenna | B57: A | C57: 10 | D57: 10 | E57: 8 | F57: 24 | G57: 21 | H57: 21 | I57: 21 | J57: 21 | K57: 21 | L57: 21 | M57: 21 | N57: 21 | O57: 21 | P57: 21 | Q57: 21 | R57: 21 | S57: 21 | T57: 21 | U57: 21 | V57: 21 | W57: -99 | X57: -99 | Y57: -99 | Z57: -99 | AA57: -99 | AB57: -99 | AC57: -99 | AD57: -99 | AE57: -99 | AF57: -99 | AG57: -99 | AH57: -99 | AI57: -99 | AJ57: -99 | AK57: -99 | AL57: -99 | AM57: -99 | AN57: -99 | AO57: -99 | AP57: -99 | AQ57: -99 | AR57: -99 | AS57: -99 | AT57: -99 | AU57: -99 | AV57: -99 | AW57: -99 | AX57: -99 | AY57: -99 | AZ57: -99 | BA57: -99 | BB57: -99 | BC57: 43
A58: Dual Antenna | B58: A | C58: 10 | D58: 10 | E58: 8 | F58: 24 | G58: 17 | H58: 17 | I58: 17 | J58: 17 | K58: 17 | L58: 17 | M58: 17 | N58: 17 | O58: 18 | P58: 18 | Q58: 18 | R58: 18 | S58: 18 | T58: 18 | U58: 18 | V58: 18 | W58: 18 | X58: 18 | Y58: 18 | Z58: 18 | AA58: 18 | AB58: 18 | AC58: 18 | AD58: 18 | AE58: 13 | AF58: 13 | AG58: 13 | AH58: 13 | AI58: 13 | AJ58: 13 | AK58: 13 | AL58: 13 | AM58: 15 | AN58: 15 | AO58: 15 | AP58: 15 | AQ58: 15 | AR58: 15 | AS58: 15 | AT58: 15 | AU58: 18 | AV58: 18 | AW58: 18 | AX58: 18 | AY58: 18 | AZ58: 18 | BA58: 18 | BB58: 18 | BC58: 44
A59: Single Antenna | B59: A | C59: 11 | D59: 11 | E59: 8 | F59: 24 | G59: 17 | H59: 17 | I59: 17 | J59: 17 | K59: 17 | L59: 17 | M59: 17 | N59: 17 | O59: 16 | P59: 16 | Q59: 16 | R59: 16 | S59: 16 | T59: 16 | U59: 16 | V59: 16 | W59: -99 | X59: -99 | Y59: -99 | Z59: -99 | AA59: -99 | AB59: -99 | AC59: -99 | AD59: -99 | AE59: -99 | AF59: -99 | AG59: -99 | AH59: -99 | AI59: -99 | AJ59: -99 | AK59: -99 | AL59: -99 | AM59: -99 | AN59: -99 | AO59: -99 | AP59: -99 | AQ59: -99 | AR59: -99 | AS59: -99 | AT59: -99 | AU59: -99 | AV59: -99 | AW59: -99 | AX59: -99 | AY59: -99 | AZ59: -99 | BA59: -99 | BB59: -99 | BC59: 45
A60: Dual Antenna | B60: A | C60: 11 | D60: 11 | E60: 8 | F60: 23 | G60: 14 | H60: 14 | I60: 14 | J60: 14 | K60: 14 | L60: 14 | M60: 14 | N60: 14 | O60: 15 | P60: 15 | Q60: 15 | R60: 15 | S60: 15 | T60: 15 | U60: 15 | V60: 15 | W60: 15 | X60: 15 | Y60: 15 | Z60: 15 | AA60: 15 | AB60: 15 | AC60: 15 | AD60: 15 | AE60: 10 | AF60: 10 | AG60: 10 | AH60: 10 | AI60: 10 | AJ60: 10 | AK60: 10 | AL60: 10 | AM60: 12 | AN60: 12 | AO60: 12 | AP60: 12 | AQ60: 12 | AR60: 12 | AS60: 12 | AT60: 12 | AU60: 15 | AV60: 15 | AW60: 15 | AX60: 15 | AY60: 15 | AZ60: 15 | BA60: 15 | BB60: 15 | BC60: 46
A61: Single Antenna | B61: A | C61: 12 | D61: 13 | E61: 8 | F61: -99 | G61: -99 | H61: -99 | I61: -99 | J61: -99 | K61: -99 | L61: -99 | M61: -99 | N61: -99 | O61: -99 | P61: -99 | Q61: -99 | R61: -99 | S61: -99 | T61: -99 | U61: -99 | V61: -99 | W61: -99 | X61: -99 | Y61: -99 | Z61: -99 | AA61: -99 | AB61: -99 | AC61: -99 | AD61: -99 | AE61: -99 | AF61: -99 | AG61: -99 | AH61: -99 | AI61: -99 | AJ61: -99 | AK61: -99 | AL61: -99 | AM61: -99 | AN61: -99 | AO61: -99 | AP61: -99 | AQ61: -99 | AR61: -99 | AS61: -99 | AT61: -99 | AU61: -99 | AV61: -99 | AW61: -99 | AX61: -99 | AY61: -99 | AZ61: -99 | BA61: -99 | BB61: -99 | BC61: 47
A62: Dual Antenna | B62: A | C62: 12 | D62: 13 | E62: 8 | F62: -99 | G62: -99 | H62: -99 | I62: -99 | J62: -99 | K62: -99 | L62: -99 | M62: -99 | N62: -99 | O62: -99 | P62: -99 | Q62: -99 | R62: -99 | S62: -99 | T62: -99 | U62: -99 | V62: -99 | W62: -99 | X62: -99 | Y62: -99 | Z62: -99 | AA62: -99 | AB62: -99 | AC62: -99 | AD62: -99 | AE62: -99 | AF62: -99 | AG62: -99 | AH62: -99 | AI62: -99 | AJ62: -99 | AK62: -99 | AL62: -99 | AM62: -99 | AN62: -99 | AO62: -99 | AP62: -99 | AQ62: -99 | AR62: -99 | AS62: -99 | AT62: -99 | AU62: -99 | AV62: -99 | AW62: -99 | AX62: -99 | AY62: -99 | AZ62: -99 | BA62: -99 | BB62: -99 | BC62: 48
A63: Single Antenna | B63: A | C63: 1 | D63: 1 | E63: 13 | F63: 23 | G63: 18 | H63: 18 | I63: 18 | J63: 18 | K63: 18 | L63: 18 | M63: 18 | N63: 18 | O63: 18 | P63: 18 | Q63: 18 | R63: 18 | S63: 18 | T63: 18 | U63: 18 | V63: 18 | W63: -99 | X63: -99 | Y63: -99 | Z63: -99 | AA63: -99 | AB63: -99 | AC63: -99 | AD63: -99 | AE63: -99 | AF63: -99 | AG63: -99 | AH63: -99 | AI63: -99 | AJ63: -99 | AK63: -99 | AL63: -99 | AM63: -99 | AN63: -99 | AO63: -99 | AP63: -99 | AQ63: -99 | AR63: -99 | AS63: -99 | AT63: -99 | AU63: -99 | AV63: -99 | AW63: -99 | AX63: -99 | AY63: -99 | AZ63: -99 | BA63: -99 | BB63: -99 | BC63: 49
A64: Dual Antenna | B64: A | C64: 1 | D64: 1 | E64: 13 | F64: 21 | G64: 16 | H64: 16 | I64: 16 | J64: 16 | K64: 16 | L64: 16 | M64: 16 | N64: 16 | O64: 16 | P64: 16 | Q64: 16 | R64: 16 | S64: 16 | T64: 16 | U64: 16 | V64: 16 | W64: 16 | X64: 16 | Y64: 16 | Z64: 16 | AA64: 16 | AB64: 16 | AC64: 16 | AD64: 16 | AE64: 16 | AF64: 16 | AG64: 16 | AH64: 16 | AI64: 16 | AJ64: 16 | AK64: 16 | AL64: 16 | AM64: 16 | AN64: 16 | AO64: 16 | AP64: 16 | AQ64: 16 | AR64: 16 | AS64: 16 | AT64: 16 | AU64: 16 | AV64: 16 | AW64: 16 | AX64: 16 | AY64: 16 | AZ64: 16 | BA64: 16 | BB64: 16 | BC64: 50
A65: Single Antenna | B65: A | C65: 2 | D65: 2 | E65: 13 | F65: 22 | G65: 21 | H65: 21 | I65: 21 | J65: 21 | K65: 21 | L65: 21 | M65: 21 | N65: 21 | O65: 21 | P65: 21 | Q65: 21 | R65: 21 | S65: 21 | T65: 21 | U65: 21 | V65: 21 | W65: -99 | X65: -99 | Y65: -99 | Z65: -99 | AA65: -99 | AB65: -99 | AC65: -99 | AD65: -99 | AE65: -99 | AF65: -99 | AG65: -99 | AH65: -99 | AI65: -99 | AJ65: -99 | AK65: -99 | AL65: -99 | AM65: -99 | AN65: -99 | AO65: -99 | AP65: -99 | AQ65: -99 | AR65: -99 | AS65: -99 | AT65: -99 | AU65: -99 | AV65: -99 | AW65: -99 | AX65: -99 | AY65: -99 | AZ65: -99 | BA65: -99 | BB65: -99 | BC65: 51
A66: Dual Antenna | B66: A | C66: 2 | D66: 2 | E66: 13 | F66: 20 | G66: 19 | H66: 19 | I66: 19 | J66: 19 | K66: 19 | L66: 19 | M66: 19 | N66: 19 | O66: 19 | P66: 19 | Q66: 19 | R66: 19 | S66: 19 | T66: 19 | U66: 19 | V66: 19 | W66: 19 | X66: 19 | Y66: 19 | Z66: 19 | AA66: 19 | AB66: 19 | AC66: 19 | AD66: 19 | AE66: 19 | AF66: 19 | AG66: 19 | AH66: 19 | AI66: 19 | AJ66: 19 | AK66: 19 | AL66: 19 | AM66: 19 | AN66: 19 | AO66: 19 | AP66: 19 | AQ66: 19 | AR66: 19 | AS66: 19 | AT66: 19 | AU66: 19 | AV66: 19 | AW66: 19 | AX66: 19 | AY66: 19 | AZ66: 19 | BA66: 19 | BB66: 19 | BC66: 52
A67: Single Antenna | B67: A | C67: 3 | D67: 9 | E67: 13 | F67: 22 | G67: 22 | H67: 22 | I67: 22 | J67: 22 | K67: 22 | L67: 22 | M67: 22 | N67: 22 | O67: 22 | P67: 22 | Q67: 22 | R67: 22 | S67: 22 | T67: 22 | U67: 22 | V67: 22 | W67: -99 | X67: -99 | Y67: -99 | Z67: -99 | AA67: -99 | AB67: -99 | AC67: -99 | AD67: -99 | AE67: -99 | AF67: -99 | AG67: -99 | AH67: -99 | AI67: -99 | AJ67: -99 | AK67: -99 | AL67: -99 | AM67: -99 | AN67: -99 | AO67: -99 | AP67: -99 | AQ67: -99 | AR67: -99 | AS67: -99 | AT67: -99 | AU67: -99 | AV67: -99 | AW67: -99 | AX67: -99 | AY67: -99 | AZ67: -99 | BA67: -99 | BB67: -99 | BC67: 53
A68: Dual Antenna | B68: A | C68: 3 | D68: 9 | E68: 13 | F68: 20 | G68: 20 | H68: 20 | I68: 20 | J68: 20 | K68: 20 | L68: 20 | M68: 20 | N68: 20 | O68: 20 | P68: 20 | Q68: 20 | R68: 20 | S68: 20 | T68: 20 | U68: 20 | V68: 20 | W68: 20 | X68: 20 | Y68: 20 | Z68: 20 | AA68: 20 | AB68: 20 | AC68: 20 | AD68: 20 | AE68: 20 | AF68: 20 | AG68: 20 | AH68: 20 | AI68: 20 | AJ68: 20 | AK68: 20 | AL68: 20 | AM68: 20 | AN68: 20 | AO68: 20 | AP68: 20 | AQ68: 20 | AR68: 20 | AS68: 20 | AT68: 20 | AU68: 20 | AV68: 20 | AW68: 20 | AX68: 20 | AY68: 20 | AZ68: 20 | BA68: 20 | BB68: 20 | BC68: 54
A69: Single Antenna | B69: A | C69: 10 | D69: 10 | E69: 13 | F69: 22 | G69: 16 | H69: 16 | I69: 16 | J69: 16 | K69: 16 | L69: 16 | M69: 16 | N69: 16 | O69: 15 | P69: 15 | Q69: 15 | R69: 15 | S69: 15 | T69: 15 | U69: 15 | V69: 15 | W69: -99 | X69: -99 | Y69: -99 | Z69: -99 | AA69: -99 | AB69: -99 | AC69: -99 | AD69: -99 | AE69: -99 | AF69: -99 | AG69: -99 | AH69: -99 | AI69: -99 | AJ69: -99 | AK69: -99 | AL69: -99 | AM69: -99 | AN69: -99 | AO69: -99 | AP69: -99 | AQ69: -99 | AR69: -99 | AS69: -99 | AT69: -99 | AU69: -99 | AV69: -99 | AW69: -99 | AX69: -99 | AY69: -99 | AZ69: -99 | BA69: -99 | BB69: -99 | BC69: 55
A70: Dual Antenna | B70: A | C70: 10 | D70: 10 | E70: 13 | F70: 20 | G70: 13 | H70: 13 | I70: 13 | J70: 13 | K70: 13 | L70: 13 | M70: 13 | N70: 13 | O70: 14 | P70: 14 | Q70: 14 | R70: 14 | S70: 14 | T70: 14 | U70: 14 | V70: 14 | W70: 14 | X70: 14 | Y70: 14 | Z70: 14 | AA70: 14 | AB70: 14 | AC70: 14 | AD70: 14 | AE70: 13 | AF70: 13 | AG70: 13 | AH70: 13 | AI70: 13 | AJ70: 13 | AK70: 13 | AL70: 13 | AM70: 14 | AN70: 14 | AO70: 14 | AP70: 14 | AQ70: 14 | AR70: 14 | AS70: 14 | AT70: 14 | AU70: 14 | AV70: 14 | AW70: 14 | AX70: 14 | AY70: 14 | AZ70: 14 | BA70: 14 | BB70: 14 | BC70: 56
A71: Single Antenna | B71: A | C71: 11 | D71: 11 | E71: 13 | F71: 22 | G71: 13 | H71: 13 | I71: 13 | J71: 13 | K71: 13 | L71: 13 | M71: 13 | N71: 13 | O71: 12 | P71: 12 | Q71: 12 | R71: 12 | S71: 12 | T71: 12 | U71: 12 | V71: 12 | W71: -99 | X71: -99 | Y71: -99 | Z71: -99 | AA71: -99 | AB71: -99 | AC71: -99 | AD71: -99 | AE71: -99 | AF71: -99 | AG71: -99 | AH71: -99 | AI71: -99 | AJ71: -99 | AK71: -99 | AL71: -99 | AM71: -99 | AN71: -99 | AO71: -99 | AP71: -99 | AQ71: -99 | AR71: -99 | AS71: -99 | AT71: -99 | AU71: -99 | AV71: -99 | AW71: -99 | AX71: -99 | AY71: -99 | AZ71: -99 | BA71: -99 | BB71: -99 | BC71: 57
A72: Dual Antenna | B72: A | C72: 11 | D72: 11 | E72: 13 | F72: 20 | G72: 10 | H72: 10 | I72: 10 | J72: 10 | K72: 10 | L72: 10 | M72: 10 | N72: 10 | O72: 11 | P72: 11 | Q72: 11 | R72: 11 | S72: 11 | T72: 11 | U72: 11 | V72: 11 | W72: 11 | X72: 11 | Y72: 11 | Z72: 11 | AA72: 11 | AB72: 11 | AC72: 11 | AD72: 11 | AE72: 10 | AF72: 10 | AG72: 10 | AH72: 10 | AI72: 10 | AJ72: 10 | AK72: 10 | AL72: 10 | AM72: 11 | AN72: 11 | AO72: 11 | AP72: 11 | AQ72: 11 | AR72: 11 | AS72: 11 | AT72: 11 | AU72: 11 | AV72: 11 | AW72: 11 | AX72: 11 | AY72: 11 | AZ72: 11 | BA72: 11 | BB72: 11 | BC72: 58
A73: Single Antenna | B73: A | C73: 12 | D73: 13 | E73: 13 | F73: -99 | G73: -99 | H73: -99 | I73: -99 | J73: -99 | K73: -99 | L73: -99 | M73: -99 | N73: -99 | O73: -99 | P73: -99 | Q73: -99 | R73: -99 | S73: -99 | T73: -99 | U73: -99 | V73: -99 | W73: -99 | X73: -99 | Y73: -99 | Z73: -99 | AA73: -99 | AB73: -99 | AC73: -99 | AD73: -99 | AE73: -99 | AF73: -99 | AG73: -99 | AH73: -99 | AI73: -99 | AJ73: -99 | AK73: -99 | AL73: -99 | AM73: -99 | AN73: -99 | AO73: -99 | AP73: -99 | AQ73: -99 | AR73: -99 | AS73: -99 | AT73: -99 | AU73: -99 | AV73: -99 | AW73: -99 | AX73: -99 | AY73: -99 | AZ73: -99 | BA73: -99 | BB73: -99 | BC73: 59
A74: Dual Antenna | B74: A | C74: 12 | D74: 13 | E74: 13 | F74: -99 | G74: -99 | H74: -99 | I74: -99 | J74: -99 | K74: -99 | L74: -99 | M74: -99 | N74: -99 | O74: -99 | P74: -99 | Q74: -99 | R74: -99 | S74: -99 | T74: -99 | U74: -99 | V74: -99 | W74: -99 | X74: -99 | Y74: -99 | Z74: -99 | AA74: -99 | AB74: -99 | AC74: -99 | AD74: -99 | AE74: -99 | AF74: -99 | AG74: -99 | AH74: -99 | AI74: -99 | AJ74: -99 | AK74: -99 | AL74: -99 | AM74: -99 | AN74: -99 | AO74: -99 | AP74: -99 | AQ74: -99 | AR74: -99 | AS74: -99 | AT74: -99 | AU74: -99 | AV74: -99 | AW74: -99 | AX74: -99 | AY74: -99 | AZ74: -99 | BA74: -99 | BB74: -99 | BC74: 60
A75: Single Antenna | B75: E | C75: 1 | D75: 13 | E75: 4 | F75: 16 | G75: 16 | H75: 16 | I75: 16 | J75: 16 | K75: 16 | L75: 16 | M75: 16 | N75: 16 | O75: 16 | P75: 16 | Q75: 16 | R75: 16 | S75: 16 | T75: 16 | U75: 16 | V75: 16 | W75: -99 | X75: -99 | Y75: -99 | Z75: -99 | AA75: -99 | AB75: -99 | AC75: -99 | AD75: -99 | AE75: -99 | AF75: -99 | AG75: -99 | AH75: -99 | AI75: -99 | AJ75: -99 | AK75: -99 | AL75: -99 | AM75: -99 | AN75: -99 | AO75: -99 | AP75: -99 | AQ75: -99 | AR75: -99 | AS75: -99 | AT75: -99 | AU75: -99 | AV75: -99 | AW75: -99 | AX75: -99 | AY75: -99 | AZ75: -99 | BA75: -99 | BB75: -99 | BC75: 61
A76: Dual Antenna | B76: E | C76: 1 | D76: 13 | E76: 4 | F76: 13 | G76: 13 | H76: 13 | I76: 13 | J76: 13 | K76: 13 | L76: 13 | M76: 13 | N76: 13 | O76: 13 | P76: 13 | Q76: 13 | R76: 13 | S76: 13 | T76: 13 | U76: 13 | V76: 13 | W76: 13 | X76: 13 | Y76: 13 | Z76: 13 | AA76: 13 | AB76: 13 | AC76: 13 | AD76: 13 | AE76: 10 | AF76: 10 | AG76: 10 | AH76: 10 | AI76: 10 | AJ76: 10 | AK76: 10 | AL76: 10 | AM76: 10 | AN76: 10 | AO76: 10 | AP76: 10 | AQ76: 10 | AR76: 10 | AS76: 10 | AT76: 10 | AU76: 13 | AV76: 13 | AW76: 13 | AX76: 13 | AY76: 13 | AZ76: 13 | BA76: 13 | BB76: 13 | BC76: 62
A77: Single Antenna | B77: E | C77: 1 | D77: 13 | E77: 5 | F77: 15 | G77: 15 | H77: 15 | I77: 15 | J77: 15 | K77: 15 | L77: 15 | M77: 15 | N77: 15 | O77: 15 | P77: 15 | Q77: 15 | R77: 15 | S77: 15 | T77: 15 | U77: 15 | V77: 15 | W77: -99 | X77: -99 | Y77: -99 | Z77: -99 | AA77: -99 | AB77: -99 | AC77: -99 | AD77: -99 | AE77: -99 | AF77: -99 | AG77: -99 | AH77: -99 | AI77: -99 | AJ77: -99 | AK77: -99 | AL77: -99 | AM77: -99 | AN77: -99 | AO77: -99 | AP77: -99 | AQ77: -99 | AR77: -99 | AS77: -99 | AT77: -99 | AU77: -99 | AV77: -99 | AW77: -99 | AX77: -99 | AY77: -99 | AZ77: -99 | BA77: -99 | BB77: -99 | BC77: 63
A78: Dual Antenna | B78: E | C78: 1 | D78: 13 | E78: 5 | F78: 12 | G78: 12 | H78: 12 | I78: 12 | J78: 12 | K78: 12 | L78: 12 | M78: 12 | N78: 12 | O78: 12 | P78: 12 | Q78: 12 | R78: 12 | S78: 12 | T78: 12 | U78: 12 | V78: 12 | W78: 12 | X78: 12 | Y78: 12 | Z78: 12 | AA78: 12 | AB78: 12 | AC78: 12 | AD78: 12 | AE78: 9 | AF78: 9 | AG78: 9 | AH78: 9 | AI78: 9 | AJ78: 9 | AK78: 9 | AL78: 9 | AM78: 9 | AN78: 9 | AO78: 9 | AP78: 9 | AQ78: 9 | AR78: 9 | AS78: 9 | AT78: 9 | AU78: 12 | AV78: 12 | AW78: 12 | AX78: 12 | AY78: 12 | AZ78: 12 | BA78: 12 | BB78: 12 | BC78: 64
A79: Single Antenna | B79: E | C79: 1 | D79: 13 | E79: 6 | F79: 14 | G79: 14 | H79: 14 | I79: 14 | J79: 14 | K79: 14 | L79: 14 | M79: 14 | N79: 14 | O79: 14 | P79: 14 | Q79: 14 | R79: 14 | S79: 14 | T79: 14 | U79: 14 | V79: 14 | W79: -99 | X79: -99 | Y79: -99 | Z79: -99 | AA79: -99 | AB79: -99 | AC79: -99 | AD79: -99 | AE79: -99 | AF79: -99 | AG79: -99 | AH79: -99 | AI79: -99 | AJ79: -99 | AK79: -99 | AL79: -99 | AM79: -99 | AN79: -99 | AO79: -99 | AP79: -99 | AQ79: -99 | AR79: -99 | AS79: -99 | AT79: -99 | AU79: -99 | AV79: -99 | AW79: -99 | AX79: -99 | AY79: -99 | AZ79: -99 | BA79: -99 | BB79: -99 | BC79: 65
A80: Dual Antenna | B80: E | C80: 1 | D80: 13 | E80: 6 | F80: 11 | G80: 11 | H80: 11 | I80: 11 | J80: 11 | K80: 11 | L80: 11 | M80: 11 | N80: 11 | O80: 11 | P80: 11 | Q80: 11 | R80: 11 | S80: 11 | T80: 11 | U80: 11 | V80: 11 | W80: 11 | X80: 11 | Y80: 11 | Z80: 11 | AA80: 11 | AB80: 11 | AC80: 11 | AD80: 11 | AE80: 8 | AF80: 8 | AG80: 8 | AH80: 8 | AI80: 8 | AJ80: 8 | AK80: 8 | AL80: 8 | AM80: 8 | AN80: 8 | AO80: 8 | AP80: 8 | AQ80: 8 | AR80: 8 | AS80: 8 | AT80: 8 | AU80: 11 | AV80: 11 | AW80: 11 | AX80: 11 | AY80: 11 | AZ80: 11 | BA80: 11 | BB80: 11 | BC80: 66
A81: Single Antenna | B81: E | C81: 1 | D81: 13 | E81: 8 | F81: 12 | G81: 12 | H81: 12 | I81: 12 | J81: 12 | K81: 12 | L81: 12 | M81: 12 | N81: 12 | O81: 12 | P81: 12 | Q81: 12 | R81: 12 | S81: 12 | T81: 12 | U81: 12 | V81: 12 | W81: -99 | X81: -99 | Y81: -99 | Z81: -99 | AA81: -99 | AB81: -99 | AC81: -99 | AD81: -99 | AE81: -99 | AF81: -99 | AG81: -99 | AH81: -99 | AI81: -99 | AJ81: -99 | AK81: -99 | AL81: -99 | AM81: -99 | AN81: -99 | AO81: -99 | AP81: -99 | AQ81: -99 | AR81: -99 | AS81: -99 | AT81: -99 | AU81: -99 | AV81: -99 | AW81: -99 | AX81: -99 | AY81: -99 | AZ81: -99 | BA81: -99 | BB81: -99 | BC81: 67
A82: Dual Antenna | B82: E | C82: 1 | D82: 13 | E82: 8 | F82: 9 | G82: 9 | H82: 9 | I82: 9 | J82: 9 | K82: 9 | L82: 9 | M82: 9 | N82: 9 | O82: 9 | P82: 9 | Q82: 9 | R82: 9 | S82: 9 | T82: 9 | U82: 9 | V82: 9 | W82: 9 | X82: 9 | Y82: 9 | Z82: 9 | AA82: 9 | AB82: 9 | AC82: 9 | AD82: 9 | AE82: 6 | AF82: 6 | AG82: 6 | AH82: 6 | AI82: 6 | AJ82: 6 | AK82: 6 | AL82: 6 | AM82: 6 | AN82: 6 | AO82: 6 | AP82: 6 | AQ82: 6 | AR82: 6 | AS82: 6 | AT82: 6 | AU82: 9 | AV82: 9 | AW82: 9 | AX82: 9 | AY82: 9 | AZ82: 9 | BA82: 9 | BB82: 9 | BC82: 68
A83: Single Antenna | B83: E | C83: 1 | D83: 13 | E83: 13 | F83: 7 | G83: 7 | H83: 7 | I83: 7 | J83: 7 | K83: 7 | L83: 7 | M83: 7 | N83: 7 | O83: 7 | P83: 7 | Q83: 7 | R83: 7 | S83: 7 | T83: 7 | U83: 7 | V83: 7 | W83: -99 | X83: -99 | Y83: -99 | Z83: -99 | AA83: -99 | AB83: -99 | AC83: -99 | AD83: -99 | AE83: -99 | AF83: -99 | AG83: -99 | AH83: -99 | AI83: -99 | AJ83: -99 | AK83: -99 | AL83: -99 | AM83: -99 | AN83: -99 | AO83: -99 | AP83: -99 | AQ83: -99 | AR83: -99 | AS83: -99 | AT83: -99 | AU83: -99 | AV83: -99 | AW83: -99 | AX83: -99 | AY83: -99 | AZ83: -99 | BA83: -99 | BB83: -99 | BC83: 69
A84: Dual Antenna | B84: E | C84: 1 | D84: 13 | E84: 13 | F84: 4 | G84: 4 | H84: 4 | I84: 4 | J84: 4 | K84: 4 | L84: 4 | M84: 4 | N84: 4 | O84: 4 | P84: 4 | Q84: 4 | R84: 4 | S84: 4 | T84: 4 | U84: 4 | V84: 4 | W84: 4 | X84: 4 | Y84: 4 | Z84: 4 | AA84: 4 | AB84: 4 | AC84: 4 | AD84: 4 | AE84: 4 | AF84: 4 | AG84: 4 | AH84: 4 | AI84: 4 | AJ84: 4 | AK84: 4 | AL84: 4 | AM84: 4 | AN84: 4 | AO84: 4 | AP84: 4 | AQ84: 4 | AR84: 4 | AS84: 4 | AT84: 4 | AU84: 4 | AV84: 4 | AW84: 4 | AX84: 4 | AY84: 4 | AZ84: 4 | BA84: 4 | BB84: 4 | BC84: 70
A85: Single Antenna | B85: F | C85: 1 | D85: 13 | E85: 4 | F85: 20 | G85: 20 | H85: 20 | I85: 20 | J85: 20 | K85: 20 | L85: 20 | M85: 20 | N85: 20 | O85: 20 | P85: 20 | Q85: 20 | R85: 20 | S85: 20 | T85: 20 | U85: 20 | V85: 20 | W85: -99 | X85: -99 | Y85: -99 | Z85: -99 | AA85: -99 | AB85: -99 | AC85: -99 | AD85: -99 | AE85: -99 | AF85: -99 | AG85: -99 | AH85: -99 | AI85: -99 | AJ85: -99 | AK85: -99 | AL85: -99 | AM85: -99 | AN85: -99 | AO85: -99 | AP85: -99 | AQ85: -99 | AR85: -99 | AS85: -99 | AT85: -99 | AU85: -99 | AV85: -99 | AW85: -99 | AX85: -99 | AY85: -99 | AZ85: -99 | BA85: -99 | BB85: -99 | BC85: 71
A86: Dual Antenna | B86: F | C86: 1 | D86: 13 | E86: 4 | F86: 17 | G86: 17 | H86: 17 | I86: 17 | J86: 17 | K86: 17 | L86: 17 | M86: 17 | N86: 17 | O86: 17 | P86: 17 | Q86: 17 | R86: 17 | S86: 17 | T86: 17 | U86: 17 | V86: 17 | W86: 17 | X86: 17 | Y86: 17 | Z86: 17 | AA86: 17 | AB86: 17 | AC86: 17 | AD86: 17 | AE86: 17 | AF86: 17 | AG86: 17 | AH86: 17 | AI86: 17 | AJ86: 17 | AK86: 17 | AL86: 17 | AM86: 17 | AN86: 17 | AO86: 17 | AP86: 17 | AQ86: 17 | AR86: 17 | AS86: 17 | AT86: 17 | AU86: 17 | AV86: 17 | AW86: 17 | AX86: 17 | AY86: 17 | AZ86: 17 | BA86: 17 | BB86: 17 | BC86: 72
A87: Single Antenna | B87: F | C87: 1 | D87: 13 | E87: 5 | F87: 20 | G87: 20 | H87: 20 | I87: 20 | J87: 20 | K87: 20 | L87: 20 | M87: 20 | N87: 20 | O87: 20 | P87: 20 | Q87: 20 | R87: 20 | S87: 20 | T87: 20 | U87: 20 | V87: 20 | W87: -99 | X87: -99 | Y87: -99 | Z87: -99 | AA87: -99 | AB87: -99 | AC87: -99 | AD87: -99 | AE87: -99 | AF87: -99 | AG87: -99 | AH87: -99 | AI87: -99 | AJ87: -99 | AK87: -99 | AL87: -99 | AM87: -99 | AN87: -99 | AO87: -99 | AP87: -99 | AQ87: -99 | AR87: -99 | AS87: -99 | AT87: -99 | AU87: -99 | AV87: -99 | AW87: -99 | AX87: -99 | AY87: -99 | AZ87: -99 | BA87: -99 | BB87: -99 | BC87: 73
A88: Dual Antenna | B88: F | C88: 1 | D88: 13 | E88: 5 | F88: 17 | G88: 17 | H88: 17 | I88: 17 | J88: 17 | K88: 17 | L88: 17 | M88: 17 | N88: 17 | O88: 17 | P88: 17 | Q88: 17 | R88: 17 | S88: 17 | T88: 17 | U88: 17 | V88: 17 | W88: 17 | X88: 17 | Y88: 17 | Z88: 17 | AA88: 17 | AB88: 17 | AC88: 17 | AD88: 17 | AE88: 17 | AF88: 17 | AG88: 17 | AH88: 17 | AI88: 17 | AJ88: 17 | AK88: 17 | AL88: 17 | AM88: 17 | AN88: 17 | AO88: 17 | AP88: 17 | AQ88: 17 | AR88: 17 | AS88: 17 | AT88: 17 | AU88: 17 | AV88: 17 | AW88: 17 | AX88: 17 | AY88: 17 | AZ88: 17 | BA88: 17 | BB88: 17 | BC88: 74
A89: Single Antenna | B89: F | C89: 1 | D89: 13 | E89: 6 | F89: 20 | G89: 20 | H89: 20 | I89: 20 | J89: 20 | K89: 20 | L89: 20 | M89: 20 | N89: 20 | O89: 20 | P89: 20 | Q89: 20 | R89: 20 | S89: 20 | T89: 20 | U89: 20 | V89: 20 | W89: -99 | X89: -99 | Y89: -99 | Z89: -99 | AA89: -99 | AB89: -99 | AC89: -99 | AD89: -99 | AE89: -99 | AF89: -99 | AG89: -99 | AH89: -99 | AI89: -99 | AJ89: -99 | AK89: -99 | AL89: -99 | AM89: -99 | AN89: -99 | AO89: -99 | AP89: -99 | AQ89: -99 | AR89: -99 | AS89: -99 | AT89: -99 | AU89: -99 | AV89: -99 | AW89: -99 | AX89: -99 | AY89: -99 | AZ89: -99 | BA89: -99 | BB89: -99 | BC89: 75
A90: Dual Antenna | B90: F | C90: 1 | D90: 13 | E90: 6 | F90: 17 | G90: 17 | H90: 17 | I90: 17 | J90: 17 | K90: 17 | L90: 17 | M90: 17 | N90: 17 | O90: 17 | P90: 17 | Q90: 17 | R90: 17 | S90: 17 | T90: 17 | U90: 17 | V90: 17 | W90: 17 | X90: 17 | Y90: 17 | Z90: 17 | AA90: 17 | AB90: 17 | AC90: 17 | AD90: 17 | AE90: 17 | AF90: 17 | AG90: 17 | AH90: 17 | AI90: 17 | AJ90: 17 | AK90: 17 | AL90: 17 | AM90: 17 | AN90: 17 | AO90: 17 | AP90: 17 | AQ90: 17 | AR90: 17 | AS90: 17 | AT90: 17 | AU90: 17 | AV90: 17 | AW90: 17 | AX90: 17 | AY90: 17 | AZ90: 17 | BA90: 17 | BB90: 17 | BC90: 76
A91: Single Antenna | B91: F | C91: 1 | D91: 13 | E91: 8 | F91: 20 | G91: 20 | H91: 20 | I91: 20 | J91: 20 | K91: 20 | L91: 20 | M91: 20 | N91: 20 | O91: 20 | P91: 20 | Q91: 20 | R91: 20 | S91: 20 | T91: 20 | U91: 20 | V91: 20 | W91: -99 | X91: -99 | Y91: -99 | Z91: -99 | AA91: -99 | AB91: -99 | AC91: -99 | AD91: -99 | AE91: -99 | AF91: -99 | AG91: -99 | AH91: -99 | AI91: -99 | AJ91: -99 | AK91: -99 | AL91: -99 | AM91: -99 | AN91: -99 | AO91: -99 | AP91: -99 | AQ91: -99 | AR91: -99 | AS91: -99 | AT91: -99 | AU91: -99 | AV91: -99 | AW91: -99 | AX91: -99 | AY91: -99 | AZ91: -99 | BA91: -99 | BB91: -99 | BC91: 77
A92: Dual Antenna | B92: F | C92: 1 | D92: 13 | E92: 8 | F92: 17 | G92: 17 | H92: 17 | I92: 17 | J92: 17 | K92: 17 | L92: 17 | M92: 17 | N92: 17 | O92: 17 | P92: 17 | Q92: 17 | R92: 17 | S92: 17 | T92: 17 | U92: 17 | V92: 17 | W92: 17 | X92: 17 | Y92: 17 | Z92: 17 | AA92: 17 | AB92: 17 | AC92: 17 | AD92: 17 | AE92: 17 | AF92: 17 | AG92: 17 | AH92: 17 | AI92: 17 | AJ92: 17 | AK92: 17 | AL92: 17 | AM92: 17 | AN92: 17 | AO92: 17 | AP92: 17 | AQ92: 17 | AR92: 17 | AS92: 17 | AT92: 17 | AU92: 17 | AV92: 17 | AW92: 17 | AX92: 17 | AY92: 17 | AZ92: 17 | BA92: 17 | BB92: 17 | BC92: 78
A93: Single Antenna | B93: F | C93: 1 | D93: 13 | E93: 13 | F93: 20 | G93: 20 | H93: 20 | I93: 20 | J93: 20 | K93: 20 | L93: 20 | M93: 20 | N93: 20 | O93: 20 | P93: 20 | Q93: 20 | R93: 20 | S93: 20 | T93: 20 | U93: 20 | V93: 20 | W93: -99 | X93: -99 | Y93: -99 | Z93: -99 | AA93: -99 | AB93: -99 | AC93: -99 | AD93: -99 | AE93: -99 | AF93: -99 | AG93: -99 | AH93: -99 | AI93: -99 | AJ93: -99 | AK93: -99 | AL93: -99 | AM93: -99 | AN93: -99 | AO93: -99 | AP93: -99 | AQ93: -99 | AR93: -99 | AS93: -99 | AT93: -99 | AU93: -99 | AV93: -99 | AW93: -99 | AX93: -99 | AY93: -99 | AZ93: -99 | BA93: -99 | BB93: -99 | BC93: 79
A94: Dual Antenna | B94: F | C94: 1 | D94: 13 | E94: 13 | F94: 17 | G94: 17 | H94: 17 | I94: 17 | J94: 17 | K94: 17 | L94: 17 | M94: 17 | N94: 17 | O94: 17 | P94: 17 | Q94: 17 | R94: 17 | S94: 17 | T94: 17 | U94: 17 | V94: 17 | W94: 17 | X94: 17 | Y94: 17 | Z94: 17 | AA94: 17 | AB94: 17 | AC94: 17 | AD94: 17 | AE94: 17 | AF94: 17 | AG94: 17 | AH94: 17 | AI94: 17 | AJ94: 17 | AK94: 17 | AL94: 17 | AM94: 17 | AN94: 17 | AO94: 17 | AP94: 17 | AQ94: 17 | AR94: 17 | AS94: 17 | AT94: 17 | AU94: 17 | AV94: 17 | AW94: 17 | AX94: 17 | AY94: 17 | AZ94: 17 | BA94: 17 | BB94: 17 | BC94: 80
A95: Single Antenna | B95: K | C95: 1 | D95: 11 | E95: 4 | F95: 20 | G95: 22 | H95: 22 | I95: 22 | J95: 22 | K95: 22 | L95: 22 | M95: 22 | N95: 22 | O95: 22 | P95: 22 | Q95: 22 | R95: 22 | S95: 22 | T95: 22 | U95: 22 | V95: 22 | W95: -99 | X95: -99 | Y95: -99 | Z95: -99 | AA95: -99 | AB95: -99 | AC95: -99 | AD95: -99 | AE95: -99 | AF95: -99 | AG95: -99 | AH95: -99 | AI95: -99 | AJ95: -99 | AK95: -99 | AL95: -99 | AM95: -99 | AN95: -99 | AO95: -99 | AP95: -99 | AQ95: -99 | AR95: -99 | AS95: -99 | AT95: -99 | AU95: -99 | AV95: -99 | AW95: -99 | AX95: -99 | AY95: -99 | AZ95: -99 | BA95: -99 | BB95: -99 | BC95: 81
A96: Dual Antenna | B96: K | C96: 1 | D96: 11 | E96: 4 | F96: 17 | G96: 19 | H96: 19 | I96: 19 | J96: 19 | K96: 19 | L96: 19 | M96: 19 | N96: 19 | O96: 19 | P96: 19 | Q96: 19 | R96: 19 | S96: 19 | T96: 19 | U96: 19 | V96: 19 | W96: 19 | X96: 19 | Y96: 19 | Z96: 19 | AA96: 19 | AB96: 19 | AC96: 19 | AD96: 19 | AE96: 18 | AF96: 18 | AG96: 18 | AH96: 18 | AI96: 18 | AJ96: 18 | AK96: 18 | AL96: 18 | AM96: 18 | AN96: 18 | AO96: 18 | AP96: 18 | AQ96: 18 | AR96: 18 | AS96: 18 | AT96: 18 | AU96: 19 | AV96: 19 | AW96: 19 | AX96: 19 | AY96: 19 | AZ96: 19 | BA96: 19 | BB96: 19 | BC96: 82
A97: Single Antenna | B97: K | C97: 1 | D97: 11 | E97: 5 | F97: 20 | G97: 22 | H97: 22 | I97: 22 | J97: 22 | K97: 22 | L97: 22 | M97: 22 | N97: 22 | O97: 22 | P97: 22 | Q97: 22 | R97: 22 | S97: 22 | T97: 22 | U97: 22 | V97: 22 | W97: -99 | X97: -99 | Y97: -99 | Z97: -99 | AA97: -99 | AB97: -99 | AC97: -99 | AD97: -99 | AE97: -99 | AF97: -99 | AG97: -99 | AH97: -99 | AI97: -99 | AJ97: -99 | AK97: -99 | AL97: -99 | AM97: -99 | AN97: -99 | AO97: -99 | AP97: -99 | AQ97: -99 | AR97: -99 | AS97: -99 | AT97: -99 | AU97: -99 | AV97: -99 | AW97: -99 | AX97: -99 | AY97: -99 | AZ97: -99 | BA97: -99 | BB97: -99 | BC97: 83
A98: Dual Antenna | B98: K | C98: 1 | D98: 11 | E98: 5 | F98: 17 | G98: 19 | H98: 19 | I98: 19 | J98: 19 | K98: 19 | L98: 19 | M98: 19 | N98: 19 | O98: 19 | P98: 19 | Q98: 19 | R98: 19 | S98: 19 | T98: 19 | U98: 19 | V98: 19 | W98: 19 | X98: 19 | Y98: 19 | Z98: 19 | AA98: 19 | AB98: 19 | AC98: 19 | AD98: 19 | AE98: 17 | AF98: 17 | AG98: 17 | AH98: 17 | AI98: 17 | AJ98: 17 | AK98: 17 | AL98: 17 | AM98: 17 | AN98: 17 | AO98: 17 | AP98: 17 | AQ98: 17 | AR98: 17 | AS98: 17 | AT98: 17 | AU98: 19 | AV98: 19 | AW98: 19 | AX98: 19 | AY98: 19 | AZ98: 19 | BA98: 19 | BB98: 19 | BC98: 84
A99: Single Antenna | B99: K | C99: 1 | D99: 11 | E99: 6 | F99: 20 | G99: 22 | H99: 22 | I99: 22 | J99: 22 | K99: 22 | L99: 22 | M99: 22 | N99: 22 | O99: 22 | P99: 22 | Q99: 22 | R99: 22 | S99: 22 | T99: 22 | U99: 22 | V99: 22 | W99: -99 | X99: -99 | Y99: -99 | Z99: -99 | AA99: -99 | AB99: -99 | AC99: -99 | AD99: -99 | AE99: -99 | AF99: -99 | AG99: -99 | AH99: -99 | AI99: -99 | AJ99: -99 | AK99: -99 | AL99: -99 | AM99: -99 | AN99: -99 | AO99: -99 | AP99: -99 | AQ99: -99 | AR99: -99 | AS99: -99 | AT99: -99 | AU99: -99 | AV99: -99 | AW99: -99 | AX99: -99 | AY99: -99 | AZ99: -99 | BA99: -99 | BB99: -99 | BC99: 85
A100: Dual Antenna | B100: K | C100: 1 | D100: 11 | E100: 6 | F100: 17 | G100: 19 | H100: 19 | I100: 19 | J100: 19 | K100: 19 | L100: 19 | M100: 19 | N100: 19 | O100: 19 | P100: 19 | Q100: 19 | R100: 19 | S100: 19 | T100: 19 | U100: 19 | V100: 19 | W100: 19 | X100: 19 | Y100: 19 | Z100: 19 | AA100: 19 | AB100: 19 | AC100: 19 | AD100: 19 | AE100: 16 | AF100: 16 | AG100: 16 | AH100: 16 | AI100: 16 | AJ100: 16 | AK100: 16 | AL100: 16 | AM100: 16 | AN100: 16 | AO100: 16 | AP100: 16 | AQ100: 16 | AR100: 16 | AS100: 16 | AT100: 16 | AU100: 19 | AV100: 19 | AW100: 19 | AX100: 19 | AY100: 19 | AZ100: 19 | BA100: 19 | BB100: 19 | BC100: 86
A101: Single Antenna | B101: K | C101: 1 | D101: 11 | E101: 8 | F101: 18 | G101: 20 | H101: 20 | I101: 20 | J101: 20 | K101: 20 | L101: 20 | M101: 20 | N101: 20 | O101: 20 | P101: 20 | Q101: 20 | R101: 20 | S101: 20 | T101: 20 | U101: 20 | V101: 20 | W101: -99 | X101: -99 | Y101: -99 | Z101: -99 | AA101: -99 | AB101: -99 | AC101: -99 | AD101: -99 | AE101: -99 | AF101: -99 | AG101: -99 | AH101: -99 | AI101: -99 | AJ101: -99 | AK101: -99 | AL101: -99 | AM101: -99 | AN101: -99 | AO101: -99 | AP101: -99 | AQ101: -99 | AR101: -99 | AS101: -99 | AT101: -99 | AU101: -99 | AV101: -99 | AW101: -99 | AX101: -99 | AY101: -99 | AZ101: -99 | BA101: -99 | BB101: -99 | BC101: 87
A102: Dual Antenna | B102: K | C102: 1 | D102: 11 | E102: 8 | F102: 15 | G102: 17 | H102: 17 | I102: 17 | J102: 17 | K102: 17 | L102: 17 | M102: 17 | N102: 17 | O102: 17 | P102: 17 | Q102: 17 | R102: 17 | S102: 17 | T102: 17 | U102: 17 | V102: 17 | W102: 17 | X102: 17 | Y102: 17 | Z102: 17 | AA102: 17 | AB102: 17 | AC102: 17 | AD102: 17 | AE102: 14 | AF102: 14 | AG102: 14 | AH102: 14 | AI102: 14 | AJ102: 14 | AK102: 14 | AL102: 14 | AM102: 14 | AN102: 14 | AO102: 14 | AP102: 14 | AQ102: 14 | AR102: 14 | AS102: 14 | AT102: 14 | AU102: 17 | AV102: 17 | AW102: 17 | AX102: 17 | AY102: 17 | AZ102: 17 | BA102: 17 | BB102: 17 | BC102: 88
A103: Single Antenna | B103: K | C103: 1 | D103: 11 | E103: 13 | F103: 20 | G103: 22 | H103: 22 | I103: 22 | J103: 22 | K103: 22 | L103: 22 | M103: 22 | N103: 22 | O103: 22 | P103: 22 | Q103: 22 | R103: 22 | S103: 22 | T103: 22 | U103: 22 | V103: 22 | W103: -99 | X103: -99 | Y103: -99 | Z103: -99 | AA103: -99 | AB103: -99 | AC103: -99 | AD103: -99 | AE103: -99 | AF103: -99 | AG103: -99 | AH103: -99 | AI103: -99 | AJ103: -99 | AK103: -99 | AL103: -99 | AM103: -99 | AN103: -99 | AO103: -99 | AP103: -99 | AQ103: -99 | AR103: -99 | AS103: -99 | AT103: -99 | AU103: -99 | AV103: -99 | AW103: -99 | AX103: -99 | AY103: -99 | AZ103: -99 | BA103: -99 | BB103: -99 | BC103: 89
A104: Dual Antenna | B104: K | C104: 1 | D104: 11 | E104: 13 | F104: 17 | G104: 19 | H104: 19 | I104: 19 | J104: 19 | K104: 19 | L104: 19 | M104: 19 | N104: 19 | O104: 19 | P104: 19 | Q104: 19 | R104: 19 | S104: 19 | T104: 19 | U104: 19 | V104: 19 | W104: 19 | X104: 19 | Y104: 19 | Z104: 19 | AA104: 19 | AB104: 19 | AC104: 19 | AD104: 19 | AE104: 19 | AF104: 19 | AG104: 19 | AH104: 19 | AI104: 19 | AJ104: 19 | AK104: 19 | AL104: 19 | AM104: 19 | AN104: 19 | AO104: 19 | AP104: 19 | AQ104: 19 | AR104: 19 | AS104: 19 | AT104: 19 | AU104: 19 | AV104: 19 | AW104: 19 | AX104: 19 | AY104: 19 | AZ104: 19 | BA104: 19 | BB104: 19 | BC104: 90
A105: Single Antenna | B105: L | C105: 1 | D105: 13 | E105: 4 | F105: 23 | G105: 23 | H105: 23 | I105: 23 | J105: 23 | K105: 23 | L105: 23 | M105: 23 | N105: 23 | O105: 23 | P105: 23 | Q105: 23 | R105: 23 | S105: 23 | T105: 23 | U105: 23 | V105: 23 | W105: -99 | X105: -99 | Y105: -99 | Z105: -99 | AA105: -99 | AB105: -99 | AC105: -99 | AD105: -99 | AE105: -99 | AF105: -99 | AG105: -99 | AH105: -99 | AI105: -99 | AJ105: -99 | AK105: -99 | AL105: -99 | AM105: -99 | AN105: -99 | AO105: -99 | AP105: -99 | AQ105: -99 | AR105: -99 | AS105: -99 | AT105: -99 | AU105: -99 | AV105: -99 | AW105: -99 | AX105: -99 | AY105: -99 | AZ105: -99 | BA105: -99 | BB105: -99 | BC105: 91
A106: Dual Antenna | B106: L | C106: 1 | D106: 13 | E106: 4 | F106: 20 | G106: 20 | H106: 20 | I106: 20 | J106: 20 | K106: 20 | L106: 20 | M106: 20 | N106: 20 | O106: 20 | P106: 20 | Q106: 20 | R106: 20 | S106: 20 | T106: 20 | U106: 20 | V106: 20 | W106: 20 | X106: 20 | Y106: 20 | Z106: 20 | AA106: 20 | AB106: 20 | AC106: 20 | AD106: 20 | AE106: 17 | AF106: 17 | AG106: 17 | AH106: 17 | AI106: 17 | AJ106: 17 | AK106: 17 | AL106: 17 | AM106: 17 | AN106: 17 | AO106: 17 | AP106: 17 | AQ106: 17 | AR106: 17 | AS106: 17 | AT106: 17 | AU106: 20 | AV106: 20 | AW106: 20 | AX106: 20 | AY106: 20 | AZ106: 20 | BA106: 20 | BB106: 20 | BC106: 92
A107: Single Antenna | B107: L | C107: 1 | D107: 13 | E107: 5 | F107: 22 | G107: 22 | H107: 22 | I107: 22 | J107: 22 | K107: 22 | L107: 22 | M107: 22 | N107: 22 | O107: 22 | P107: 22 | Q107: 22 | R107: 22 | S107: 22 | T107: 22 | U107: 22 | V107: 22 | W107: -99 | X107: -99 | Y107: -99 | Z107: -99 | AA107: -99 | AB107: -99 | AC107: -99 | AD107: -99 | AE107: -99 | AF107: -99 | AG107: -99 | AH107: -99 | AI107: -99 | AJ107: -99 | AK107: -99 | AL107: -99 | AM107: -99 | AN107: -99 | AO107: -99 | AP107: -99 | AQ107: -99 | AR107: -99 | AS107: -99 | AT107: -99 | AU107: -99 | AV107: -99 | AW107: -99 | AX107: -99 | AY107: -99 | AZ107: -99 | BA107: -99 | BB107: -99 | BC107: 93
A108: Dual Antenna | B108: L | C108: 1 | D108: 13 | E108: 5 | F108: 19 | G108: 19 | H108: 19 | I108: 19 | J108: 19 | K108: 19 | L108: 19 | M108: 19 | N108: 19 | O108: 19 | P108: 19 | Q108: 19 | R108: 19 | S108: 19 | T108: 19 | U108: 19 | V108: 19 | W108: 19 | X108: 19 | Y108: 19 | Z108: 19 | AA108: 19 | AB108: 19 | AC108: 19 | AD108: 19 | AE108: 16 | AF108: 16 | AG108: 16 | AH108: 16 | AI108: 16 | AJ108: 16 | AK108: 16 | AL108: 16 | AM108: 16 | AN108: 16 | AO108: 16 | AP108: 16 | AQ108: 16 | AR108: 16 | AS108: 16 | AT108: 16 | AU108: 19 | AV108: 19 | AW108: 19 | AX108: 19 | AY108: 19 | AZ108: 19 | BA108: 19 | BB108: 19 | BC108: 94
A109: Single Antenna | B109: L | C109: 1 | D109: 13 | E109: 6 | F109: 21 | G109: 21 | H109: 21 | I109: 21 | J109: 21 | K109: 21 | L109: 21 | M109: 21 | N109: 21 | O109: 21 | P109: 21 | Q109: 21 | R109: 21 | S109: 21 | T109: 21 | U109: 21 | V109: 21 | W109: -99 | X109: -99 | Y109: -99 | Z109: -99 | AA109: -99 | AB109: -99 | AC109: -99 | AD109: -99 | AE109: -99 | AF109: -99 | AG109: -99 | AH109: -99 | AI109: -99 | AJ109: -99 | AK109: -99 | AL109: -99 | AM109: -99 | AN109: -99 | AO109: -99 | AP109: -99 | AQ109: -99 | AR109: -99 | AS109: -99 | AT109: -99 | AU109: -99 | AV109: -99 | AW109: -99 | AX109: -99 | AY109: -99 | AZ109: -99 | BA109: -99 | BB109: -99 | BC109: 95
A110: Dual Antenna | B110: L | C110: 1 | D110: 13 | E110: 6 | F110: 18 | G110: 18 | H110: 18 | I110: 18 | J110: 18 | K110: 18 | L110: 18 | M110: 18 | N110: 18 | O110: 18 | P110: 18 | Q110: 18 | R110: 18 | S110: 18 | T110: 18 | U110: 18 | V110: 18 | W110: 18 | X110: 18 | Y110: 18 | Z110: 18 | AA110: 18 | AB110: 18 | AC110: 18 | AD110: 18 | AE110: 15 | AF110: 15 | AG110: 15 | AH110: 15 | AI110: 15 | AJ110: 15 | AK110: 15 | AL110: 15 | AM110: 15 | AN110: 15 | AO110: 15 | AP110: 15 | AQ110: 15 | AR110: 15 | AS110: 15 | AT110: 15 | AU110: 18 | AV110: 18 | AW110: 18 | AX110: 18 | AY110: 18 | AZ110: 18 | BA110: 18 | BB110: 18 | BC110: 96
A111: Single Antenna | B111: L | C111: 1 | D111: 13 | E111: 8 | F111: 19 | G111: 19 | H111: 19 | I111: 19 | J111: 19 | K111: 19 | L111: 19 | M111: 19 | N111: 19 | O111: 19 | P111: 19 | Q111: 19 | R111: 19 | S111: 19 | T111: 19 | U111: 19 | V111: 19 | W111: -99 | X111: -99 | Y111: -99 | Z111: -99 | AA111: -99 | AB111: -99 | AC111: -99 | AD111: -99 | AE111: -99 | AF111: -99 | AG111: -99 | AH111: -99 | AI111: -99 | AJ111: -99 | AK111: -99 | AL111: -99 | AM111: -99 | AN111: -99 | AO111: -99 | AP111: -99 | AQ111: -99 | AR111: -99 | AS111: -99 | AT111: -99 | AU111: -99 | AV111: -99 | AW111: -99 | AX111: -99 | AY111: -99 | AZ111: -99 | BA111: -99 | BB111: -99 | BC111: 97
A112: Dual Antenna | B112: L | C112: 1 | D112: 13 | E112: 8 | F112: 16 | G112: 16 | H112: 16 | I112: 16 | J112: 16 | K112: 16 | L112: 16 | M112: 16 | N112: 16 | O112: 16 | P112: 16 | Q112: 16 | R112: 16 | S112: 16 | T112: 16 | U112: 16 | V112: 16 | W112: 16 | X112: 16 | Y112: 16 | Z112: 16 | AA112: 16 | AB112: 16 | AC112: 16 | AD112: 16 | AE112: 13 | AF112: 13 | AG112: 13 | AH112: 13 | AI112: 13 | AJ112: 13 | AK112: 13 | AL112: 13 | AM112: 13 | AN112: 13 | AO112: 13 | AP112: 13 | AQ112: 13 | AR112: 13 | AS112: 13 | AT112: 13 | AU112: 16 | AV112: 16 | AW112: 16 | AX112: 16 | AY112: 16 | AZ112: 16 | BA112: 16 | BB112: 16 | BC112: 98
A113: Single Antenna | B113: L | C113: 1 | D113: 13 | E113: 13 | F113: 14 | G113: 14 | H113: 14 | I113: 14 | J113: 14 | K113: 14 | L113: 14 | M113: 14 | N113: 14 | O113: 14 | P113: 14 | Q113: 14 | R113: 14 | S113: 14 | T113: 14 | U113: 14 | V113: 14 | W113: -99 | X113: -99 | Y113: -99 | Z113: -99 | AA113: -99 | AB113: -99 | AC113: -99 | AD113: -99 | AE113: -99 | AF113: -99 | AG113: -99 | AH113: -99 | AI113: -99 | AJ113: -99 | AK113: -99 | AL113: -99 | AM113: -99 | AN113: -99 | AO113: -99 | AP113: -99 | AQ113: -99 | AR113: -99 | AS113: -99 | AT113: -99 | AU113: -99 | AV113: -99 | AW113: -99 | AX113: -99 | AY113: -99 | AZ113: -99 | BA113: -99 | BB113: -99 | BC113: 99
A114: Dual Antenna | B114: L | C114: 1 | D114: 13 | E114: 13 | F114: 11 | G114: 11 | H114: 11 | I114: 11 | J114: 11 | K114: 11 | L114: 11 | M114: 11 | N114: 11 | O114: 11 | P114: 11 | Q114: 11 | R114: 11 | S114: 11 | T114: 11 | U114: 11 | V114: 11 | W114: 11 | X114: 11 | Y114: 11 | Z114: 11 | AA114: 11 | AB114: 11 | AC114: 11 | AD114: 11 | AE114: 11 | AF114: 11 | AG114: 11 | AH114: 11 | AI114: 11 | AJ114: 11 | AK114: 11 | AL114: 11 | AM114: 11 | AN114: 11 | AO114: 11 | AP114: 11 | AQ114: 11 | AR114: 11 | AS114: 11 | AT114: 11 | AU114: 11 | AV114: 11 | AW114: 11 | AX114: 11 | AY114: 11 | AZ114: 11 | BA114: 11 | BB114: 11 | BC114: 100
A115: Single Antenna | B115: Q | C115: 1 | D115: 13 | E115: 4 | F115: 9 | G115: 11 | H115: 11 | I115: 11 | J115: 11 | K115: 11 | L115: 11 | M115: 11 | N115: 11 | O115: 11 | P115: 11 | Q115: 11 | R115: 11 | S115: 11 | T115: 11 | U115: 11 | V115: 11 | W115: -99 | X115: -99 | Y115: -99 | Z115: -99 | AA115: -99 | AB115: -99 | AC115: -99 | AD115: -99 | AE115: -99 | AF115: -99 | AG115: -99 | AH115: -99 | AI115: -99 | AJ115: -99 | AK115: -99 | AL115: -99 | AM115: -99 | AN115: -99 | AO115: -99 | AP115: -99 | AQ115: -99 | AR115: -99 | AS115: -99 | AT115: -99 | AU115: -99 | AV115: -99 | AW115: -99 | AX115: -99 | AY115: -99 | AZ115: -99 | BA115: -99 | BB115: -99 | BC115: 101
A116: Dual Antenna | B116: Q | C116: 1 | D116: 13 | E116: 4 | F116: 6 | G116: 8 | H116: 8 | I116: 8 | J116: 8 | K116: 8 | L116: 8 | M116: 8 | N116: 8 | O116: 8 | P116: 8 | Q116: 8 | R116: 8 | S116: 8 | T116: 8 | U116: 8 | V116: 8 | W116: 8 | X116: 8 | Y116: 8 | Z116: 8 | AA116: 8 | AB116: 8 | AC116: 8 | AD116: 8 | AE116: 8 | AF116: 8 | AG116: 8 | AH116: 8 | AI116: 8 | AJ116: 8 | AK116: 8 | AL116: 8 | AM116: 8 | AN116: 8 | AO116: 8 | AP116: 8 | AQ116: 8 | AR116: 8 | AS116: 8 | AT116: 8 | AU116: 8 | AV116: 8 | AW116: 8 | AX116: 8 | AY116: 8 | AZ116: 8 | BA116: 8 | BB116: 8 | BC116: 102
A117: Single Antenna | B117: Q | C117: 1 | D117: 13 | E117: 5 | F117: 9 | G117: 11 | H117: 11 | I117: 11 | J117: 11 | K117: 11 | L117: 11 | M117: 11 | N117: 11 | O117: 11 | P117: 11 | Q117: 11 | R117: 11 | S117: 11 | T117: 11 | U117: 11 | V117: 11 | W117: -99 | X117: -99 | Y117: -99 | Z117: -99 | AA117: -99 | AB117: -99 | AC117: -99 | AD117: -99 | AE117: -99 | AF117: -99 | AG117: -99 | AH117: -99 | AI117: -99 | AJ117: -99 | AK117: -99 | AL117: -99 | AM117: -99 | AN117: -99 | AO117: -99 | AP117: -99 | AQ117: -99 | AR117: -99 | AS117: -99 | AT117: -99 | AU117: -99 | AV117: -99 | AW117: -99 | AX117: -99 | AY117: -99 | AZ117: -99 | BA117: -99 | BB117: -99 | BC117: 103
A118: Dual Antenna | B118: Q | C118: 1 | D118: 13 | E118: 5 | F118: 6 | G118: 8 | H118: 8 | I118: 8 | J118: 8 | K118: 8 | L118: 8 | M118: 8 | N118: 8 | O118: 8 | P118: 8 | Q118: 8 | R118: 8 | S118: 8 | T118: 8 | U118: 8 | V118: 8 | W118: 8 | X118: 8 | Y118: 8 | Z118: 8 | AA118: 8 | AB118: 8 | AC118: 8 | AD118: 8 | AE118: 8 | AF118: 8 | AG118: 8 | AH118: 8 | AI118: 8 | AJ118: 8 | AK118: 8 | AL118: 8 | AM118: 8 | AN118: 8 | AO118: 8 | AP118: 8 | AQ118: 8 | AR118: 8 | AS118: 8 | AT118: 8 | AU118: 8 | AV118: 8 | AW118: 8 | AX118: 8 | AY118: 8 | AZ118: 8 | BA118: 8 | BB118: 8 | BC118: 104
A119: Single Antenna | B119: Q | C119: 1 | D119: 13 | E119: 6 | F119: 9 | G119: 11 | H119: 11 | I119: 11 | J119: 11 | K119: 11 | L119: 11 | M119: 11 | N119: 11 | O119: 11 | P119: 11 | Q119: 11 | R119: 11 | S119: 11 | T119: 11 | U119: 11 | V119: 11 | W119: -99 | X119: -99 | Y119: -99 | Z119: -99 | AA119: -99 | AB119: -99 | AC119: -99 | AD119: -99 | AE119: -99 | AF119: -99 | AG119: -99 | AH119: -99 | AI119: -99 | AJ119: -99 | AK119: -99 | AL119: -99 | AM119: -99 | AN119: -99 | AO119: -99 | AP119: -99 | AQ119: -99 | AR119: -99 | AS119: -99 | AT119: -99 | AU119: -99 | AV119: -99 | AW119: -99 | AX119: -99 | AY119: -99 | AZ119: -99 | BA119: -99 | BB119: -99 | BC119: 105
A120: Dual Antenna | B120: Q | C120: 1 | D120: 13 | E120: 6 | F120: 6 | G120: 8 | H120: 8 | I120: 8 | J120: 8 | K120: 8 | L120: 8 | M120: 8 | N120: 8 | O120: 8 | P120: 8 | Q120: 8 | R120: 8 | S120: 8 | T120: 8 | U120: 8 | V120: 8 | W120: 8 | X120: 8 | Y120: 8 | Z120: 8 | AA120: 8 | AB120: 8 | AC120: 8 | AD120: 8 | AE120: 8 | AF120: 8 | AG120: 8 | AH120: 8 | AI120: 8 | AJ120: 8 | AK120: 8 | AL120: 8 | AM120: 8 | AN120: 8 | AO120: 8 | AP120: 8 | AQ120: 8 | AR120: 8 | AS120: 8 | AT120: 8 | AU120: 8 | AV120: 8 | AW120: 8 | AX120: 8 | AY120: 8 | AZ120: 8 | BA120: 8 | BB120: 8 | BC120: 106
A121: Single Antenna | B121: Q | C121: 1 | D121: 13 | E121: 8 | F121: 9 | G121: 11 | H121: 11 | I121: 11 | J121: 11 | K121: 11 | L121: 11 | M121: 11 | N121: 11 | O121: 11 | P121: 11 | Q121: 11 | R121: 11 | S121: 11 | T121: 11 | U121: 11 | V121: 11 | W121: -99 | X121: -99 | Y121: -99 | Z121: -99 | AA121: -99 | AB121: -99 | AC121: -99 | AD121: -99 | AE121: -99 | AF121: -99 | AG121: -99 | AH121: -99 | AI121: -99 | AJ121: -99 | AK121: -99 | AL121: -99 | AM121: -99 | AN121: -99 | AO121: -99 | AP121: -99 | AQ121: -99 | AR121: -99 | AS121: -99 | AT121: -99 | AU121: -99 | AV121: -99 | AW121: -99 | AX121: -99 | AY121: -99 | AZ121: -99 | BA121: -99 | BB121: -99 | BC121: 107
A122: Dual Antenna | B122: Q | C122: 1 | D122: 13 | E122: 8 | F122: 6 | G122: 8 | H122: 8 | I122: 8 | J122: 8 | K122: 8 | L122: 8 | M122: 8 | N122: 8 | O122: 8 | P122: 8 | Q122: 8 | R122: 8 | S122: 8 | T122: 8 | U122: 8 | V122: 8 | W122: 8 | X122: 8 | Y122: 8 | Z122: 8 | AA122: 8 | AB122: 8 | AC122: 8 | AD122: 8 | AE122: 8 | AF122: 8 | AG122: 8 | AH122: 8 | AI122: 8 | AJ122: 8 | AK122: 8 | AL122: 8 | AM122: 8 | AN122: 8 | AO122: 8 | AP122: 8 | AQ122: 8 | AR122: 8 | AS122: 8 | AT122: 8 | AU122: 8 | AV122: 8 | AW122: 8 | AX122: 8 | AY122: 8 | AZ122: 8 | BA122: 8 | BB122: 8 | BC122: 108
A123: Single Antenna | B123: Q | C123: 1 | D123: 13 | E123: 13 | F123: 9 | G123: 11 | H123: 11 | I123: 11 | J123: 11 | K123: 11 | L123: 11 | M123: 11 | N123: 11 | O123: 11 | P123: 11 | Q123: 11 | R123: 11 | S123: 11 | T123: 11 | U123: 11 | V123: 11 | W123: -99 | X123: -99 | Y123: -99 | Z123: -99 | AA123: -99 | AB123: -99 | AC123: -99 | AD123: -99 | AE123: -99 | AF123: -99 | AG123: -99 | AH123: -99 | AI123: -99 | AJ123: -99 | AK123: -99 | AL123: -99 | AM123: -99 | AN123: -99 | AO123: -99 | AP123: -99 | AQ123: -99 | AR123: -99 | AS123: -99 | AT123: -99 | AU123: -99 | AV123: -99 | AW123: -99 | AX123: -99 | AY123: -99 | AZ123: -99 | BA123: -99 | BB123: -99 | BC123: 109
A124: Dual Antenna | B124: Q | C124: 1 | D124: 13 | E124: 13 | F124: 6 | G124: 8 | H124: 8 | I124: 8 | J124: 8 | K124: 8 | L124: 8 | M124: 8 | N124: 8 | O124: 8 | P124: 8 | Q124: 8 | R124: 8 | S124: 8 | T124: 8 | U124: 8 | V124: 8 | W124: 8 | X124: 8 | Y124: 8 | Z124: 8 | AA124: 8 | AB124: 8 | AC124: 8 | AD124: 8 | AE124: 8 | AF124: 8 | AG124: 8 | AH124: 8 | AI124: 8 | AJ124: 8 | AK124: 8 | AL124: 8 | AM124: 8 | AN124: 8 | AO124: 8 | AP124: 8 | AQ124: 8 | AR124: 8 | AS124: 8 | AT124: 8 | AU124: 8 | AV124: 8 | AW124: 8 | AX124: 8 | AY124: 8 | AZ124: 8 | BA124: 8 | BB124: 8 | BC124: 110
A125: Single Antenna | B125: R | C125: 1 | D125: 13 | E125: 4 | F125: 20 | G125: 20 | H125: 20 | I125: 20 | J125: 20 | K125: 20 | L125: 20 | M125: 20 | N125: 20 | O125: 20 | P125: 20 | Q125: 20 | R125: 20 | S125: 20 | T125: 20 | U125: 20 | V125: 20 | W125: -99 | X125: -99 | Y125: -99 | Z125: -99 | AA125: -99 | AB125: -99 | AC125: -99 | AD125: -99 | AE125: -99 | AF125: -99 | AG125: -99 | AH125: -99 | AI125: -99 | AJ125: -99 | AK125: -99 | AL125: -99 | AM125: -99 | AN125: -99 | AO125: -99 | AP125: -99 | AQ125: -99 | AR125: -99 | AS125: -99 | AT125: -99 | AU125: -99 | AV125: -99 | AW125: -99 | AX125: -99 | AY125: -99 | AZ125: -99 | BA125: -99 | BB125: -99 | BC125: 111
A126: Dual Antenna | B126: R | C126: 1 | D126: 13 | E126: 4 | F126: 17 | G126: 17 | H126: 17 | I126: 17 | J126: 17 | K126: 17 | L126: 17 | M126: 17 | N126: 17 | O126: 17 | P126: 17 | Q126: 17 | R126: 17 | S126: 17 | T126: 17 | U126: 17 | V126: 17 | W126: 17 | X126: 17 | Y126: 17 | Z126: 17 | AA126: 17 | AB126: 17 | AC126: 17 | AD126: 17 | AE126: 17 | AF126: 17 | AG126: 17 | AH126: 17 | AI126: 17 | AJ126: 17 | AK126: 17 | AL126: 17 | AM126: 17 | AN126: 17 | AO126: 17 | AP126: 17 | AQ126: 17 | AR126: 17 | AS126: 17 | AT126: 17 | AU126: 17 | AV126: 17 | AW126: 17 | AX126: 17 | AY126: 17 | AZ126: 17 | BA126: 17 | BB126: 17 | BC126: 112
A127: Single Antenna | B127: R | C127: 1 | D127: 13 | E127: 5 | F127: 20 | G127: 20 | H127: 20 | I127: 20 | J127: 20 | K127: 20 | L127: 20 | M127: 20 | N127: 20 | O127: 20 | P127: 20 | Q127: 20 | R127: 20 | S127: 20 | T127: 20 | U127: 20 | V127: 20 | W127: -99 | X127: -99 | Y127: -99 | Z127: -99 | AA127: -99 | AB127: -99 | AC127: -99 | AD127: -99 | AE127: -99 | AF127: -99 | AG127: -99 | AH127: -99 | AI127: -99 | AJ127: -99 | AK127: -99 | AL127: -99 | AM127: -99 | AN127: -99 | AO127: -99 | AP127: -99 | AQ127: -99 | AR127: -99 | AS127: -99 | AT127: -99 | AU127: -99 | AV127: -99 | AW127: -99 | AX127: -99 | AY127: -99 | AZ127: -99 | BA127: -99 | BB127: -99 | BC127: 113
A128: Dual Antenna | B128: R | C128: 1 | D128: 13 | E128: 5 | F128: 17 | G128: 17 | H128: 17 | I128: 17 | J128: 17 | K128: 17 | L128: 17 | M128: 17 | N128: 17 | O128: 17 | P128: 17 | Q128: 17 | R128: 17 | S128: 17 | T128: 17 | U128: 17 | V128: 17 | W128: 17 | X128: 17 | Y128: 17 | Z128: 17 | AA128: 17 | AB128: 17 | AC128: 17 | AD128: 17 | AE128: 17 | AF128: 17 | AG128: 17 | AH128: 17 | AI128: 17 | AJ128: 17 | AK128: 17 | AL128: 17 | AM128: 17 | AN128: 17 | AO128: 17 | AP128: 17 | AQ128: 17 | AR128: 17 | AS128: 17 | AT128: 17 | AU128: 17 | AV128: 17 | AW128: 17 | AX128: 17 | AY128: 17 | AZ128: 17 | BA128: 17 | BB128: 17 | BC128: 114
A129: Single Antenna | B129: R | C129: 1 | D129: 13 | E129: 6 | F129: 20 | G129: 20 | H129: 20 | I129: 20 | J129: 20 | K129: 20 | L129: 20 | M129: 20 | N129: 20 | O129: 20 | P129: 20 | Q129: 20 | R129: 20 | S129: 20 | T129: 20 | U129: 20 | V129: 20 | W129: -99 | X129: -99 | Y129: -99 | Z129: -99 | AA129: -99 | AB129: -99 | AC129: -99 | AD129: -99 | AE129: -99 | AF129: -99 | AG129: -99 | AH129: -99 | AI129: -99 | AJ129: -99 | AK129: -99 | AL129: -99 | AM129: -99 | AN129: -99 | AO129: -99 | AP129: -99 | AQ129: -99 | AR129: -99 | AS129: -99 | AT129: -99 | AU129: -99 | AV129: -99 | AW129: -99 | AX129: -99 | AY129: -99 | AZ129: -99 | BA129: -99 | BB129: -99 | BC129: 115
A130: Dual Antenna | B130: R | C130: 1 | D130: 13 | E130: 6 | F130: 17 | G130: 17 | H130: 17 | I130: 17 | J130: 17 | K130: 17 | L130: 17 | M130: 17 | N130: 17 | O130: 17 | P130: 17 | Q130: 17 | R130: 17 | S130: 17 | T130: 17 | U130: 17 | V130: 17 | W130: 17 | X130: 17 | Y130: 17 | Z130: 17 | AA130: 17 | AB130: 17 | AC130: 17 | AD130: 17 | AE130: 17 | AF130: 17 | AG130: 17 | AH130: 17 | AI130: 17 | AJ130: 17 | AK130: 17 | AL130: 17 | AM130: 17 | AN130: 17 | AO130: 17 | AP130: 17 | AQ130: 17 | AR130: 17 | AS130: 17 | AT130: 17 | AU130: 17 | AV130: 17 | AW130: 17 | AX130: 17 | AY130: 17 | AZ130: 17 | BA130: 17 | BB130: 17 | BC130: 116
A131: Single Antenna | B131: R | C131: 1 | D131: 13 | E131: 8 | F131: 20 | G131: 20 | H131: 20 | I131: 20 | J131: 20 | K131: 20 | L131: 20 | M131: 20 | N131: 20 | O131: 20 | P131: 20 | Q131: 20 | R131: 20 | S131: 20 | T131: 20 | U131: 20 | V131: 20 | W131: -99 | X131: -99 | Y131: -99 | Z131: -99 | AA131: -99 | AB131: -99 | AC131: -99 | AD131: -99 | AE131: -99 | AF131: -99 | AG131: -99 | AH131: -99 | AI131: -99 | AJ131: -99 | AK131: -99 | AL131: -99 | AM131: -99 | AN131: -99 | AO131: -99 | AP131: -99 | AQ131: -99 | AR131: -99 | AS131: -99 | AT131: -99 | AU131: -99 | AV131: -99 | AW131: -99 | AX131: -99 | AY131: -99 | AZ131: -99 | BA131: -99 | BB131: -99 | BC131: 117
A132: Dual Antenna | B132: R | C132: 1 | D132: 13 | E132: 8 | F132: 17 | G132: 17 | H132: 17 | I132: 17 | J132: 17 | K132: 17 | L132: 17 | M132: 17 | N132: 17 | O132: 17 | P132: 17 | Q132: 17 | R132: 17 | S132: 17 | T132: 17 | U132: 17 | V132: 17 | W132: 17 | X132: 17 | Y132: 17 | Z132: 17 | AA132: 17 | AB132: 17 | AC132: 17 | AD132: 17 | AE132: 17 | AF132: 17 | AG132: 17 | AH132: 17 | AI132: 17 | AJ132: 17 | AK132: 17 | AL132: 17 | AM132: 17 | AN132: 17 | AO132: 17 | AP132: 17 | AQ132: 17 | AR132: 17 | AS132: 17 | AT132: 17 | AU132: 17 | AV132: 17 | AW132: 17 | AX132: 17 | AY132: 17 | AZ132: 17 | BA132: 17 | BB132: 17 | BC132: 118
A133: Single Antenna | B133: R | C133: 1 | D133: 13 | E133: 13 | F133: 20 | G133: 20 | H133: 20 | I133: 20 | J133: 20 | K133: 20 | L133: 20 | M133: 20 | N133: 20 | O133: 20 | P133: 20 | Q133: 20 | R133: 20 | S133: 20 | T133: 20 | U133: 20 | V133: 20 | W133: -99 | X133: -99 | Y133: -99 | Z133: -99 | AA133: -99 | AB133: -99 | AC133: -99 | AD133: -99 | AE133: -99 | AF133: -99 | AG133: -99 | AH133: -99 | AI133: -99 | AJ133: -99 | AK133: -99 | AL133: -99 | AM133: -99 | AN133: -99 | AO133: -99 | AP133: -99 | AQ133: -99 | AR133: -99 | AS133: -99 | AT133: -99 | AU133: -99 | AV133: -99 | AW133: -99 | AX133: -99 | AY133: -99 | AZ133: -99 | BA133: -99 | BB133: -99 | BC133: 119
A134: Dual Antenna | B134: R | C134: 1 | D134: 13 | E134: 13 | F134: 17 | G134: 17 | H134: 17 | I134: 17 | J134: 17 | K134: 17 | L134: 17 | M134: 17 | N134: 17 | O134: 17 | P134: 17 | Q134: 17 | R134: 17 | S134: 17 | T134: 17 | U134: 17 | V134: 17 | W134: 17 | X134: 17 | Y134: 17 | Z134: 17 | AA134: 17 | AB134: 17 | AC134: 17 | AD134: 17 | AE134: 17 | AF134: 17 | AG134: 17 | AH134: 17 | AI134: 17 | AJ134: 17 | AK134: 17 | AL134: 17 | AM134: 17 | AN134: 17 | AO134: 17 | AP134: 17 | AQ134: 17 | AR134: 17 | AS134: 17 | AT134: 17 | AU134: 17 | AV134: 17 | AW134: 17 | AX134: 17 | AY134: 17 | AZ134: 17 | BA134: 17 | BB134: 17 | BC134: 120

Sheet 6300_2G_BH_Pwr (hidden)
A1: DO NOT EDIT: | B1: This worksheet contain data for the "2.4GHz Backhaul" worksheet.
C3: SITE 1 | K3: Allowed Powers List: | L3: =IF(J5+3>J4,J5,J4) -> 27 | O3: Final List
I4: Max Power (total 2 Tx) w/o BF = | J4: =MAX(INDEX('6300_2G_PwrTable'!F$15:BB$134,B$8,E7),INDEX('6300_2G_PwrTable'!F$15:BB$134,B$9,E7)+3) -> 27 | L4: =IF(L3-3>3,L3-3,4) -> 24 | O4: PL1 = | P4: =L3 -> 27
A5: Reg Domain index | B5: ='2.4GHz Backhaul'!$C$68 -> 1 | I5: Max Power (total 2 Tx) with BF = | J5: =INDEX('6300_2G_PwrTable'!F$15:BB$134,B$9,E8)+3 -> 27 | L5: =IF(L4-3>3,L4-3,4) -> 21 | O5: PL2 = | P5: =L4 -> 24
A6: Antenna gain index | B6: ='2.4GHz Backhaul'!$H$60 -> 1 | D6: Rate index | E6: ='2.4GHz Backhaul'!$S$81 -> 28 | I6: PL sequence = | J6: =IF(J7=1,MATCH(J5,L$3:L$10,-1),MATCH(J4,L$3:L$10,-1)) -> 1 | L6: =IF(L5-3>3,L5-3,4) -> 18 | O6: PL3 = | P6: =L5 -> 21
A7: Channel index | B7: ='2.4GHz Backhaul'!$Q$66 -> 3 | D7: Rate Column w/o BF | E7: =IF(E$6<5,1,E$6-3) -> 25 | I7: BF flag = | J7: =IF(J5+3>J4,1,0) -> 1 | L7: 15 | O7: PL4 = | P7: =L6 -> 18
A8: 1 ANT max pwr row | B8: =B9-1 -> 5 | D8: Rate Column with BF | E8: =E7+24 -> 49 | L8: 12 | O8: PL5 = | P8: =L7 -> 15
A9: 2 ANT max pwr row | B9: =IF(B5=1,12*(B6-1)+2*B7,60+10*(B5-2)+2*B6) -> 6 | L9: =IF(L8-3>3,L8-3,4) -> 9
L10: 6
C11: SITE 2 | K11: Allowed Powers List: | L11: =IF(J13+3>J12,J13,J12) -> 27 | O11: Final List
I12: Max Power (total 2 Tx) w/o BF = | J12: =MAX(INDEX('6300_2G_PwrTable'!F$15:BB$134,B$16,E15),INDEX('6300_2G_PwrTable'!F$15:BB$134,B$17,E15)+3) -> 27 | L12: =IF(L11-3>3,L11-3,4) -> 24 | O12: PL1 = | P12: =L11 -> 27
A13: Reg Domain index | B13: ='2.4GHz Backhaul'!$C$89 -> 1 | I13: Max Power (total 2 Tx) with BF = | J13: =INDEX('6300_2G_PwrTable'!F$15:BB$134,B$17,E16)+3 -> 27 | L13: =IF(L12-3>3,L12-3,4) -> 21 | O13: PL2 = | P13: =L12 -> 24
A14: Antenna gain index | B14: ='2.4GHz Backhaul'!$H$74 -> 1 | D14: Rate index | E14: ='2.4GHz Backhaul'!$S$81 -> 28 | I14: PL sequence = | J14: =IF(J15=1,MATCH(J13,L$11:L$18,-1),MATCH(J12,L$11:L$18,-1)) -> 1 | L14: =IF(L13-3>3,L13-3,4) -> 18 | O14: PL3 = | P14: =L13 -> 21
A15: Channel index | B15: ='2.4GHz Backhaul'!$Q$66 -> 3 | D15: Rate Column w/o BF | E15: =IF(E$14<5,1,E$14-3) -> 25 | I15: BF flag = | J15: =IF(J13+3>J12,1,0) -> 1 | L15: =IF(L14-3>3,L14-3,4) -> 15 | O15: PL4 = | P15: =L14 -> 18
A16: 1 ANT max pwr row | B16: =B17-1 -> 5 | D16: Rate Column with BF | E16: =E15+24 -> 49 | L16: =IF(L15-3>3,L15-3,4) -> 12 | O16: PL5 = | P16: =L15 -> 15
A17: 2 ANT max pwr row | B17: =IF(B13=1,12*(B14-1)+2*B15,60+10*(B13-2)+2*B14) -> 6 | L17: =IF(L16-3>3,L16-3,4) -> 9
L18: =IF(L17-3>3,L17-3,4) -> 6

Sheet 6300_5G_PwrTable (hidden)
A1: DO NOT EDIT: | B1: This worksheet contain data for the "5GHz Client Access" worksheet. | W1: EVM table | X1: 11a | Z1: 20 1SS | AA1: 40 1SS | AB1: 80 1SS | AC1: 20 2SS | AD1: 40 2SS | AE1: 80 2SS
W2: 6 | X2: 24 | Y2: M0 | Z2: 24 | AA2: 24 | AB2: 24 | AC2: 24 | AD2: 24 | AE2: 24
C3: SITE 1 | K3: Allowed Powers List: | L3: =IF(J5+3>J4,J5,J4) -> 27 | O3: Final List | W3: 9 | X3: 24 | Y3: M1 | Z3: 24 | AA3: 24 | AB3: 24 | AC3: 24 | AD3: 24 | AE3: 24
I4: Max Power (total 2 Tx) w/o BF = | J4: =MAX(INDEX(E$18:EJ$967,B$8,E8),INDEX(E$18:EJ$967,B$9,E8)+3) -> 27 | L4: =IF(L3-3>3,L3-3,4) -> 24 | O4: PL1 = | P4: =L3 -> 27 | W4: 12 | X4: 24 | Y4: M2 | Z4: 24 | AA4: 24 | AB4: 24 | AC4: 24 | AD4: 24 | AE4: 24
A5: Reg Domain index | B5: ='5GHz Client Access'!A73 -> 2 | I5: Max Power (total 2 Tx) with BF = | J5: =INDEX(E$18:EJ$967,B$9,E9)+3 -> 22 | L5: =IF(L4-3>3,L4-3,4) -> 21 | O5: PL2 = | P5: =L4 -> 24 | W5: 18 | X5: 24 | Y5: M3 | Z5: 24 | AA5: 24 | AB5: 24 | AC5: 24 | AD5: 24 | AE5: 24
A6: Antenna gain index | B6: ='5GHz Client Access'!H62 -> 2 | D6: Rate index | E6: ='5GHz Client Access'!$W$94 -> 9 | I6: PL sequence = | J6: =IF(J7=1,MATCH(J$5,L$3:L$10,-1),MATCH(J$4,L$3:L$10,-1)) -> 1 | L6: 18 | O6: PL3 = | P6: =L5 -> 21 | W6: 24 | X6: 23 | Y6: M4 | Z6: 23 | AA6: 23 | AB6: 23 | AC6: 22 | AD6: 22 | AE6: 22
A7: Channel index | B7: ='5GHz Client Access'!P60 -> 4 | D7: Bandwidth index | E7: ='5GHz Client Access'!$T$60 -> 0 | I7: BF flag = | J7: =IF(J5+3>J4,1,0) -> 0 | L7: 15 | O7: PL4 = | P7: =L6 -> 18 | W7: 36 | X7: 23 | Y7: M5 | Z7: 23 | AA7: 22 | AB7: 22 | AC7: 21 | AD7: 21 | AE7: 21
A8: 1 ANT max pwr row | B8: =B9-1 -> 67 | D8: Rate Column w/o BF | E8: =IF(E$6<9,E$6,E$6+20*E$7) -> 9 | L8: 12 | O8: PL5 = | P8: =L7 -> 15 | W8: 48 | X8: 22 | Y8: M6 | Z8: 22 | AA8: 21 | AB8: 21 | AC8: 20 | AD8: 20 | AE8: 20
A9: 2 ANT max pwr row | B9: =50*(B$5-1)+10*(B$6-1)+2*B$7 -> 68 | D9: Rate Column with BF | E9: =E8+68 -> 77 | L9: 9 | W9: 54 | X9: 21 | Y9: M7 | Z9: 21 | AA9: 20 | AB9: 20 | AC9: 19 | AD9: 19 | AE9: 19
L10: 6 | Y10: M8 | Z10: 20 | AA10: 20 | AB10: 20 | AC10: 19 | AD10: 19 | AE10: 19
Y11: M9 | Z11: -99 | AA11: 19 | AB11: 19 | AC11: -99 | AD11: 18 | AE11: 18
D13: Max power for EVM | E13: 24 | F13: 24 | G13: 24 | H13: 24 | I13: 23 | J13: 23 | K13: 22 | L13: 21 | M13: 24 | N13: 24 | O13: 24 | P13: 24 | Q13: 23 | R13: 23 | S13: 22 | T13: 21 | U13: 20 | V13: -99 | W13: 24 | X13: 24 | Y13: 24 | Z13: 24 | AA13: 22 | AB13: 21 | AC13: 20 | AD13: 19 | AE13: 19 | AF13: -99 | AG13: 24 | AH13: 24 | AI13: 24 | AJ13: 24 | AK13: 23 | AL13: 22 | AM13: 21 | AN13: 20 | AO13: 20 | AP13: 19 | AQ13: 24 | AR13: 24 | AS13: 24 | AT13: 24 | AU13: 22 | AV13: 21 | AW13: 20 | AX13: 19 | AY13: 19 | AZ13: 18 | BA13: 24 | BB13: 24 | BC13: 24 | BD13: 24 | BE13: 23 | BF13: 22 | BG13: 21 | BH13: 20 | BI13: 20 | BJ13: 19 | BK13: 24 | BL13: 24 | BM13: 24 | BN13: 24 | BO13: 22 | BP13: 21 | BQ13: 20 | BR13: 19 | BS13: 19 | BT13: 18 | BU13: 24 | BV13: 24 | BW13: 24 | BX13: 24 | BY13: 23 | BZ13: 23 | CA13: 22 | CB13: 21 | CC13: 24 | CD13: 24 | CE13: 24 | CF13: 24 | CG13: 23 | CH13: 23 | CI13: 22 | CJ13: 21 | CK13: 20 | CL13: -99 | CM13: 24 | CN13: 24 | CO13: 24 | CP13: 24 | CQ13: 22 | CR13: 21 | CS13: 20 | CT13: 19 | CU13: 19 | CV13: -99 | CW13: 24 | CX13: 24 | CY13: 24 | CZ13: 24 | DA13: 23 | DB13: 22 | DC13: 21 | DD13: 20 | DE13: 20 | DF13: 19 | DG13: 24 | DH13: 24 | DI13: 24 | DJ13: 24 | DK13: 22 | DL13: 21 | DM13: 20 | DN13: 19 | DO13: 19 | DP13: 18 | DQ13: 24 | DR13: 24 | DS13: 24 | DT13: 24 | DU13: 23 | DV13: 22 | DW13: 21 | DX13: 20 | DY13: 20 | DZ13: 19 | EA13: 24 | EB13: 24 | EC13: 24 | ED13: 24 | EE13: 22 | EF13: 21 | EG13: 20 | EH13: 19 | EI13: 19 | EJ13: 18
D14: Column index | E14: 1 | F14: 2 | G14: 3 | H14: 4 | I14: 5 | J14: 6 | K14: 7 | L14: 8 | M14: 9 | N14: 10 | O14: 11 | P14: 12 | Q14: 13 | R14: 14 | S14: 15 | T14: 16 | U14: 17 | V14: 18 | W14: 19 | X14: 20 | Y14: 21 | Z14: 22 | AA14: 23 | AB14: 24 | AC14: 25 | AD14: 26 | AE14: 27 | AF14: 28 | AG14: 29 | AH14: 30 | AI14: 31 | AJ14: 32 | AK14: 33 | AL14: 34 | AM14: 35 | AN14: 36 | AO14: 37 | AP14: 38 | AQ14: 39 | AR14: 40 | AS14: 41 | AT14: 42 | AU14: 43 | AV14: 44 | AW14: 45 | AX14: 46 | AY14: 47 | AZ14: 48 | BA14: 49 | BB14: 50 | BC14: 51 | BD14: 52 | BE14: 53 | BF14: 54 | BG14: 55 | BH14: 56 | BI14: 57 | BJ14: 58 | BK14: 59 | BL14: 60 | BM14: 61 | BN14: 62 | BO14: 63 | BP14: 64 | BQ14: 65 | BR14: 66 | BS14: 67 | BT14: 68 | BU14: 69 | BV14: 70 | BW14: 71 | BX14: 72 | BY14: 73 | BZ14: 74 | CA14: 75 | CB14: 76 | CC14: 77 | CD14: 78 | CE14: 79 | CF14: 80 | CG14: 81 | CH14: 82 | CI14: 83 | CJ14: 84 | CK14: 85 | CL14: 86 | CM14: 87 | CN14: 88 | CO14: 89 | CP14: 90 | CQ14: 91 | CR14: 92 | CS14: 93 | CT14: 94 | CU14: 95 | CV14: 96 | CW14: 97 | CX14: 98 | CY14: 99 | CZ14: 100 | DA14: 101 | DB14: 102 | DC14: 103 | DD14: 104 | DE14: 105 | DF14: 106 | DG14: 107 | DH14: 108 | DI14: 109 | DJ14: 110 | DK14: 111 | DL14: 112 | DM14: 113 | DN14: 114 | DO14: 115 | DP14: 116 | DQ14: 117 | DR14: 118 | DS14: 119 | DT14: 120 | DU14: 121 | DV14: 122 | DW14: 123 | DX14: 124 | DY14: 125 | DZ14: 126 | EA14: 127 | EB14: 128 | EC14: 129 | ED14: 130 | EE14: 131 | EF14: 132 | EG14: 133 | EH14: 134 | EI14: 135 | EJ14: 136
A15: Rate Type | E15: OFDM | M15: HT/VHT20 1SS | W15: HT/VHT20 2SS | AG15: HT/VHT40 1SS | AQ15: HT/VHT40 2SS | BA15: VHT80 1SS | BK15: VHT80 2SS | BU15: OFDM LBF | CC15: HT/VHT20 1SS BF | CM15: HT/VHT20 2SS BF | CW15: HT/VHT40 1SS BF | DG15: HT/VHT40 2SS BF | DQ15: VHT80 1SS BF | EA15: VHT80 2SS BF
A16: Rate Index | E16: 1 | F16: 2 | G16: 3 | H16: 4 | I16: 5 | J16: 6 | K16: 7 | L16: 8 | M16: 9 | N16: 10 | O16: 11 | P16: 12 | Q16: 13 | R16: 14 | S16: 15 | T16: 16 | U16: 17 | V16: 18 | W16: 19 | X16: 20 | Y16: 21 | Z16: 22 | AA16: 23 | AB16: 24 | AC16: 25 | AD16: 26 | AE16: 27 | AF16: 28
B17: Reg Domain | C17: Sub band | D17: Ant Gain | E17: 6 | F17: 9 | G17: 12 | H17: 18 | I17: 24 | J17: 36 | K17: 48 | L17: 54 | M17: M0 | N17: M1 | O17: M2 | P17: M3 | Q17: M4 | R17: M5 | S17: M6 | T17: M7 | U17: M8 | V17: M9 | W17: M0 | X17: M1 | Y17: M2 | Z17: M3 | AA17: M4 | AB17: M5 | AC17: M6 | AD17: M7 | AE17: M8 | AF17: M9 | AG17: M0 | AH17: M1 | AI17: M2 | AJ17: M3 | AK17: M4 | AL17: M5 | AM17: M6 | AN17: M7 | AO17: M8 | AP17: M9 | AQ17: M0 | AR17: M1 | AS17: M2 | AT17: M3 | AU17: M4 | AV17: M5 | AW17: M6 | AX17: M7 | AY17: M8 | AZ17: M9 | BA17: M0 | BB17: M1 | BC17: M2 | BD17: M3 | BE17: M4 | BF17: M5 | BG17: M6 | BH17: M7 | BI17: M8 | BJ17: M9 | BK17: M0 | BL17: M1 | BM17: M2 | BN17: M3 | BO17: M4 | BP17: M5 | BQ17: M6 | BR17: M7 | BS17: M8 | BT17: M9 | BU17: 6 | BV17: 9 | BW17: 12 | BX17: 18 | BY17: 24 | BZ17: 36 | CA17: 48 | CB17: 54 | CC17: M0 | CD17: M1 | CE17: M2 | CF17: M3 | CG17: M4 | CH17: M5 | CI17: M6 | CJ17: M7 | CK17: M8 | CL17: M9 | CM17: M0 | CN17: M1 | CO17: M2 | CP17: M3 | CQ17: M4 | CR17: M5 | CS17: M6 | CT17: M7 | CU17: M8 | CV17: M9 | CW17: M0 | CX17: M1 | CY17: M2 | CZ17: M3 | DA17: M4 | DB17: M5 | DC17: M6 | DD17: M7 | DE17: M8 | DF17: M9 | DG17: M0 | DH17: M1 | DI17: M2 | DJ17: M3 | DK17: M4 | DL17: M5 | DM17: M6 | DN17: M7 | DO17: M8 | DP17: M9 | DQ17: M0 | DR17: M1 | DS17: M2 | DT17: M3 | DU17: M4 | DV17: M5 | DW17: M6 | DX17: M7 | DY17: M8 | DZ17: M9 | EA17: M0 | EB17: M1 | EC17: M2 | ED17: M3 | EE17: M4 | EF17: M5 | EG17: M6 | EH17: M7 | EI17: M8 | EJ17: M9 | EL17: Row index
A18: Single Antenna | B18: A | C18: UNII-1 | D18: 5 | E18: -99 | F18: -99 | G18: -99 | H18: -99 | I18: -99 | J18: -99 | K18: -99 | L18: -99 | M18: -99 | N18: -99 | O18: -99 | P18: -99 | Q18: -99 | R18: -99 | S18: -99 | T18: -99 | U18: -99 | V18: -99 | W18: -99 | X18: -99 | Y18: -99 | Z18: -99 | AA18: -99 | AB18: -99 | AC18: -99 | AD18: -99 | AE18: -99 | AF18: -99 | AG18: -99 | AH18: -99 | AI18: -99 | AJ18: -99 | AK18: -99 | AL18: -99 | AM18: -99 | AN18: -99 | AO18: -99 | AP18: -99 | AQ18: -99 | AR18: -99 | AS18: -99 | AT18: -99 | AU18: -99 | AV18: -99 | AW18: -99 | AX18: -99 | AY18: -99 | AZ18: -99 | BA18: -99 | BB18: -99 | BC18: -99 | BD18: -99 | BE18: -99 | BF18: -99 | BG18: -99 | BH18: -99 | BI18: -99 | BJ18: -99 | BK18: -99 | BL18: -99 | BM18: -99 | BN18: -99 | BO18: -99 | BP18: -99 | BQ18: -99 | BR18: -99 | BS18: -99 | BT18: -99 | BU18: -99 | BV18: -99 | BW18: -99 | BX18: -99 | BY18: -99 | BZ18: -99 | CA18: -99 | CB18: -99 | CC18: -99 | CD18: -99 | CE18: -99 | CF18: -99 | CG18: -99 | CH18: -99 | CI18: -99 | CJ18: -99 | CK18: -99 | CL18: -99 | CM18: -99 | CN18: -99 | CO18: -99 | CP18: -99 | CQ18: -99 | CR18: -99 | CS18: -99 | CT18: -99 | CU18: -99 | CV18: -99 | CW18: -99 | CX18: -99 | CY18: -99 | CZ18: -99 | DA18: -99 | DB18: -99 | DC18: -99 | DD18: -99 | DE18: -99 | DF18: -99 | DG18: -99 | DH18: -99 | DI18: -99 | DJ18: -99 | DK18: -99 | DL18: -99 | DM18: -99 | DN18: -99 | DO18: -99 | DP18: -99 | DQ18: -99 | DR18: -99 | DS18: -99 | DT18: -99 | DU18: -99 | DV18: -99 | DW18: -99 | DX18: -99 | DY18: -99 | DZ18: -99 | EA18: -99 | EB18: -99 | EC18: -99 | ED18: -99 | EE18: -99 | EF18: -99 | EG18: -99 | EH18: -99 | EI18: -99 | EJ18: -99 | EL18: 1
A19: Dual Antenna | B19: A | C19: UNII-1 | D19: 5 | E19: -99 | F19: -99 | G19: -99 | H19: -99 | I19: -99 | J19: -99 | K19: -99 | L19: -99 | M19: -99 | N19: -99 | O19: -99 | P19: -99 | Q19: -99 | R19: -99 | S19: -99 | T19: -99 | U19: -99 | V19: -99 | W19: -99 | X19: -99 | Y19: -99 | Z19: -99 | AA19: -99 | AB19: -99 | AC19: -99 | AD19: -99 | AE19: -99 | AF19: -99 | AG19: -99 | AH19: -99 | AI19: -99 | AJ19: -99 | AK19: -99 | AL19: -99 | AM19: -99 | AN19: -99 | AO19: -99 | AP19: -99 | AQ19: -99 | AR19: -99 | AS19: -99 | AT19: -99 | AU19: -99 | AV19: -99 | AW19: -99 | AX19: -99 | AY19: -99 | AZ19: -99 | BA19: -99 | BB19: -99 | BC19: -99 | BD19: -99 | BE19: -99 | BF19: -99 | BG19: -99 | BH19: -99 | BI19: -99 | BJ19: -99 | BK19: -99 | BL19: -99 | BM19: -99 | BN19: -99 | BO19: -99 | BP19: -99 | BQ19: -99 | BR19: -99 | BS19: -99 | BT19: -99 | BU19: -99 | BV19: -99 | BW19: -99 | BX19: -99 | BY19: -99 | BZ19: -99 | CA19: -99 | CB19: -99 | CC19: -99 | CD19: -99 | CE19: -99 | CF19: -99 | CG19: -99 | CH19: -99 | CI19: -99 | CJ19: -99 | CK19: -99 | CL19: -99 | CM19: -99 | CN19: -99 | CO19: -99 | CP19: -99 | CQ19: -99 | CR19: -99 | CS19: -99 | CT19: -99 | CU19: -99 | CV19: -99 | CW19: -99 | CX19: -99 | CY19: -99 | CZ19: -99 | DA19: -99 | DB19: -99 | DC19: -99 | DD19: -99 | DE19: -99 | DF19: -99 | DG19: -99 | DH19: -99 | DI19: -99 | DJ19: -99 | DK19: -99 | DL19: -99 | DM19: -99 | DN19: -99 | DO19: -99 | DP19: -99 | DQ19: -99 | DR19: -99 | DS19: -99 | DT19: -99 | DU19: -99 | DV19: -99 | DW19: -99 | DX19: -99 | DY19: -99 | DZ19: -99 | EA19: -99 | EB19: -99 | EC19: -99 | ED19: -99 | EE19: -99 | EF19: -99 | EG19: -99 | EH19: -99 | EI19: -99 | EJ19: -99 | EL19: 2
A20: Single Antenna | B20: A | C20: UNII-2A | D20: 5 | E20: 19 | F20: 19 | G20: 19 | H20: 19 | I20: 19 | J20: 19 | K20: 19 | L20: 19 | M20: 19 | N20: 19 | O20: 19 | P20: 19 | Q20: 19 | R20: 19 | S20: 19 | T20: 19 | U20: 19 | V20: -99 | W20: -99 | X20: -99 | Y20: -99 | Z20: -99 | AA20: -99 | AB20: -99 | AC20: -99 | AD20: -99 | AE20: -99 | AF20: -99 | AG20: 14 | AH20: 14 | AI20: 14 | AJ20: 14 | AK20: 14 | AL20: 14 | AM20: 14 | AN20: 14 | AO20: 14 | AP20: 14 | AQ20: -99 | AR20: -99 | AS20: -99 | AT20: -99 | AU20: -99 | AV20: -99 | AW20: -99 | AX20: -99 | AY20: -99 | AZ20: -99 | BA20: -99 | BB20: -99 | BC20: -99 | BD20: -99 | BE20: -99 | BF20: -99 | BG20: -99 | BH20: -99 | BI20: -99 | BJ20: -99 | BK20: -99 | BL20: -99 | BM20: -99 | BN20: -99 | BO20: -99 | BP20: -99 | BQ20: -99 | BR20: -99 | BS20: -99 | BT20: -99 | BU20: -99 | BV20: -99 | BW20: -99 | BX20: -99 | BY20: -99 | BZ20: -99 | CA20: -99 | CB20: -99 | CC20: -99 | CD20: -99 | CE20: -99 | CF20: -99 | CG20: -99 | CH20: -99 | CI20: -99 | CJ20: -99 | CK20: -99 | CL20: -99 | CM20: -99 | CN20: -99 | CO20: -99 | CP20: -99 | CQ20: -99 | CR20: -99 | CS20: -99 | CT20: -99 | CU20: -99 | CV20: -99 | CW20: -99 | CX20: -99 | CY20: -99 | CZ20: -99 | DA20: -99 | DB20: -99 | DC20: -99 | DD20: -99 | DE20: -99 | DF20: -99 | DG20: -99 | DH20: -99 | DI20: -99 | DJ20: -99 | DK20: -99 | DL20: -99 | DM20: -99 | DN20: -99 | DO20: -99 | DP20: -99 | DQ20: -99 | DR20: -99 | DS20: -99 | DT20: -99 | DU20: -99 | DV20: -99 | DW20: -99 | DX20: -99 | DY20: -99 | DZ20: -99 | EA20: -99 | EB20: -99 | EC20: -99 | ED20: -99 | EE20: -99 | EF20: -99 | EG20: -99 | EH20: -99 | EI20: -99 | EJ20: -99 | EL20: 3
A21: Dual Antenna | B21: A | C21: UNII-2A | D21: 5 | E21: 16 | F21: 16 | G21: 16 | H21: 16 | I21: 16 | J21: 16 | K21: 16 | L21: 16 | M21: 16 | N21: 16 | O21: 16 | P21: 16 | Q21: 16 | R21: 16 | S21: 16 | T21: 16 | U21: 16 | V21: -99 | W21: 16 | X21: 16 | Y21: 16 | Z21: 16 | AA21: 16 | AB21: 16 | AC21: 16 | AD21: 16 | AE21: 16 | AF21: -99 | AG21: 13 | AH21: 13 | AI21: 13 | AJ21: 13 | AK21: 13 | AL21: 13 | AM21: 13 | AN21: 13 | AO21: 13 | AP21: 13 | AQ21: 13 | AR21: 13 | AS21: 13 | AT21: 13 | AU21: 13 | AV21: 13 | AW21: 13 | AX21: 13 | AY21: 13 | AZ21: 13 | BA21: -99 | BB21: -99 | BC21: -99 | BD21: -99 | BE21: -99 | BF21: -99 | BG21: -99 | BH21: -99 | BI21: -99 | BJ21: -99 | BK21: -99 | BL21: -99 | BM21: -99 | BN21: -99 | BO21: -99 | BP21: -99 | BQ21: -99 | BR21: -99 | BS21: -99 | BT21: -99 | BU21: 12 | BV21: 12 | BW21: 12 | BX21: 12 | BY21: 12 | BZ21: 12 | CA21: 12 | CB21: 12 | CC21: 12 | CD21: 12 | CE21: 12 | CF21: 12 | CG21: 12 | CH21: 12 | CI21: 12 | CJ21: 12 | CK21: 12 | CL21: -99 | CM21: 16 | CN21: 16 | CO21: 16 | CP21: 16 | CQ21: 16 | CR21: 16 | CS21: 16 | CT21: 16 | CU21: 16 | CV21: -99 | CW21: 13 | CX21: 13 | CY21: 13 | CZ21: 13 | DA21: 13 | DB21: 13 | DC21: 13 | DD21: 13 | DE21: 13 | DF21: 13 | DG21: 13 | DH21: 13 | DI21: 13 | DJ21: 13 | DK21: 13 | DL21: 13 | DM21: 13 | DN21: 13 | DO21: 13 | DP21: 13 | DQ21: -99 | DR21: -99 | DS21: -99 | DT21: -99 | DU21: -99 | DV21: -99 | DW21: -99 | DX21: -99 | DY21: -99 | DZ21: -99 | EA21: -99 | EB21: -99 | EC21: -99 | ED21: -99 | EE21: -99 | EF21: -99 | EG21: -99 | EH21: -99 | EI21: -99 | EJ21: -99 | EL21: 4
A22: Single Antenna | B22: A | C22: UNII-2C | D22: 5 | E22: 23 | F22: 23 | G22: 23 | H22: 23 | I22: 23 | J22: 23 | K22: 22 | L22: 21 | M22: 23 | N22: 23 | O22: 23 | P22: 23 | Q22: 23 | R22: 23 | S22: 22 | T22: 21 | U22: 20 | V22: -99 | W22: -99 | X22: -99 | Y22: -99 | Z22: -99 | AA22: -99 | AB22: -99 | AC22: -99 | AD22: -99 | AE22: -99 | AF22: -99 | AG22: 24 | AH22: 24 | AI22: 24 | AJ22: 24 | AK22: 23 | AL22: 22 | AM22: 21 | AN22: 20 | AO22: 20 | AP22: 19 | AQ22: -99 | AR22: -99 | AS22: -99 | AT22: -99 | AU22: -99 | AV22: -99 | AW22: -99 | AX22: -99 | AY22: -99 | AZ22: -99 | BA22: 15 | BB22: 15 | BC22: 15 | BD22: 15 | BE22: 15 | BF22: 15 | BG22: 15 | BH22: 15 | BI22: 15 | BJ22: 15 | BK22: -99 | BL22: -99 | BM22: -99 | BN22: -99 | BO22: -99 | BP22: -99 | BQ22: -99 | BR22: -99 | BS22: -99 | BT22: -99 | BU22: -99 | BV22: -99 | BW22: -99 | BX22: -99 | BY22: -99 | BZ22: -99 | CA22: -99 | CB22: -99 | CC22: -99 | CD22: -99 | CE22: -99 | CF22: -99 | CG22: -99 | CH22: -99 | CI22: -99 | CJ22: -99 | CK22: -99 | CL22: -99 | CM22: -99 | CN22: -99 | CO22: -99 | CP22: -99 | CQ22: -99 | CR22: -99 | CS22: -99 | CT22: -99 | CU22: -99 | CV22: -99 | CW22: -99 | CX22: -99 | CY22: -99 | CZ22: -99 | DA22: -99 | DB22: -99 | DC22: -99 | DD22: -99 | DE22: -99 | DF22: -99 | DG22: -99 | DH22: -99 | DI22: -99 | DJ22: -99 | DK22: -99 | DL22: -99 | DM22: -99 | DN22: -99 | DO22: -99 | DP22: -99 | DQ22: -99 | DR22: -99 | DS22: -99 | DT22: -99 | DU22: -99 | DV22: -99 | DW22: -99 | DX22: -99 | DY22: -99 | DZ22: -99 | EA22: -99 | EB22: -99 | EC22: -99 | ED22: -99 | EE22: -99 | EF22: -99 | EG22: -99 | EH22: -99 | EI22: -99 | EJ22: -99 | EL22: 5
A23: Dual Antenna | B23: A | C23: UNII-2C | D23: 5 | E23: 16 | F23: 16 | G23: 16 | H23: 16 | I23: 16 | J23: 16 | K23: 16 | L23: 16 | M23: 16 | N23: 16 | O23: 16 | P23: 16 | Q23: 16 | R23: 16 | S23: 16 | T23: 16 | U23: 16 | V23: -99 | W23: 20 | X23: 20 | Y23: 20 | Z23: 20 | AA23: 20 | AB23: 20 | AC23: 20 | AD23: 19 | AE23: 19 | AF23: -99 | AG23: 19 | AH23: 19 | AI23: 19 | AJ23: 19 | AK23: 19 | AL23: 19 | AM23: 19 | AN23: 19 | AO23: 19 | AP23: 19 | AQ23: 20 | AR23: 20 | AS23: 20 | AT23: 20 | AU23: 20 | AV23: 20 | AW23: 20 | AX23: 19 | AY23: 19 | AZ23: 18 | BA23: 13 | BB23: 13 | BC23: 13 | BD23: 13 | BE23: 13 | BF23: 13 | BG23: 13 | BH23: 13 | BI23: 13 | BJ23: 13 | BK23: 13 | BL23: 13 | BM23: 13 | BN23: 13 | BO23: 13 | BP23: 13 | BQ23: 13 | BR23: 13 | BS23: 13 | BT23: 13 | BU23: 16 | BV23: 16 | BW23: 16 | BX23: 16 | BY23: 16 | BZ23: 16 | CA23: 16 | CB23: 16 | CC23: 16 | CD23: 16 | CE23: 16 | CF23: 16 | CG23: 16 | CH23: 16 | CI23: 16 | CJ23: 16 | CK23: 16 | CL23: -99 | CM23: 20 | CN23: 20 | CO23: 20 | CP23: 20 | CQ23: 20 | CR23: 20 | CS23: 20 | CT23: 19 | CU23: 19 | CV23: -99 | CW23: 17 | CX23: 17 | CY23: 17 | CZ23: 17 | DA23: 17 | DB23: 17 | DC23: 17 | DD23: 17 | DE23: 17 | DF23: 17 | DG23: 20 | DH23: 20 | DI23: 20 | DJ23: 20 | DK23: 20 | DL23: 20 | DM23: 20 | DN23: 19 | DO23: 19 | DP23: 18 | DQ23: 11 | DR23: 11 | DS23: 11 | DT23: 11 | DU23: 11 | DV23: 11 | DW23: 11 | DX23: 11 | DY23: 11 | DZ23: 11 | EA23: 13 | EB23: 13 | EC23: 13 | ED23: 13 | EE23: 13 | EF23: 13 | EG23: 13 | EH23: 13 | EI23: 13 | EJ23: 13 | EL23: 6
A24: Single Antenna | B24: A | C24: UNII-3 | D24: 5 | E24: 24 | F24: 24 | G24: 24 | H24: 24 | I24: 23 | J24: 23 | K24: 22 | L24: 21 | M24: 24 | N24: 24 | O24: 24 | P24: 24 | Q24: 23 | R24: 23 | S24: 22 | T24: 21 | U24: 20 | V24: -99 | W24: -99 | X24: -99 | Y24: -99 | Z24: -99 | AA24: -99 | AB24: -99 | AC24: -99 | AD24: -99 | AE24: -99 | AF24: -99 | AG24: 24 | AH24: 24 | AI24: 24 | AJ24: 24 | AK24: 23 | AL24: 22 | AM24: 21 | AN24: 20 | AO24: 20 | AP24: 19 | AQ24: -99 | AR24: -99 | AS24: -99 | AT24: -99 | AU24: -99 | AV24: -99 | AW24: -99 | AX24: -99 | AY24: -99 | AZ24: -99 | BA24: 24 | BB24: 24 | BC24: 24 | BD24: 24 | BE24: 23 | BF24: 22 | BG24: 21 | BH24: 20 | BI24: 20 | BJ24: 19 | BK24: -99 | BL24: -99 | BM24: -99 | BN24: -99 | BO24: -99 | BP24: -99 | BQ24: -99 | BR24: -99 | BS24: -99 | BT24: -99 | BU24: -99 | BV24: -99 | BW24: -99 | BX24: -99 | BY24: -99 | BZ24: -99 | CA24: -99 | CB24: -99 | CC24: -99 | CD24: -99 | CE24: -99 | CF24: -99 | CG24: -99 | CH24: -99 | CI24: -99 | CJ24: -99 | CK24: -99 | CL24: -99 | CM24: -99 | CN24: -99 | CO24: -99 | CP24: -99 | CQ24: -99 | CR24: -99 | CS24: -99 | CT24: -99 | CU24: -99 | CV24: -99 | CW24: -99 | CX24: -99 | CY24: -99 | CZ24: -99 | DA24: -99 | DB24: -99 | DC24: -99 | DD24: -99 | DE24: -99 | DF24: -99 | DG24: -99 | DH24: -99 | DI24: -99 | DJ24: -99 | DK24: -99 | DL24: -99 | DM24: -99 | DN24: -99 | DO24: -99 | DP24: -99 | DQ24: -99 | DR24: -99 | DS24: -99 | DT24: -99 | DU24: -99 | DV24: -99 | DW24: -99 | DX24: -99 | DY24: -99 | DZ24: -99 | EA24: -99 | EB24: -99 | EC24: -99 | ED24: -99 | EE24: -99 | EF24: -99 | EG24: -99 | EH24: -99 | EI24: -99 | EJ24: -99 | EL24: 7
A25: Dual Antenna | B25: A | C25: UNII-3 | D25: 5 | E25: 24 | F25: 24 | G25: 24 | H25: 24 | I25: 23 | J25: 23 | K25: 22 | L25: 21 | M25: 20 | N25: 20 | O25: 20 | P25: 20 | Q25: 20 | R25: 20 | S25: 20 | T25: 20 | U25: 20 | V25: -99 | W25: 20 | X25: 20 | Y25: 20 | Z25: 20 | AA25: 20 | AB25: 20 | AC25: 20 | AD25: 19 | AE25: 19 | AF25: -99 | AG25: 20 | AH25: 20 | AI25: 20 | AJ25: 20 | AK25: 20 | AL25: 20 | AM25: 20 | AN25: 20 | AO25: 20 | AP25: 19 | AQ25: 20 | AR25: 20 | AS25: 20 | AT25: 20 | AU25: 20 | AV25: 20 | AW25: 20 | AX25: 19 | AY25: 19 | AZ25: 18 | BA25: 24 | BB25: 24 | BC25: 24 | BD25: 24 | BE25: 23 | BF25: 22 | BG25: 21 | BH25: 20 | BI25: 20 | BJ25: 19 | BK25: 24 | BL25: 24 | BM25: 24 | BN25: 24 | BO25: 22 | BP25: 21 | BQ25: 20 | BR25: 19 | BS25: 19 | BT25: 18 | BU25: 24 | BV25: 24 | BW25: 24 | BX25: 24 | BY25: 23 | BZ25: 23 | CA25: 22 | CB25: 21 | CC25: 18 | CD25: 18 | CE25: 18 | CF25: 18 | CG25: 18 | CH25: 18 | CI25: 18 | CJ25: 18 | CK25: 18 | CL25: -99 | CM25: 20 | CN25: 20 | CO25: 20 | CP25: 20 | CQ25: 20 | CR25: 20 | CS25: 20 | CT25: 19 | CU25: 19 | CV25: -99 | CW25: 18 | CX25: 18 | CY25: 18 | CZ25: 18 | DA25: 18 | DB25: 18 | DC25: 18 | DD25: 18 | DE25: 18 | DF25: 18 | DG25: 20 | DH25: 20 | DI25: 20 | DJ25: 20 | DK25: 20 | DL25: 20 | DM25: 20 | DN25: 19 | DO25: 19 | DP25: 18 | DQ25: 18 | DR25: 18 | DS25: 18 | DT25: 18 | DU25: 18 | DV25: 18 | DW25: 18 | DX25: 18 | DY25: 18 | DZ25: 18 | EA25: 24 | EB25: 24 | EC25: 24 | ED25: 24 | EE25: 22 | EF25: 21 | EG25: 20 | EH25: 19 | EI25: 19 | EJ25: 18 | EL25: 8
A26: Single Antenna | B26: A | C26: 5845, 5865 | D26: 5 | E26: -99 | F26: -99 | G26: -99 | H26: -99 | I26: -99 | J26: -99 | K26: -99 | L26: -99 | M26: -99 | N26: -99 | O26: -99 | P26: -99 | Q26: -99 | R26: -99 | S26: -99 | T26: -99 | U26: -99 | V26: -99 | W26: -99 | X26: -99 | Y26: -99 | Z26: -99 | AA26: -99 | AB26: -99 | AC26: -99 | AD26: -99 | AE26: -99 | AF26: -99 | AG26: -99 | AH26: -99 | AI26: -99 | AJ26: -99 | AK26: -99 | AL26: -99 | AM26: -99 | AN26: -99 | AO26: -99 | AP26: -99 | AQ26: -99 | AR26: -99 | AS26: -99 | AT26: -99 | AU26: -99 | AV26: -99 | AW26: -99 | AX26: -99 | AY26: -99 | AZ26: -99 | BA26: -99 | BB26: -99 | BC26: -99 | BD26: -99 | BE26: -99 | BF26: -99 | BG26: -99 | BH26: -99 | BI26: -99 | BJ26: -99 | BK26: -99 | BL26: -99 | BM26: -99 | BN26: -99 | BO26: -99 | BP26: -99 | BQ26: -99 | BR26: -99 | BS26: -99 | BT26: -99 | BU26: -99 | BV26: -99 | BW26: -99 | BX26: -99 | BY26: -99 | BZ26: -99 | CA26: -99 | CB26: -99 | CC26: -99 | CD26: -99 | CE26: -99 | CF26: -99 | CG26: -99 | CH26: -99 | CI26: -99 | CJ26: -99 | CK26: -99 | CL26: -99 | CM26: -99 | CN26: -99 | CO26: -99 | CP26: -99 | CQ26: -99 | CR26: -99 | CS26: -99 | CT26: -99 | CU26: -99 | CV26: -99 | CW26: -99 | CX26: -99 | CY26: -99 | CZ26: -99 | DA26: -99 | DB26: -99 | DC26: -99 | DD26: -99 | DE26: -99 | DF26: -99 | DG26: -99 | DH26: -99 | DI26: -99 | DJ26: -99 | DK26: -99 | DL26: -99 | DM26: -99 | DN26: -99 | DO26: -99 | DP26: -99 | DQ26: -99 | DR26: -99 | DS26: -99 | DT26: -99 | DU26: -99 | DV26: -99 | DW26: -99 | DX26: -99 | DY26: -99 | DZ26: -99 | EA26: -99 | EB26: -99 | EC26: -99 | ED26: -99 | EE26: -99 | EF26: -99 | EG26: -99 | EH26: -99 | EI26: -99 | EJ26: -99 | EL26: 9
A27: Dual Antenna | B27: A | C27: 5845, 5865 | D27: 5 | E27: -99 | F27: -99 | G27: -99 | H27: -99 | I27: -99 | J27: -99 | K27: -99 | L27: -99 | M27: -99 | N27: -99 | O27: -99 | P27: -99 | Q27: -99 | R27: -99 | S27: -99 | T27: -99 | U27: -99 | V27: -99 | W27: -99 | X27: -99 | Y27: -99 | Z27: -99 | AA27: -99 | AB27: -99 | AC27: -99 | AD27: -99 | AE27: -99 | AF27: -99 | AG27: -99 | AH27: -99 | AI27: -99 | AJ27: -99 | AK27: -99 | AL27: -99 | AM27: -99 | AN27: -99 | AO27: -99 | AP27: -99 | AQ27: -99 | AR27: -99 | AS27: -99 | AT27: -99 | AU27: -99 | AV27: -99 | AW27: -99 | AX27: -99 | AY27: -99 | AZ27: -99 | BA27: -99 | BB27: -99 | BC27: -99 | BD27: -99 | BE27: -99 | BF27: -99 | BG27: -99 | BH27: -99 | BI27: -99 | BJ27: -99 | BK27: -99 | BL27: -99 | BM27: -99 | BN27: -99 | BO27: -99 | BP27: -99 | BQ27: -99 | BR27: -99 | BS27: -99 | BT27: -99 | BU27: -99 | BV27: -99 | BW27: -99 | BX27: -99 | BY27: -99 | BZ27: -99 | CA27: -99 | CB27: -99 | CC27: -99 | CD27: -99 | CE27: -99 | CF27: -99 | CG27: -99 | CH27: -99 | CI27: -99 | CJ27: -99 | CK27: -99 | CL27: -99 | CM27: -99 | CN27: -99 | CO27: -99 | CP27: -99 | CQ27: -99 | CR27: -99 | CS27: -99 | CT27: -99 | CU27: -99 | CV27: -99 | CW27: -99 | CX27: -99 | CY27: -99 | CZ27: -99 | DA27: -99 | DB27: -99 | DC27: -99 | DD27: -99 | DE27: -99 | DF27: -99 | DG27: -99 | DH27: -99 | DI27: -99 | DJ27: -99 | DK27: -99 | DL27: -99 | DM27: -99 | DN27: -99 | DO27: -99 | DP27: -99 | DQ27: -99 | DR27: -99 | DS27: -99 | DT27: -99 | DU27: -99 | DV27: -99 | DW27: -99 | DX27: -99 | DY27: -99 | DZ27: -99 | EA27: -99 | EB27: -99 | EC27: -99 | ED27: -99 | EE27: -99 | EF27: -99 | EG27: -99 | EH27: -99 | EI27: -99 | EJ27: -99 | EL27: 10
A28: Single Antenna | B28: A | C28: UNII-1 | D28: 7 | E28: -99 | F28: -99 | G28: -99 | H28: -99 | I28: -99 | J28: -99 | K28: -99 | L28: -99 | M28: -99 | N28: -99 | O28: -99 | P28: -99 | Q28: -99 | R28: -99 | S28: -99 | T28: -99 | U28: -99 | V28: -99 | W28: -99 | X28: -99 | Y28: -99 | Z28: -99 | AA28: -99 | AB28: -99 | AC28: -99 | AD28: -99 | AE28: -99 | AF28: -99 | AG28: -99 | AH28: -99 | AI28: -99 | AJ28: -99 | AK28: -99 | AL28: -99 | AM28: -99 | AN28: -99 | AO28: -99 | AP28: -99 | AQ28: -99 | AR28: -99 | AS28: -99 | AT28: -99 | AU28: -99 | AV28: -99 | AW28: -99 | AX28: -99 | AY28: -99 | AZ28: -99 | BA28: -99 | BB28: -99 | BC28: -99 | BD28: -99 | BE28: -99 | BF28: -99 | BG28: -99 | BH28: -99 | BI28: -99 | BJ28: -99 | BK28: -99 | BL28: -99 | BM28: -99 | BN28: -99 | BO28: -99 | BP28: -99 | BQ28: -99 | BR28: -99 | BS28: -99 | BT28: -99 | BU28: -99 | BV28: -99 | BW28: -99 | BX28: -99 | BY28: -99 | BZ28: -99 | CA28: -99 | CB28: -99 | CC28: -99 | CD28: -99 | CE28: -99 | CF28: -99 | CG28: -99 | CH28: -99 | CI28: -99 | CJ28: -99 | CK28: -99 | CL28: -99 | CM28: -99 | CN28: -99 | CO28: -99 | CP28: -99 | CQ28: -99 | CR28: -99 | CS28: -99 | CT28: -99 | CU28: -99 | CV28: -99 | CW28: -99 | CX28: -99 | CY28: -99 | CZ28: -99 | DA28: -99 | DB28: -99 | DC28: -99 | DD28: -99 | DE28: -99 | DF28: -99 | DG28: -99 | DH28: -99 | DI28: -99 | DJ28: -99 | DK28: -99 | DL28: -99 | DM28: -99 | DN28: -99 | DO28: -99 | DP28: -99 | DQ28: -99 | DR28: -99 | DS28: -99 | DT28: -99 | DU28: -99 | DV28: -99 | DW28: -99 | DX28: -99 | DY28: -99 | DZ28: -99 | EA28: -99 | EB28: -99 | EC28: -99 | ED28: -99 | EE28: -99 | EF28: -99 | EG28: -99 | EH28: -99 | EI28: -99 | EJ28: -99 | EL28: 11
A29: Dual Antenna | B29: A | C29: UNII-1 | D29: 7 | E29: -99 | F29: -99 | G29: -99 | H29: -99 | I29: -99 | J29: -99 | K29: -99 | L29: -99 | M29: -99 | N29: -99 | O29: -99 | P29: -99 | Q29: -99 | R29: -99 | S29: -99 | T29: -99 | U29: -99 | V29: -99 | W29: -99 | X29: -99 | Y29: -99 | Z29: -99 | AA29: -99 | AB29: -99 | AC29: -99 | AD29: -99 | AE29: -99 | AF29: -99 | AG29: -99 | AH29: -99 | AI29: -99 | AJ29: -99 | AK29: -99 | AL29: -99 | AM29: -99 | AN29: -99 | AO29: -99 | AP29: -99 | AQ29: -99 | AR29: -99 | AS29: -99 | AT29: -99 | AU29: -99 | AV29: -99 | AW29: -99 | AX29: -99 | AY29: -99 | AZ29: -99 | BA29: -99 | BB29: -99 | BC29: -99 | BD29: -99 | BE29: -99 | BF29: -99 | BG29: -99 | BH29: -99 | BI29: -99 | BJ29: -99 | BK29: -99 | BL29: -99 | BM29: -99 | BN29: -99 | BO29: -99 | BP29: -99 | BQ29: -99 | BR29: -99 | BS29: -99 | BT29: -99 | BU29: -99 | BV29: -99 | BW29: -99 | BX29: -99 | BY29: -99 | BZ29: -99 | CA29: -99 | CB29: -99 | CC29: -99 | CD29: -99 | CE29: -99 | CF29: -99 | CG29: -99 | CH29: -99 | CI29: -99 | CJ29: -99 | CK29: -99 | CL29: -99 | CM29: -99 | CN29: -99 | CO29: -99 | CP29: -99 | CQ29: -99 | CR29: -99 | CS29: -99 | CT29: -99 | CU29: -99 | CV29: -99 | CW29: -99 | CX29: -99 | CY29: -99 | CZ29: -99 | DA29: -99 | DB29: -99 | DC29: -99 | DD29: -99 | DE29: -99 | DF29: -99 | DG29: -99 | DH29: -99 | DI29: -99 | DJ29: -99 | DK29: -99 | DL29: -99 | DM29: -99 | DN29: -99 | DO29: -99 | DP29: -99 | DQ29: -99 | DR29: -99 | DS29: -99 | DT29: -99 | DU29: -99 | DV29: -99 | DW29: -99 | DX29: -99 | DY29: -99 | DZ29: -99 | EA29: -99 | EB29: -99 | EC29: -99 | ED29: -99 | EE29: -99 | EF29: -99 | EG29: -99 | EH29: -99 | EI29: -99 | EJ29: -99 | EL29: 12
A30: Single Antenna | B30: A | C30: UNII-2A | D30: 7 | E30: 18 | F30: 18 | G30: 18 | H30: 18 | I30: 18 | J30: 18 | K30: 18 | L30: 18 | M30: 16 | N30: 16 | O30: 16 | P30: 16 | Q30: 16 | R30: 16 | S30: 16 | T30: 16 | U30: 16 | V30: -99 | W30: -99 | X30: -99 | Y30: -99 | Z30: -99 | AA30: -99 | AB30: -99 | AC30: -99 | AD30: -99 | AE30: -99 | AF30: -99 | AG30: 13 | AH30: 13 | AI30: 13 | AJ30: 13 | AK30: 13 | AL30: 13 | AM30: 13 | AN30: 13 | AO30: 13 | AP30: 13 | AQ30: -99 | AR30: -99 | AS30: -99 | AT30: -99 | AU30: -99 | AV30: -99 | AW30: -99 | AX30: -99 | AY30: -99 | AZ30: -99 | BA30: -99 | BB30: -99 | BC30: -99 | BD30: -99 | BE30: -99 | BF30: -99 | BG30: -99 | BH30: -99 | BI30: -99 | BJ30: -99 | BK30: -99 | BL30: -99 | BM30: -99 | BN30: -99 | BO30: -99 | BP30: -99 | BQ30: -99 | BR30: -99 | BS30: -99 | BT30: -99 | BU30: -99 | BV30: -99 | BW30: -99 | BX30: -99 | BY30: -99 | BZ30: -99 | CA30: -99 | CB30: -99 | CC30: -99 | CD30: -99 | CE30: -99 | CF30: -99 | CG30: -99 | CH30: -99 | CI30: -99 | CJ30: -99 | CK30: -99 | CL30: -99 | CM30: -99 | CN30: -99 | CO30: -99 | CP30: -99 | CQ30: -99 | CR30: -99 | CS30: -99 | CT30: -99 | CU30: -99 | CV30: -99 | CW30: -99 | CX30: -99 | CY30: -99 | CZ30: -99 | DA30: -99 | DB30: -99 | DC30: -99 | DD30: -99 | DE30: -99 | DF30: -99 | DG30: -99 | DH30: -99 | DI30: -99 | DJ30: -99 | DK30: -99 | DL30: -99 | DM30: -99 | DN30: -99 | DO30: -99 | DP30: -99 | DQ30: -99 | DR30: -99 | DS30: -99 | DT30: -99 | DU30: -99 | DV30: -99 | DW30: -99 | DX30: -99 | DY30: -99 | DZ30: -99 | EA30: -99 | EB30: -99 | EC30: -99 | ED30: -99 | EE30: -99 | EF30: -99 | EG30: -99 | EH30: -99 | EI30: -99 | EJ30: -99 | EL30: 13
A31: Dual Antenna | B31: A | C31: UNII-2A | D31: 7 | E31: 14 | F31: 14 | G31: 14 | H31: 14 | I31: 14 | J31: 14 | K31: 14 | L31: 14 | M31: 14 | N31: 14 | O31: 14 | P31: 14 | Q31: 14 | R31: 14 | S31: 14 | T31: 14 | U31: 14 | V31: -99 | W31: 13 | X31: 13 | Y31: 13 | Z31: 13 | AA31: 13 | AB31: 13 | AC31: 13 | AD31: 13 | AE31: 13 | AF31: -99 | AG31: 13 | AH31: 13 | AI31: 13 | AJ31: 13 | AK31: 13 | AL31: 13 | AM31: 13 | AN31: 13 | AO31: 13 | AP31: 13 | AQ31: 12 | AR31: 12 | AS31: 12 | AT31: 12 | AU31: 12 | AV31: 12 | AW31: 12 | AX31: 12 | AY31: 12 | AZ31: 12 | BA31: -99 | BB31: -99 | BC31: -99 | BD31: -99 | BE31: -99 | BF31: -99 | BG31: -99 | BH31: -99 | BI31: -99 | BJ31: -99 | BK31: -99 | BL31: -99 | BM31: -99 | BN31: -99 | BO31: -99 | BP31: -99 | BQ31: -99 | BR31: -99 | BS31: -99 | BT31: -99 | BU31: 11 | BV31: 11 | BW31: 11 | BX31: 11 | BY31: 11 | BZ31: 11 | CA31: 11 | CB31: 11 | CC31: 10 | CD31: 10 | CE31: 10 | CF31: 10 | CG31: 10 | CH31: 10 | CI31: 10 | CJ31: 10 | CK31: 10 | CL31: -99 | CM31: 13 | CN31: 13 | CO31: 13 | CP31: 13 | CQ31: 13 | CR31: 13 | CS31: 13 | CT31: 13 | CU31: 13 | CV31: -99 | CW31: 11 | CX31: 11 | CY31: 11 | CZ31: 11 | DA31: 11 | DB31: 11 | DC31: 11 | DD31: 11 | DE31: 11 | DF31: 11 | DG31: 12 | DH31: 12 | DI31: 12 | DJ31: 12 | DK31: 12 | DL31: 12 | DM31: 12 | DN31: 12 | DO31: 12 | DP31: 12 | DQ31: -99 | DR31: -99 | DS31: -99 | DT31: -99 | DU31: -99 | DV31: -99 | DW31: -99 | DX31: -99 | DY31: -99 | DZ31: -99 | EA31: -99 | EB31: -99 | EC31: -99 | ED31: -99 | EE31: -99 | EF31: -99 | EG31: -99 | EH31: -99 | EI31: -99 | EJ31: -99 | EL31: 14
A32: Single Antenna | B32: A | C32: UNII-2C | D32: 7 | E32: 20 | F32: 20 | G32: 20 | H32: 20 | I32: 20 | J32: 20 | K32: 20 | L32: 20 | M32: 20 | N32: 20 | O32: 20 | P32: 20 | Q32: 20 | R32: 20 | S32: 20 | T32: 20 | U32: 20 | V32: -99 | W32: -99 | X32: -99 | Y32: -99 | Z32: -99 | AA32: -99 | AB32: -99 | AC32: -99 | AD32: -99 | AE32: -99 | AF32: -99 | AG32: 22 | AH32: 22 | AI32: 22 | AJ32: 22 | AK32: 22 | AL32: 22 | AM32: 21 | AN32: 20 | AO32: 20 | AP32: 19 | AQ32: -99 | AR32: -99 | AS32: -99 | AT32: -99 | AU32: -99 | AV32: -99 | AW32: -99 | AX32: -99 | AY32: -99 | AZ32: -99 | BA32: 14 | BB32: 14 | BC32: 14 | BD32: 14 | BE32: 14 | BF32: 14 | BG32: 14 | BH32: 14 | BI32: 14 | BJ32: 14 | BK32: -99 | BL32: -99 | BM32: -99 | BN32: -99 | BO32: -99 | BP32: -99 | BQ32: -99 | BR32: -99 | BS32: -99 | BT32: -99 | BU32: -99 | BV32: -99 | BW32: -99 | BX32: -99 | BY32: -99 | BZ32: -99 | CA32: -99 | CB32: -99 | CC32: -99 | CD32: -99 | CE32: -99 | CF32: -99 | CG32: -99 | CH32: -99 | CI32: -99 | CJ32: -99 | CK32: -99 | CL32: -99 | CM32: -99 | CN32: -99 | CO32: -99 | CP32: -99 | CQ32: -99 | CR32: -99 | CS32: -99 | CT32: -99 | CU32: -99 | CV32: -99 | CW32: -99 | CX32: -99 | CY32: -99 | CZ32: -99 | DA32: -99 | DB32: -99 | DC32: -99 | DD32: -99 | DE32: -99 | DF32: -99 | DG32: -99 | DH32: -99 | DI32: -99 | DJ32: -99 | DK32: -99 | DL32: -99 | DM32: -99 | DN32: -99 | DO32: -99 | DP32: -99 | DQ32: -99 | DR32: -99 | DS32: -99 | DT32: -99 | DU32: -99 | DV32: -99 | DW32: -99 | DX32: -99 | DY32: -99 | DZ32: -99 | EA32: -99 | EB32: -99 | EC32: -99 | ED32: -99 | EE32: -99 | EF32: -99 | EG32: -99 | EH32: -99 | EI32: -99 | EJ32: -99 | EL32: 15
A33: Dual Antenna | B33: A | C33: UNII-2C | D33: 7 | E33: 14 | F33: 14 | G33: 14 | H33: 14 | I33: 14 | J33: 14 | K33: 14 | L33: 14 | M33: 14 | N33: 14 | O33: 14 | P33: 14 | Q33: 14 | R33: 14 | S33: 14 | T33: 14 | U33: 14 | V33: -99 | W33: 17 | X33: 17 | Y33: 17 | Z33: 17 | AA33: 17 | AB33: 17 | AC33: 17 | AD33: 17 | AE33: 17 | AF33: -99 | AG33: 17 | AH33: 17 | AI33: 17 | AJ33: 17 | AK33: 17 | AL33: 17 | AM33: 17 | AN33: 17 | AO33: 17 | AP33: 17 | AQ33: 18 | AR33: 18 | AS33: 18 | AT33: 18 | AU33: 18 | AV33: 18 | AW33: 18 | AX33: 18 | AY33: 18 | AZ33: 18 | BA33: 12 | BB33: 12 | BC33: 12 | BD33: 12 | BE33: 12 | BF33: 12 | BG33: 12 | BH33: 12 | BI33: 12 | BJ33: 12 | BK33: 12 | BL33: 12 | BM33: 12 | BN33: 12 | BO33: 12 | BP33: 12 | BQ33: 12 | BR33: 12 | BS33: 12 | BT33: 12 | BU33: 14 | BV33: 14 | BW33: 14 | BX33: 14 | BY33: 14 | BZ33: 14 | CA33: 14 | CB33: 14 | CC33: 14 | CD33: 14 | CE33: 14 | CF33: 14 | CG33: 14 | CH33: 14 | CI33: 14 | CJ33: 14 | CK33: 14 | CL33: -99 | CM33: 17 | CN33: 17 | CO33: 17 | CP33: 17 | CQ33: 17 | CR33: 17 | CS33: 17 | CT33: 17 | CU33: 17 | CV33: -99 | CW33: 15 | CX33: 15 | CY33: 15 | CZ33: 15 | DA33: 15 | DB33: 15 | DC33: 15 | DD33: 15 | DE33: 15 | DF33: 15 | DG33: 18 | DH33: 18 | DI33: 18 | DJ33: 18 | DK33: 18 | DL33: 18 | DM33: 18 | DN33: 18 | DO33: 18 | DP33: 18 | DQ33: 11 | DR33: 11 | DS33: 11 | DT33: 11 | DU33: 11 | DV33: 11 | DW33: 11 | DX33: 11 | DY33: 11 | DZ33: 11 | EA33: 12 | EB33: 12 | EC33: 12 | ED33: 12 | EE33: 12 | EF33: 12 | EG33: 12 | EH33: 12 | EI33: 12 | EJ33: 12 | EL33: 16
A34: Single Antenna | B34: A | C34: UNII-3 | D34: 7 | E34: 24 | F34: 24 | G34: 24 | H34: 24 | I34: 23 | J34: 23 | K34: 22 | L34: 21 | M34: 24 | N34: 24 | O34: 24 | P34: 24 | Q34: 23 | R34: 23 | S34: 22 | T34: 21 | U34: 20 | V34: -99 | W34: -99 | X34: -99 | Y34: -99 | Z34: -99 | AA34: -99 | AB34: -99 | AC34: -99 | AD34: -99 | AE34: -99 | AF34: -99 | AG34: 24 | AH34: 24 | AI34: 24 | AJ34: 24 | AK34: 23 | AL34: 22 | AM34: 21 | AN34: 20 | AO34: 20 | AP34: 19 | AQ34: -99 | AR34: -99 | AS34: -99 | AT34: -99 | AU34: -99 | AV34: -99 | AW34: -99 | AX34: -99 | AY34: -99 | AZ34: -99 | BA34: 24 | BB34: 24 | BC34: 24 | BD34: 24 | BE34: 23 | BF34: 22 | BG34: 21 | BH34: 20 | BI34: 20 | BJ34: 19 | BK34: -99 | BL34: -99 | BM34: -99 | BN34: -99 | BO34: -99 | BP34: -99 | BQ34: -99 | BR34: -99 | BS34: -99 | BT34: -99 | BU34: -99 | BV34: -99 | BW34: -99 | BX34: -99 | BY34: -99 | BZ34: -99 | CA34: -99 | CB34: -99 | CC34: -99 | CD34: -99 | CE34: -99 | CF34: -99 | CG34: -99 | CH34: -99 | CI34: -99 | CJ34: -99 | CK34: -99 | CL34: -99 | CM34: -99 | CN34: -99 | CO34: -99 | CP34: -99 | CQ34: -99 | CR34: -99 | CS34: -99 | CT34: -99 | CU34: -99 | CV34: -99 | CW34: -99 | CX34: -99 | CY34: -99 | CZ34: -99 | DA34: -99 | DB34: -99 | DC34: -99 | DD34: -99 | DE34: -99 | DF34: -99 | DG34: -99 | DH34: -99 | DI34: -99 | DJ34: -99 | DK34: -99 | DL34: -99 | DM34: -99 | DN34: -99 | DO34: -99 | DP34: -99 | DQ34: -99 | DR34: -99 | DS34: -99 | DT34: -99 | DU34: -99 | DV34: -99 | DW34: -99 | DX34: -99 | DY34: -99 | DZ34: -99 | EA34: -99 | EB34: -99 | EC34: -99 | ED34: -99 | EE34: -99 | EF34: -99 | EG34: -99 | EH34: -99 | EI34: -99 | EJ34: -99 | EL34: 17
A35: Dual Antenna | B35: A | C35: UNII-3 | D35: 7 | E35: 24 | F35: 24 | G35: 24 | H35: 24 | I35: 23 | J35: 23 | K35: 22 | L35: 21 | M35: 18 | N35: 18 | O35: 18 | P35: 18 | Q35: 18 | R35: 18 | S35: 18 | T35: 18 | U35: 18 | V35: -99 | W35: 18 | X35: 18 | Y35: 18 | Z35: 18 | AA35: 18 | AB35: 18 | AC35: 18 | AD35: 18 | AE35: 18 | AF35: -99 | AG35: 20 | AH35: 20 | AI35: 20 | AJ35: 20 | AK35: 20 | AL35: 20 | AM35: 20 | AN35: 20 | AO35: 20 | AP35: 19 | AQ35: 20 | AR35: 20 | AS35: 20 | AT35: 20 | AU35: 20 | AV35: 20 | AW35: 20 | AX35: 19 | AY35: 19 | AZ35: 18 | BA35: 18 | BB35: 18 | BC35: 18 | BD35: 18 | BE35: 18 | BF35: 18 | BG35: 18 | BH35: 18 | BI35: 18 | BJ35: 18 | BK35: 18 | BL35: 18 | BM35: 18 | BN35: 18 | BO35: 18 | BP35: 18 | BQ35: 18 | BR35: 18 | BS35: 18 | BT35: 18 | BU35: 23 | BV35: 23 | BW35: 23 | BX35: 23 | BY35: 23 | BZ35: 23 | CA35: 22 | CB35: 21 | CC35: 15 | CD35: 15 | CE35: 15 | CF35: 15 | CG35: 15 | CH35: 15 | CI35: 15 | CJ35: 15 | CK35: 15 | CL35: -99 | CM35: 18 | CN35: 18 | CO35: 18 | CP35: 18 | CQ35: 18 | CR35: 18 | CS35: 18 | CT35: 18 | CU35: 18 | CV35: -99 | CW35: 15 | CX35: 15 | CY35: 15 | CZ35: 15 | DA35: 15 | DB35: 15 | DC35: 15 | DD35: 15 | DE35: 15 | DF35: 15 | DG35: 20 | DH35: 20 | DI35: 20 | DJ35: 20 | DK35: 20 | DL35: 20 | DM35: 20 | DN35: 19 | DO35: 19 | DP35: 18 | DQ35: 17 | DR35: 17 | DS35: 17 | DT35: 17 | DU35: 17 | DV35: 17 | DW35: 17 | DX35: 17 | DY35: 17 | DZ35: 17 | EA35: 18 | EB35: 18 | EC35: 18 | ED35: 18 | EE35: 18 | EF35: 18 | EG35: 18 | EH35: 18 | EI35: 18 | EJ35: 18 | EL35: 18
A36: Single Antenna | B36: A | C36: 5845, 5865 | D36: 7 | E36: -99 | F36: -99 | G36: -99 | H36: -99 | I36: -99 | J36: -99 | K36: -99 | L36: -99 | M36: -99 | N36: -99 | O36: -99 | P36: -99 | Q36: -99 | R36: -99 | S36: -99 | T36: -99 | U36: -99 | V36: -99 | W36: -99 | X36: -99 | Y36: -99 | Z36: -99 | AA36: -99 | AB36: -99 | AC36: -99 | AD36: -99 | AE36: -99 | AF36: -99 | AG36: -99 | AH36: -99 | AI36: -99 | AJ36: -99 | AK36: -99 | AL36: -99 | AM36: -99 | AN36: -99 | AO36: -99 | AP36: -99 | AQ36: -99 | AR36: -99 | AS36: -99 | AT36: -99 | AU36: -99 | AV36: -99 | AW36: -99 | AX36: -99 | AY36: -99 | AZ36: -99 | BA36: -99 | BB36: -99 | BC36: -99 | BD36: -99 | BE36: -99 | BF36: -99 | BG36: -99 | BH36: -99 | BI36: -99 | BJ36: -99 | BK36: -99 | BL36: -99 | BM36: -99 | BN36: -99 | BO36: -99 | BP36: -99 | BQ36: -99 | BR36: -99 | BS36: -99 | BT36: -99 | BU36: -99 | BV36: -99 | BW36: -99 | BX36: -99 | BY36: -99 | BZ36: -99 | CA36: -99 | CB36: -99 | CC36: -99 | CD36: -99 | CE36: -99 | CF36: -99 | CG36: -99 | CH36: -99 | CI36: -99 | CJ36: -99 | CK36: -99 | CL36: -99 | CM36: -99 | CN36: -99 | CO36: -99 | CP36: -99 | CQ36: -99 | CR36: -99 | CS36: -99 | CT36: -99 | CU36: -99 | CV36: -99 | CW36: -99 | CX36: -99 | CY36: -99 | CZ36: -99 | DA36: -99 | DB36: -99 | DC36: -99 | DD36: -99 | DE36: -99 | DF36: -99 | DG36: -99 | DH36: -99 | DI36: -99 | DJ36: -99 | DK36: -99 | DL36: -99 | DM36: -99 | DN36: -99 | DO36: -99 | DP36: -99 | DQ36: -99 | DR36: -99 | DS36: -99 | DT36: -99 | DU36: -99 | DV36: -99 | DW36: -99 | DX36: -99 | DY36: -99 | DZ36: -99 | EA36: -99 | EB36: -99 | EC36: -99 | ED36: -99 | EE36: -99 | EF36: -99 | EG36: -99 | EH36: -99 | EI36: -99 | EJ36: -99 | EL36: 19
A37: Dual Antenna | B37: A | C37: 5845, 5865 | D37: 7 | E37: -99 | F37: -99 | G37: -99 | H37: -99 | I37: -99 | J37: -99 | K37: -99 | L37: -99 | M37: -99 | N37: -99 | O37: -99 | P37: -99 | Q37: -99 | R37: -99 | S37: -99 | T37: -99 | U37: -99 | V37: -99 | W37: -99 | X37: -99 | Y37: -99 | Z37: -99 | AA37: -99 | AB37: -99 | AC37: -99 | AD37: -99 | AE37: -99 | AF37: -99 | AG37: -99 | AH37: -99 | AI37: -99 | AJ37: -99 | AK37: -99 | AL37: -99 | AM37: -99 | AN37: -99 | AO37: -99 | AP37: -99 | AQ37: -99 | AR37: -99 | AS37: -99 | AT37: -99 | AU37: -99 | AV37: -99 | AW37: -99 | AX37: -99 | AY37: -99 | AZ37: -99 | BA37: -99 | BB37: -99 | BC37: -99 | BD37: -99 | BE37: -99 | BF37: -99 | BG37: -99 | BH37: -99 | BI37: -99 | BJ37: -99 | BK37: -99 | BL37: -99 | BM37: -99 | BN37: -99 | BO37: -99 | BP37: -99 | BQ37: -99 | BR37: -99 | BS37: -99 | BT37: -99 | BU37: -99 | BV37: -99 | BW37: -99 | BX37: -99 | BY37: -99 | BZ37: -99 | CA37: -99 | CB37: -99 | CC37: -99 | CD37: -99 | CE37: -99 | CF37: -99 | CG37: -99 | CH37: -99 | CI37: -99 | CJ37: -99 | CK37: -99 | CL37: -99 | CM37: -99 | CN37: -99 | CO37: -99 | CP37: -99 | CQ37: -99 | CR37: -99 | CS37: -99 | CT37: -99 | CU37: -99 | CV37: -99 | CW37: -99 | CX37: -99 | CY37: -99 | CZ37: -99 | DA37: -99 | DB37: -99 | DC37: -99 | DD37: -99 | DE37: -99 | DF37: -99 | DG37: -99 | DH37: -99 | DI37: -99 | DJ37: -99 | DK37: -99 | DL37: -99 | DM37: -99 | DN37: -99 | DO37: -99 | DP37: -99 | DQ37: -99 | DR37: -99 | DS37: -99 | DT37: -99 | DU37: -99 | DV37: -99 | DW37: -99 | DX37: -99 | DY37: -99 | DZ37: -99 | EA37: -99 | EB37: -99 | EC37: -99 | ED37: -99 | EE37: -99 | EF37: -99 | EG37: -99 | EH37: -99 | EI37: -99 | EJ37: -99 | EL37: 20
A38: Single Antenna | B38: A | C38: UNII-1 | D38: 8 | E38: -99 | F38: -99 | G38: -99 | H38: -99 | I38: -99 | J38: -99 | K38: -99 | L38: -99 | M38: -99 | N38: -99 | O38: -99 | P38: -99 | Q38: -99 | R38: -99 | S38: -99 | T38: -99 | U38: -99 | V38: -99 | W38: -99 | X38: -99 | Y38: -99 | Z38: -99 | AA38: -99 | AB38: -99 | AC38: -99 | AD38: -99 | AE38: -99 | AF38: -99 | AG38: -99 | AH38: -99 | AI38: -99 | AJ38: -99 | AK38: -99 | AL38: -99 | AM38: -99 | AN38: -99 | AO38: -99 | AP38: -99 | AQ38: -99 | AR38: -99 | AS38: -99 | AT38: -99 | AU38: -99 | AV38: -99 | AW38: -99 | AX38: -99 | AY38: -99 | AZ38: -99 | BA38: -99 | BB38: -99 | BC38: -99 | BD38: -99 | BE38: -99 | BF38: -99 | BG38: -99 | BH38: -99 | BI38: -99 | BJ38: -99 | BK38: -99 | BL38: -99 | BM38: -99 | BN38: -99 | BO38: -99 | BP38: -99 | BQ38: -99 | BR38: -99 | BS38: -99 | BT38: -99 | BU38: -99 | BV38: -99 | BW38: -99 | BX38: -99 | BY38: -99 | BZ38: -99 | CA38: -99 | CB38: -99 | CC38: -99 | CD38: -99 | CE38: -99 | CF38: -99 | CG38: -99 | CH38: -99 | CI38: -99 | CJ38: -99 | CK38: -99 | CL38: -99 | CM38: -99 | CN38: -99 | CO38: -99 | CP38: -99 | CQ38: -99 | CR38: -99 | CS38: -99 | CT38: -99 | CU38: -99 | CV38: -99 | CW38: -99 | CX38: -99 | CY38: -99 | CZ38: -99 | DA38: -99 | DB38: -99 | DC38: -99 | DD38: -99 | DE38: -99 | DF38: -99 | DG38: -99 | DH38: -99 | DI38: -99 | DJ38: -99 | DK38: -99 | DL38: -99 | DM38: -99 | DN38: -99 | DO38: -99 | DP38: -99 | DQ38: -99 | DR38: -99 | DS38: -99 | DT38: -99 | DU38: -99 | DV38: -99 | DW38: -99 | DX38: -99 | DY38: -99 | DZ38: -99 | EA38: -99 | EB38: -99 | EC38: -99 | ED38: -99 | EE38: -99 | EF38: -99 | EG38: -99 | EH38: -99 | EI38: -99 | EJ38: -99 | EL38: 21
A39: Dual Antenna | B39: A | C39: UNII-1 | D39: 8 | E39: -99 | F39: -99 | G39: -99 | H39: -99 | I39: -99 | J39: -99 | K39: -99 | L39: -99 | M39: -99 | N39: -99 | O39: -99 | P39: -99 | Q39: -99 | R39: -99 | S39: -99 | T39: -99 | U39: -99 | V39: -99 | W39: -99 | X39: -99 | Y39: -99 | Z39: -99 | AA39: -99 | AB39: -99 | AC39: -99 | AD39: -99 | AE39: -99 | AF39: -99 | AG39: -99 | AH39: -99 | AI39: -99 | AJ39: -99 | AK39: -99 | AL39: -99 | AM39: -99 | AN39: -99 | AO39: -99 | AP39: -99 | AQ39: -99 | AR39: -99 | AS39: -99 | AT39: -99 | AU39: -99 | AV39: -99 | AW39: -99 | AX39: -99 | AY39: -99 | AZ39: -99 | BA39: -99 | BB39: -99 | BC39: -99 | BD39: -99 | BE39: -99 | BF39: -99 | BG39: -99 | BH39: -99 | BI39: -99 | BJ39: -99 | BK39: -99 | BL39: -99 | BM39: -99 | BN39: -99 | BO39: -99 | BP39: -99 | BQ39: -99 | BR39: -99 | BS39: -99 | BT39: -99 | BU39: -99 | BV39: -99 | BW39: -99 | BX39: -99 | BY39: -99 | BZ39: -99 | CA39: -99 | CB39: -99 | CC39: -99 | CD39: -99 | CE39: -99 | CF39: -99 | CG39: -99 | CH39: -99 | CI39: -99 | CJ39: -99 | CK39: -99 | CL39: -99 | CM39: -99 | CN39: -99 | CO39: -99 | CP39: -99 | CQ39: -99 | CR39: -99 | CS39: -99 | CT39: -99 | CU39: -99 | CV39: -99 | CW39: -99 | CX39: -99 | CY39: -99 | CZ39: -99 | DA39: -99 | DB39: -99 | DC39: -99 | DD39: -99 | DE39: -99 | DF39: -99 | DG39: -99 | DH39: -99 | DI39: -99 | DJ39: -99 | DK39: -99 | DL39: -99 | DM39: -99 | DN39: -99 | DO39: -99 | DP39: -99 | DQ39: -99 | DR39: -99 | DS39: -99 | DT39: -99 | DU39: -99 | DV39: -99 | DW39: -99 | DX39: -99 | DY39: -99 | DZ39: -99 | EA39: -99 | EB39: -99 | EC39: -99 | ED39: -99 | EE39: -99 | EF39: -99 | EG39: -99 | EH39: -99 | EI39: -99 | EJ39: -99 | EL39: 22
A40: Single Antenna | B40: A | C40: UNII-2A | D40: 8 | E40: 15 | F40: 15 | G40: 15 | H40: 15 | I40: 15 | J40: 15 | K40: 15 | L40: 15 | M40: 15 | N40: 15 | O40: 15 | P40: 15 | Q40: 15 | R40: 15 | S40: 15 | T40: 15 | U40: 15 | V40: -99 | W40: -99 | X40: -99 | Y40: -99 | Z40: -99 | AA40: -99 | AB40: -99 | AC40: -99 | AD40: -99 | AE40: -99 | AF40: -99 | AG40: 14 | AH40: 14 | AI40: 14 | AJ40: 14 | AK40: 14 | AL40: 14 | AM40: 14 | AN40: 14 | AO40: 14 | AP40: 14 | AQ40: -99 | AR40: -99 | AS40: -99 | AT40: -99 | AU40: -99 | AV40: -99 | AW40: -99 | AX40: -99 | AY40: -99 | AZ40: -99 | BA40: -99 | BB40: -99 | BC40: -99 | BD40: -99 | BE40: -99 | BF40: -99 | BG40: -99 | BH40: -99 | BI40: -99 | BJ40: -99 | BK40: -99 | BL40: -99 | BM40: -99 | BN40: -99 | BO40: -99 | BP40: -99 | BQ40: -99 | BR40: -99 | BS40: -99 | BT40: -99 | BU40: -99 | BV40: -99 | BW40: -99 | BX40: -99 | BY40: -99 | BZ40: -99 | CA40: -99 | CB40: -99 | CC40: -99 | CD40: -99 | CE40: -99 | CF40: -99 | CG40: -99 | CH40: -99 | CI40: -99 | CJ40: -99 | CK40: -99 | CL40: -99 | CM40: -99 | CN40: -99 | CO40: -99 | CP40: -99 | CQ40: -99 | CR40: -99 | CS40: -99 | CT40: -99 | CU40: -99 | CV40: -99 | CW40: -99 | CX40: -99 | CY40: -99 | CZ40: -99 | DA40: -99 | DB40: -99 | DC40: -99 | DD40: -99 | DE40: -99 | DF40: -99 | DG40: -99 | DH40: -99 | DI40: -99 | DJ40: -99 | DK40: -99 | DL40: -99 | DM40: -99 | DN40: -99 | DO40: -99 | DP40: -99 | DQ40: -99 | DR40: -99 | DS40: -99 | DT40: -99 | DU40: -99 | DV40: -99 | DW40: -99 | DX40: -99 | DY40: -99 | DZ40: -99 | EA40: -99 | EB40: -99 | EC40: -99 | ED40: -99 | EE40: -99 | EF40: -99 | EG40: -99 | EH40: -99 | EI40: -99 | EJ40: -99 | EL40: 23
A41: Dual Antenna | B41: A | C41: UNII-2A | D41: 8 | E41: 13 | F41: 13 | G41: 13 | H41: 13 | I41: 13 | J41: 13 | K41: 13 | L41: 13 | M41: 13 | N41: 13 | O41: 13 | P41: 13 | Q41: 13 | R41: 13 | S41: 13 | T41: 13 | U41: 13 | V41: -99 | W41: 12 | X41: 12 | Y41: 12 | Z41: 12 | AA41: 12 | AB41: 12 | AC41: 12 | AD41: 12 | AE41: 12 | AF41: -99 | AG41: 12 | AH41: 12 | AI41: 12 | AJ41: 12 | AK41: 12 | AL41: 12 | AM41: 12 | AN41: 12 | AO41: 12 | AP41: 12 | AQ41: 13 | AR41: 13 | AS41: 13 | AT41: 13 | AU41: 13 | AV41: 13 | AW41: 13 | AX41: 13 | AY41: 13 | AZ41: 13 | BA41: -99 | BB41: -99 | BC41: -99 | BD41: -99 | BE41: -99 | BF41: -99 | BG41: -99 | BH41: -99 | BI41: -99 | BJ41: -99 | BK41: -99 | BL41: -99 | BM41: -99 | BN41: -99 | BO41: -99 | BP41: -99 | BQ41: -99 | BR41: -99 | BS41: -99 | BT41: -99 | BU41: 9 | BV41: 9 | BW41: 9 | BX41: 9 | BY41: 9 | BZ41: 9 | CA41: 9 | CB41: 9 | CC41: 9 | CD41: 9 | CE41: 9 | CF41: 9 | CG41: 9 | CH41: 9 | CI41: 9 | CJ41: 9 | CK41: 9 | CL41: -99 | CM41: 12 | CN41: 12 | CO41: 12 | CP41: 12 | CQ41: 12 | CR41: 12 | CS41: 12 | CT41: 12 | CU41: 12 | CV41: -99 | CW41: 10 | CX41: 10 | CY41: 10 | CZ41: 10 | DA41: 10 | DB41: 10 | DC41: 10 | DD41: 10 | DE41: 10 | DF41: 10 | DG41: 13 | DH41: 13 | DI41: 13 | DJ41: 13 | DK41: 13 | DL41: 13 | DM41: 13 | DN41: 13 | DO41: 13 | DP41: 13 | DQ41: -99 | DR41: -99 | DS41: -99 | DT41: -99 | DU41: -99 | DV41: -99 | DW41: -99 | DX41: -99 | DY41: -99 | DZ41: -99 | EA41: -99 | EB41: -99 | EC41: -99 | ED41: -99 | EE41: -99 | EF41: -99 | EG41: -99 | EH41: -99 | EI41: -99 | EJ41: -99 | EL41: 24
A42: Single Antenna | B42: A | C42: UNII-2C | D42: 8 | E42: 19 | F42: 19 | G42: 19 | H42: 19 | I42: 19 | J42: 19 | K42: 19 | L42: 19 | M42: 19 | N42: 19 | O42: 19 | P42: 19 | Q42: 19 | R42: 19 | S42: 19 | T42: 19 | U42: 19 | V42: -99 | W42: -99 | X42: -99 | Y42: -99 | Z42: -99 | AA42: -99 | AB42: -99 | AC42: -99 | AD42: -99 | AE42: -99 | AF42: -99 | AG42: 21 | AH42: 21 | AI42: 21 | AJ42: 21 | AK42: 21 | AL42: 21 | AM42: 21 | AN42: 20 | AO42: 20 | AP42: 19 | AQ42: -99 | AR42: -99 | AS42: -99 | AT42: -99 | AU42: -99 | AV42: -99 | AW42: -99 | AX42: -99 | AY42: -99 | AZ42: -99 | BA42: 14 | BB42: 14 | BC42: 14 | BD42: 14 | BE42: 14 | BF42: 14 | BG42: 14 | BH42: 14 | BI42: 14 | BJ42: 14 | BK42: -99 | BL42: -99 | BM42: -99 | BN42: -99 | BO42: -99 | BP42: -99 | BQ42: -99 | BR42: -99 | BS42: -99 | BT42: -99 | BU42: -99 | BV42: -99 | BW42: -99 | BX42: -99 | BY42: -99 | BZ42: -99 | CA42: -99 | CB42: -99 | CC42: -99 | CD42: -99 | CE42: -99 | CF42: -99 | CG42: -99 | CH42: -99 | CI42: -99 | CJ42: -99 | CK42: -99 | CL42: -99 | CM42: -99 | CN42: -99 | CO42: -99 | CP42: -99 | CQ42: -99 | CR42: -99 | CS42: -99 | CT42: -99 | CU42: -99 | CV42: -99 | CW42: -99 | CX42: -99 | CY42: -99 | CZ42: -99 | DA42: -99 | DB42: -99 | DC42: -99 | DD42: -99 | DE42: -99 | DF42: -99 | DG42: -99 | DH42: -99 | DI42: -99 | DJ42: -99 | DK42: -99 | DL42: -99 | DM42: -99 | DN42: -99 | DO42: -99 | DP42: -99 | DQ42: -99 | DR42: -99 | DS42: -99 | DT42: -99 | DU42: -99 | DV42: -99 | DW42: -99 | DX42: -99 | DY42: -99 | DZ42: -99 | EA42: -99 | EB42: -99 | EC42: -99 | ED42: -99 | EE42: -99 | EF42: -99 | EG42: -99 | EH42: -99 | EI42: -99 | EJ42: -99 | EL42: 25
A43: Dual Antenna | B43: A | C43: UNII-2C | D43: 8 | E43: 13 | F43: 13 | G43: 13 | H43: 13 | I43: 13 | J43: 13 | K43: 13 | L43: 13 | M43: 13 | N43: 13 | O43: 13 | P43: 13 | Q43: 13 | R43: 13 | S43: 13 | T43: 13 | U43: 13 | V43: -99 | W43: 16 | X43: 16 | Y43: 16 | Z43: 16 | AA43: 16 | AB43: 16 | AC43: 16 | AD43: 16 | AE43: 16 | AF43: -99 | AG43: 16 | AH43: 16 | AI43: 16 | AJ43: 16 | AK43: 16 | AL43: 16 | AM43: 16 | AN43: 16 | AO43: 16 | AP43: 16 | AQ43: 17 | AR43: 17 | AS43: 17 | AT43: 17 | AU43: 17 | AV43: 17 | AW43: 17 | AX43: 17 | AY43: 17 | AZ43: 17 | BA43: 11 | BB43: 11 | BC43: 11 | BD43: 11 | BE43: 11 | BF43: 11 | BG43: 11 | BH43: 11 | BI43: 11 | BJ43: 11 | BK43: 11 | BL43: 11 | BM43: 11 | BN43: 11 | BO43: 11 | BP43: 11 | BQ43: 11 | BR43: 11 | BS43: 11 | BT43: 11 | BU43: 13 | BV43: 13 | BW43: 13 | BX43: 13 | BY43: 13 | BZ43: 13 | CA43: 13 | CB43: 13 | CC43: 13 | CD43: 13 | CE43: 13 | CF43: 13 | CG43: 13 | CH43: 13 | CI43: 13 | CJ43: 13 | CK43: 13 | CL43: -99 | CM43: 16 | CN43: 16 | CO43: 16 | CP43: 16 | CQ43: 16 | CR43: 16 | CS43: 16 | CT43: 16 | CU43: 16 | CV43: -99 | CW43: 14 | CX43: 14 | CY43: 14 | CZ43: 14 | DA43: 14 | DB43: 14 | DC43: 14 | DD43: 14 | DE43: 14 | DF43: 14 | DG43: 17 | DH43: 17 | DI43: 17 | DJ43: 17 | DK43: 17 | DL43: 17 | DM43: 17 | DN43: 17 | DO43: 17 | DP43: 17 | DQ43: 10 | DR43: 10 | DS43: 10 | DT43: 10 | DU43: 10 | DV43: 10 | DW43: 10 | DX43: 10 | DY43: 10 | DZ43: 10 | EA43: 11 | EB43: 11 | EC43: 11 | ED43: 11 | EE43: 11 | EF43: 11 | EG43: 11 | EH43: 11 | EI43: 11 | EJ43: 11 | EL43: 26
A44: Single Antenna | B44: A | C44: UNII-3 | D44: 8 | E44: 24 | F44: 24 | G44: 24 | H44: 24 | I44: 23 | J44: 23 | K44: 22 | L44: 21 | M44: 24 | N44: 24 | O44: 24 | P44: 24 | Q44: 23 | R44: 23 | S44: 22 | T44: 21 | U44: 20 | V44: -99 | W44: -99 | X44: -99 | Y44: -99 | Z44: -99 | AA44: -99 | AB44: -99 | AC44: -99 | AD44: -99 | AE44: -99 | AF44: -99 | AG44: 24 | AH44: 24 | AI44: 24 | AJ44: 24 | AK44: 23 | AL44: 22 | AM44: 21 | AN44: 20 | AO44: 20 | AP44: 19 | AQ44: -99 | AR44: -99 | AS44: -99 | AT44: -99 | AU44: -99 | AV44: -99 | AW44: -99 | AX44: -99 | AY44: -99 | AZ44: -99 | BA44: 24 | BB44: 24 | BC44: 24 | BD44: 24 | BE44: 23 | BF44: 22 | BG44: 21 | BH44: 20 | BI44: 20 | BJ44: 19 | BK44: -99 | BL44: -99 | BM44: -99 | BN44: -99 | BO44: -99 | BP44: -99 | BQ44: -99 | BR44: -99 | BS44: -99 | BT44: -99 | BU44: -99 | BV44: -99 | BW44: -99 | BX44: -99 | BY44: -99 | BZ44: -99 | CA44: -99 | CB44: -99 | CC44: -99 | CD44: -99 | CE44: -99 | CF44: -99 | CG44: -99 | CH44: -99 | CI44: -99 | CJ44: -99 | CK44: -99 | CL44: -99 | CM44: -99 | CN44: -99 | CO44: -99 | CP44: -99 | CQ44: -99 | CR44: -99 | CS44: -99 | CT44: -99 | CU44: -99 | CV44: -99 | CW44: -99 | CX44: -99 | CY44: -99 | CZ44: -99 | DA44: -99 | DB44: -99 | DC44: -99 | DD44: -99 | DE44: -99 | DF44: -99 | DG44: -99 | DH44: -99 | DI44: -99 | DJ44: -99 | DK44: -99 | DL44: -99 | DM44: -99 | DN44: -99 | DO44: -99 | DP44: -99 | DQ44: -99 | DR44: -99 | DS44: -99 | DT44: -99 | DU44: -99 | DV44: -99 | DW44: -99 | DX44: -99 | DY44: -99 | DZ44: -99 | EA44: -99 | EB44: -99 | EC44: -99 | ED44: -99 | EE44: -99 | EF44: -99 | EG44: -99 | EH44: -99 | EI44: -99 | EJ44: -99 | EL44: 27
A45: Dual Antenna | B45: A | C45: UNII-3 | D45: 8 | E45: 24 | F45: 24 | G45: 24 | H45: 24 | I45: 23 | J45: 23 | K45: 22 | L45: 21 | M45: 18 | N45: 18 | O45: 18 | P45: 18 | Q45: 18 | R45: 18 | S45: 18 | T45: 18 | U45: 18 | V45: -99 | W45: 18 | X45: 18 | Y45: 18 | Z45: 18 | AA45: 18 | AB45: 18 | AC45: 18 | AD45: 18 | AE45: 18 | AF45: -99 | AG45: 18 | AH45: 18 | AI45: 18 | AJ45: 18 | AK45: 18 | AL45: 18 | AM45: 18 | AN45: 18 | AO45: 18 | AP45: 18 | AQ45: 18 | AR45: 18 | AS45: 18 | AT45: 18 | AU45: 18 | AV45: 18 | AW45: 18 | AX45: 18 | AY45: 18 | AZ45: 18 | BA45: 18 | BB45: 18 | BC45: 18 | BD45: 18 | BE45: 18 | BF45: 18 | BG45: 18 | BH45: 18 | BI45: 18 | BJ45: 18 | BK45: 18 | BL45: 18 | BM45: 18 | BN45: 18 | BO45: 18 | BP45: 18 | BQ45: 18 | BR45: 18 | BS45: 18 | BT45: 18 | BU45: 21 | BV45: 21 | BW45: 21 | BX45: 21 | BY45: 21 | BZ45: 21 | CA45: 21 | CB45: 21 | CC45: 16 | CD45: 16 | CE45: 16 | CF45: 16 | CG45: 16 | CH45: 16 | CI45: 16 | CJ45: 16 | CK45: 16 | CL45: -99 | CM45: 18 | CN45: 18 | CO45: 18 | CP45: 18 | CQ45: 18 | CR45: 18 | CS45: 18 | CT45: 18 | CU45: 18 | CV45: -99 | CW45: 14 | CX45: 14 | CY45: 14 | CZ45: 14 | DA45: 14 | DB45: 14 | DC45: 14 | DD45: 14 | DE45: 14 | DF45: 14 | DG45: 18 | DH45: 18 | DI45: 18 | DJ45: 18 | DK45: 18 | DL45: 18 | DM45: 18 | DN45: 18 | DO45: 18 | DP45: 18 | DQ45: 16 | DR45: 16 | DS45: 16 | DT45: 16 | DU45: 16 | DV45: 16 | DW45: 16 | DX45: 16 | DY45: 16 | DZ45: 16 | EA45: 18 | EB45: 18 | EC45: 18 | ED45: 18 | EE45: 18 | EF45: 18 | EG45: 18 | EH45: 18 | EI45: 18 | EJ45: 18 | EL45: 28
A46: Single Antenna | B46: A | C46: 5845, 5865 | D46: 8 | E46: -99 | F46: -99 | G46: -99 | H46: -99 | I46: -99 | J46: -99 | K46: -99 | L46: -99 | M46: -99 | N46: -99 | O46: -99 | P46: -99 | Q46: -99 | R46: -99 | S46: -99 | T46: -99 | U46: -99 | V46: -99 | W46: -99 | X46: -99 | Y46: -99 | Z46: -99 | AA46: -99 | AB46: -99 | AC46: -99 | AD46: -99 | AE46: -99 | AF46: -99 | AG46: -99 | AH46: -99 | AI46: -99 | AJ46: -99 | AK46: -99 | AL46: -99 | AM46: -99 | AN46: -99 | AO46: -99 | AP46: -99 | AQ46: -99 | AR46: -99 | AS46: -99 | AT46: -99 | AU46: -99 | AV46: -99 | AW46: -99 | AX46: -99 | AY46: -99 | AZ46: -99 | BA46: -99 | BB46: -99 | BC46: -99 | BD46: -99 | BE46: -99 | BF46: -99 | BG46: -99 | BH46: -99 | BI46: -99 | BJ46: -99 | BK46: -99 | BL46: -99 | BM46: -99 | BN46: -99 | BO46: -99 | BP46: -99 | BQ46: -99 | BR46: -99 | BS46: -99 | BT46: -99 | BU46: -99 | BV46: -99 | BW46: -99 | BX46: -99 | BY46: -99 | BZ46: -99 | CA46: -99 | CB46: -99 | CC46: -99 | CD46: -99 | CE46: -99 | CF46: -99 | CG46: -99 | CH46: -99 | CI46: -99 | CJ46: -99 | CK46: -99 | CL46: -99 | CM46: -99 | CN46: -99 | CO46: -99 | CP46: -99 | CQ46: -99 | CR46: -99 | CS46: -99 | CT46: -99 | CU46: -99 | CV46: -99 | CW46: -99 | CX46: -99 | CY46: -99 | CZ46: -99 | DA46: -99 | DB46: -99 | DC46: -99 | DD46: -99 | DE46: -99 | DF46: -99 | DG46: -99 | DH46: -99 | DI46: -99 | DJ46: -99 | DK46: -99 | DL46: -99 | DM46: -99 | DN46: -99 | DO46: -99 | DP46: -99 | DQ46: -99 | DR46: -99 | DS46: -99 | DT46: -99 | DU46: -99 | DV46: -99 | DW46: -99 | DX46: -99 | DY46: -99 | DZ46: -99 | EA46: -99 | EB46: -99 | EC46: -99 | ED46: -99 | EE46: -99 | EF46: -99 | EG46: -99 | EH46: -99 | EI46: -99 | EJ46: -99 | EL46: 29
A47: Dual Antenna | B47: A | C47: 5845, 5865 | D47: 8 | E47: -99 | F47: -99 | G47: -99 | H47: -99 | I47: -99 | J47: -99 | K47: -99 | L47: -99 | M47: -99 | N47: -99 | O47: -99 | P47: -99 | Q47: -99 | R47: -99 | S47: -99 | T47: -99 | U47: -99 | V47: -99 | W47: -99 | X47: -99 | Y47: -99 | Z47: -99 | AA47: -99 | AB47: -99 | AC47: -99 | AD47: -99 | AE47: -99 | AF47: -99 | AG47: -99 | AH47: -99 | AI47: -99 | AJ47: -99 | AK47: -99 | AL47: -99 | AM47: -99 | AN47: -99 | AO47: -99 | AP47: -99 | AQ47: -99 | AR47: -99 | AS47: -99 | AT47: -99 | AU47: -99 | AV47: -99 | AW47: -99 | AX47: -99 | AY47: -99 | AZ47: -99 | BA47: -99 | BB47: -99 | BC47: -99 | BD47: -99 | BE47: -99 | BF47: -99 | BG47: -99 | BH47: -99 | BI47: -99 | BJ47: -99 | BK47: -99 | BL47: -99 | BM47: -99 | BN47: -99 | BO47: -99 | BP47: -99 | BQ47: -99 | BR47: -99 | BS47: -99 | BT47: -99 | BU47: -99 | BV47: -99 | BW47: -99 | BX47: -99 | BY47: -99 | BZ47: -99 | CA47: -99 | CB47: -99 | CC47: -99 | CD47: -99 | CE47: -99 | CF47: -99 | CG47: -99 | CH47: -99 | CI47: -99 | CJ47: -99 | CK47: -99 | CL47: -99 | CM47: -99 | CN47: -99 | CO47: -99 | CP47: -99 | CQ47: -99 | CR47: -99 | CS47: -99 | CT47: -99 | CU47: -99 | CV47: -99 | CW47: -99 | CX47: -99 | CY47: -99 | CZ47: -99 | DA47: -99 | DB47: -99 | DC47: -99 | DD47: -99 | DE47: -99 | DF47: -99 | DG47: -99 | DH47: -99 | DI47: -99 | DJ47: -99 | DK47: -99 | DL47: -99 | DM47: -99 | DN47: -99 | DO47: -99 | DP47: -99 | DQ47: -99 | DR47: -99 | DS47: -99 | DT47: -99 | DU47: -99 | DV47: -99 | DW47: -99 | DX47: -99 | DY47: -99 | DZ47: -99 | EA47: -99 | EB47: -99 | EC47: -99 | ED47: -99 | EE47: -99 | EF47: -99 | EG47: -99 | EH47: -99 | EI47: -99 | EJ47: -99 | EL47: 30
A48: Single Antenna | B48: A | C48: UNII-1 | D48: 13 | E48: -99 | F48: -99 | G48: -99 | H48: -99 | I48: -99 | J48: -99 | K48: -99 | L48: -99 | M48: -99 | N48: -99 | O48: -99 | P48: -99 | Q48: -99 | R48: -99 | S48: -99 | T48: -99 | U48: -99 | V48: -99 | W48: -99 | X48: -99 | Y48: -99 | Z48: -99 | AA48: -99 | AB48: -99 | AC48: -99 | AD48: -99 | AE48: -99 | AF48: -99 | AG48: -99 | AH48: -99 | AI48: -99 | AJ48: -99 | AK48: -99 | AL48: -99 | AM48: -99 | AN48: -99 | AO48: -99 | AP48: -99 | AQ48: -99 | AR48: -99 | AS48: -99 | AT48: -99 | AU48: -99 | AV48: -99 | AW48: -99 | AX48: -99 | AY48: -99 | AZ48: -99 | BA48: -99 | BB48: -99 | BC48: -99 | BD48: -99 | BE48: -99 | BF48: -99 | BG48: -99 | BH48: -99 | BI48: -99 | BJ48: -99 | BK48: -99 | BL48: -99 | BM48: -99 | BN48: -99 | BO48: -99 | BP48: -99 | BQ48: -99 | BR48: -99 | BS48: -99 | BT48: -99 | BU48: -99 | BV48: -99 | BW48: -99 | BX48: -99 | BY48: -99 | BZ48: -99 | CA48: -99 | CB48: -99 | CC48: -99 | CD48: -99 | CE48: -99 | CF48: -99 | CG48: -99 | CH48: -99 | CI48: -99 | CJ48: -99 | CK48: -99 | CL48: -99 | CM48: -99 | CN48: -99 | CO48: -99 | CP48: -99 | CQ48: -99 | CR48: -99 | CS48: -99 | CT48: -99 | CU48: -99 | CV48: -99 | CW48: -99 | CX48: -99 | CY48: -99 | CZ48: -99 | DA48: -99 | DB48: -99 | DC48: -99 | DD48: -99 | DE48: -99 | DF48: -99 | DG48: -99 | DH48: -99 | DI48: -99 | DJ48: -99 | DK48: -99 | DL48: -99 | DM48: -99 | DN48: -99 | DO48: -99 | DP48: -99 | DQ48: -99 | DR48: -99 | DS48: -99 | DT48: -99 | DU48: -99 | DV48: -99 | DW48: -99 | DX48: -99 | DY48: -99 | DZ48: -99 | EA48: -99 | EB48: -99 | EC48: -99 | ED48: -99 | EE48: -99 | EF48: -99 | EG48: -99 | EH48: -99 | EI48: -99 | EJ48: -99 | EL48: 31
A49: Dual Antenna | B49: A | C49: UNII-1 | D49: 13 | E49: -99 | F49: -99 | G49: -99 | H49: -99 | I49: -99 | J49: -99 | K49: -99 | L49: -99 | M49: -99 | N49: -99 | O49: -99 | P49: -99 | Q49: -99 | R49: -99 | S49: -99 | T49: -99 | U49: -99 | V49: -99 | W49: -99 | X49: -99 | Y49: -99 | Z49: -99 | AA49: -99 | AB49: -99 | AC49: -99 | AD49: -99 | AE49: -99 | AF49: -99 | AG49: -99 | AH49: -99 | AI49: -99 | AJ49: -99 | AK49: -99 | AL49: -99 | AM49: -99 | AN49: -99 | AO49: -99 | AP49: -99 | AQ49: -99 | AR49: -99 | AS49: -99 | AT49: -99 | AU49: -99 | AV49: -99 | AW49: -99 | AX49: -99 | AY49: -99 | AZ49: -99 | BA49: -99 | BB49: -99 | BC49: -99 | BD49: -99 | BE49: -99 | BF49: -99 | BG49: -99 | BH49: -99 | BI49: -99 | BJ49: -99 | BK49: -99 | BL49: -99 | BM49: -99 | BN49: -99 | BO49: -99 | BP49: -99 | BQ49: -99 | BR49: -99 | BS49: -99 | BT49: -99 | BU49: -99 | BV49: -99 | BW49: -99 | BX49: -99 | BY49: -99 | BZ49: -99 | CA49: -99 | CB49: -99 | CC49: -99 | CD49: -99 | CE49: -99 | CF49: -99 | CG49: -99 | CH49: -99 | CI49: -99 | CJ49: -99 | CK49: -99 | CL49: -99 | CM49: -99 | CN49: -99 | CO49: -99 | CP49: -99 | CQ49: -99 | CR49: -99 | CS49: -99 | CT49: -99 | CU49: -99 | CV49: -99 | CW49: -99 | CX49: -99 | CY49: -99 | CZ49: -99 | DA49: -99 | DB49: -99 | DC49: -99 | DD49: -99 | DE49: -99 | DF49: -99 | DG49: -99 | DH49: -99 | DI49: -99 | DJ49: -99 | DK49: -99 | DL49: -99 | DM49: -99 | DN49: -99 | DO49: -99 | DP49: -99 | DQ49: -99 | DR49: -99 | DS49: -99 | DT49: -99 | DU49: -99 | DV49: -99 | DW49: -99 | DX49: -99 | DY49: -99 | DZ49: -99 | EA49: -99 | EB49: -99 | EC49: -99 | ED49: -99 | EE49: -99 | EF49: -99 | EG49: -99 | EH49: -99 | EI49: -99 | EJ49: -99 | EL49: 32
A50: Single Antenna | B50: A | C50: UNII-2A | D50: 13 | E50: 10 | F50: 10 | G50: 10 | H50: 10 | I50: 10 | J50: 10 | K50: 10 | L50: 10 | M50: 10 | N50: 10 | O50: 10 | P50: 10 | Q50: 10 | R50: 10 | S50: 10 | T50: 10 | U50: 10 | V50: -99 | W50: -99 | X50: -99 | Y50: -99 | Z50: -99 | AA50: -99 | AB50: -99 | AC50: -99 | AD50: -99 | AE50: -99 | AF50: -99 | AG50: 11 | AH50: 11 | AI50: 11 | AJ50: 11 | AK50: 11 | AL50: 11 | AM50: 11 | AN50: 11 | AO50: 11 | AP50: 11 | AQ50: -99 | AR50: -99 | AS50: -99 | AT50: -99 | AU50: -99 | AV50: -99 | AW50: -99 | AX50: -99 | AY50: -99 | AZ50: -99 | BA50: -99 | BB50: -99 | BC50: -99 | BD50: -99 | BE50: -99 | BF50: -99 | BG50: -99 | BH50: -99 | BI50: -99 | BJ50: -99 | BK50: -99 | BL50: -99 | BM50: -99 | BN50: -99 | BO50: -99 | BP50: -99 | BQ50: -99 | BR50: -99 | BS50: -99 | BT50: -99 | BU50: -99 | BV50: -99 | BW50: -99 | BX50: -99 | BY50: -99 | BZ50: -99 | CA50: -99 | CB50: -99 | CC50: -99 | CD50: -99 | CE50: -99 | CF50: -99 | CG50: -99 | CH50: -99 | CI50: -99 | CJ50: -99 | CK50: -99 | CL50: -99 | CM50: -99 | CN50: -99 | CO50: -99 | CP50: -99 | CQ50: -99 | CR50: -99 | CS50: -99 | CT50: -99 | CU50: -99 | CV50: -99 | CW50: -99 | CX50: -99 | CY50: -99 | CZ50: -99 | DA50: -99 | DB50: -99 | DC50: -99 | DD50: -99 | DE50: -99 | DF50: -99 | DG50: -99 | DH50: -99 | DI50: -99 | DJ50: -99 | DK50: -99 | DL50: -99 | DM50: -99 | DN50: -99 | DO50: -99 | DP50: -99 | DQ50: -99 | DR50: -99 | DS50: -99 | DT50: -99 | DU50: -99 | DV50: -99 | DW50: -99 | DX50: -99 | DY50: -99 | DZ50: -99 | EA50: -99 | EB50: -99 | EC50: -99 | ED50: -99 | EE50: -99 | EF50: -99 | EG50: -99 | EH50: -99 | EI50: -99 | EJ50: -99 | EL50: 33
A51: Dual Antenna | B51: A | C51: UNII-2A | D51: 13 | E51: 7 | F51: 7 | G51: 7 | H51: 7 | I51: 7 | J51: 7 | K51: 7 | L51: 7 | M51: 7 | N51: 7 | O51: 7 | P51: 7 | Q51: 7 | R51: 7 | S51: 7 | T51: 7 | U51: 7 | V51: -99 | W51: 7 | X51: 7 | Y51: 7 | Z51: 7 | AA51: 7 | AB51: 7 | AC51: 7 | AD51: 7 | AE51: 7 | AF51: -99 | AG51: 8 | AH51: 8 | AI51: 8 | AJ51: 8 | AK51: 8 | AL51: 8 | AM51: 8 | AN51: 8 | AO51: 8 | AP51: 8 | AQ51: 8 | AR51: 8 | AS51: 8 | AT51: 8 | AU51: 8 | AV51: 8 | AW51: 8 | AX51: 8 | AY51: 8 | AZ51: 8 | BA51: -99 | BB51: -99 | BC51: -99 | BD51: -99 | BE51: -99 | BF51: -99 | BG51: -99 | BH51: -99 | BI51: -99 | BJ51: -99 | BK51: -99 | BL51: -99 | BM51: -99 | BN51: -99 | BO51: -99 | BP51: -99 | BQ51: -99 | BR51: -99 | BS51: -99 | BT51: -99 | BU51: 7 | BV51: 7 | BW51: 7 | BX51: 7 | BY51: 7 | BZ51: 7 | CA51: 7 | CB51: 7 | CC51: 7 | CD51: 7 | CE51: 7 | CF51: 7 | CG51: 7 | CH51: 7 | CI51: 7 | CJ51: 7 | CK51: 7 | CL51: -99 | CM51: 7 | CN51: 7 | CO51: 7 | CP51: 7 | CQ51: 7 | CR51: 7 | CS51: 7 | CT51: 7 | CU51: 7 | CV51: -99 | CW51: 8 | CX51: 8 | CY51: 8 | CZ51: 8 | DA51: 8 | DB51: 8 | DC51: 8 | DD51: 8 | DE51: 8 | DF51: 8 | DG51: 8 | DH51: 8 | DI51: 8 | DJ51: 8 | DK51: 8 | DL51: 8 | DM51: 8 | DN51: 8 | DO51: 8 | DP51: 8 | DQ51: -99 | DR51: -99 | DS51: -99 | DT51: -99 | DU51: -99 | DV51: -99 | DW51: -99 | DX51: -99 | DY51: -99 | DZ51: -99 | EA51: -99 | EB51: -99 | EC51: -99 | ED51: -99 | EE51: -99 | EF51: -99 | EG51: -99 | EH51: -99 | EI51: -99 | EJ51: -99 | EL51: 34
A52: Single Antenna | B52: A | C52: UNII-2C | D52: 13 | E52: 14 | F52: 14 | G52: 14 | H52: 14 | I52: 14 | J52: 14 | K52: 14 | L52: 14 | M52: 13 | N52: 13 | O52: 13 | P52: 13 | Q52: 13 | R52: 13 | S52: 13 | T52: 13 | U52: 13 | V52: -99 | W52: -99 | X52: -99 | Y52: -99 | Z52: -99 | AA52: -99 | AB52: -99 | AC52: -99 | AD52: -99 | AE52: -99 | AF52: -99 | AG52: 16 | AH52: 16 | AI52: 16 | AJ52: 16 | AK52: 16 | AL52: 16 | AM52: 16 | AN52: 16 | AO52: 16 | AP52: 16 | AQ52: -99 | AR52: -99 | AS52: -99 | AT52: -99 | AU52: -99 | AV52: -99 | AW52: -99 | AX52: -99 | AY52: -99 | AZ52: -99 | BA52: 11 | BB52: 11 | BC52: 11 | BD52: 11 | BE52: 11 | BF52: 11 | BG52: 11 | BH52: 11 | BI52: 11 | BJ52: 11 | BK52: -99 | BL52: -99 | BM52: -99 | BN52: -99 | BO52: -99 | BP52: -99 | BQ52: -99 | BR52: -99 | BS52: -99 | BT52: -99 | BU52: -99 | BV52: -99 | BW52: -99 | BX52: -99 | BY52: -99 | BZ52: -99 | CA52: -99 | CB52: -99 | CC52: -99 | CD52: -99 | CE52: -99 | CF52: -99 | CG52: -99 | CH52: -99 | CI52: -99 | CJ52: -99 | CK52: -99 | CL52: -99 | CM52: -99 | CN52: -99 | CO52: -99 | CP52: -99 | CQ52: -99 | CR52: -99 | CS52: -99 | CT52: -99 | CU52: -99 | CV52: -99 | CW52: -99 | CX52: -99 | CY52: -99 | CZ52: -99 | DA52: -99 | DB52: -99 | DC52: -99 | DD52: -99 | DE52: -99 | DF52: -99 | DG52: -99 | DH52: -99 | DI52: -99 | DJ52: -99 | DK52: -99 | DL52: -99 | DM52: -99 | DN52: -99 | DO52: -99 | DP52: -99 | DQ52: -99 | DR52: -99 | DS52: -99 | DT52: -99 | DU52: -99 | DV52: -99 | DW52: -99 | DX52: -99 | DY52: -99 | DZ52: -99 | EA52: -99 | EB52: -99 | EC52: -99 | ED52: -99 | EE52: -99 | EF52: -99 | EG52: -99 | EH52: -99 | EI52: -99 | EJ52: -99 | EL52: 35
A53: Dual Antenna | B53: A | C53: UNII-2C | D53: 13 | E53: 11 | F53: 11 | G53: 11 | H53: 11 | I53: 11 | J53: 11 | K53: 11 | L53: 11 | M53: 11 | N53: 11 | O53: 11 | P53: 11 | Q53: 11 | R53: 11 | S53: 11 | T53: 11 | U53: 11 | V53: -99 | W53: 11 | X53: 11 | Y53: 11 | Z53: 11 | AA53: 11 | AB53: 11 | AC53: 11 | AD53: 11 | AE53: 11 | AF53: -99 | AG53: 12 | AH53: 12 | AI53: 12 | AJ53: 12 | AK53: 12 | AL53: 12 | AM53: 12 | AN53: 12 | AO53: 12 | AP53: 12 | AQ53: 12 | AR53: 12 | AS53: 12 | AT53: 12 | AU53: 12 | AV53: 12 | AW53: 12 | AX53: 12 | AY53: 12 | AZ53: 12 | BA53: 8 | BB53: 8 | BC53: 8 | BD53: 8 | BE53: 8 | BF53: 8 | BG53: 8 | BH53: 8 | BI53: 8 | BJ53: 8 | BK53: 8 | BL53: 8 | BM53: 8 | BN53: 8 | BO53: 8 | BP53: 8 | BQ53: 8 | BR53: 8 | BS53: 8 | BT53: 8 | BU53: 11 | BV53: 11 | BW53: 11 | BX53: 11 | BY53: 11 | BZ53: 11 | CA53: 11 | CB53: 11 | CC53: 11 | CD53: 11 | CE53: 11 | CF53: 11 | CG53: 11 | CH53: 11 | CI53: 11 | CJ53: 11 | CK53: 11 | CL53: -99 | CM53: 11 | CN53: 11 | CO53: 11 | CP53: 11 | CQ53: 11 | CR53: 11 | CS53: 11 | CT53: 11 | CU53: 11 | CV53: -99 | CW53: 12 | CX53: 12 | CY53: 12 | CZ53: 12 | DA53: 12 | DB53: 12 | DC53: 12 | DD53: 12 | DE53: 12 | DF53: 12 | DG53: 12 | DH53: 12 | DI53: 12 | DJ53: 12 | DK53: 12 | DL53: 12 | DM53: 12 | DN53: 12 | DO53: 12 | DP53: 12 | DQ53: 8 | DR53: 8 | DS53: 8 | DT53: 8 | DU53: 8 | DV53: 8 | DW53: 8 | DX53: 8 | DY53: 8 | DZ53: 8 | EA53: 8 | EB53: 8 | EC53: 8 | ED53: 8 | EE53: 8 | EF53: 8 | EG53: 8 | EH53: 8 | EI53: 8 | EJ53: 8 | EL53: 36
A54: Single Antenna | B54: A | C54: UNII-3 | D54: 13 | E54: 24 | F54: 24 | G54: 24 | H54: 24 | I54: 23 | J54: 23 | K54: 22 | L54: 21 | M54: 22 | N54: 22 | O54: 22 | P54: 22 | Q54: 22 | R54: 22 | S54: 22 | T54: 21 | U54: 20 | V54: -99 | W54: -99 | X54: -99 | Y54: -99 | Z54: -99 | AA54: -99 | AB54: -99 | AC54: -99 | AD54: -99 | AE54: -99 | AF54: -99 | AG54: 22 | AH54: 22 | AI54: 22 | AJ54: 22 | AK54: 22 | AL54: 22 | AM54: 21 | AN54: 20 | AO54: 20 | AP54: 19 | AQ54: -99 | AR54: -99 | AS54: -99 | AT54: -99 | AU54: -99 | AV54: -99 | AW54: -99 | AX54: -99 | AY54: -99 | AZ54: -99 | BA54: 22 | BB54: 22 | BC54: 22 | BD54: 22 | BE54: 22 | BF54: 22 | BG54: 21 | BH54: 20 | BI54: 20 | BJ54: 19 | BK54: -99 | BL54: -99 | BM54: -99 | BN54: -99 | BO54: -99 | BP54: -99 | BQ54: -99 | BR54: -99 | BS54: -99 | BT54: -99 | BU54: -99 | BV54: -99 | BW54: -99 | BX54: -99 | BY54: -99 | BZ54: -99 | CA54: -99 | CB54: -99 | CC54: -99 | CD54: -99 | CE54: -99 | CF54: -99 | CG54: -99 | CH54: -99 | CI54: -99 | CJ54: -99 | CK54: -99 | CL54: -99 | CM54: -99 | CN54: -99 | CO54: -99 | CP54: -99 | CQ54: -99 | CR54: -99 | CS54: -99 | CT54: -99 | CU54: -99 | CV54: -99 | CW54: -99 | CX54: -99 | CY54: -99 | CZ54: -99 | DA54: -99 | DB54: -99 | DC54: -99 | DD54: -99 | DE54: -99 | DF54: -99 | DG54: -99 | DH54: -99 | DI54: -99 | DJ54: -99 | DK54: -99 | DL54: -99 | DM54: -99 | DN54: -99 | DO54: -99 | DP54: -99 | DQ54: -99 | DR54: -99 | DS54: -99 | DT54: -99 | DU54: -99 | DV54: -99 | DW54: -99 | DX54: -99 | DY54: -99 | DZ54: -99 | EA54: -99 | EB54: -99 | EC54: -99 | ED54: -99 | EE54: -99 | EF54: -99 | EG54: -99 | EH54: -99 | EI54: -99 | EJ54: -99 | EL54: 37
A55: Dual Antenna | B55: A | C55: UNII-3 | D55: 13 | E55: 24 | F55: 24 | G55: 24 | H55: 24 | I55: 23 | J55: 23 | K55: 22 | L55: 21 | M55: 12 | N55: 12 | O55: 12 | P55: 12 | Q55: 12 | R55: 12 | S55: 12 | T55: 12 | U55: 12 | V55: -99 | W55: 12 | X55: 12 | Y55: 12 | Z55: 12 | AA55: 12 | AB55: 12 | AC55: 12 | AD55: 12 | AE55: 12 | AF55: -99 | AG55: 13 | AH55: 13 | AI55: 13 | AJ55: 13 | AK55: 13 | AL55: 13 | AM55: 13 | AN55: 13 | AO55: 13 | AP55: 13 | AQ55: 13 | AR55: 13 | AS55: 13 | AT55: 13 | AU55: 13 | AV55: 13 | AW55: 13 | AX55: 13 | AY55: 13 | AZ55: 13 | BA55: 13 | BB55: 13 | BC55: 13 | BD55: 13 | BE55: 13 | BF55: 13 | BG55: 13 | BH55: 13 | BI55: 13 | BJ55: 13 | BK55: 13 | BL55: 13 | BM55: 13 | BN55: 13 | BO55: 13 | BP55: 13 | BQ55: 13 | BR55: 13 | BS55: 13 | BT55: 13 | BU55: 24 | BV55: 24 | BW55: 24 | BX55: 24 | BY55: 23 | BZ55: 23 | CA55: 22 | CB55: 21 | CC55: 12 | CD55: 12 | CE55: 12 | CF55: 12 | CG55: 12 | CH55: 12 | CI55: 12 | CJ55: 12 | CK55: 12 | CL55: -99 | CM55: 12 | CN55: 12 | CO55: 12 | CP55: 12 | CQ55: 12 | CR55: 12 | CS55: 12 | CT55: 12 | CU55: 12 | CV55: -99 | CW55: 13 | CX55: 13 | CY55: 13 | CZ55: 13 | DA55: 13 | DB55: 13 | DC55: 13 | DD55: 13 | DE55: 13 | DF55: 13 | DG55: 13 | DH55: 13 | DI55: 13 | DJ55: 13 | DK55: 13 | DL55: 13 | DM55: 13 | DN55: 13 | DO55: 13 | DP55: 13 | DQ55: 13 | DR55: 13 | DS55: 13 | DT55: 13 | DU55: 13 | DV55: 13 | DW55: 13 | DX55: 13 | DY55: 13 | DZ55: 13 | EA55: 13 | EB55: 13 | EC55: 13 | ED55: 13 | EE55: 13 | EF55: 13 | EG55: 13 | EH55: 13 | EI55: 13 | EJ55: 13 | EL55: 38
A56: Single Antenna | B56: A | C56: 5845, 5865 | D56: 13 | E56: -99 | F56: -99 | G56: -99 | H56: -99 | I56: -99 | J56: -99 | K56: -99 | L56: -99 | M56: -99 | N56: -99 | O56: -99 | P56: -99 | Q56: -99 | R56: -99 | S56: -99 | T56: -99 | U56: -99 | V56: -99 | W56: -99 | X56: -99 | Y56: -99 | Z56: -99 | AA56: -99 | AB56: -99 | AC56: -99 | AD56: -99 | AE56: -99 | AF56: -99 | AG56: -99 | AH56: -99 | AI56: -99 | AJ56: -99 | AK56: -99 | AL56: -99 | AM56: -99 | AN56: -99 | AO56: -99 | AP56: -99 | AQ56: -99 | AR56: -99 | AS56: -99 | AT56: -99 | AU56: -99 | AV56: -99 | AW56: -99 | AX56: -99 | AY56: -99 | AZ56: -99 | BA56: -99 | BB56: -99 | BC56: -99 | BD56: -99 | BE56: -99 | BF56: -99 | BG56: -99 | BH56: -99 | BI56: -99 | BJ56: -99 | BK56: -99 | BL56: -99 | BM56: -99 | BN56: -99 | BO56: -99 | BP56: -99 | BQ56: -99 | BR56: -99 | BS56: -99 | BT56: -99 | BU56: -99 | BV56: -99 | BW56: -99 | BX56: -99 | BY56: -99 | BZ56: -99 | CA56: -99 | CB56: -99 | CC56: -99 | CD56: -99 | CE56: -99 | CF56: -99 | CG56: -99 | CH56: -99 | CI56: -99 | CJ56: -99 | CK56: -99 | CL56: -99 | CM56: -99 | CN56: -99 | CO56: -99 | CP56: -99 | CQ56: -99 | CR56: -99 | CS56: -99 | CT56: -99 | CU56: -99 | CV56: -99 | CW56: -99 | CX56: -99 | CY56: -99 | CZ56: -99 | DA56: -99 | DB56: -99 | DC56: -99 | DD56: -99 | DE56: -99 | DF56: -99 | DG56: -99 | DH56: -99 | DI56: -99 | DJ56: -99 | DK56: -99 | DL56: -99 | DM56: -99 | DN56: -99 | DO56: -99 | DP56: -99 | DQ56: -99 | DR56: -99 | DS56: -99 | DT56: -99 | DU56: -99 | DV56: -99 | DW56: -99 | DX56: -99 | DY56: -99 | DZ56: -99 | EA56: -99 | EB56: -99 | EC56: -99 | ED56: -99 | EE56: -99 | EF56: -99 | EG56: -99 | EH56: -99 | EI56: -99 | EJ56: -99 | EL56: 39
A57: Dual Antenna | B57: A | C57: 5845, 5865 | D57: 13 | E57: -99 | F57: -99 | G57: -99 | H57: -99 | I57: -99 | J57: -99 | K57: -99 | L57: -99 | M57: -99 | N57: -99 | O57: -99 | P57: -99 | Q57: -99 | R57: -99 | S57: -99 | T57: -99 | U57: -99 | V57: -99 | W57: -99 | X57: -99 | Y57: -99 | Z57: -99 | AA57: -99 | AB57: -99 | AC57: -99 | AD57: -99 | AE57: -99 | AF57: -99 | AG57: -99 | AH57: -99 | AI57: -99 | AJ57: -99 | AK57: -99 | AL57: -99 | AM57: -99 | AN57: -99 | AO57: -99 | AP57: -99 | AQ57: -99 | AR57: -99 | AS57: -99 | AT57: -99 | AU57: -99 | AV57: -99 | AW57: -99 | AX57: -99 | AY57: -99 | AZ57: -99 | BA57: -99 | BB57: -99 | BC57: -99 | BD57: -99 | BE57: -99 | BF57: -99 | BG57: -99 | BH57: -99 | BI57: -99 | BJ57: -99 | BK57: -99 | BL57: -99 | BM57: -99 | BN57: -99 | BO57: -99 | BP57: -99 | BQ57: -99 | BR57: -99 | BS57: -99 | BT57: -99 | BU57: -99 | BV57: -99 | BW57: -99 | BX57: -99 | BY57: -99 | BZ57: -99 | CA57: -99 | CB57: -99 | CC57: -99 | CD57: -99 | CE57: -99 | CF57: -99 | CG57: -99 | CH57: -99 | CI57: -99 | CJ57: -99 | CK57: -99 | CL57: -99 | CM57: -99 | CN57: -99 | CO57: -99 | CP57: -99 | CQ57: -99 | CR57: -99 | CS57: -99 | CT57: -99 | CU57: -99 | CV57: -99 | CW57: -99 | CX57: -99 | CY57: -99 | CZ57: -99 | DA57: -99 | DB57: -99 | DC57: -99 | DD57: -99 | DE57: -99 | DF57: -99 | DG57: -99 | DH57: -99 | DI57: -99 | DJ57: -99 | DK57: -99 | DL57: -99 | DM57: -99 | DN57: -99 | DO57: -99 | DP57: -99 | DQ57: -99 | DR57: -99 | DS57: -99 | DT57: -99 | DU57: -99 | DV57: -99 | DW57: -99 | DX57: -99 | DY57: -99 | DZ57: -99 | EA57: -99 | EB57: -99 | EC57: -99 | ED57: -99 | EE57: -99 | EF57: -99 | EG57: -99 | EH57: -99 | EI57: -99 | EJ57: -99 | EL57: 40
A58: Single Antenna | B58: A | C58: UNII-1 | D58: 14 | E58: -99 | F58: -99 | G58: -99 | H58: -99 | I58: -99 | J58: -99 | K58: -99 | L58: -99 | M58: -99 | N58: -99 | O58: -99 | P58: -99 | Q58: -99 | R58: -99 | S58: -99 | T58: -99 | U58: -99 | V58: -99 | W58: -99 | X58: -99 | Y58: -99 | Z58: -99 | AA58: -99 | AB58: -99 | AC58: -99 | AD58: -99 | AE58: -99 | AF58: -99 | AG58: -99 | AH58: -99 | AI58: -99 | AJ58: -99 | AK58: -99 | AL58: -99 | AM58: -99 | AN58: -99 | AO58: -99 | AP58: -99 | AQ58: -99 | AR58: -99 | AS58: -99 | AT58: -99 | AU58: -99 | AV58: -99 | AW58: -99 | AX58: -99 | AY58: -99 | AZ58: -99 | BA58: -99 | BB58: -99 | BC58: -99 | BD58: -99 | BE58: -99 | BF58: -99 | BG58: -99 | BH58: -99 | BI58: -99 | BJ58: -99 | BK58: -99 | BL58: -99 | BM58: -99 | BN58: -99 | BO58: -99 | BP58: -99 | BQ58: -99 | BR58: -99 | BS58: -99 | BT58: -99 | BU58: -99 | BV58: -99 | BW58: -99 | BX58: -99 | BY58: -99 | BZ58: -99 | CA58: -99 | CB58: -99 | CC58: -99 | CD58: -99 | CE58: -99 | CF58: -99 | CG58: -99 | CH58: -99 | CI58: -99 | CJ58: -99 | CK58: -99 | CL58: -99 | CM58: -99 | CN58: -99 | CO58: -99 | CP58: -99 | CQ58: -99 | CR58: -99 | CS58: -99 | CT58: -99 | CU58: -99 | CV58: -99 | CW58: -99 | CX58: -99 | CY58: -99 | CZ58: -99 | DA58: -99 | DB58: -99 | DC58: -99 | DD58: -99 | DE58: -99 | DF58: -99 | DG58: -99 | DH58: -99 | DI58: -99 | DJ58: -99 | DK58: -99 | DL58: -99 | DM58: -99 | DN58: -99 | DO58: -99 | DP58: -99 | DQ58: -99 | DR58: -99 | DS58: -99 | DT58: -99 | DU58: -99 | DV58: -99 | DW58: -99 | DX58: -99 | DY58: -99 | DZ58: -99 | EA58: -99 | EB58: -99 | EC58: -99 | ED58: -99 | EE58: -99 | EF58: -99 | EG58: -99 | EH58: -99 | EI58: -99 | EJ58: -99 | EL58: 41
A59: Dual Antenna | B59: A | C59: UNII-1 | D59: 14 | E59: -99 | F59: -99 | G59: -99 | H59: -99 | I59: -99 | J59: -99 | K59: -99 | L59: -99 | M59: -99 | N59: -99 | O59: -99 | P59: -99 | Q59: -99 | R59: -99 | S59: -99 | T59: -99 | U59: -99 | V59: -99 | W59: -99 | X59: -99 | Y59: -99 | Z59: -99 | AA59: -99 | AB59: -99 | AC59: -99 | AD59: -99 | AE59: -99 | AF59: -99 | AG59: -99 | AH59: -99 | AI59: -99 | AJ59: -99 | AK59: -99 | AL59: -99 | AM59: -99 | AN59: -99 | AO59: -99 | AP59: -99 | AQ59: -99 | AR59: -99 | AS59: -99 | AT59: -99 | AU59: -99 | AV59: -99 | AW59: -99 | AX59: -99 | AY59: -99 | AZ59: -99 | BA59: -99 | BB59: -99 | BC59: -99 | BD59: -99 | BE59: -99 | BF59: -99 | BG59: -99 | BH59: -99 | BI59: -99 | BJ59: -99 | BK59: -99 | BL59: -99 | BM59: -99 | BN59: -99 | BO59: -99 | BP59: -99 | BQ59: -99 | BR59: -99 | BS59: -99 | BT59: -99 | BU59: -99 | BV59: -99 | BW59: -99 | BX59: -99 | BY59: -99 | BZ59: -99 | CA59: -99 | CB59: -99 | CC59: -99 | CD59: -99 | CE59: -99 | CF59: -99 | CG59: -99 | CH59: -99 | CI59: -99 | CJ59: -99 | CK59: -99 | CL59: -99 | CM59: -99 | CN59: -99 | CO59: -99 | CP59: -99 | CQ59: -99 | CR59: -99 | CS59: -99 | CT59: -99 | CU59: -99 | CV59: -99 | CW59: -99 | CX59: -99 | CY59: -99 | CZ59: -99 | DA59: -99 | DB59: -99 | DC59: -99 | DD59: -99 | DE59: -99 | DF59: -99 | DG59: -99 | DH59: -99 | DI59: -99 | DJ59: -99 | DK59: -99 | DL59: -99 | DM59: -99 | DN59: -99 | DO59: -99 | DP59: -99 | DQ59: -99 | DR59: -99 | DS59: -99 | DT59: -99 | DU59: -99 | DV59: -99 | DW59: -99 | DX59: -99 | DY59: -99 | DZ59: -99 | EA59: -99 | EB59: -99 | EC59: -99 | ED59: -99 | EE59: -99 | EF59: -99 | EG59: -99 | EH59: -99 | EI59: -99 | EJ59: -99 | EL59: 42
A60: Single Antenna | B60: A | C60: UNII-2A | D60: 14 | E60: 9 | F60: 9 | G60: 9 | H60: 9 | I60: 9 | J60: 9 | K60: 9 | L60: 9 | M60: 9 | N60: 9 | O60: 9 | P60: 9 | Q60: 9 | R60: 9 | S60: 9 | T60: 9 | U60: 9 | V60: -99 | W60: -99 | X60: -99 | Y60: -99 | Z60: -99 | AA60: -99 | AB60: -99 | AC60: -99 | AD60: -99 | AE60: -99 | AF60: -99 | AG60: 10 | AH60: 10 | AI60: 10 | AJ60: 10 | AK60: 10 | AL60: 10 | AM60: 10 | AN60: 10 | AO60: 10 | AP60: 10 | AQ60: -99 | AR60: -99 | AS60: -99 | AT60: -99 | AU60: -99 | AV60: -99 | AW60: -99 | AX60: -99 | AY60: -99 | AZ60: -99 | BA60: -99 | BB60: -99 | BC60: -99 | BD60: -99 | BE60: -99 | BF60: -99 | BG60: -99 | BH60: -99 | BI60: -99 | BJ60: -99 | BK60: -99 | BL60: -99 | BM60: -99 | BN60: -99 | BO60: -99 | BP60: -99 | BQ60: -99 | BR60: -99 | BS60: -99 | BT60: -99 | BU60: -99 | BV60: -99 | BW60: -99 | BX60: -99 | BY60: -99 | BZ60: -99 | CA60: -99 | CB60: -99 | CC60: -99 | CD60: -99 | CE60: -99 | CF60: -99 | CG60: -99 | CH60: -99 | CI60: -99 | CJ60: -99 | CK60: -99 | CL60: -99 | CM60: -99 | CN60: -99 | CO60: -99 | CP60: -99 | CQ60: -99 | CR60: -99 | CS60: -99 | CT60: -99 | CU60: -99 | CV60: -99 | CW60: -99 | CX60: -99 | CY60: -99 | CZ60: -99 | DA60: -99 | DB60: -99 | DC60: -99 | DD60: -99 | DE60: -99 | DF60: -99 | DG60: -99 | DH60: -99 | DI60: -99 | DJ60: -99 | DK60: -99 | DL60: -99 | DM60: -99 | DN60: -99 | DO60: -99 | DP60: -99 | DQ60: -99 | DR60: -99 | DS60: -99 | DT60: -99 | DU60: -99 | DV60: -99 | DW60: -99 | DX60: -99 | DY60: -99 | DZ60: -99 | EA60: -99 | EB60: -99 | EC60: -99 | ED60: -99 | EE60: -99 | EF60: -99 | EG60: -99 | EH60: -99 | EI60: -99 | EJ60: -99 | EL60: 43
A61: Dual Antenna | B61: A | C61: UNII-2A | D61: 14 | E61: 6 | F61: 6 | G61: 6 | H61: 6 | I61: 6 | J61: 6 | K61: 6 | L61: 6 | M61: 6 | N61: 6 | O61: 6 | P61: 6 | Q61: 6 | R61: 6 | S61: 6 | T61: 6 | U61: 6 | V61: -99 | W61: 6 | X61: 6 | Y61: 6 | Z61: 6 | AA61: 6 | AB61: 6 | AC61: 6 | AD61: 6 | AE61: 6 | AF61: -99 | AG61: 7 | AH61: 7 | AI61: 7 | AJ61: 7 | AK61: 7 | AL61: 7 | AM61: 7 | AN61: 7 | AO61: 7 | AP61: 7 | AQ61: 7 | AR61: 7 | AS61: 7 | AT61: 7 | AU61: 7 | AV61: 7 | AW61: 7 | AX61: 7 | AY61: 7 | AZ61: 7 | BA61: -99 | BB61: -99 | BC61: -99 | BD61: -99 | BE61: -99 | BF61: -99 | BG61: -99 | BH61: -99 | BI61: -99 | BJ61: -99 | BK61: -99 | BL61: -99 | BM61: -99 | BN61: -99 | BO61: -99 | BP61: -99 | BQ61: -99 | BR61: -99 | BS61: -99 | BT61: -99 | BU61: 6 | BV61: 6 | BW61: 6 | BX61: 6 | BY61: 6 | BZ61: 6 | CA61: 6 | CB61: 6 | CC61: 6 | CD61: 6 | CE61: 6 | CF61: 6 | CG61: 6 | CH61: 6 | CI61: 6 | CJ61: 6 | CK61: 6 | CL61: -99 | CM61: 6 | CN61: 6 | CO61: 6 | CP61: 6 | CQ61: 6 | CR61: 6 | CS61: 6 | CT61: 6 | CU61: 6 | CV61: -99 | CW61: 7 | CX61: 7 | CY61: 7 | CZ61: 7 | DA61: 7 | DB61: 7 | DC61: 7 | DD61: 7 | DE61: 7 | DF61: 7 | DG61: 7 | DH61: 7 | DI61: 7 | DJ61: 7 | DK61: 7 | DL61: 7 | DM61: 7 | DN61: 7 | DO61: 7 | DP61: 7 | DQ61: -99 | DR61: -99 | DS61: -99 | DT61: -99 | DU61: -99 | DV61: -99 | DW61: -99 | DX61: -99 | DY61: -99 | DZ61: -99 | EA61: -99 | EB61: -99 | EC61: -99 | ED61: -99 | EE61: -99 | EF61: -99 | EG61: -99 | EH61: -99 | EI61: -99 | EJ61: -99 | EL61: 44
A62: Single Antenna | B62: A | C62: UNII-2C | D62: 14 | E62: 13 | F62: 13 | G62: 13 | H62: 13 | I62: 13 | J62: 13 | K62: 13 | L62: 13 | M62: 13 | N62: 13 | O62: 13 | P62: 13 | Q62: 13 | R62: 13 | S62: 13 | T62: 13 | U62: 13 | V62: -99 | W62: -99 | X62: -99 | Y62: -99 | Z62: -99 | AA62: -99 | AB62: -99 | AC62: -99 | AD62: -99 | AE62: -99 | AF62: -99 | AG62: 13 | AH62: 13 | AI62: 13 | AJ62: 13 | AK62: 13 | AL62: 13 | AM62: 13 | AN62: 13 | AO62: 13 | AP62: 13 | AQ62: -99 | AR62: -99 | AS62: -99 | AT62: -99 | AU62: -99 | AV62: -99 | AW62: -99 | AX62: -99 | AY62: -99 | AZ62: -99 | BA62: 10 | BB62: 10 | BC62: 10 | BD62: 10 | BE62: 10 | BF62: 10 | BG62: 10 | BH62: 10 | BI62: 10 | BJ62: 10 | BK62: -99 | BL62: -99 | BM62: -99 | BN62: -99 | BO62: -99 | BP62: -99 | BQ62: -99 | BR62: -99 | BS62: -99 | BT62: -99 | BU62: -99 | BV62: -99 | BW62: -99 | BX62: -99 | BY62: -99 | BZ62: -99 | CA62: -99 | CB62: -99 | CC62: -99 | CD62: -99 | CE62: -99 | CF62: -99 | CG62: -99 | CH62: -99 | CI62: -99 | CJ62: -99 | CK62: -99 | CL62: -99 | CM62: -99 | CN62: -99 | CO62: -99 | CP62: -99 | CQ62: -99 | CR62: -99 | CS62: -99 | CT62: -99 | CU62: -99 | CV62: -99 | CW62: -99 | CX62: -99 | CY62: -99 | CZ62: -99 | DA62: -99 | DB62: -99 | DC62: -99 | DD62: -99 | DE62: -99 | DF62: -99 | DG62: -99 | DH62: -99 | DI62: -99 | DJ62: -99 | DK62: -99 | DL62: -99 | DM62: -99 | DN62: -99 | DO62: -99 | DP62: -99 | DQ62: -99 | DR62: -99 | DS62: -99 | DT62: -99 | DU62: -99 | DV62: -99 | DW62: -99 | DX62: -99 | DY62: -99 | DZ62: -99 | EA62: -99 | EB62: -99 | EC62: -99 | ED62: -99 | EE62: -99 | EF62: -99 | EG62: -99 | EH62: -99 | EI62: -99 | EJ62: -99 | EL62: 45
A63: Dual Antenna | B63: A | C63: UNII-2C | D63: 14 | E63: 10 | F63: 10 | G63: 10 | H63: 10 | I63: 10 | J63: 10 | K63: 10 | L63: 10 | M63: 10 | N63: 10 | O63: 10 | P63: 10 | Q63: 10 | R63: 10 | S63: 10 | T63: 10 | U63: 10 | V63: -99 | W63: 10 | X63: 10 | Y63: 10 | Z63: 10 | AA63: 10 | AB63: 10 | AC63: 10 | AD63: 10 | AE63: 10 | AF63: -99 | AG63: 11 | AH63: 11 | AI63: 11 | AJ63: 11 | AK63: 11 | AL63: 11 | AM63: 11 | AN63: 11 | AO63: 11 | AP63: 11 | AQ63: 11 | AR63: 11 | AS63: 11 | AT63: 11 | AU63: 11 | AV63: 11 | AW63: 11 | AX63: 11 | AY63: 11 | AZ63: 11 | BA63: 7 | BB63: 7 | BC63: 7 | BD63: 7 | BE63: 7 | BF63: 7 | BG63: 7 | BH63: 7 | BI63: 7 | BJ63: 7 | BK63: -99 | BL63: -99 | BM63: -99 | BN63: -99 | BO63: -99 | BP63: -99 | BQ63: -99 | BR63: -99 | BS63: -99 | BT63: -99 | BU63: 10 | BV63: 10 | BW63: 10 | BX63: 10 | BY63: 10 | BZ63: 10 | CA63: 10 | CB63: 10 | CC63: 10 | CD63: 10 | CE63: 10 | CF63: 10 | CG63: 10 | CH63: 10 | CI63: 10 | CJ63: 10 | CK63: 10 | CL63: -99 | CM63: 10 | CN63: 10 | CO63: 10 | CP63: 10 | CQ63: 10 | CR63: 10 | CS63: 10 | CT63: 10 | CU63: 10 | CV63: -99 | CW63: 11 | CX63: 11 | CY63: 11 | CZ63: 11 | DA63: 11 | DB63: 11 | DC63: 11 | DD63: 11 | DE63: 11 | DF63: 11 | DG63: 11 | DH63: 11 | DI63: 11 | DJ63: 11 | DK63: 11 | DL63: 11 | DM63: 11 | DN63: 11 | DO63: 11 | DP63: 11 | DQ63: 7 | DR63: 7 | DS63: 7 | DT63: 7 | DU63: 7 | DV63: 7 | DW63: 7 | DX63: 7 | DY63: 7 | DZ63: 7 | EA63: 7 | EB63: 7 | EC63: 7 | ED63: 7 | EE63: 7 | EF63: 7 | EG63: 7 | EH63: 7 | EI63: 7 | EJ63: 7 | EL63: 46
A64: Single Antenna | B64: A | C64: UNII-3 | D64: 14 | E64: 24 | F64: 24 | G64: 24 | H64: 24 | I64: 23 | J64: 23 | K64: 22 | L64: 21 | M64: 22 | N64: 22 | O64: 22 | P64: 22 | Q64: 22 | R64: 22 | S64: 22 | T64: 21 | U64: 20 | V64: -99 | W64: -99 | X64: -99 | Y64: -99 | Z64: -99 | AA64: -99 | AB64: -99 | AC64: -99 | AD64: -99 | AE64: -99 | AF64: -99 | AG64: 22 | AH64: 22 | AI64: 22 | AJ64: 22 | AK64: 22 | AL64: 22 | AM64: 21 | AN64: 20 | AO64: 20 | AP64: 19 | AQ64: -99 | AR64: -99 | AS64: -99 | AT64: -99 | AU64: -99 | AV64: -99 | AW64: -99 | AX64: -99 | AY64: -99 | AZ64: -99 | BA64: 22 | BB64: 22 | BC64: 22 | BD64: 22 | BE64: 22 | BF64: 22 | BG64: 21 | BH64: 20 | BI64: 20 | BJ64: 19 | BK64: -99 | BL64: -99 | BM64: -99 | BN64: -99 | BO64: -99 | BP64: -99 | BQ64: -99 | BR64: -99 | BS64: -99 | BT64: -99 | BU64: -99 | BV64: -99 | BW64: -99 | BX64: -99 | BY64: -99 | BZ64: -99 | CA64: -99 | CB64: -99 | CC64: -99 | CD64: -99 | CE64: -99 | CF64: -99 | CG64: -99 | CH64: -99 | CI64: -99 | CJ64: -99 | CK64: -99 | CL64: -99 | CM64: -99 | CN64: -99 | CO64: -99 | CP64: -99 | CQ64: -99 | CR64: -99 | CS64: -99 | CT64: -99 | CU64: -99 | CV64: -99 | CW64: -99 | CX64: -99 | CY64: -99 | CZ64: -99 | DA64: -99 | DB64: -99 | DC64: -99 | DD64: -99 | DE64: -99 | DF64: -99 | DG64: -99 | DH64: -99 | DI64: -99 | DJ64: -99 | DK64: -99 | DL64: -99 | DM64: -99 | DN64: -99 | DO64: -99 | DP64: -99 | DQ64: -99 | DR64: -99 | DS64: -99 | DT64: -99 | DU64: -99 | DV64: -99 | DW64: -99 | DX64: -99 | DY64: -99 | DZ64: -99 | EA64: -99 | EB64: -99 | EC64: -99 | ED64: -99 | EE64: -99 | EF64: -99 | EG64: -99 | EH64: -99 | EI64: -99 | EJ64: -99 | EL64: 47
A65: Dual Antenna | B65: A | C65: UNII-3 | D65: 14 | E65: 24 | F65: 24 | G65: 24 | H65: 24 | I65: 23 | J65: 23 | K65: 22 | L65: 21 | M65: 12 | N65: 12 | O65: 12 | P65: 12 | Q65: 12 | R65: 12 | S65: 12 | T65: 12 | U65: 12 | V65: -99 | W65: 12 | X65: 12 | Y65: 12 | Z65: 12 | AA65: 12 | AB65: 12 | AC65: 12 | AD65: 12 | AE65: 12 | AF65: -99 | AG65: 12 | AH65: 12 | AI65: 12 | AJ65: 12 | AK65: 12 | AL65: 12 | AM65: 12 | AN65: 12 | AO65: 12 | AP65: 12 | AQ65: 12 | AR65: 12 | AS65: 12 | AT65: 12 | AU65: 12 | AV65: 12 | AW65: 12 | AX65: 12 | AY65: 12 | AZ65: 12 | BA65: 12 | BB65: 12 | BC65: 12 | BD65: 12 | BE65: 12 | BF65: 12 | BG65: 12 | BH65: 12 | BI65: 12 | BJ65: 12 | BK65: 12 | BL65: 12 | BM65: 12 | BN65: 12 | BO65: 12 | BP65: 12 | BQ65: 12 | BR65: 12 | BS65: 12 | BT65: 12 | BU65: 24 | BV65: 24 | BW65: 24 | BX65: 24 | BY65: 23 | BZ65: 23 | CA65: 22 | CB65: 21 | CC65: 12 | CD65: 12 | CE65: 12 | CF65: 12 | CG65: 12 | CH65: 12 | CI65: 12 | CJ65: 12 | CK65: 12 | CL65: -99 | CM65: 12 | CN65: 12 | CO65: 12 | CP65: 12 | CQ65: 12 | CR65: 12 | CS65: 12 | CT65: 12 | CU65: 12 | CV65: -99 | CW65: 12 | CX65: 12 | CY65: 12 | CZ65: 12 | DA65: 12 | DB65: 12 | DC65: 12 | DD65: 12 | DE65: 12 | DF65: 12 | DG65: 12 | DH65: 12 | DI65: 12 | DJ65: 12 | DK65: 12 | DL65: 12 | DM65: 12 | DN65: 12 | DO65: 12 | DP65: 12 | DQ65: 12 | DR65: 12 | DS65: 12 | DT65: 12 | DU65: 12 | DV65: 12 | DW65: 12 | DX65: 12 | DY65: 12 | DZ65: 12 | EA65: 12 | EB65: 12 | EC65: 12 | ED65: 12 | EE65: 12 | EF65: 12 | EG65: 12 | EH65: 12 | EI65: 12 | EJ65: 12 | EL65: 48
A66: Single Antenna | B66: A | C66: 5845, 5865 | D66: 14 | E66: -99 | F66: -99 | G66: -99 | H66: -99 | I66: -99 | J66: -99 | K66: -99 | L66: -99 | M66: -99 | N66: -99 | O66: -99 | P66: -99 | Q66: -99 | R66: -99 | S66: -99 | T66: -99 | U66: -99 | V66: -99 | W66: -99 | X66: -99 | Y66: -99 | Z66: -99 | AA66: -99 | AB66: -99 | AC66: -99 | AD66: -99 | AE66: -99 | AF66: -99 | AG66: -99 | AH66: -99 | AI66: -99 | AJ66: -99 | AK66: -99 | AL66: -99 | AM66: -99 | AN66: -99 | AO66: -99 | AP66: -99 | AQ66: -99 | AR66: -99 | AS66: -99 | AT66: -99 | AU66: -99 | AV66: -99 | AW66: -99 | AX66: -99 | AY66: -99 | AZ66: -99 | BA66: -99 | BB66: -99 | BC66: -99 | BD66: -99 | BE66: -99 | BF66: -99 | BG66: -99 | BH66: -99 | BI66: -99 | BJ66: -99 | BK66: -99 | BL66: -99 | BM66: -99 | BN66: -99 | BO66: -99 | BP66: -99 | BQ66: -99 | BR66: -99 | BS66: -99 | BT66: -99 | BU66: -99 | BV66: -99 | BW66: -99 | BX66: -99 | BY66: -99 | BZ66: -99 | CA66: -99 | CB66: -99 | CC66: -99 | CD66: -99 | CE66: -99 | CF66: -99 | CG66: -99 | CH66: -99 | CI66: -99 | CJ66: -99 | CK66: -99 | CL66: -99 | CM66: -99 | CN66: -99 | CO66: -99 | CP66: -99 | CQ66: -99 | CR66: -99 | CS66: -99 | CT66: -99 | CU66: -99 | CV66: -99 | CW66: -99 | CX66: -99 | CY66: -99 | CZ66: -99 | DA66: -99 | DB66: -99 | DC66: -99 | DD66: -99 | DE66: -99 | DF66: -99 | DG66: -99 | DH66: -99 | DI66: -99 | DJ66: -99 | DK66: -99 | DL66: -99 | DM66: -99 | DN66: -99 | DO66: -99 | DP66: -99 | DQ66: -99 | DR66: -99 | DS66: -99 | DT66: -99 | DU66: -99 | DV66: -99 | DW66: -99 | DX66: -99 | DY66: -99 | DZ66: -99 | EA66: -99 | EB66: -99 | EC66: -99 | ED66: -99 | EE66: -99 | EF66: -99 | EG66: -99 | EH66: -99 | EI66: -99 | EJ66: -99 | EL66: 49
A67: Dual Antenna | B67: A | C67: 5845, 5865 | D67: 14 | E67: -99 | F67: -99 | G67: -99 | H67: -99 | I67: -99 | J67: -99 | K67: -99 | L67: -99 | M67: -99 | N67: -99 | O67: -99 | P67: -99 | Q67: -99 | R67: -99 | S67: -99 | T67: -99 | U67: -99 | V67: -99 | W67: -99 | X67: -99 | Y67: -99 | Z67: -99 | AA67: -99 | AB67: -99 | AC67: -99 | AD67: -99 | AE67: -99 | AF67: -99 | AG67: -99 | AH67: -99 | AI67: -99 | AJ67: -99 | AK67: -99 | AL67: -99 | AM67: -99 | AN67: -99 | AO67: -99 | AP67: -99 | AQ67: -99 | AR67: -99 | AS67: -99 | AT67: -99 | AU67: -99 | AV67: -99 | AW67: -99 | AX67: -99 | AY67: -99 | AZ67: -99 | BA67: -99 | BB67: -99 | BC67: -99 | BD67: -99 | BE67: -99 | BF67: -99 | BG67: -99 | BH67: -99 | BI67: -99 | BJ67: -99 | BK67: -99 | BL67: -99 | BM67: -99 | BN67: -99 | BO67: -99 | BP67: -99 | BQ67: -99 | BR67: -99 | BS67: -99 | BT67: -99 | BU67: -99 | BV67: -99 | BW67: -99 | BX67: -99 | BY67: -99 | BZ67: -99 | CA67: -99 | CB67: -99 | CC67: -99 | CD67: -99 | CE67: -99 | CF67: -99 | CG67: -99 | CH67: -99 | CI67: -99 | CJ67: -99 | CK67: -99 | CL67: -99 | CM67: -99 | CN67: -99 | CO67: -99 | CP67: -99 | CQ67: -99 | CR67: -99 | CS67: -99 | CT67: -99 | CU67: -99 | CV67: -99 | CW67: -99 | CX67: -99 | CY67: -99 | CZ67: -99 | DA67: -99 | DB67: -99 | DC67: -99 | DD67: -99 | DE67: -99 | DF67: -99 | DG67: -99 | DH67: -99 | DI67: -99 | DJ67: -99 | DK67: -99 | DL67: -99 | DM67: -99 | DN67: -99 | DO67: -99 | DP67: -99 | DQ67: -99 | DR67: -99 | DS67: -99 | DT67: -99 | DU67: -99 | DV67: -99 | DW67: -99 | DX67: -99 | DY67: -99 | DZ67: -99 | EA67: -99 | EB67: -99 | EC67: -99 | ED67: -99 | EE67: -99 | EF67: -99 | EG67: -99 | EH67: -99 | EI67: -99 | EJ67: -99 | EL67: 50
A68: Single Antenna | B68: B | C68: UNII-1 | D68: 5 | E68: 24 | F68: 24 | G68: 24 | H68: 24 | I68: 23 | J68: 23 | K68: 22 | L68: 21 | M68: 24 | N68: 24 | O68: 24 | P68: 24 | Q68: 23 | R68: 23 | S68: 22 | T68: 21 | U68: 20 | V68: -99 | W68: -99 | X68: -99 | Y68: -99 | Z68: -99 | AA68: -99 | AB68: -99 | AC68: -99 | AD68: -99 | AE68: -99 | AF68: -99 | AG68: 24 | AH68: 24 | AI68: 24 | AJ68: 24 | AK68: 23 | AL68: 22 | AM68: 21 | AN68: 20 | AO68: 20 | AP68: 19 | AQ68: -99 | AR68: -99 | AS68: -99 | AT68: -99 | AU68: -99 | AV68: -99 | AW68: -99 | AX68: -99 | AY68: -99 | AZ68: -99 | BA68: 16 | BB68: 16 | BC68: 16 | BD68: 16 | BE68: 16 | BF68: 16 | BG68: 16 | BH68: 16 | BI68: 16 | BJ68: 16 | BK68: -99 | BL68: -99 | BM68: -99 | BN68: -99 | BO68: -99 | BP68: -99 | BQ68: -99 | BR68: -99 | BS68: -99 | BT68: -99 | BU68: -99 | BV68: -99 | BW68: -99 | BX68: -99 | BY68: -99 | BZ68: -99 | CA68: -99 | CB68: -99 | CC68: -99 | CD68: -99 | CE68: -99 | CF68: -99 | CG68: -99 | CH68: -99 | CI68: -99 | CJ68: -99 | CK68: -99 | CL68: -99 | CM68: -99 | CN68: -99 | CO68: -99 | CP68: -99 | CQ68: -99 | CR68: -99 | CS68: -99 | CT68: -99 | CU68: -99 | CV68: -99 | CW68: -99 | CX68: -99 | CY68: -99 | CZ68: -99 | DA68: -99 | DB68: -99 | DC68: -99 | DD68: -99 | DE68: -99 | DF68: -99 | DG68: -99 | DH68: -99 | DI68: -99 | DJ68: -99 | DK68: -99 | DL68: -99 | DM68: -99 | DN68: -99 | DO68: -99 | DP68: -99 | DQ68: -99 | DR68: -99 | DS68: -99 | DT68: -99 | DU68: -99 | DV68: -99 | DW68: -99 | DX68: -99 | DY68: -99 | DZ68: -99 | EA68: -99 | EB68: -99 | EC68: -99 | ED68: -99 | EE68: -99 | EF68: -99 | EG68: -99 | EH68: -99 | EI68: -99 | EJ68: -99 | EL68: 51
A69: Dual Antenna | B69: B | C69: UNII-1 | D69: 5 | E69: 21 | F69: 21 | G69: 21 | H69: 21 | I69: 21 | J69: 21 | K69: 21 | L69: 21 | M69: 21 | N69: 21 | O69: 21 | P69: 21 | Q69: 21 | R69: 21 | S69: 21 | T69: 21 | U69: 20 | V69: -99 | W69: 21 | X69: 21 | Y69: 21 | Z69: 21 | AA69: 21 | AB69: 21 | AC69: 20 | AD69: 19 | AE69: 19 | AF69: -99 | AG69: 21 | AH69: 21 | AI69: 21 | AJ69: 21 | AK69: 21 | AL69: 21 | AM69: 21 | AN69: 20 | AO69: 20 | AP69: 19 | AQ69: 15 | AR69: 15 | AS69: 15 | AT69: 15 | AU69: 15 | AV69: 15 | AW69: 15 | AX69: 15 | AY69: 15 | AZ69: 15 | BA69: 15 | BB69: 15 | BC69: 15 | BD69: 15 | BE69: 15 | BF69: 15 | BG69: 15 | BH69: 15 | BI69: 15 | BJ69: 15 | BK69: 15 | BL69: 15 | BM69: 15 | BN69: 15 | BO69: 15 | BP69: 15 | BQ69: 15 | BR69: 15 | BS69: 15 | BT69: 15 | BU69: 17 | BV69: 17 | BW69: 17 | BX69: 17 | BY69: 17 | BZ69: 17 | CA69: 17 | CB69: 17 | CC69: 17 | CD69: 17 | CE69: 17 | CF69: 17 | CG69: 17 | CH69: 17 | CI69: 17 | CJ69: 17 | CK69: 17 | CL69: -99 | CM69: 21 | CN69: 21 | CO69: 21 | CP69: 21 | CQ69: 21 | CR69: 21 | CS69: 20 | CT69: 19 | CU69: 19 | CV69: -99 | CW69: 15 | CX69: 15 | CY69: 15 | CZ69: 15 | DA69: 15 | DB69: 15 | DC69: 15 | DD69: 15 | DE69: 15 | DF69: 15 | DG69: 17 | DH69: 17 | DI69: 17 | DJ69: 17 | DK69: 17 | DL69: 17 | DM69: 17 | DN69: 17 | DO69: 17 | DP69: 17 | DQ69: 13 | DR69: 13 | DS69: 13 | DT69: 13 | DU69: 13 | DV69: 13 | DW69: 13 | DX69: 13 | DY69: 13 | DZ69: 13 | EA69: 15 | EB69: 15 | EC69: 15 | ED69: 15 | EE69: 15 | EF69: 15 | EG69: 15 | EH69: 15 | EI69: 15 | EJ69: 15 | EL69: 52
A70: Single Antenna | B70: B | C70: UNII-2A | D70: 5 | E70: 23 | F70: 23 | G70: 23 | H70: 23 | I70: 23 | J70: 23 | K70: 22 | L70: 21 | M70: 23 | N70: 23 | O70: 23 | P70: 23 | Q70: 23 | R70: 23 | S70: 22 | T70: 21 | U70: 20 | V70: -99 | W70: -99 | X70: -99 | Y70: -99 | Z70: -99 | AA70: -99 | AB70: -99 | AC70: -99 | AD70: -99 | AE70: -99 | AF70: -99 | AG70: 18 | AH70: 18 | AI70: 18 | AJ70: 18 | AK70: 18 | AL70: 18 | AM70: 18 | AN70: 18 | AO70: 18 | AP70: 18 | AQ70: -99 | AR70: -99 | AS70: -99 | AT70: -99 | AU70: -99 | AV70: -99 | AW70: -99 | AX70: -99 | AY70: -99 | AZ70: -99 | BA70: 17 | BB70: 17 | BC70: 17 | BD70: 17 | BE70: 17 | BF70: 17 | BG70: 17 | BH70: 17 | BI70: 17 | BJ70: 17 | BK70: -99 | BL70: -99 | BM70: -99 | BN70: -99 | BO70: -99 | BP70: -99 | BQ70: -99 | BR70: -99 | BS70: -99 | BT70: -99 | BU70: -99 | BV70: -99 | BW70: -99 | BX70: -99 | BY70: -99 | BZ70: -99 | CA70: -99 | CB70: -99 | CC70: -99 | CD70: -99 | CE70: -99 | CF70: -99 | CG70: -99 | CH70: -99 | CI70: -99 | CJ70: -99 | CK70: -99 | CL70: -99 | CM70: -99 | CN70: -99 | CO70: -99 | CP70: -99 | CQ70: -99 | CR70: -99 | CS70: -99 | CT70: -99 | CU70: -99 | CV70: -99 | CW70: -99 | CX70: -99 | CY70: -99 | CZ70: -99 | DA70: -99 | DB70: -99 | DC70: -99 | DD70: -99 | DE70: -99 | DF70: -99 | DG70: -99 | DH70: -99 | DI70: -99 | DJ70: -99 | DK70: -99 | DL70: -99 | DM70: -99 | DN70: -99 | DO70: -99 | DP70: -99 | DQ70: -99 | DR70: -99 | DS70: -99 | DT70: -99 | DU70: -99 | DV70: -99 | DW70: -99 | DX70: -99 | DY70: -99 | DZ70: -99 | EA70: -99 | EB70: -99 | EC70: -99 | ED70: -99 | EE70: -99 | EF70: -99 | EG70: -99 | EH70: -99 | EI70: -99 | EJ70: -99 | EL70: 53
A71: Dual Antenna | B71: B | C71: UNII-2A | D71: 5 | E71: 17 | F71: 17 | G71: 17 | H71: 17 | I71: 17 | J71: 17 | K71: 17 | L71: 17 | M71: 17 | N71: 17 | O71: 17 | P71: 17 | Q71: 17 | R71: 17 | S71: 17 | T71: 17 | U71: 17 | V71: -99 | W71: 19 | X71: 19 | Y71: 19 | Z71: 19 | AA71: 19 | AB71: 19 | AC71: 19 | AD71: 19 | AE71: 19 | AF71: -99 | AG71: 18 | AH71: 18 | AI71: 18 | AJ71: 18 | AK71: 18 | AL71: 18 | AM71: 18 | AN71: 18 | AO71: 18 | AP71: 18 | AQ71: 18 | AR71: 18 | AS71: 18 | AT71: 18 | AU71: 18 | AV71: 18 | AW71: 18 | AX71: 18 | AY71: 18 | AZ71: 18 | BA71: 16 | BB71: 16 | BC71: 16 | BD71: 16 | BE71: 16 | BF71: 16 | BG71: 16 | BH71: 16 | BI71: 16 | BJ71: 16 | BK71: 16 | BL71: 16 | BM71: 16 | BN71: 16 | BO71: 16 | BP71: 16 | BQ71: 16 | BR71: 16 | BS71: 16 | BT71: 16 | BU71: 15 | BV71: 15 | BW71: 15 | BX71: 15 | BY71: 15 | BZ71: 15 | CA71: 15 | CB71: 15 | CC71: 15 | CD71: 15 | CE71: 15 | CF71: 15 | CG71: 15 | CH71: 15 | CI71: 15 | CJ71: 15 | CK71: 15 | CL71: -99 | CM71: 19 | CN71: 19 | CO71: 19 | CP71: 19 | CQ71: 19 | CR71: 19 | CS71: 19 | CT71: 19 | CU71: 19 | CV71: -99 | CW71: 14 | CX71: 14 | CY71: 14 | CZ71: 14 | DA71: 14 | DB71: 14 | DC71: 14 | DD71: 14 | DE71: 14 | DF71: 14 | DG71: 19 | DH71: 19 | DI71: 19 | DJ71: 19 | DK71: 19 | DL71: 19 | DM71: 19 | DN71: 19 | DO71: 19 | DP71: 18 | DQ71: 14 | DR71: 14 | DS71: 14 | DT71: 14 | DU71: 14 | DV71: 14 | DW71: 14 | DX71: 14 | DY71: 14 | DZ71: 14 | EA71: 16 | EB71: 16 | EC71: 16 | ED71: 16 | EE71: 16 | EF71: 16 | EG71: 16 | EH71: 16 | EI71: 16 | EJ71: 16 | EL71: 54
A72: Single Antenna | B72: B | C72: UNII-2C | D72: 5 | E72: 24 | F72: 24 | G72: 24 | H72: 24 | I72: 23 | J72: 23 | K72: 22 | L72: 21 | M72: 24 | N72: 24 | O72: 24 | P72: 24 | Q72: 23 | R72: 23 | S72: 22 | T72: 21 | U72: 20 | V72: -99 | W72: -99 | X72: -99 | Y72: -99 | Z72: -99 | AA72: -99 | AB72: -99 | AC72: -99 | AD72: -99 | AE72: -99 | AF72: -99 | AG72: 24 | AH72: 24 | AI72: 24 | AJ72: 24 | AK72: 23 | AL72: 22 | AM72: 21 | AN72: 20 | AO72: 20 | AP72: 19 | AQ72: -99 | AR72: -99 | AS72: -99 | AT72: -99 | AU72: -99 | AV72: -99 | AW72: -99 | AX72: -99 | AY72: -99 | AZ72: -99 | BA72: 24 | BB72: 24 | BC72: 24 | BD72: 24 | BE72: 23 | BF72: 22 | BG72: 21 | BH72: 20 | BI72: 20 | BJ72: 19 | BK72: -99 | BL72: -99 | BM72: -99 | BN72: -99 | BO72: -99 | BP72: -99 | BQ72: -99 | BR72: -99 | BS72: -99 | BT72: -99 | BU72: -99 | BV72: -99 | BW72: -99 | BX72: -99 | BY72: -99 | BZ72: -99 | CA72: -99 | CB72: -99 | CC72: -99 | CD72: -99 | CE72: -99 | CF72: -99 | CG72: -99 | CH72: -99 | CI72: -99 | CJ72: -99 | CK72: -99 | CL72: -99 | CM72: -99 | CN72: -99 | CO72: -99 | CP72: -99 | CQ72: -99 | CR72: -99 | CS72: -99 | CT72: -99 | CU72: -99 | CV72: -99 | CW72: -99 | CX72: -99 | CY72: -99 | CZ72: -99 | DA72: -99 | DB72: -99 | DC72: -99 | DD72: -99 | DE72: -99 | DF72: -99 | DG72: -99 | DH72: -99 | DI72: -99 | DJ72: -99 | DK72: -99 | DL72: -99 | DM72: -99 | DN72: -99 | DO72: -99 | DP72: -99 | DQ72: -99 | DR72: -99 | DS72: -99 | DT72: -99 | DU72: -99 | DV72: -99 | DW72: -99 | DX72: -99 | DY72: -99 | DZ72: -99 | EA72: -99 | EB72: -99 | EC72: -99 | ED72: -99 | EE72: -99 | EF72: -99 | EG72: -99 | EH72: -99 | EI72: -99 | EJ72: -99 | EL72: 55
A73: Dual Antenna | B73: B | C73: UNII-2C | D73: 5 | E73: 17 | F73: 17 | G73: 17 | H73: 17 | I73: 17 | J73: 17 | K73: 17 | L73: 17 | M73: 17 | N73: 17 | O73: 17 | P73: 17 | Q73: 17 | R73: 17 | S73: 17 | T73: 17 | U73: 17 | V73: -99 | W73: 22 | X73: 22 | Y73: 22 | Z73: 22 | AA73: 22 | AB73: 21 | AC73: 20 | AD73: 19 | AE73: 19 | AF73: -99 | AG73: 22 | AH73: 22 | AI73: 22 | AJ73: 22 | AK73: 22 | AL73: 22 | AM73: 21 | AN73: 20 | AO73: 20 | AP73: 19 | AQ73: 23 | AR73: 23 | AS73: 23 | AT73: 23 | AU73: 22 | AV73: 21 | AW73: 20 | AX73: 19 | AY73: 19 | AZ73: 18 | BA73: 20 | BB73: 20 | BC73: 20 | BD73: 20 | BE73: 20 | BF73: 20 | BG73: 20 | BH73: 20 | BI73: 20 | BJ73: 19 | BK73: 20 | BL73: 20 | BM73: 20 | BN73: 20 | BO73: 20 | BP73: 20 | BQ73: 20 | BR73: 19 | BS73: 19 | BT73: 18 | BU73: 17 | BV73: 17 | BW73: 17 | BX73: 17 | BY73: 17 | BZ73: 17 | CA73: 17 | CB73: 17 | CC73: 17 | CD73: 17 | CE73: 17 | CF73: 17 | CG73: 17 | CH73: 17 | CI73: 17 | CJ73: 17 | CK73: 17 | CL73: -99 | CM73: 21 | CN73: 21 | CO73: 21 | CP73: 21 | CQ73: 21 | CR73: 21 | CS73: 20 | CT73: 19 | CU73: 19 | CV73: -99 | CW73: 18 | CX73: 18 | CY73: 18 | CZ73: 18 | DA73: 18 | DB73: 18 | DC73: 18 | DD73: 18 | DE73: 18 | DF73: 18 | DG73: 23 | DH73: 23 | DI73: 23 | DJ73: 23 | DK73: 22 | DL73: 21 | DM73: 20 | DN73: 19 | DO73: 19 | DP73: 18 | DQ73: 18 | DR73: 18 | DS73: 18 | DT73: 18 | DU73: 18 | DV73: 18 | DW73: 18 | DX73: 18 | DY73: 18 | DZ73: 18 | EA73: 20 | EB73: 20 | EC73: 20 | ED73: 20 | EE73: 20 | EF73: 20 | EG73: 20 | EH73: 19 | EI73: 19 | EJ73: 18 | EL73: 56
A74: Single Antenna | B74: B | C74: UNII-3 | D74: 5 | E74: 24 | F74: 24 | G74: 24 | H74: 24 | I74: 23 | J74: 23 | K74: 22 | L74: 21 | M74: 24 | N74: 24 | O74: 24 | P74: 24 | Q74: 23 | R74: 23 | S74: 22 | T74: 21 | U74: 20 | V74: -99 | W74: -99 | X74: -99 | Y74: -99 | Z74: -99 | AA74: -99 | AB74: -99 | AC74: -99 | AD74: -99 | AE74: -99 | AF74: -99 | AG74: 23 | AH74: 23 | AI74: 23 | AJ74: 23 | AK74: 23 | AL74: 22 | AM74: 21 | AN74: 20 | AO74: 20 | AP74: 19 | AQ74: -99 | AR74: -99 | AS74: -99 | AT74: -99 | AU74: -99 | AV74: -99 | AW74: -99 | AX74: -99 | AY74: -99 | AZ74: -99 | BA74: 24 | BB74: 24 | BC74: 24 | BD74: 24 | BE74: 23 | BF74: 22 | BG74: 21 | BH74: 20 | BI74: 20 | BJ74: 19 | BK74: -99 | BL74: -99 | BM74: -99 | BN74: -99 | BO74: -99 | BP74: -99 | BQ74: -99 | BR74: -99 | BS74: -99 | BT74: -99 | BU74: -99 | BV74: -99 | BW74: -99 | BX74: -99 | BY74: -99 | BZ74: -99 | CA74: -99 | CB74: -99 | CC74: -99 | CD74: -99 | CE74: -99 | CF74: -99 | CG74: -99 | CH74: -99 | CI74: -99 | CJ74: -99 | CK74: -99 | CL74: -99 | CM74: -99 | CN74: -99 | CO74: -99 | CP74: -99 | CQ74: -99 | CR74: -99 | CS74: -99 | CT74: -99 | CU74: -99 | CV74: -99 | CW74: -99 | CX74: -99 | CY74: -99 | CZ74: -99 | DA74: -99 | DB74: -99 | DC74: -99 | DD74: -99 | DE74: -99 | DF74: -99 | DG74: -99 | DH74: -99 | DI74: -99 | DJ74: -99 | DK74: -99 | DL74: -99 | DM74: -99 | DN74: -99 | DO74: -99 | DP74: -99 | DQ74: -99 | DR74: -99 | DS74: -99 | DT74: -99 | DU74: -99 | DV74: -99 | DW74: -99 | DX74: -99 | DY74: -99 | DZ74: -99 | EA74: -99 | EB74: -99 | EC74: -99 | ED74: -99 | EE74: -99 | EF74: -99 | EG74: -99 | EH74: -99 | EI74: -99 | EJ74: -99 | EL74: 57
A75: Dual Antenna | B75: B | C75: UNII-3 | D75: 5 | E75: 24 | F75: 24 | G75: 24 | H75: 24 | I75: 23 | J75: 23 | K75: 22 | L75: 21 | M75: 24 | N75: 24 | O75: 24 | P75: 24 | Q75: 23 | R75: 23 | S75: 22 | T75: 21 | U75: 20 | V75: -99 | W75: 24 | X75: 24 | Y75: 24 | Z75: 24 | AA75: 22 | AB75: 21 | AC75: 20 | AD75: 19 | AE75: 19 | AF75: -99 | AG75: 21 | AH75: 21 | AI75: 21 | AJ75: 21 | AK75: 21 | AL75: 21 | AM75: 21 | AN75: 20 | AO75: 20 | AP75: 19 | AQ75: 21 | AR75: 21 | AS75: 21 | AT75: 21 | AU75: 21 | AV75: 21 | AW75: 20 | AX75: 19 | AY75: 19 | AZ75: 18 | BA75: 22 | BB75: 22 | BC75: 22 | BD75: 22 | BE75: 22 | BF75: 22 | BG75: 21 | BH75: 20 | BI75: 20 | BJ75: 19 | BK75: 22 | BL75: 22 | BM75: 22 | BN75: 22 | BO75: 22 | BP75: 21 | BQ75: 20 | BR75: 19 | BS75: 19 | BT75: 18 | BU75: 19 | BV75: 19 | BW75: 19 | BX75: 19 | BY75: 19 | BZ75: 19 | CA75: 19 | CB75: 19 | CC75: 19 | CD75: 19 | CE75: 19 | CF75: 19 | CG75: 19 | CH75: 19 | CI75: 19 | CJ75: 19 | CK75: 19 | CL75: -99 | CM75: 24 | CN75: 24 | CO75: 24 | CP75: 24 | CQ75: 22 | CR75: 21 | CS75: 20 | CT75: 19 | CU75: 19 | CV75: -99 | CW75: 19 | CX75: 19 | CY75: 19 | CZ75: 19 | DA75: 19 | DB75: 19 | DC75: 19 | DD75: 19 | DE75: 19 | DF75: 19 | DG75: 21 | DH75: 21 | DI75: 21 | DJ75: 21 | DK75: 21 | DL75: 21 | DM75: 20 | DN75: 19 | DO75: 19 | DP75: 18 | DQ75: 19 | DR75: 19 | DS75: 19 | DT75: 19 | DU75: 19 | DV75: 19 | DW75: 19 | DX75: 19 | DY75: 19 | DZ75: 19 | EA75: 22 | EB75: 22 | EC75: 22 | ED75: 22 | EE75: 22 | EF75: 21 | EG75: 20 | EH75: 19 | EI75: 19 | EJ75: 18 | EL75: 58
A76: Single Antenna | B76: B | C76: 5845, 5865 | D76: 5 | E76: -99 | F76: -99 | G76: -99 | H76: -99 | I76: -99 | J76: -99 | K76: -99 | L76: -99 | M76: -99 | N76: -99 | O76: -99 | P76: -99 | Q76: -99 | R76: -99 | S76: -99 | T76: -99 | U76: -99 | V76: -99 | W76: -99 | X76: -99 | Y76: -99 | Z76: -99 | AA76: -99 | AB76: -99 | AC76: -99 | AD76: -99 | AE76: -99 | AF76: -99 | AG76: -99 | AH76: -99 | AI76: -99 | AJ76: -99 | AK76: -99 | AL76: -99 | AM76: -99 | AN76: -99 | AO76: -99 | AP76: -99 | AQ76: -99 | AR76: -99 | AS76: -99 | AT76: -99 | AU76: -99 | AV76: -99 | AW76: -99 | AX76: -99 | AY76: -99 | AZ76: -99 | BA76: -99 | BB76: -99 | BC76: -99 | BD76: -99 | BE76: -99 | BF76: -99 | BG76: -99 | BH76: -99 | BI76: -99 | BJ76: -99 | BK76: -99 | BL76: -99 | BM76: -99 | BN76: -99 | BO76: -99 | BP76: -99 | BQ76: -99 | BR76: -99 | BS76: -99 | BT76: -99 | BU76: -99 | BV76: -99 | BW76: -99 | BX76: -99 | BY76: -99 | BZ76: -99 | CA76: -99 | CB76: -99 | CC76: -99 | CD76: -99 | CE76: -99 | CF76: -99 | CG76: -99 | CH76: -99 | CI76: -99 | CJ76: -99 | CK76: -99 | CL76: -99 | CM76: -99 | CN76: -99 | CO76: -99 | CP76: -99 | CQ76: -99 | CR76: -99 | CS76: -99 | CT76: -99 | CU76: -99 | CV76: -99 | CW76: -99 | CX76: -99 | CY76: -99 | CZ76: -99 | DA76: -99 | DB76: -99 | DC76: -99 | DD76: -99 | DE76: -99 | DF76: -99 | DG76: -99 | DH76: -99 | DI76: -99 | DJ76: -99 | DK76: -99 | DL76: -99 | DM76: -99 | DN76: -99 | DO76: -99 | DP76: -99 | DQ76: -99 | DR76: -99 | DS76: -99 | DT76: -99 | DU76: -99 | DV76: -99 | DW76: -99 | DX76: -99 | DY76: -99 | DZ76: -99 | EA76: -99 | EB76: -99 | EC76: -99 | ED76: -99 | EE76: -99 | EF76: -99 | EG76: -99 | EH76: -99 | EI76: -99 | EJ76: -99 | EL76: 59
A77: Dual Antenna | B77: B | C77: 5845, 5865 | D77: 5 | E77: -99 | F77: -99 | G77: -99 | H77: -99 | I77: -99 | J77: -99 | K77: -99 | L77: -99 | M77: -99 | N77: -99 | O77: -99 | P77: -99 | Q77: -99 | R77: -99 | S77: -99 | T77: -99 | U77: -99 | V77: -99 | W77: -99 | X77: -99 | Y77: -99 | Z77: -99 | AA77: -99 | AB77: -99 | AC77: -99 | AD77: -99 | AE77: -99 | AF77: -99 | AG77: -99 | AH77: -99 | AI77: -99 | AJ77: -99 | AK77: -99 | AL77: -99 | AM77: -99 | AN77: -99 | AO77: -99 | AP77: -99 | AQ77: -99 | AR77: -99 | AS77: -99 | AT77: -99 | AU77: -99 | AV77: -99 | AW77: -99 | AX77: -99 | AY77: -99 | AZ77: -99 | BA77: -99 | BB77: -99 | BC77: -99 | BD77: -99 | BE77: -99 | BF77: -99 | BG77: -99 | BH77: -99 | BI77: -99 | BJ77: -99 | BK77: -99 | BL77: -99 | BM77: -99 | BN77: -99 | BO77: -99 | BP77: -99 | BQ77: -99 | BR77: -99 | BS77: -99 | BT77: -99 | BU77: -99 | BV77: -99 | BW77: -99 | BX77: -99 | BY77: -99 | BZ77: -99 | CA77: -99 | CB77: -99 | CC77: -99 | CD77: -99 | CE77: -99 | CF77: -99 | CG77: -99 | CH77: -99 | CI77: -99 | CJ77: -99 | CK77: -99 | CL77: -99 | CM77: -99 | CN77: -99 | CO77: -99 | CP77: -99 | CQ77: -99 | CR77: -99 | CS77: -99 | CT77: -99 | CU77: -99 | CV77: -99 | CW77: -99 | CX77: -99 | CY77: -99 | CZ77: -99 | DA77: -99 | DB77: -99 | DC77: -99 | DD77: -99 | DE77: -99 | DF77: -99 | DG77: -99 | DH77: -99 | DI77: -99 | DJ77: -99 | DK77: -99 | DL77: -99 | DM77: -99 | DN77: -99 | DO77: -99 | DP77: -99 | DQ77: -99 | DR77: -99 | DS77: -99 | DT77: -99 | DU77: -99 | DV77: -99 | DW77: -99 | DX77: -99 | DY77: -99 | DZ77: -99 | EA77: -99 | EB77: -99 | EC77: -99 | ED77: -99 | EE77: -99 | EF77: -99 | EG77: -99 | EH77: -99 | EI77: -99 | EJ77: -99 | EL77: 60
A78: Single Antenna | B78: B | C78: UNII-1 | D78: 7 | E78: 24 | F78: 24 | G78: 24 | H78: 24 | I78: 23 | J78: 23 | K78: 22 | L78: 21 | M78: 24 | N78: 24 | O78: 24 | P78: 24 | Q78: 23 | R78: 23 | S78: 22 | T78: 21 | U78: 20 | V78: -99 | W78: -99 | X78: -99 | Y78: -99 | Z78: -99 | AA78: -99 | AB78: -99 | AC78: -99 | AD78: -99 | AE78: -99 | AF78: -99 | AG78: 18 | AH78: 18 | AI78: 18 | AJ78: 18 | AK78: 18 | AL78: 18 | AM78: 18 | AN78: 18 | AO78: 18 | AP78: 18 | AQ78: -99 | AR78: -99 | AS78: -99 | AT78: -99 | AU78: -99 | AV78: -99 | AW78: -99 | AX78: -99 | AY78: -99 | AZ78: -99 | BA78: 16 | BB78: 16 | BC78: 16 | BD78: 16 | BE78: 16 | BF78: 16 | BG78: 16 | BH78: 16 | BI78: 16 | BJ78: 16 | BK78: -99 | BL78: -99 | BM78: -99 | BN78: -99 | BO78: -99 | BP78: -99 | BQ78: -99 | BR78: -99 | BS78: -99 | BT78: -99 | BU78: -99 | BV78: -99 | BW78: -99 | BX78: -99 | BY78: -99 | BZ78: -99 | CA78: -99 | CB78: -99 | CC78: -99 | CD78: -99 | CE78: -99 | CF78: -99 | CG78: -99 | CH78: -99 | CI78: -99 | CJ78: -99 | CK78: -99 | CL78: -99 | CM78: -99 | CN78: -99 | CO78: -99 | CP78: -99 | CQ78: -99 | CR78: -99 | CS78: -99 | CT78: -99 | CU78: -99 | CV78: -99 | CW78: -99 | CX78: -99 | CY78: -99 | CZ78: -99 | DA78: -99 | DB78: -99 | DC78: -99 | DD78: -99 | DE78: -99 | DF78: -99 | DG78: -99 | DH78: -99 | DI78: -99 | DJ78: -99 | DK78: -99 | DL78: -99 | DM78: -99 | DN78: -99 | DO78: -99 | DP78: -99 | DQ78: -99 | DR78: -99 | DS78: -99 | DT78: -99 | DU78: -99 | DV78: -99 | DW78: -99 | DX78: -99 | DY78: -99 | DZ78: -99 | EA78: -99 | EB78: -99 | EC78: -99 | ED78: -99 | EE78: -99 | EF78: -99 | EG78: -99 | EH78: -99 | EI78: -99 | EJ78: -99 | EL78: 61
A79: Dual Antenna | B79: B | C79: UNII-1 | D79: 7 | E79: 21 | F79: 21 | G79: 21 | H79: 21 | I79: 21 | J79: 21 | K79: 21 | L79: 21 | M79: 21 | N79: 21 | O79: 21 | P79: 21 | Q79: 21 | R79: 21 | S79: 21 | T79: 21 | U79: 20 | V79: -99 | W79: 21 | X79: 21 | Y79: 21 | Z79: 21 | AA79: 21 | AB79: 21 | AC79: 20 | AD79: 19 | AE79: 19 | AF79: -99 | AG79: 17 | AH79: 17 | AI79: 17 | AJ79: 17 | AK79: 17 | AL79: 17 | AM79: 17 | AN79: 17 | AO79: 17 | AP79: 17 | AQ79: 17 | AR79: 17 | AS79: 17 | AT79: 17 | AU79: 17 | AV79: 17 | AW79: 17 | AX79: 17 | AY79: 17 | AZ79: 17 | BA79: 15 | BB79: 15 | BC79: 15 | BD79: 15 | BE79: 15 | BF79: 15 | BG79: 15 | BH79: 15 | BI79: 15 | BJ79: 15 | BK79: 15 | BL79: 15 | BM79: 15 | BN79: 15 | BO79: 15 | BP79: 15 | BQ79: 15 | BR79: 15 | BS79: 15 | BT79: 15 | BU79: 17 | BV79: 17 | BW79: 17 | BX79: 17 | BY79: 17 | BZ79: 17 | CA79: 17 | CB79: 17 | CC79: 17 | CD79: 17 | CE79: 17 | CF79: 17 | CG79: 17 | CH79: 17 | CI79: 17 | CJ79: 17 | CK79: 17 | CL79: -99 | CM79: 21 | CN79: 21 | CO79: 21 | CP79: 21 | CQ79: 21 | CR79: 21 | CS79: 20 | CT79: 19 | CU79: 19 | CV79: -99 | CW79: 15 | CX79: 15 | CY79: 15 | CZ79: 15 | DA79: 15 | DB79: 15 | DC79: 15 | DD79: 15 | DE79: 15 | DF79: 15 | DG79: 17 | DH79: 17 | DI79: 17 | DJ79: 17 | DK79: 17 | DL79: 17 | DM79: 17 | DN79: 17 | DO79: 17 | DP79: 17 | DQ79: 13 | DR79: 13 | DS79: 13 | DT79: 13 | DU79: 13 | DV79: 13 | DW79: 13 | DX79: 13 | DY79: 13 | DZ79: 13 | EA79: 15 | EB79: 15 | EC79: 15 | ED79: 15 | EE79: 15 | EF79: 15 | EG79: 15 | EH79: 15 | EI79: 15 | EJ79: 15 | EL79: 62
A80: Single Antenna | B80: B | C80: UNII-2A | D80: 7 | E80: 22 | F80: 22 | G80: 22 | H80: 22 | I80: 22 | J80: 22 | K80: 22 | L80: 21 | M80: 22 | N80: 22 | O80: 22 | P80: 22 | Q80: 22 | R80: 22 | S80: 22 | T80: 21 | U80: 20 | V80: -99 | W80: -99 | X80: -99 | Y80: -99 | Z80: -99 | AA80: -99 | AB80: -99 | AC80: -99 | AD80: -99 | AE80: -99 | AF80: -99 | AG80: 17 | AH80: 17 | AI80: 17 | AJ80: 17 | AK80: 17 | AL80: 17 | AM80: 17 | AN80: 17 | AO80: 17 | AP80: 17 | AQ80: -99 | AR80: -99 | AS80: -99 | AT80: -99 | AU80: -99 | AV80: -99 | AW80: -99 | AX80: -99 | AY80: -99 | AZ80: -99 | BA80: 16 | BB80: 16 | BC80: 16 | BD80: 16 | BE80: 16 | BF80: 16 | BG80: 16 | BH80: 16 | BI80: 16 | BJ80: 16 | BK80: -99 | BL80: -99 | BM80: -99 | BN80: -99 | BO80: -99 | BP80: -99 | BQ80: -99 | BR80: -99 | BS80: -99 | BT80: -99 | BU80: -99 | BV80: -99 | BW80: -99 | BX80: -99 | BY80: -99 | BZ80: -99 | CA80: -99 | CB80: -99 | CC80: -99 | CD80: -99 | CE80: -99 | CF80: -99 | CG80: -99 | CH80: -99 | CI80: -99 | CJ80: -99 | CK80: -99 | CL80: -99 | CM80: -99 | CN80: -99 | CO80: -99 | CP80: -99 | CQ80: -99 | CR80: -99 | CS80: -99 | CT80: -99 | CU80: -99 | CV80: -99 | CW80: -99 | CX80: -99 | CY80: -99 | CZ80: -99 | DA80: -99 | DB80: -99 | DC80: -99 | DD80: -99 | DE80: -99 | DF80: -99 | DG80: -99 | DH80: -99 | DI80: -99 | DJ80: -99 | DK80: -99 | DL80: -99 | DM80: -99 | DN80: -99 | DO80: -99 | DP80: -99 | DQ80: -99 | DR80: -99 | DS80: -99 | DT80: -99 | DU80: -99 | DV80: -99 | DW80: -99 | DX80: -99 | DY80: -99 | DZ80: -99 | EA80: -99 | EB80: -99 | EC80: -99 | ED80: -99 | EE80: -99 | EF80: -99 | EG80: -99 | EH80: -99 | EI80: -99 | EJ80: -99 | EL80: 63
A81: Dual Antenna | B81: B | C81: UNII-2A | D81: 7 | E81: 16 | F81: 16 | G81: 16 | H81: 16 | I81: 16 | J81: 16 | K81: 16 | L81: 16 | M81: 16 | N81: 16 | O81: 16 | P81: 16 | Q81: 16 | R81: 16 | S81: 16 | T81: 16 | U81: 16 | V81: -99 | W81: 19 | X81: 19 | Y81: 19 | Z81: 19 | AA81: 19 | AB81: 19 | AC81: 19 | AD81: 19 | AE81: 19 | AF81: -99 | AG81: 17 | AH81: 17 | AI81: 17 | AJ81: 17 | AK81: 17 | AL81: 17 | AM81: 17 | AN81: 17 | AO81: 17 | AP81: 17 | AQ81: 17 | AR81: 17 | AS81: 17 | AT81: 17 | AU81: 17 | AV81: 17 | AW81: 17 | AX81: 17 | AY81: 17 | AZ81: 17 | BA81: 15 | BB81: 15 | BC81: 15 | BD81: 15 | BE81: 15 | BF81: 15 | BG81: 15 | BH81: 15 | BI81: 15 | BJ81: 15 | BK81: 15 | BL81: 15 | BM81: 15 | BN81: 15 | BO81: 15 | BP81: 15 | BQ81: 15 | BR81: 15 | BS81: 15 | BT81: 15 | BU81: 15 | BV81: 15 | BW81: 15 | BX81: 15 | BY81: 15 | BZ81: 15 | CA81: 15 | CB81: 15 | CC81: 15 | CD81: 15 | CE81: 15 | CF81: 15 | CG81: 15 | CH81: 15 | CI81: 15 | CJ81: 15 | CK81: 15 | CL81: -99 | CM81: 19 | CN81: 19 | CO81: 19 | CP81: 19 | CQ81: 19 | CR81: 19 | CS81: 19 | CT81: 19 | CU81: 19 | CV81: -99 | CW81: 14 | CX81: 14 | CY81: 14 | CZ81: 14 | DA81: 14 | DB81: 14 | DC81: 14 | DD81: 14 | DE81: 14 | DF81: 14 | DG81: 19 | DH81: 19 | DI81: 19 | DJ81: 19 | DK81: 19 | DL81: 19 | DM81: 19 | DN81: 19 | DO81: 19 | DP81: 18 | DQ81: 13 | DR81: 13 | DS81: 13 | DT81: 13 | DU81: 13 | DV81: 13 | DW81: 13 | DX81: 13 | DY81: 13 | DZ81: 13 | EA81: 15 | EB81: 15 | EC81: 15 | ED81: 15 | EE81: 15 | EF81: 15 | EG81: 15 | EH81: 15 | EI81: 15 | EJ81: 15 | EL81: 64
A82: Single Antenna | B82: B | C82: UNII-2C | D82: 7 | E82: 24 | F82: 24 | G82: 24 | H82: 24 | I82: 23 | J82: 23 | K82: 22 | L82: 21 | M82: 24 | N82: 24 | O82: 24 | P82: 24 | Q82: 23 | R82: 23 | S82: 22 | T82: 21 | U82: 20 | V82: -99 | W82: -99 | X82: -99 | Y82: -99 | Z82: -99 | AA82: -99 | AB82: -99 | AC82: -99 | AD82: -99 | AE82: -99 | AF82: -99 | AG82: 24 | AH82: 24 | AI82: 24 | AJ82: 24 | AK82: 23 | AL82: 22 | AM82: 21 | AN82: 20 | AO82: 20 | AP82: 19 | AQ82: -99 | AR82: -99 | AS82: -99 | AT82: -99 | AU82: -99 | AV82: -99 | AW82: -99 | AX82: -99 | AY82: -99 | AZ82: -99 | BA82: 24 | BB82: 24 | BC82: 24 | BD82: 24 | BE82: 23 | BF82: 22 | BG82: 21 | BH82: 20 | BI82: 20 | BJ82: 19 | BK82: -99 | BL82: -99 | BM82: -99 | BN82: -99 | BO82: -99 | BP82: -99 | BQ82: -99 | BR82: -99 | BS82: -99 | BT82: -99 | BU82: -99 | BV82: -99 | BW82: -99 | BX82: -99 | BY82: -99 | BZ82: -99 | CA82: -99 | CB82: -99 | CC82: -99 | CD82: -99 | CE82: -99 | CF82: -99 | CG82: -99 | CH82: -99 | CI82: -99 | CJ82: -99 | CK82: -99 | CL82: -99 | CM82: -99 | CN82: -99 | CO82: -99 | CP82: -99 | CQ82: -99 | CR82: -99 | CS82: -99 | CT82: -99 | CU82: -99 | CV82: -99 | CW82: -99 | CX82: -99 | CY82: -99 | CZ82: -99 | DA82: -99 | DB82: -99 | DC82: -99 | DD82: -99 | DE82: -99 | DF82: -99 | DG82: -99 | DH82: -99 | DI82: -99 | DJ82: -99 | DK82: -99 | DL82: -99 | DM82: -99 | DN82: -99 | DO82: -99 | DP82: -99 | DQ82: -99 | DR82: -99 | DS82: -99 | DT82: -99 | DU82: -99 | DV82: -99 | DW82: -99 | DX82: -99 | DY82: -99 | DZ82: -99 | EA82: -99 | EB82: -99 | EC82: -99 | ED82: -99 | EE82: -99 | EF82: -99 | EG82: -99 | EH82: -99 | EI82: -99 | EJ82: -99 | EL82: 65
A83: Dual Antenna | B83: B | C83: UNII-2C | D83: 7 | E83: 17 | F83: 17 | G83: 17 | H83: 17 | I83: 17 | J83: 17 | K83: 17 | L83: 17 | M83: 17 | N83: 17 | O83: 17 | P83: 17 | Q83: 17 | R83: 17 | S83: 17 | T83: 17 | U83: 17 | V83: -99 | W83: 20 | X83: 20 | Y83: 20 | Z83: 20 | AA83: 20 | AB83: 20 | AC83: 20 | AD83: 19 | AE83: 19 | AF83: -99 | AG83: 20 | AH83: 20 | AI83: 20 | AJ83: 20 | AK83: 20 | AL83: 20 | AM83: 20 | AN83: 20 | AO83: 20 | AP83: 19 | AQ83: 20 | AR83: 20 | AS83: 20 | AT83: 20 | AU83: 20 | AV83: 20 | AW83: 20 | AX83: 19 | AY83: 19 | AZ83: 18 | BA83: 20 | BB83: 20 | BC83: 20 | BD83: 20 | BE83: 20 | BF83: 20 | BG83: 20 | BH83: 20 | BI83: 20 | BJ83: 19 | BK83: 20 | BL83: 20 | BM83: 20 | BN83: 20 | BO83: 20 | BP83: 20 | BQ83: 20 | BR83: 19 | BS83: 19 | BT83: 18 | BU83: 17 | BV83: 17 | BW83: 17 | BX83: 17 | BY83: 17 | BZ83: 17 | CA83: 17 | CB83: 17 | CC83: 17 | CD83: 17 | CE83: 17 | CF83: 17 | CG83: 17 | CH83: 17 | CI83: 17 | CJ83: 17 | CK83: 17 | CL83: -99 | CM83: 21 | CN83: 21 | CO83: 21 | CP83: 21 | CQ83: 21 | CR83: 21 | CS83: 20 | CT83: 19 | CU83: 19 | CV83: -99 | CW83: 18 | CX83: 18 | CY83: 18 | CZ83: 18 | DA83: 18 | DB83: 18 | DC83: 18 | DD83: 18 | DE83: 18 | DF83: 18 | DG83: 20 | DH83: 20 | DI83: 20 | DJ83: 20 | DK83: 20 | DL83: 20 | DM83: 20 | DN83: 19 | DO83: 19 | DP83: 18 | DQ83: 18 | DR83: 18 | DS83: 18 | DT83: 18 | DU83: 18 | DV83: 18 | DW83: 18 | DX83: 18 | DY83: 18 | DZ83: 18 | EA83: 20 | EB83: 20 | EC83: 20 | ED83: 20 | EE83: 20 | EF83: 20 | EG83: 20 | EH83: 19 | EI83: 19 | EJ83: 18 | EL83: 66
A84: Single Antenna | B84: B | C84: UNII-3 | D84: 7 | E84: 24 | F84: 24 | G84: 24 | H84: 24 | I84: 23 | J84: 23 | K84: 22 | L84: 21 | M84: 24 | N84: 24 | O84: 24 | P84: 24 | Q84: 23 | R84: 23 | S84: 22 | T84: 21 | U84: 20 | V84: -99 | W84: -99 | X84: -99 | Y84: -99 | Z84: -99 | AA84: -99 | AB84: -99 | AC84: -99 | AD84: -99 | AE84: -99 | AF84: -99 | AG84: 23 | AH84: 23 | AI84: 23 | AJ84: 23 | AK84: 23 | AL84: 22 | AM84: 21 | AN84: 20 | AO84: 20 | AP84: 19 | AQ84: -99 | AR84: -99 | AS84: -99 | AT84: -99 | AU84: -99 | AV84: -99 | AW84: -99 | AX84: -99 | AY84: -99 | AZ84: -99 | BA84: 24 | BB84: 24 | BC84: 24 | BD84: 24 | BE84: 23 | BF84: 22 | BG84: 21 | BH84: 20 | BI84: 20 | BJ84: 19 | BK84: -99 | BL84: -99 | BM84: -99 | BN84: -99 | BO84: -99 | BP84: -99 | BQ84: -99 | BR84: -99 | BS84: -99 | BT84: -99 | BU84: -99 | BV84: -99 | BW84: -99 | BX84: -99 | BY84: -99 | BZ84: -99 | CA84: -99 | CB84: -99 | CC84: -99 | CD84: -99 | CE84: -99 | CF84: -99 | CG84: -99 | CH84: -99 | CI84: -99 | CJ84: -99 | CK84: -99 | CL84: -99 | CM84: -99 | CN84: -99 | CO84: -99 | CP84: -99 | CQ84: -99 | CR84: -99 | CS84: -99 | CT84: -99 | CU84: -99 | CV84: -99 | CW84: -99 | CX84: -99 | CY84: -99 | CZ84: -99 | DA84: -99 | DB84: -99 | DC84: -99 | DD84: -99 | DE84: -99 | DF84: -99 | DG84: -99 | DH84: -99 | DI84: -99 | DJ84: -99 | DK84: -99 | DL84: -99 | DM84: -99 | DN84: -99 | DO84: -99 | DP84: -99 | DQ84: -99 | DR84: -99 | DS84: -99 | DT84: -99 | DU84: -99 | DV84: -99 | DW84: -99 | DX84: -99 | DY84: -99 | DZ84: -99 | EA84: -99 | EB84: -99 | EC84: -99 | ED84: -99 | EE84: -99 | EF84: -99 | EG84: -99 | EH84: -99 | EI84: -99 | EJ84: -99 | EL84: 67
A85: Dual Antenna | B85: B | C85: UNII-3 | D85: 7 | E85: 24 | F85: 24 | G85: 24 | H85: 24 | I85: 23 | J85: 23 | K85: 22 | L85: 21 | M85: 24 | N85: 24 | O85: 24 | P85: 24 | Q85: 23 | R85: 23 | S85: 22 | T85: 21 | U85: 20 | V85: -99 | W85: 24 | X85: 24 | Y85: 24 | Z85: 24 | AA85: 22 | AB85: 21 | AC85: 20 | AD85: 19 | AE85: 19 | AF85: -99 | AG85: 21 | AH85: 21 | AI85: 21 | AJ85: 21 | AK85: 21 | AL85: 21 | AM85: 21 | AN85: 20 | AO85: 20 | AP85: 19 | AQ85: 21 | AR85: 21 | AS85: 21 | AT85: 21 | AU85: 21 | AV85: 21 | AW85: 20 | AX85: 19 | AY85: 19 | AZ85: 18 | BA85: 22 | BB85: 22 | BC85: 22 | BD85: 22 | BE85: 22 | BF85: 22 | BG85: 21 | BH85: 20 | BI85: 20 | BJ85: 19 | BK85: 22 | BL85: 22 | BM85: 22 | BN85: 22 | BO85: 22 | BP85: 21 | BQ85: 20 | BR85: 19 | BS85: 19 | BT85: 18 | BU85: 19 | BV85: 19 | BW85: 19 | BX85: 19 | BY85: 19 | BZ85: 19 | CA85: 19 | CB85: 19 | CC85: 19 | CD85: 19 | CE85: 19 | CF85: 19 | CG85: 19 | CH85: 19 | CI85: 19 | CJ85: 19 | CK85: 19 | CL85: -99 | CM85: 24 | CN85: 24 | CO85: 24 | CP85: 24 | CQ85: 22 | CR85: 21 | CS85: 20 | CT85: 19 | CU85: 19 | CV85: -99 | CW85: 19 | CX85: 19 | CY85: 19 | CZ85: 19 | DA85: 19 | DB85: 19 | DC85: 19 | DD85: 19 | DE85: 19 | DF85: 19 | DG85: 21 | DH85: 21 | DI85: 21 | DJ85: 21 | DK85: 21 | DL85: 21 | DM85: 20 | DN85: 19 | DO85: 19 | DP85: 18 | DQ85: 19 | DR85: 19 | DS85: 19 | DT85: 19 | DU85: 19 | DV85: 19 | DW85: 19 | DX85: 19 | DY85: 19 | DZ85: 19 | EA85: 22 | EB85: 22 | EC85: 22 | ED85: 22 | EE85: 22 | EF85: 21 | EG85: 20 | EH85: 19 | EI85: 19 | EJ85: 18 | EL85: 68
A86: Single Antenna | B86: B | C86: 5845, 5865 | D86: 7 | E86: -99 | F86: -99 | G86: -99 | H86: -99 | I86: -99 | J86: -99 | K86: -99 | L86: -99 | M86: -99 | N86: -99 | O86: -99 | P86: -99 | Q86: -99 | R86: -99 | S86: -99 | T86: -99 | U86: -99 | V86: -99 | W86: -99 | X86: -99 | Y86: -99 | Z86: -99 | AA86: -99 | AB86: -99 | AC86: -99 | AD86: -99 | AE86: -99 | AF86: -99 | AG86: -99 | AH86: -99 | AI86: -99 | AJ86: -99 | AK86: -99 | AL86: -99 | AM86: -99 | AN86: -99 | AO86: -99 | AP86: -99 | AQ86: -99 | AR86: -99 | AS86: -99 | AT86: -99 | AU86: -99 | AV86: -99 | AW86: -99 | AX86: -99 | AY86: -99 | AZ86: -99 | BA86: -99 | BB86: -99 | BC86: -99 | BD86: -99 | BE86: -99 | BF86: -99 | BG86: -99 | BH86: -99 | BI86: -99 | BJ86: -99 | BK86: -99 | BL86: -99 | BM86: -99 | BN86: -99 | BO86: -99 | BP86: -99 | BQ86: -99 | BR86: -99 | BS86: -99 | BT86: -99 | BU86: -99 | BV86: -99 | BW86: -99 | BX86: -99 | BY86: -99 | BZ86: -99 | CA86: -99 | CB86: -99 | CC86: -99 | CD86: -99 | CE86: -99 | CF86: -99 | CG86: -99 | CH86: -99 | CI86: -99 | CJ86: -99 | CK86: -99 | CL86: -99 | CM86: -99 | CN86: -99 | CO86: -99 | CP86: -99 | CQ86: -99 | CR86: -99 | CS86: -99 | CT86: -99 | CU86: -99 | CV86: -99 | CW86: -99 | CX86: -99 | CY86: -99 | CZ86: -99 | DA86: -99 | DB86: -99 | DC86: -99 | DD86: -99 | DE86: -99 | DF86: -99 | DG86: -99 | DH86: -99 | DI86: -99 | DJ86: -99 | DK86: -99 | DL86: -99 | DM86: -99 | DN86: -99 | DO86: -99 | DP86: -99 | DQ86: -99 | DR86: -99 | DS86: -99 | DT86: -99 | DU86: -99 | DV86: -99 | DW86: -99 | DX86: -99 | DY86: -99 | DZ86: -99 | EA86: -99 | EB86: -99 | EC86: -99 | ED86: -99 | EE86: -99 | EF86: -99 | EG86: -99 | EH86: -99 | EI86: -99 | EJ86: -99 | EL86: 69
A87: Dual Antenna | B87: B | C87: 5845, 5865 | D87: 7 | E87: -99 | F87: -99 | G87: -99 | H87: -99 | I87: -99 | J87: -99 | K87: -99 | L87: -99 | M87: -99 | N87: -99 | O87: -99 | P87: -99 | Q87: -99 | R87: -99 | S87: -99 | T87: -99 | U87: -99 | V87: -99 | W87: -99 | X87: -99 | Y87: -99 | Z87: -99 | AA87: -99 | AB87: -99 | AC87: -99 | AD87: -99 | AE87: -99 | AF87: -99 | AG87: -99 | AH87: -99 | AI87: -99 | AJ87: -99 | AK87: -99 | AL87: -99 | AM87: -99 | AN87: -99 | AO87: -99 | AP87: -99 | AQ87: -99 | AR87: -99 | AS87: -99 | AT87: -99 | AU87: -99 | AV87: -99 | AW87: -99 | AX87: -99 | AY87: -99 | AZ87: -99 | BA87: -99 | BB87: -99 | BC87: -99 | BD87: -99 | BE87: -99 | BF87: -99 | BG87: -99 | BH87: -99 | BI87: -99 | BJ87: -99 | BK87: -99 | BL87: -99 | BM87: -99 | BN87: -99 | BO87: -99 | BP87: -99 | BQ87: -99 | BR87: -99 | BS87: -99 | BT87: -99 | BU87: -99 | BV87: -99 | BW87: -99 | BX87: -99 | BY87: -99 | BZ87: -99 | CA87: -99 | CB87: -99 | CC87: -99 | CD87: -99 | CE87: -99 | CF87: -99 | CG87: -99 | CH87: -99 | CI87: -99 | CJ87: -99 | CK87: -99 | CL87: -99 | CM87: -99 | CN87: -99 | CO87: -99 | CP87: -99 | CQ87: -99 | CR87: -99 | CS87: -99 | CT87: -99 | CU87: -99 | CV87: -99 | CW87: -99 | CX87: -99 | CY87: -99 | CZ87: -99 | DA87: -99 | DB87: -99 | DC87: -99 | DD87: -99 | DE87: -99 | DF87: -99 | DG87: -99 | DH87: -99 | DI87: -99 | DJ87: -99 | DK87: -99 | DL87: -99 | DM87: -99 | DN87: -99 | DO87: -99 | DP87: -99 | DQ87: -99 | DR87: -99 | DS87: -99 | DT87: -99 | DU87: -99 | DV87: -99 | DW87: -99 | DX87: -99 | DY87: -99 | DZ87: -99 | EA87: -99 | EB87: -99 | EC87: -99 | ED87: -99 | EE87: -99 | EF87: -99 | EG87: -99 | EH87: -99 | EI87: -99 | EJ87: -99 | EL87: 70
A88: Single Antenna | B88: B | C88: UNII-1 | D88: 8 | E88: 20 | F88: 20 | G88: 20 | H88: 20 | I88: 20 | J88: 20 | K88: 20 | L88: 20 | M88: 20 | N88: 20 | O88: 20 | P88: 20 | Q88: 20 | R88: 20 | S88: 20 | T88: 20 | U88: 20 | V88: -99 | W88: -99 | X88: -99 | Y88: -99 | Z88: -99 | AA88: -99 | AB88: -99 | AC88: -99 | AD88: -99 | AE88: -99 | AF88: -99 | AG88: 17 | AH88: 17 | AI88: 17 | AJ88: 17 | AK88: 17 | AL88: 17 | AM88: 17 | AN88: 17 | AO88: 17 | AP88: 17 | AQ88: -99 | AR88: -99 | AS88: -99 | AT88: -99 | AU88: -99 | AV88: -99 | AW88: -99 | AX88: -99 | AY88: -99 | AZ88: -99 | BA88: 16 | BB88: 16 | BC88: 16 | BD88: 16 | BE88: 16 | BF88: 16 | BG88: 16 | BH88: 16 | BI88: 16 | BJ88: 16 | BK88: -99 | BL88: -99 | BM88: -99 | BN88: -99 | BO88: -99 | BP88: -99 | BQ88: -99 | BR88: -99 | BS88: -99 | BT88: -99 | BU88: -99 | BV88: -99 | BW88: -99 | BX88: -99 | BY88: -99 | BZ88: -99 | CA88: -99 | CB88: -99 | CC88: -99 | CD88: -99 | CE88: -99 | CF88: -99 | CG88: -99 | CH88: -99 | CI88: -99 | CJ88: -99 | CK88: -99 | CL88: -99 | CM88: -99 | CN88: -99 | CO88: -99 | CP88: -99 | CQ88: -99 | CR88: -99 | CS88: -99 | CT88: -99 | CU88: -99 | CV88: -99 | CW88: -99 | CX88: -99 | CY88: -99 | CZ88: -99 | DA88: -99 | DB88: -99 | DC88: -99 | DD88: -99 | DE88: -99 | DF88: -99 | DG88: -99 | DH88: -99 | DI88: -99 | DJ88: -99 | DK88: -99 | DL88: -99 | DM88: -99 | DN88: -99 | DO88: -99 | DP88: -99 | DQ88: -99 | DR88: -99 | DS88: -99 | DT88: -99 | DU88: -99 | DV88: -99 | DW88: -99 | DX88: -99 | DY88: -99 | DZ88: -99 | EA88: -99 | EB88: -99 | EC88: -99 | ED88: -99 | EE88: -99 | EF88: -99 | EG88: -99 | EH88: -99 | EI88: -99 | EJ88: -99 | EL88: 71
A89: Dual Antenna | B89: B | C89: UNII-1 | D89: 8 | E89: 18 | F89: 18 | G89: 18 | H89: 18 | I89: 18 | J89: 18 | K89: 18 | L89: 18 | M89: 18 | N89: 18 | O89: 18 | P89: 18 | Q89: 18 | R89: 18 | S89: 18 | T89: 18 | U89: 18 | V89: -99 | W89: 18 | X89: 18 | Y89: 18 | Z89: 18 | AA89: 18 | AB89: 18 | AC89: 18 | AD89: 18 | AE89: 18 | AF89: -99 | AG89: 16 | AH89: 16 | AI89: 16 | AJ89: 16 | AK89: 16 | AL89: 16 | AM89: 16 | AN89: 16 | AO89: 16 | AP89: 16 | AQ89: 16 | AR89: 16 | AS89: 16 | AT89: 16 | AU89: 16 | AV89: 16 | AW89: 16 | AX89: 16 | AY89: 16 | AZ89: 16 | BA89: 14 | BB89: 14 | BC89: 14 | BD89: 14 | BE89: 14 | BF89: 14 | BG89: 14 | BH89: 14 | BI89: 14 | BJ89: 14 | BK89: 14 | BL89: 14 | BM89: 14 | BN89: 14 | BO89: 14 | BP89: 14 | BQ89: 14 | BR89: 14 | BS89: 14 | BT89: 14 | BU89: 15 | BV89: 15 | BW89: 15 | BX89: 15 | BY89: 15 | BZ89: 15 | CA89: 15 | CB89: 15 | CC89: 15 | CD89: 15 | CE89: 15 | CF89: 15 | CG89: 15 | CH89: 15 | CI89: 15 | CJ89: 15 | CK89: 15 | CL89: -99 | CM89: 18 | CN89: 18 | CO89: 18 | CP89: 18 | CQ89: 18 | CR89: 18 | CS89: 18 | CT89: 18 | CU89: 18 | CV89: -99 | CW89: 15 | CX89: 15 | CY89: 15 | CZ89: 15 | DA89: 15 | DB89: 15 | DC89: 15 | DD89: 15 | DE89: 15 | DF89: 15 | DG89: 16 | DH89: 16 | DI89: 16 | DJ89: 16 | DK89: 16 | DL89: 16 | DM89: 16 | DN89: 16 | DO89: 16 | DP89: 16 | DQ89: 13 | DR89: 13 | DS89: 13 | DT89: 13 | DU89: 13 | DV89: 13 | DW89: 13 | DX89: 13 | DY89: 13 | DZ89: 13 | EA89: 14 | EB89: 14 | EC89: 14 | ED89: 14 | EE89: 14 | EF89: 14 | EG89: 14 | EH89: 14 | EI89: 14 | EJ89: 14 | EL89: 72
A90: Single Antenna | B90: B | C90: UNII-2A | D90: 8 | E90: 20 | F90: 20 | G90: 20 | H90: 20 | I90: 20 | J90: 20 | K90: 20 | L90: 20 | M90: 21 | N90: 21 | O90: 21 | P90: 21 | Q90: 21 | R90: 21 | S90: 21 | T90: 21 | U90: 20 | V90: -99 | W90: -99 | X90: -99 | Y90: -99 | Z90: -99 | AA90: -99 | AB90: -99 | AC90: -99 | AD90: -99 | AE90: -99 | AF90: -99 | AG90: 17 | AH90: 17 | AI90: 17 | AJ90: 17 | AK90: 17 | AL90: 17 | AM90: 17 | AN90: 17 | AO90: 17 | AP90: 17 | AQ90: -99 | AR90: -99 | AS90: -99 | AT90: -99 | AU90: -99 | AV90: -99 | AW90: -99 | AX90: -99 | AY90: -99 | AZ90: -99 | BA90: 16 | BB90: 16 | BC90: 16 | BD90: 16 | BE90: 16 | BF90: 16 | BG90: 16 | BH90: 16 | BI90: 16 | BJ90: 16 | BK90: -99 | BL90: -99 | BM90: -99 | BN90: -99 | BO90: -99 | BP90: -99 | BQ90: -99 | BR90: -99 | BS90: -99 | BT90: -99 | BU90: -99 | BV90: -99 | BW90: -99 | BX90: -99 | BY90: -99 | BZ90: -99 | CA90: -99 | CB90: -99 | CC90: -99 | CD90: -99 | CE90: -99 | CF90: -99 | CG90: -99 | CH90: -99 | CI90: -99 | CJ90: -99 | CK90: -99 | CL90: -99 | CM90: -99 | CN90: -99 | CO90: -99 | CP90: -99 | CQ90: -99 | CR90: -99 | CS90: -99 | CT90: -99 | CU90: -99 | CV90: -99 | CW90: -99 | CX90: -99 | CY90: -99 | CZ90: -99 | DA90: -99 | DB90: -99 | DC90: -99 | DD90: -99 | DE90: -99 | DF90: -99 | DG90: -99 | DH90: -99 | DI90: -99 | DJ90: -99 | DK90: -99 | DL90: -99 | DM90: -99 | DN90: -99 | DO90: -99 | DP90: -99 | DQ90: -99 | DR90: -99 | DS90: -99 | DT90: -99 | DU90: -99 | DV90: -99 | DW90: -99 | DX90: -99 | DY90: -99 | DZ90: -99 | EA90: -99 | EB90: -99 | EC90: -99 | ED90: -99 | EE90: -99 | EF90: -99 | EG90: -99 | EH90: -99 | EI90: -99 | EJ90: -99 | EL90: 73
A91: Dual Antenna | B91: B | C91: UNII-2A | D91: 8 | E91: 15 | F91: 15 | G91: 15 | H91: 15 | I91: 15 | J91: 15 | K91: 15 | L91: 15 | M91: 15 | N91: 15 | O91: 15 | P91: 15 | Q91: 15 | R91: 15 | S91: 15 | T91: 15 | U91: 15 | V91: -99 | W91: 18 | X91: 18 | Y91: 18 | Z91: 18 | AA91: 18 | AB91: 18 | AC91: 18 | AD91: 18 | AE91: 18 | AF91: -99 | AG91: 16 | AH91: 16 | AI91: 16 | AJ91: 16 | AK91: 16 | AL91: 16 | AM91: 16 | AN91: 16 | AO91: 16 | AP91: 16 | AQ91: 16 | AR91: 16 | AS91: 16 | AT91: 16 | AU91: 16 | AV91: 16 | AW91: 16 | AX91: 16 | AY91: 16 | AZ91: 16 | BA91: 14 | BB91: 14 | BC91: 14 | BD91: 14 | BE91: 14 | BF91: 14 | BG91: 14 | BH91: 14 | BI91: 14 | BJ91: 14 | BK91: 14 | BL91: 14 | BM91: 14 | BN91: 14 | BO91: 14 | BP91: 14 | BQ91: 14 | BR91: 14 | BS91: 14 | BT91: 14 | BU91: 13 | BV91: 13 | BW91: 13 | BX91: 13 | BY91: 13 | BZ91: 13 | CA91: 13 | CB91: 13 | CC91: 13 | CD91: 13 | CE91: 13 | CF91: 13 | CG91: 13 | CH91: 13 | CI91: 13 | CJ91: 13 | CK91: 13 | CL91: -99 | CM91: 18 | CN91: 18 | CO91: 18 | CP91: 18 | CQ91: 18 | CR91: 18 | CS91: 18 | CT91: 18 | CU91: 18 | CV91: -99 | CW91: 13 | CX91: 13 | CY91: 13 | CZ91: 13 | DA91: 13 | DB91: 13 | DC91: 13 | DD91: 13 | DE91: 13 | DF91: 13 | DG91: 16 | DH91: 16 | DI91: 16 | DJ91: 16 | DK91: 16 | DL91: 16 | DM91: 16 | DN91: 16 | DO91: 16 | DP91: 16 | DQ91: 12 | DR91: 12 | DS91: 12 | DT91: 12 | DU91: 12 | DV91: 12 | DW91: 12 | DX91: 12 | DY91: 12 | DZ91: 12 | EA91: 14 | EB91: 14 | EC91: 14 | ED91: 14 | EE91: 14 | EF91: 14 | EG91: 14 | EH91: 14 | EI91: 14 | EJ91: 14 | EL91: 74
A92: Single Antenna | B92: B | C92: UNII-2C | D92: 8 | E92: 24 | F92: 24 | G92: 24 | H92: 24 | I92: 23 | J92: 23 | K92: 22 | L92: 21 | M92: 24 | N92: 24 | O92: 24 | P92: 24 | Q92: 23 | R92: 23 | S92: 22 | T92: 21 | U92: 20 | V92: -99 | W92: -99 | X92: -99 | Y92: -99 | Z92: -99 | AA92: -99 | AB92: -99 | AC92: -99 | AD92: -99 | AE92: -99 | AF92: -99 | AG92: 24 | AH92: 24 | AI92: 24 | AJ92: 24 | AK92: 23 | AL92: 22 | AM92: 21 | AN92: 20 | AO92: 20 | AP92: 19 | AQ92: -99 | AR92: -99 | AS92: -99 | AT92: -99 | AU92: -99 | AV92: -99 | AW92: -99 | AX92: -99 | AY92: -99 | AZ92: -99 | BA92: 22 | BB92: 22 | BC92: 22 | BD92: 22 | BE92: 22 | BF92: 22 | BG92: 21 | BH92: 20 | BI92: 20 | BJ92: 19 | BK92: -99 | BL92: -99 | BM92: -99 | BN92: -99 | BO92: -99 | BP92: -99 | BQ92: -99 | BR92: -99 | BS92: -99 | BT92: -99 | BU92: -99 | BV92: -99 | BW92: -99 | BX92: -99 | BY92: -99 | BZ92: -99 | CA92: -99 | CB92: -99 | CC92: -99 | CD92: -99 | CE92: -99 | CF92: -99 | CG92: -99 | CH92: -99 | CI92: -99 | CJ92: -99 | CK92: -99 | CL92: -99 | CM92: -99 | CN92: -99 | CO92: -99 | CP92: -99 | CQ92: -99 | CR92: -99 | CS92: -99 | CT92: -99 | CU92: -99 | CV92: -99 | CW92: -99 | CX92: -99 | CY92: -99 | CZ92: -99 | DA92: -99 | DB92: -99 | DC92: -99 | DD92: -99 | DE92: -99 | DF92: -99 | DG92: -99 | DH92: -99 | DI92: -99 | DJ92: -99 | DK92: -99 | DL92: -99 | DM92: -99 | DN92: -99 | DO92: -99 | DP92: -99 | DQ92: -99 | DR92: -99 | DS92: -99 | DT92: -99 | DU92: -99 | DV92: -99 | DW92: -99 | DX92: -99 | DY92: -99 | DZ92: -99 | EA92: -99 | EB92: -99 | EC92: -99 | ED92: -99 | EE92: -99 | EF92: -99 | EG92: -99 | EH92: -99 | EI92: -99 | EJ92: -99 | EL92: 75
A93: Dual Antenna | B93: B | C93: UNII-2C | D93: 8 | E93: 16 | F93: 16 | G93: 16 | H93: 16 | I93: 16 | J93: 16 | K93: 16 | L93: 16 | M93: 16 | N93: 16 | O93: 16 | P93: 16 | Q93: 16 | R93: 16 | S93: 16 | T93: 16 | U93: 16 | V93: -99 | W93: 21 | X93: 21 | Y93: 21 | Z93: 21 | AA93: 21 | AB93: 21 | AC93: 20 | AD93: 19 | AE93: 19 | AF93: -99 | AG93: 18 | AH93: 18 | AI93: 18 | AJ93: 18 | AK93: 18 | AL93: 18 | AM93: 18 | AN93: 18 | AO93: 18 | AP93: 18 | AQ93: 19 | AR93: 19 | AS93: 19 | AT93: 19 | AU93: 19 | AV93: 19 | AW93: 19 | AX93: 19 | AY93: 19 | AZ93: 19 | BA93: 19 | BB93: 19 | BC93: 19 | BD93: 19 | BE93: 19 | BF93: 19 | BG93: 19 | BH93: 19 | BI93: 19 | BJ93: 19 | BK93: 19 | BL93: 19 | BM93: 19 | BN93: 19 | BO93: 19 | BP93: 19 | BQ93: 19 | BR93: 19 | BS93: 19 | BT93: 19 | BU93: 15 | BV93: 15 | BW93: 15 | BX93: 15 | BY93: 15 | BZ93: 15 | CA93: 15 | CB93: 15 | CC93: 15 | CD93: 15 | CE93: 15 | CF93: 15 | CG93: 15 | CH93: 15 | CI93: 15 | CJ93: 15 | CK93: 15 | CL93: -99 | CM93: 21 | CN93: 21 | CO93: 21 | CP93: 21 | CQ93: 21 | CR93: 21 | CS93: 20 | CT93: 19 | CU93: 19 | CV93: -99 | CW93: 14 | CX93: 14 | CY93: 14 | CZ93: 14 | DA93: 14 | DB93: 14 | DC93: 14 | DD93: 14 | DE93: 14 | DF93: 14 | DG93: 18 | DH93: 18 | DI93: 18 | DJ93: 18 | DK93: 18 | DL93: 18 | DM93: 18 | DN93: 18 | DO93: 18 | DP93: 18 | DQ93: 16 | DR93: 16 | DS93: 16 | DT93: 16 | DU93: 16 | DV93: 16 | DW93: 16 | DX93: 16 | DY93: 16 | DZ93: 16 | EA93: 19 | EB93: 19 | EC93: 19 | ED93: 19 | EE93: 19 | EF93: 19 | EG93: 19 | EH93: 19 | EI93: 19 | EJ93: 18 | EL93: 76
A94: Single Antenna | B94: B | C94: UNII-3 | D94: 8 | E94: 24 | F94: 24 | G94: 24 | H94: 24 | I94: 23 | J94: 23 | K94: 22 | L94: 21 | M94: 24 | N94: 24 | O94: 24 | P94: 24 | Q94: 23 | R94: 23 | S94: 22 | T94: 21 | U94: 20 | V94: -99 | W94: -99 | X94: -99 | Y94: -99 | Z94: -99 | AA94: -99 | AB94: -99 | AC94: -99 | AD94: -99 | AE94: -99 | AF94: -99 | AG94: 24 | AH94: 24 | AI94: 24 | AJ94: 24 | AK94: 23 | AL94: 22 | AM94: 21 | AN94: 20 | AO94: 20 | AP94: 19 | AQ94: -99 | AR94: -99 | AS94: -99 | AT94: -99 | AU94: -99 | AV94: -99 | AW94: -99 | AX94: -99 | AY94: -99 | AZ94: -99 | BA94: 24 | BB94: 24 | BC94: 24 | BD94: 24 | BE94: 23 | BF94: 22 | BG94: 21 | BH94: 20 | BI94: 20 | BJ94: 19 | BK94: -99 | BL94: -99 | BM94: -99 | BN94: -99 | BO94: -99 | BP94: -99 | BQ94: -99 | BR94: -99 | BS94: -99 | BT94: -99 | BU94: -99 | BV94: -99 | BW94: -99 | BX94: -99 | BY94: -99 | BZ94: -99 | CA94: -99 | CB94: -99 | CC94: -99 | CD94: -99 | CE94: -99 | CF94: -99 | CG94: -99 | CH94: -99 | CI94: -99 | CJ94: -99 | CK94: -99 | CL94: -99 | CM94: -99 | CN94: -99 | CO94: -99 | CP94: -99 | CQ94: -99 | CR94: -99 | CS94: -99 | CT94: -99 | CU94: -99 | CV94: -99 | CW94: -99 | CX94: -99 | CY94: -99 | CZ94: -99 | DA94: -99 | DB94: -99 | DC94: -99 | DD94: -99 | DE94: -99 | DF94: -99 | DG94: -99 | DH94: -99 | DI94: -99 | DJ94: -99 | DK94: -99 | DL94: -99 | DM94: -99 | DN94: -99 | DO94: -99 | DP94: -99 | DQ94: -99 | DR94: -99 | DS94: -99 | DT94: -99 | DU94: -99 | DV94: -99 | DW94: -99 | DX94: -99 | DY94: -99 | DZ94: -99 | EA94: -99 | EB94: -99 | EC94: -99 | ED94: -99 | EE94: -99 | EF94: -99 | EG94: -99 | EH94: -99 | EI94: -99 | EJ94: -99 | EL94: 77
A95: Dual Antenna | B95: B | C95: UNII-3 | D95: 8 | E95: 19 | F95: 19 | G95: 19 | H95: 19 | I95: 19 | J95: 19 | K95: 19 | L95: 19 | M95: 19 | N95: 19 | O95: 19 | P95: 19 | Q95: 19 | R95: 19 | S95: 19 | T95: 19 | U95: 19 | V95: -99 | W95: 19 | X95: 19 | Y95: 19 | Z95: 19 | AA95: 19 | AB95: 19 | AC95: 19 | AD95: 19 | AE95: 19 | AF95: -99 | AG95: 19 | AH95: 19 | AI95: 19 | AJ95: 19 | AK95: 19 | AL95: 19 | AM95: 19 | AN95: 19 | AO95: 19 | AP95: 19 | AQ95: 19 | AR95: 19 | AS95: 19 | AT95: 19 | AU95: 19 | AV95: 19 | AW95: 19 | AX95: 19 | AY95: 19 | AZ95: 19 | BA95: 19 | BB95: 19 | BC95: 19 | BD95: 19 | BE95: 19 | BF95: 19 | BG95: 19 | BH95: 19 | BI95: 19 | BJ95: 19 | BK95: 19 | BL95: 19 | BM95: 19 | BN95: 19 | BO95: 19 | BP95: 19 | BQ95: 19 | BR95: 19 | BS95: 19 | BT95: 19 | BU95: 18 | BV95: 18 | BW95: 18 | BX95: 18 | BY95: 18 | BZ95: 18 | CA95: 18 | CB95: 18 | CC95: 18 | CD95: 18 | CE95: 18 | CF95: 18 | CG95: 18 | CH95: 18 | CI95: 18 | CJ95: 18 | CK95: 18 | CL95: -99 | CM95: 19 | CN95: 19 | CO95: 19 | CP95: 19 | CQ95: 19 | CR95: 19 | CS95: 19 | CT95: 19 | CU95: 19 | CV95: -99 | CW95: 18 | CX95: 18 | CY95: 18 | CZ95: 18 | DA95: 18 | DB95: 18 | DC95: 18 | DD95: 18 | DE95: 18 | DF95: 18 | DG95: 19 | DH95: 19 | DI95: 19 | DJ95: 19 | DK95: 19 | DL95: 19 | DM95: 19 | DN95: 19 | DO95: 19 | DP95: 19 | DQ95: 18 | DR95: 18 | DS95: 18 | DT95: 18 | DU95: 18 | DV95: 18 | DW95: 18 | DX95: 18 | DY95: 18 | DZ95: 18 | EA95: 19 | EB95: 19 | EC95: 19 | ED95: 19 | EE95: 19 | EF95: 19 | EG95: 19 | EH95: 19 | EI95: 19 | EJ95: 19 | EL95: 78
